{"text_format":"1","workbook":"xlsx","n_sheets":9,"sheets":["presabana Total","Sabana por grupo","Hoja2","Datos generales","Reporte General","Datos individuales","Reporte individual","Datos generales de planteles","Reporte general Planteles"],"not_rendered":{"charts":8,"images":2,"macros":1,"external_links":0,"defined_names":4,"comments":0,"pivot_tables":0},"unopened":[],"bounds":{"document_bytes":16777216,"sheet_cells":100000,"rows_first":2000,"rows_last":500,"rows_between":2000,"halvings":0,"cell_chars":16384,"cell_head_chars":4096},"cells_cut":0,"cells_raw":0,"read":"whole","date_system":"1900"}

{"sheet":"presabana Total","index":0,"n_rows":19,"n_cols":106,"rows_kept":19,"cut":false,"hidden":false,"merged":[]}
["Marca temporal","Puntuación","Nombre Completo","Turno","Edad","Grado","Sexo","Plantel","1.- ¿Eres arrogante?","2.- ¿Has tenido dificultades porque consumes drogas o bebidas alcohólicas en la escuela?","3.- ¿Se aburren tus amigos en las fiestas donde no sirven bebidas alcohólicas?","4.- ¿Discuten demasiado tus padres o tutores?","5.- ¿Te cansas con frecuencia?","6.- ¿Te asustas con facilidad?","7.- ¿Tienes menos energía de la que crees que deberías tener?","8.- ¿Te sientes frustrado(a) con facilidad?","9.- ¿Amenazas a otros con hacerles daño?","10.- ¿Te sientes solo (a) la mayor parte del tiempo?","11.- ¿Dices groserías o vulgaridades?","12.- ¿Escuchas cuidadosamente cuando alguien te habla?","13.- ¿Son tus amigos (as) del agrado de tus padres o tutores?","14.- ¿Se niegan tus padres o tutores a hablarte cuando se enfadan contigo?","15.- ¿Actúas impulsivamente y sin pensar en las consecuencias que tendrán tus actos?","16.- ¿Has tenido algún trabajo eventual con sueldo?","17.- ¿Te has hecho daño o le has hecho daño a otra persona accidentalmente, estando bajo los efectos del alcohol o drogas?","18.- ¿Tienes buena ortografía?","19.- ¿Tienes amigos que causan daño o destrucción intencionalmente?","20.- La mayoría de las veces, ¿saben tus padres o tutores dónde estás y lo que estás haciendo?","21.- ¿Sueles perderte actividades o acontecimientos porque has gastado demasiado dinero en drogas o bebidas alcohólicas?","22.- ¿Participas en muchas actividades en compañía de tus padres o tutores?","23.- ¿Te sientes nervioso (a) la mayor parte del tiempo?","24.- ¿Has robado alguna vez?","25.- ¿Has sentido que eres adicto (a) al alcohol o a las drogas?","26.- ¿Sabes leer bien?","27.- ¿Has estado ausente o llegado tarde a tu trabajo o escuela con frecuencia?","28.- ¿Sientes que la gente está en contra tuya?","29.- ¿Tus amigos llevan drogas a las fiestas?","30.- ¿Peleas con frecuencia?","31.- ¿Tienes mal genio?","32.- ¿Te prestan atención tus padres o tutores cuando les hablas?","33.- ¿Has comenzado a consumir mayores cantidades de drogas o alcohol para obtener el efecto que deseas?","34.- ¿Te dice la gente que eres descuidado (a)?","35.- ¿Eres terco (a) o testarudo (a)?","36.- ¿Has tenido alguna vez o tienes actualmente un empleo?","37.- ¿Has amenazado alguna vez a alguien con un arma?","38.- ¿A veces te vas de las fiestas porque en ellas no hay bebidas alcohólicas o drogas?","39.- ¿Saben tus padres o tutores cómo piensas o te sientes realmente?","40.- ¿Actúas impulsivamente con frecuencia?","41.- ¿Sientes un deseo constante de consumir bebidas alcohólicas o drogas?","42.- ¿Pierdes el hilo del pensamiento con mucha frecuencia?","43.- ¿Tienes dificultades para concentrarte?","44.- ¿Has tenido alguna vez un empleo con sueldo que haya durado por lo menos un mes?","45.- ¿Discutes frecuentemente con tus padres o tutores, levantando la voz y gritando?","46.- ¿Has tenido un accidente automovilístico estando bajo los efectos del alcohol o drogas?","47.- ¿Olvidas lo que haces cuando bebes o te drogas?","48.- El mes pasado, ¿manejaste un automóvil estando borracho (a) o drogado (a)?","49.- ¿Levantas la voz más que los demás muchachos de tu edad?","50.- ¿Has ocasionado daños a propiedad ajena intencionalmente?","51.- ¿Has dejado un empleo sencillamente porque no te interesaban las consecuencias de dejarlo?","52.- ¿A tus padres o tutores les gusta hablar y estar contigo?","53.- ¿Has pasado alguna noche fuera de tu casa sin que tus padres o tutores supieran dónde estabas?","54.- ¿El uso del alcohol o drogas te produce cambios repentinos de humor, como pasar de estar contento (a) a estar triste, o viceversa?","55.- ¿Te sientes triste la mayor parte del tiempo?","56.- ¿Pierdes días de clase o llegas tarde a la escuela por haber consumido bebidas alcohólicas o drogas?","57.- ¿Te han dicho alguna vez tus familiares o amigos que debes reducir el uso de bebidas alcohólicas o drogas?","58.- ¿Discutes seriamente con tus amigos o familiares por el uso que haces de bebidas alcohólicas o drogas?","59.- ¿Molestas mucho a tus amigos?","60.- ¿Tienes dificultades para dormir?","61.- ¿Tienes dificultades con trabajos escritos?","62.- Las bebidas alcohólicas o drogas, ¿te han inducido a hacer algo que normalmente no harías, como desobedecer alguna regla o ley, o la hora de llegar a casa, o tener relaciones sexuales con alguien?","63.- ¿Sientes que a veces pierdes control de ti mismo(a) y terminas peleando?","64.- ¿Faltaste a la escuela sin autorización el mes pasado?","65.- ¿Tienes dificultades en tus relaciones con alguno de tus amigos debido a las bebidas alcohólicas o drogas que consumes?","66.- ¿Tienes dificultad para seguir instrucciones?","67.- ¿Tienes amigos que han golpeado o amenazado a alguien sin razón?","68.- ¿Has sentido que no puedes controlar el deseo de consumir bebidas alcohólicas o drogas?","69.- ¿Tienes buena memoria?","70.- ¿Tienen tus padres o tutores una idea relativamente buena de lo que te interesa?","71.- ¿Están tus padres o tutores de acuerdo en cuanto a la forma en que te deben educar?","72.- ¿Se te hace difícil hacer planes u organizar tus actividades?","73.- ¿Tus amigos faltan a la escuela sin autorización con mucha frecuencia?","74.- ¿A veces la escuela te hace sentirte como tonto?","75.- ¿Frecuentemente sientes deseos de llorar?","76.- ¿Te da miedo estar con la gente?","77.- ¿Tienes amigos que han robado?","78.- ¿Has reprobado algún año en la escuela?","79.- ¿Es difícil la escuela para ti?","80.- ¿Eres una persona nerviosa, de las que no pueden estar sentadas mucho tiempo?","81.- ¿Gritas mucho?","1.-¿Toma de forma habitual algún medicamento, como aspirinas o pastillas para dormir?","2.-¿Tiene dificultades para conciliar el sueño?","3.-¿A veces nota que podría perder el control sobre sí mismo/a?","4.- ¿Tiene poco interés en relacionarse con la gente?","5.- ¿Ve su futuro con más pesimismo que optimismo?","6.- ¿Se ha sentido alguna vez inútil o inservible?","7.- ¿Ve su futuro sin ninguna esperanza?","8.- ¿Se ha sentido alguna vez tan fracasado/a que sólo quería meterse en la cama y abandonarlo todo?","9.- ¿Está deprimido/a ahora?","10.- ¿Está usted separado/a, divorciado/a, viudo/a?","11.- ¿Sabe si alguien de su familia ha intentado suicidarse alguna vez?","12.- ¿Alguna vez se ha sentido tan enfadado/a que habría sido capaz de matar a alguien?","13.- ¿Ha pensado alguna vez en suicidarse?","14.- ¿Le ha comentado a alguien, en alguna ocasión, que quería suicidarse?","15.- ¿Ha intentado alguna vez quitarse la vida?"]
[1,"21 / 96","Verónica Pérez","Matutino",24,"101 (1A)","Mujer","León - Insurgentes","No","No","No","No","Si","Si","Si","No","No","No","Si","Si","Si","Si","No","No","No","Si","No","Si","No","No","No","No","No","Si","No","No","No","No","Si","Si","No","No","No","Si","No","No","No","No","No","No","No","No","No","No","No","No","Si","No","Si","No","Si","No","No","No","No","No","No","No","Si","Si","No","No","No","No","No","No","No","No","Si","No","No","No","Si","No","No","No","No","No","Si","No","No","No","No","No","Si","No","Si","No","No","No","Si","No","No","No"]
[2,"53 / 96","la pelos aviña montes","Matutino",16,"102 (1B)","Mujer","León - Insurgentes","Si","No","No","Si","No","No","No","No","Si","Si","Si","Si","Si","Si","Si","Si","Si","No","Si","Si","No","Si","Si","No","No","Si","No","No","Si","No","Si","Si","No","Si","Si","Si","No","No","No","Si","No","Si","Si","Si","Si","No","No","No","Si","Si","Si","Si","No","Si","Si","No","Si","No","Si","Si","No","Si","No","No","Si","Si","Si","No","Si","Si","Si","Si","No","No","Si","Si","No","No","Si","Si","Si","Si","Si","Si","No","Si","Si","Si","Si","No","Si","Si","Si","Si","Si","Si"]
[3,6,"Cristina Cruz Escalera","Diurno",20,"101 (1A)","Mujer","Abasolo","No","No","Si","No","No","No","No","No","No","No","No","Si","Si","No","No","Si","No","Si","No","No","No","Si","No","No","No","Si","No","No","No","No","No","Si","No","No","No","Si","No","No","Si","No","No","No","No","No","No","No","No","No","No","No","No","Si","No","No","No","No","No","No","No","No","No","No","No","No","No","No","No","No","Si","Si","Si","Si","No","No","No","No","Si","No","No","No","No","No","No","No","No","No","No","No","Si","No","No","No","No","No","No","No"]
[4,"28 / 96","Elizabeth Rodríguez","Matutino",18,"102 (1B)","Mujer","León - Juárez 404","No","No","No","No","Si","Si","Si","No","No","No","No","Si","Si","No","No","Si","No","Si","No","Si","No","No","Si","Si","No","Si","Si","No","No","Si","No","No","No","No","No","Si","No","No","No","No","No","No","Si","Si","No","No","No","No","No","No","No","Si","Si","No","Si","No","No","No","No","Si","Si","Si","Si","No","No","No","No","No","Si","Si","No","No","No","No","Si","No","No","No","No","No","No","No","Si","No","Si","No","No","No","Si","Si","No","Si","No","Si","No","Si"]
[5,"89 / 96","Fabiola Castillo","Nocturno",10,"111 (1K)","Mujer","Apaseo el Alto","Si","Si","Si","Si","Si","Si","Si","Si","Si","Si","Si","No","Si","Si","Si","Si","Si","No","Si","No","Si","Si","Si","Si","Si","No","Si","Si","Si","Si","Si","Si","Si","Si","Si","Si","Si","Si","Si","Si","Si","Si","Si","Si","Si","Si","Si","Si","Si","Si","Si","Si","Si","Si","Si","Si","Si","Si","Si","Si","Si","Si","Si","Si","Si","Si","Si","Si","No","No","No","Si","Si","Si","Si","Si","Si","Si","Si","Si","Si","Si","Si","Si","Si","Si","Si","Si","Si","Si","Si","No","Si","Si","Si","Si"]
[6,"1996-06-01","Isis Desiree Martínez Conejo","Matutino",18,"101 (1A)","Mujer","Salamanca","No","No","Si","No","No","No","Si","No","No","No","No","Si","Si","No","No","No","No","Si","No","Si","No","Si","No","No","No","Si","No","No","No","No","Si","Si","No","No","Si","Si","No","No","Si","No","No","No","No","Si","No","No","No","No","No","No","No","Si","No","No","No","No","No","No","No","No","No","No","No","No","No","No","No","No","Si","Si","Si","No","No","No","No","No","No","No","No","No","Si","No","No","No","No","No","No","No","No","No","No","No","No","No","No","No","Muy bien \n","No"]
[7,"25 / 96","Zacatecas UCEMJM","Diurno",27,"105 (1E)","Mujer","Fresnillo","No","No","No","No","No","No","Si","Si","No","No","Si","Si","No","No","Si","Si","No","No","No","No","No","Si","No","No","No","Si","No","No","No","No","No","Si","No","Si","Si","Si","No","No","No","Si","No","No","No","Si","No","No","No","No","Si","Si","No","No","No","No","No","No","No","No","No","No","No","No","Si","No","No","No","Si","No","No","No","No","No","No","No","No","No","No","No","No","Si","Si","No","No","No","No","No","No","No","No","No","No","No","Si","No","No","No","confundida con algunas preguntas","si"]
[8,"1996-07-01","Luis Valenzuela","Diurno",27,"101 (1A)","Hombre","Fresnillo","No","No","No","Si","No","No","No","No","No","No","Si","Si","Si","No","No","Si","No","Si","No","Si","No","Si","No","No","No","Si","No","No","No","No","No","Si","No","No","Si","Si","No","No","Si","No","No","No","No","Si","No","No","No","No","No","No","No","Si","No","No","No","No","No","No","No","No","No","No","No","No","No","No","No","No","Si","Si","Si","No","No","No","No","No","No","No","No","No","No","No","No","No","No","No","No","No","Si","No","No","No","No","No","No","No","Pienso que engloba bastante bien las constantes necesidades que se presentan en los alumnos de nuestro plantel.","No viene la opción de Plantel Zacatecas, Zac. (Jardín Morelos que es el único que tiene el Dpto. Psicopedagógico) solo las otras localidades como Jerez, Fresnillo, Pinos, Etc. (que segun entiendo no tienen Dpto. Psicopedagógico).\nCon la pregunta 71, refiera a si entre ellos están de acuerdo en como me educan o sobre la educación que recibo en la escuela?\n51, has dejado un trabajo sencillamente porque no te interesaban las consecuencias de dejarlo?\nhas dejado un trabajo sin contemplar las consecuencias que traería al dejarlo?\nEs mínima la observación sobre las preguntas, están comprensibles.\nSaludos."]
[9,"18 / 96","Andrea","Matutino",24,"101 (1A)","Mujer","Saltillo 1","No","No","No","No","Si","Si","Si","No","No","No","Si","Si","No","Si","No","Si","No","Si","No","Si","No","No","No","No","No","Si","Si","No","No","No","No","Si","No","No","Si","Si","No","No","Si","No","No","No","Si","Si","No","No","No","No","No","No","No","Si","No","No","No","No","No","No","No","No","No","No","No","No","No","No","No","No","No","Si","Si","Si","No","No","Si","No","No","No","No","No","No","No","No","No","No","No","Si","No","Si","No","No","No","No","No","No","No","Bien","Hay una pregunta que dice '' sabes si alguno de tus familiares ha intentado suicidarse'' la respuesta iría encaminada a \"si se\" o \"no se\". Desconozco si lo que desean saber es si el alumno tiene conocimiento al respecto o si en realidad hay antecedentes de suicidio en la familia. De ser así, sugeriría replantear la pregunta."]
[10,"1996-09-01","Angel Dominguez Orozco","Matutino",30,"101 (1A)","Hombre","San Luis Potosí 1 - Calzada de Guadalupe","Si","No","No","No","No","No","No","Si","No","No","No","Si","Si","No","No","Si","No","Si","No","No","No","Si","No","No","No","Si","No","No","No","No","No","Si","No","No","Si","No","No","No","No","No","No","No","No","Si","No","No","No","No","No","No","No","Si","No","No","No","No","No","No","No","No","No","No","No","No","No","No","No","No","No","No","Si","No","No","No","No","No","No","No","No","No","No","No","No","No","No","No","No","No","No","No","No","No","No","No","No","No","Abrumado, son demasiadas preguntas","no"]
[11,"1996-06-01","Jose Cuaddra Garcia","Matutino",49,"101 (1A)","Hombre","Zamora","No","No","No","No","Si","No","Si","No","No","No","No","Si","Si","No","No","No","No","Si","No","Si","No","Si","No","No","No","Si","No","No","No","No","No","No","No","No","No","Si","No","No","Si","No","No","No","No","Si","No","No","No","No","No","No","No","Si","No","No","No","No","No","No","No","No","No","No","No","No","No","No","No","No","Si","Si","Si","No","No","No","No","No","No","No","No","No","No","No","No","No","No","No","No","No","No","No","Si","No","No","No","No","No","muy buen tranquilo","no"]
[12,"20 / 96","Alma Angélica Martínez Vargas","Matutino",26,"101 (1A)","Mujer","Aguascalientes","No","No","No","No","No","No","Si","No","No","No","Si","Si","Si","No","No","Si","No","Si","Si","Si","No","No","No","No","No","Si","No","No","Si","No","Si","Si","No","No","Si","Si","No","No","Si","No","No","No","Si","Si","No","No","No","No","Si","No","No","Si","No","No","No","No","No","No","No","No","No","No","No","No","No","No","No","No","No","Si","No","Si","No","No","No","No","Si","Si","No","No","Si","No","No","Si","No","No","Si","No","No","No","No","No","No","No","No","No","bien","no"]
[13,"1996-07-01","Angélica Rodríguez","Matutino",32,"101 (1A)","Mujer","San Luis de la Paz - Guerrero","No","No","No","No","No","No","No","No","No","No","No","Si","Si","No","No","Si","No","No","No","Si","No","Si","No","No","No","Si","No","No","No","No","No","Si","No","Si","No","Si","No","No","Si","No","No","No","Si","Si","No","No","No","No","No","No","No","Si","Si","No","No","No","No","No","No","No","No","No","No","No","No","No","No","No","Si","Si","Si","No","No","No","No","No","No","No","No","No","No","No","No","No","No","No","No","No","No","No","No","No","No","No","No","No","Excelente","Ninguna"]
[14,"1996-04-01","Heidi Janette Calderon Avilez","Matutino",42,"101 (1A)","Mujer","Irapuato - Fiesta","No","No","No","No","No","No","No","No","No","No","No","Si","Si","No","No","Si","No","Si","No","Si","No","Si","No","No","No","Si","No","No","No","No","No","Si","No","No","Si","Si","No","No","Si","No","No","No","No","Si","No","No","No","No","No","No","No","Si","No","No","No","No","No","No","No","No","No","No","No","No","No","No","No","No","Si","Si","Si","No","No","No","No","No","No","No","No","No","No","No","No","No","No","No","No","No","No","No","No","No","No","No","No","No","Todo bien","No"]
[15,"1996-07-01","Queretaro zaragoza","Matutino",15,"101 (1A)","Hombre","Querétaro 1 - Zaragoza","No","No","No","No","No","No","No","No","No","No","No","No","Si","No","No","Si","No","Si","No","Si","No","Si","No","No","No","Si","No","No","No","No","No","Si","No","No","No","Si","No","No","Si","No","No","No","No","Si","No","No","No","No","No","No","No","Si","No","No","No","No","No","No","No","Si","No","No","No","No","No","No","No","No","Si","Si","Si","No","No","No","No","No","No","No","No","No","No","No","No","No","No","No","No","No","Si","Si","No","No","No","No","No","No","Bien. Esta perfecto el rest","No"]
[16,"1996-08-01","MARIA DE LOS ANGELES FALCÓN MENDOZA","Matutino",26,"101 (1A)","Mujer","Celaya - Insurgentes","No","No","No","No","Si","No","Si","No","No","No","Si","Si","Si","No","No","Si","No","Si","No","Si","No","Si","No","No","No","Si","No","No","No","No","No","Si","No","No","No","Si","No","No","Si","No","No","No","No","Si","No","No","No","No","No","No","No","Si","No","No","No","No","No","No","No","Si","No","No","No","No","No","No","No","No","Si","Si","Si","No","No","No","No","No","No","No","No","No","No","No","Si","No","No","No","No","No","No","No","No","No","No","No","No","No","NO HUBO NINGUNA PALABRA DIFUSA O CONFUSIÓN","NO, UNICAMENTE SE MUESTRAN LAS PREGUNTAS EN DESORDEN NÚMERICO"]
[17,"1996-01-01","Laura Itzel Merino Lara","Matutino",28,"101 (1A)","Mujer","Irapuato - Fiesta","No","No","No","No","No","No","No","No","No","No","No","Si","Si","No","No","No","No","Si","No","Si","No","Si","No","No","No","Si","No","No","No","No","No","Si","No","No","No","Si","No","No","Si","No","No","No","No","No","No","No","No","No","No","No","No","Si","No","No","No","No","No","No","No","No","No","No","No","No","No","No","No","No","Si","Si","Si","No","No","No","No","No","No","No","No","No","No","No","No","No","No","No","No","No","No","No","No","No","No","No","No","No","Bien","La pregunta 14 tal ves pueda tener otra respuesta adicional como “no tengo planes de suicidarme”"]
[18,"16 / 96","Psic. Teresita de Jesús Cuellar Espinoza","Matutino",25,"101 (1A)","Mujer","Silao 1","No","No","No","Si","No","No","No","No","No","No","Si","Si","Si","Si","No","Si","No","Si","No","No","No","No","No","No","No","Si","No","No","No","No","Si","Si","No","No","No","Si","No","No","Si","No","No","No","No","Si","No","No","No","No","No","No","No","No","Si","No","No","No","No","No","No","Si","No","No","No","No","No","No","No","No","Si","Si","Si","No","No","No","No","No","No","No","No","Si","No","No","Si","No","Si","No","No","No","No","No","No","Si","No","No","No","No","Bien, todo fluyo de la mejor manera.","No, todo fue fluido y comprensible."]

{"sheet":"Sabana por grupo","index":1,"n_rows":2,"n_cols":104,"rows_kept":2,"cut":false,"hidden":false,"merged":[]}
["Marca temporal","Puntuación","Nombre Completo","Turno","Edad","Grado","Sexo","Plantel","1.- ¿Eres arrogante?","2.- ¿Has tenido dificultades porque consumes drogas o bebidas alcohólicas en la escuela?","3.- ¿Se aburren tus amigos en las fiestas donde no sirven bebidas alcohólicas?","4.- ¿Discuten demasiado tus padres o tutores?","5.- ¿Te cansas con frecuencia?","6.- ¿Te asustas con facilidad?","7.- ¿Tienes menos energía de la que crees que deberías tener?","8.- ¿Te sientes frustrado(a) con facilidad?","9.- ¿Amenazas a otros con hacerles daño?","10.- ¿Te sientes solo (a) la mayor parte del tiempo?","11.- ¿Dices groserías o vulgaridades?","12.- ¿Escuchas cuidadosamente cuando alguien te habla?","13.- ¿Son tus amigos (as) del agrado de tus padres o tutores?","14.- ¿Se niegan tus padres o tutores a hablarte cuando se enfadan contigo?","15.- ¿Actúas impulsivamente y sin pensar en las consecuencias que tendrán tus actos?","16.- ¿Has tenido algún trabajo eventual con sueldo?","17.- ¿Te has hecho daño o le has hecho daño a otra persona accidentalmente, estando bajo los efectos del alcohol o drogas?","18.- ¿Tienes buena ortografía?","19.- ¿Tienes amigos que causan daño o destrucción intencionalmente?","20.- La mayoría de las veces, ¿saben tus padres o tutores dónde estás y lo que estás haciendo?","21.- ¿Sueles perderte actividades o acontecimientos porque has gastado demasiado dinero en drogas o bebidas alcohólicas?","22.- ¿Participas en muchas actividades en compañía de tus padres o tutores?","23.- ¿Te sientes nervioso (a) la mayor parte del tiempo?","24.- ¿Has robado alguna vez?","25.- ¿Has sentido que eres adicto (a) al alcohol o a las drogas?","26.- ¿Sabes leer bien?","27.- ¿Has estado ausente o llegado tarde a tu trabajo o escuela con frecuencia?","28.- ¿Sientes que la gente está en contra tuya?","29.- ¿Tus amigos llevan drogas a las fiestas?","30.- ¿Peleas con frecuencia?","31.- ¿Tienes mal genio?","32.- ¿Te prestan atención tus padres o tutores cuando les hablas?","33.- ¿Has comenzado a consumir mayores cantidades de drogas o alcohol para obtener el efecto que deseas?","34.- ¿Te dice la gente que eres descuidado (a)?","35.- ¿Eres terco (a) o testarudo (a)?","36.- ¿Has tenido alguna vez o tienes actualmente un empleo?","37.- ¿Has amenazado alguna vez a alguien con un arma?","38.- ¿A veces te vas de las fiestas porque en ellas no hay bebidas alcohólicas o drogas?","39.- ¿Saben tus padres o tutores cómo piensas o te sientes realmente?","40.- ¿Actúas impulsivamente con frecuencia?","41.- ¿Sientes un deseo constante de consumir bebidas alcohólicas o drogas?","42.- ¿Pierdes el hilo del pensamiento con mucha frecuencia?","43.- ¿Tienes dificultades para concentrarte?","44.- ¿Has tenido alguna vez un empleo con sueldo que haya durado por lo menos un mes?","45.- ¿Discutes frecuentemente con tus padres o tutores, levantando la voz y gritando?","46.- ¿Has tenido un accidente automovilístico estando bajo los efectos del alcohol o drogas?","47.- ¿Olvidas lo que haces cuando bebes o te drogas?","48.- El mes pasado, ¿manejaste un automóvil estando borracho (a) o drogado (a)?","49.- ¿Levantas la voz más que los demás muchachos de tu edad?","50.- ¿Has ocasionado daños a propiedad ajena intencionalmente?","51.- ¿Has dejado un empleo sencillamente porque no te interesaban las consecuencias de dejarlo?","52.- ¿A tus padres o tutores les gusta hablar y estar contigo?","53.- ¿Has pasado alguna noche fuera de tu casa sin que tus padres o tutores supieran dónde estabas?","54.- ¿El uso del alcohol o drogas te produce cambios repentinos de humor, como pasar de estar contento (a) a estar triste, o viceversa?","55.- ¿Te sientes triste la mayor parte del tiempo?","56.- ¿Pierdes días de clase o llegas tarde a la escuela por haber consumido bebidas alcohólicas o drogas?","57.- ¿Te han dicho alguna vez tus familiares o amigos que debes reducir el uso de bebidas alcohólicas o drogas?","58.- ¿Discutes seriamente con tus amigos o familiares por el uso que haces de bebidas alcohólicas o drogas?","59.- ¿Molestas mucho a tus amigos?","60.- ¿Tienes dificultades para dormir?","61.- ¿Tienes dificultades con trabajos escritos?","62.- Las bebidas alcohólicas o drogas, ¿te han inducido a hacer algo que normalmente no harías, como desobedecer alguna regla o ley, o la hora de llegar a casa, o tener relaciones sexuales con alguien?","63.- ¿Sientes que a veces pierdes control de ti mismo(a) y terminas peleando?","64.- ¿Faltaste a la escuela sin autorización el mes pasado?","65.- ¿Tienes dificultades en tus relaciones con alguno de tus amigos debido a las bebidas alcohólicas o drogas que consumes?","66.- ¿Tienes dificultad para seguir instrucciones?","67.- ¿Tienes amigos que han golpeado o amenazado a alguien sin razón?","68.- ¿Has sentido que no puedes controlar el deseo de consumir bebidas alcohólicas o drogas?","69.- ¿Tienes buena memoria?","70.- ¿Tienen tus padres o tutores una idea relativamente buena de lo que te interesa?","71.- ¿Están tus padres o tutores de acuerdo en cuanto a la forma en que te deben educar?","72.- ¿Se te hace difícil hacer planes u organizar tus actividades?","73.- ¿Tus amigos faltan a la escuela sin autorización con mucha frecuencia?","74.- ¿A veces la escuela te hace sentirte como tonto?","75.- ¿Frecuentemente sientes deseos de llorar?","76.- ¿Te da miedo estar con la gente?","77.- ¿Tienes amigos que han robado?","78.- ¿Has reprobado algún año en la escuela?","79.- ¿Es difícil la escuela para ti?","80.- ¿Eres una persona nerviosa, de las que no pueden estar sentadas mucho tiempo?","81.- ¿Gritas mucho?","1.-¿Toma de forma habitual algún medicamento, como aspirinas o pastillas para dormir?","2.-¿Tiene dificultades para conciliar el sueño?","3.-¿A veces nota que podría perder el control sobre sí mismo/a?","4.- ¿Tiene poco interés en relacionarse con la gente?","5.- ¿Ve su futuro con más pesimismo que optimismo?","6.- ¿Se ha sentido alguna vez inútil o inservible?","7.- ¿Ve su futuro sin ninguna esperanza?","8.- ¿Se ha sentido alguna vez tan fracasado/a que sólo quería meterse en la cama y abandonarlo todo?","9.- ¿Está deprimido/a ahora?","10.- ¿Está usted separado/a, divorciado/a, viudo/a?","11.- ¿Sabe si alguien de su familia ha intentado suicidarse alguna vez?","12.- ¿Alguna vez se ha sentido tan enfadado/a que habría sido capaz de matar a alguien?","13.- ¿Ha pensado alguna vez en suicidarse?","14.- ¿Le ha comentado a alguien, en alguna ocasión, que quería suicidarse?","15.- ¿Ha intentado alguna vez quitarse la vida?"]
[3,6,"Cristina Cruz Escalera","Diurno",20,"101 (1A)","Mujer","Abasolo","No","No","Si","No","No","No","No","No","No","No","No","Si","Si","No","No","Si","No","Si","No","No","No","Si","No","No","No","Si","No","No","No","No","No","Si","No","No","No","Si","No","No","Si","No","No","No","No","No","No","No","No","No","No","No","No","Si","No","No","No","No","No","No","No","No","No","No","No","No","No","No","No","No","Si","Si","Si","Si","No","No","No","No","Si","No","No","No","No","No","No","No","No","No","No","No","Si","No","No","No","No","No","No","No"]

{"sheet":"Hoja2","index":2,"n_rows":141,"n_cols":2,"rows_kept":141,"cut":false,"hidden":true,"merged":[]}
["Abasolo"]
["Acámbaro - Juárez","101 (1A)"]
["Acábaro - Zaragoza","102 (1B)"]
["Acámbaro - Miguel Hidalgo","103 (1C)"]
["Apaseo el Alto","104 (1D)"]
["Apaseo el Grande","105 (1E)"]
["Celaya - Factoría","106 (1F)"]
["Celaya - Hidalgo 1","107 (1G)"]
["Celaya - Hidalgo 2","108 (1H)"]
["Celaya - Insurgentes","109  (1I)"]
["Celaya - Juárez","110 (1J)"]
["Celaya - Firenze","111 (1K)"]
["Comonfort"]
["Cortazar"]
["Dolores Hidalgo - Norte"]
["Dolores Hidalgo - José Alfredo Jiménez"]
["Guanajuato"]
["Irapuato - Sóstenes Rocha"]
["Irapuato - Espigas"]
["Irapuato - Fiesta"]
["Irapuato - Guerrero"]
["Juventino Rosas"]
["León - 5 de febrero"]
["León - Díaz Mirón"]
["León - Emiliano Zapata"]
["León - Francisco Z. Mena"]
["León - Hermanos Aldama 1"]
["León - Hermanos Aldama 2"]
["León - Insurgentes"]
["León - Juárez 2 Posgrados"]
["León - Juárez 404"]
["León - Adolfo López Mateos 308"]
["León - Madero 801"]
["León - Muñoz"]
["León - Pinosuárez (Motolinia)"]
["León - Firenze"]
["Moroleón"]
["Pénjamo"]
["Salamanca"]
["Salvatierra"]
["San Felipe - Belisario"]
["San Felipe - Jiménez"]
["San Francisco del Rincón - Madero"]
["San Francisco del Rincón - Obregón"]
["San José Inturbide - Juárez"]
["San José Iturbide - Morelos"]
["San Luis de la Paz - Guerrero"]
["San Luis de la Paz - Rayón"]
["San Luis de la Paz - Mina"]
["San Miguel de Allende"]
["Silao 1"]
["Silao 2"]
["Silao 3"]
["Valle de Santiago"]
["Yuriria"]
["Romita"]
["Manuel Doblado"]
["Jerecuaro"]
["Villagrán"]
["Jaral del progreso - Guerrero"]
["Aguascalientes"]
["Calvillo"]
["Pabellón de Arteaga"]
["Rincón de Romos"]
["Ensenada"]
["Mexicali"]
["Tijuana"]
["Campeche"]
["Tapachula"]
["Tuxtla Gutiérrez"]
["Chihuahua"]
["Monclova"]
["Saltillo 1"]
["Saltillo 2"]
["Saltillo 3"]
["Torreón"]
["Tlalnepantla"]
["Actopan"]
["Huejutla"]
["Pachuca"]
["Tezontepec"]
["Tepeapulco"]
["Tepeji del Río"]
["Tlaxcoapan"]
["Tula"]
["Tulancingo"]
["Arandas"]
["Ciudad Guzmán"]
["Guadalajara"]
["Zapopan"]
["Lagos de Moreno 1- Leandro Guerra"]
["Lagos de Moreno 2 - Rincón Gallardo"]
["Ocotlán"]
["Tala"]
["Tepatitlán"]
["San Diego de la Unión"]
["Reforma"]
["La Piedad 1 - Hidalgo"]
["La Piedad 2 - Universidad"]
["Morelia"]
["Zamora"]
["Yerecuaro"]
["Tepic"]
["Oaxaca"]
["Cadereyta"]
["Ezequiel Montes"]
["Pedro Escobedo"]
["Querétaro 1 - Zaragoza"]
["Querétaro 2 - Turmolina"]
["San Juan del Río 1"]
["San Juan del Río 2"]
["San Juan del Río 3"]
["Amealco de Bonfil"]
["Colón"]
["Cancún 1"]
["Cancún 2"]
["Ciudad Valles"]
["Matehuala"]
["Río Verde"]
["San Luis Potosí 1 - Calzada de Guadalupe"]
["San Luis Potosí 2 - Guerrero"]
["San Luis Potosí 3 - Amado Nervo"]
["San Luis Potosí 4"]
["Tequisquiapan"]
["Tamazunchale"]
["Santa María del Río"]
["Villa de Reyes"]
["Culiacán"]
["Culiacán - Firenze"]
["Los Mochis"]
["Mazatlán"]
["Villahermosa"]
["Córdoba"]
["Veracruz"]
["Mérida"]
["Fresnillo"]
["Jerez"]
["Pinos"]
["Río Grande"]
["Zacatecas 1"]
["Zacatecas 2"]

{"sheet":"Datos generales","index":3,"n_rows":539,"n_cols":51,"rows_kept":539,"cut":false,"hidden":true,"merged":[[0,2,0,9],[37,22,41,24],[42,22,46,24],[31,32,31,34],[32,32,32,34],[26,22,26,24],[27,22,31,24],[32,22,36,24],[27,15,30,15],[31,15,33,15],[34,15,36,15],[37,15,41,15],[24,21,25,24],[1,16,1,18],[27,9,30,12],[25,9,25,17],[1,32,1,34],[23,8,23,10],[22,14,22,16],[23,14,23,16],[22,20,22,21],[22,22,22,23],[23,20,23,21],[23,22,23,23],[22,8,22,10],[22,24,22,25],[13,34,13,36],[1,36,1,38],[1,28,1,30],[34,16,36,16],[37,16,41,16],[1,24,1,26],[1,12,1,14],[26,9,26,14],[31,9,33,12],[27,16,30,16],[31,16,33,16],[34,9,36,12],[37,9,41,12],[1,20,1,22]]}
[null,null,"Total de la muestra:",null,null,null,null,null,null,null,{"$f":"COUNT('Sabana por grupo'!A1:A99049)","v":1},null,null,null,null,null,null,null,null,null,null,null,null,null,null,null,null,null,null,null,null,null,null,null,null,null,null,null,null,null,"Folio","Nombre","Puntuacion","Tipo de riesgo","Sexo","Factor de riesgo"]
[null,"SI","NO",null,null,"SI","NO",null,null,"SI","NO ",null,"SUSTANCIAS",null,null,null,"FAMILIA",null,null,null,"CONDUCTA",null,null,null,"SALUD",null,null,null,"N. EDUCAT",null,null,null,"AMIGOS",null,null,null,"LABORAL",null,null,null,{"$f":"'Sabana por grupo'!A2","v":3},{"$f":"'Sabana por grupo'!C2","v":"Cristina Cruz Escalera"},{"$f":"_xlfn.NUMBERVALUE(AU2)","v":6},{"$f":"IF(AT2=0,\"N/A\",IF(AT2<$AX$2,\"Riesgo Menor\",IF(AT2<$AX$3,\"Riesgo Probable\",\"Atencion de Prioridad\")))","v":"Riesgo Menor"},{"$f":"'Sabana por grupo'!G2","v":"Mujer"},{"$f":"(AU2/AV13)","v":7.407407407407407E-2},{"$f":"MID('Sabana por grupo'!B2,1,2)","v":"6"},81,null,{"$f":"23/81","v":0.2839506172839506},23]
[1,{"$f":"COUNTIF('Sabana por grupo'!$I$1:$I$5500,\"Si\")","v":0},{"$f":"COUNTIF('Sabana por grupo'!$I$1:$I$5500,\"No\")","v":1},null,55,{"$f":"COUNTIF('Sabana por grupo'!$BK$1:$BK$98175,\"Si\")","v":0},{"$f":"COUNTIF('Sabana por grupo'!$BK$1:$BK$98175,\"No\")","v":1},null,12,{"$f":"COUNTIF('Sabana por grupo'!$T$1:$T$98159,\"Si\")","v":1},{"$f":"COUNTIF('Sabana por grupo'!$T$1:$T$98159,\"No\")","v":0},null,null,"SI ","NO",null,null,"SI","NO",null,null,"SI","NO",null,null,"SI","NO",null,null,"SI","NO",null,null,"SI","NO",null,null,"SI","NO",null,{"$f":"'Sabana por grupo'!A3","v":0},{"$f":"'Sabana por grupo'!C3","v":0},0,{"$f":"IF(AT3=0,\"N/A\",IF(AT3<$AX$2,\"Riesgo Menor\",IF(AT3<$AX$3,\"Riesgo Probable\",\"Atencion de Prioridad\")))","v":{"$error":"#VALUE!"}},{"$f":"'Sabana por grupo'!G3","v":0},{"$f":"(AU3/AV14)","v":{"$error":"#VALUE!"}},{"$f":"MID('Sabana por grupo'!B3,1,2)","v":""},81,null,{"$f":"(50/81)","v":0.61728395061728392},50]
[2,{"$f":"COUNTIF('Sabana por grupo'!$J$1:$J$5500,\"Si\")","v":0},{"$f":"COUNTIF('Sabana por grupo'!$J$1:$J$5500,\"No\")","v":1},null,56,{"$f":"COUNTIF('Sabana por grupo'!$BL$1:$BL$98175,\"Si\")","v":0},{"$f":"COUNTIF('Sabana por grupo'!$BL$1:$BL$98175,\"No\")","v":1},null,13,{"$f":"COUNTIF('Sabana por grupo'!$U$1:$U$98160,\"Si\")","v":1},{"$f":"COUNTIF('Sabana por grupo'!$U$1:$U$98160,\"No\")","v":0},null,2,{"$f":"B4","v":0},{"$f":"C4","v":1},null,4,{"$f":"B6","v":0},{"$f":"C6","v":1},null,1,{"$f":"B3","v":0},{"$f":"C3","v":1},null,5,{"$f":"B7","v":0},{"$f":"C7","v":1},null,7,{"$f":"B9","v":0},{"$f":"C9","v":1},null,3,{"$f":"B5","v":1},{"$f":"C5","v":0},null,16,{"$f":"B16","v":1},{"$f":"C16","v":0},null,{"$f":"'Sabana por grupo'!A4","v":0},{"$f":"'Sabana por grupo'!C4","v":0},0,{"$error":"#VALUE!"},{"$f":"'Sabana por grupo'!G4","v":0},{"$error":"#VALUE!"},{"$f":"MID('Sabana por grupo'!B4,1,2)","v":""},81,null,1,81]
[3,{"$f":"COUNTIF('Sabana por grupo'!$K$1:$K$5500,\"Si\")","v":1},{"$f":"COUNTIF('Sabana por grupo'!$K$1:$K$5500,\"No\")","v":0},null,57,{"$f":"COUNTIF('Sabana por grupo'!$BM$1:$BM$98175,\"Si\")","v":0},{"$f":"COUNTIF('Sabana por grupo'!$BM$1:$BM$98175,\"No\")","v":1},null,18,{"$f":"COUNTIF('Sabana por grupo'!$V$1:$V$98165,\"Si\")","v":0},{"$f":"COUNTIF('Sabana por grupo'!$V$1:$V$98165,\"No\")","v":1},null,17,{"$f":"B17","v":0},{"$f":"C17","v":1},null,14,{"$f":"B14","v":0},{"$f":"C14","v":1},null,9,{"$f":"B11","v":0},{"$f":"C11","v":1},null,6,{"$f":"B8","v":0},{"$f":"C8","v":1},null,8,{"$f":"B10","v":0},{"$f":"C10","v":1},null,13,{"$f":"J4","v":1},{"$f":"K4","v":0},null,27,{"$f":"B23","v":0},{"$f":"C23","v":1},null,{"$f":"'Sabana por grupo'!A5","v":0},{"$f":"'Sabana por grupo'!C5","v":0},0,{"$error":"#VALUE!"},{"$f":"'Sabana por grupo'!G5","v":0},{"$error":"#VALUE!"},{"$f":"MID('Sabana por grupo'!B5,1,2)","v":""},81]
[4,{"$f":"COUNTIF('Sabana por grupo'!$L$1:$L$5500,\"Si\")","v":0},{"$f":"COUNTIF('Sabana por grupo'!$L$1:$L$5500,\"No\")","v":1},null,58,{"$f":"COUNTIF('Sabana por grupo'!$BN$1:$BN$98175,\"Si\")","v":0},{"$f":"COUNTIF('Sabana por grupo'!$BN$1:$BN$98175,\"No\")","v":1},null,20,{"$f":"COUNTIF('Sabana por grupo'!$AB$1:$AB$98167,\"Si\")","v":0},{"$f":"COUNTIF('Sabana por grupo'!$AB$1:$AB$98167,\"No\")","v":1},null,21,{"$f":"B19","v":0},{"$f":"C19","v":1},null,20,{"$f":"J6","v":0},{"$f":"K6","v":1},null,11,{"$f":"B13","v":0},{"$f":"C13","v":1},null,8,{"$f":"B10","v":0},{"$f":"C10","v":1},null,12,{"$f":"J3","v":1},{"$f":"K3","v":0},null,19,{"$f":"B18","v":0},{"$f":"C18","v":1},null,36,{"$f":"B31","v":1},{"$f":"C31","v":0},null,{"$f":"'Sabana por grupo'!A6","v":0},{"$f":"'Sabana por grupo'!C6","v":0},0,{"$error":"#VALUE!"},{"$f":"'Sabana por grupo'!G6","v":0},{"$error":"#VALUE!"},{"$f":"MID('Sabana por grupo'!B6,1,2)","v":""},81]
[5,{"$f":"COUNTIF('Sabana por grupo'!$M$1:$M$98152,\"Si\")","v":0},{"$f":"COUNTIF('Sabana por grupo'!$M$1:$M$98152,\"No\")","v":1},null,59,{"$f":"COUNTIF('Sabana por grupo'!$BO$1:$BO$98175,\"Si\")","v":0},{"$f":"COUNTIF('Sabana por grupo'!$BO$1:$BO$98175,\"No\")","v":1},null,22,{"$f":"COUNTIF('Sabana por grupo'!$AD$1:$AD$98169,\"Si\")","v":1},{"$f":"COUNTIF('Sabana por grupo'!$AD$1:$AD$98169,\"No\")","v":0},null,25,{"$f":"B22","v":0},{"$f":"C22","v":1},null,22,{"$f":"J7","v":1},{"$f":"K7","v":0},null,24,{"$f":"B21","v":0},{"$f":"C21","v":1},null,10,{"$f":"B12","v":0},{"$f":"C12","v":1},null,15,{"$f":"B15","v":0},{"$f":"C15","v":1},null,29,{"$f":"B25","v":0},{"$f":"C25","v":1},null,44,{"$f":"B38","v":0},{"$f":"C38","v":1},null,{"$f":"'Sabana por grupo'!A7","v":0},{"$f":"'Sabana por grupo'!C7","v":0},0,{"$error":"#VALUE!"},{"$f":"'Sabana por grupo'!G7","v":0},{"$error":"#VALUE!"},{"$f":"MID('Sabana por grupo'!B7,1,2)","v":""},81]
[6,{"$f":"COUNTIF('Sabana por grupo'!$N$1:$N$98153,\"Si\")","v":0},{"$f":"COUNTIF('Sabana por grupo'!$N$1:$N$98153,\"No\")","v":1},null,60,{"$f":"COUNTIF('Sabana por grupo'!$BP$1:$BP$98175,\"Si\")","v":0},{"$f":"COUNTIF('Sabana por grupo'!$BP$1:$BP$98175,\"No\")","v":1},null,26,{"$f":"COUNTIF('Sabana por grupo'!$AH$1:$AH$98173,\"Si\")","v":1},{"$f":"COUNTIF('Sabana por grupo'!$AH$1:$AH$98173,\"No\")","v":0},null,33,{"$f":"B28","v":0},{"$f":"C28","v":1},null,32,{"$f":"J9","v":1},{"$f":"K9","v":0},null,30,{"$f":"B26","v":0},{"$f":"C26","v":1},null,15,{"$f":"B15","v":0},{"$f":"C15","v":1},null,18,{"$f":"J5","v":0},{"$f":"K5","v":1},null,67,{"$f":"F15","v":0},{"$f":"G15","v":1},null,51,{"$f":"B45","v":0},{"$f":"C45","v":1},null,{"$f":"'Sabana por grupo'!A8","v":0},{"$f":"'Sabana por grupo'!C8","v":0},0,{"$error":"#VALUE!"},{"$f":"'Sabana por grupo'!G8","v":0},{"$error":"#VALUE!"},{"$f":"MID('Sabana por grupo'!B8,1,2)","v":""},81]
[7,{"$f":"COUNTIF('Sabana por grupo'!$O$1:$O$98154,\"Si\")","v":0},{"$f":"COUNTIF('Sabana por grupo'!$O$1:$O$98154,\"No\")","v":1},null,61,{"$f":"COUNTIF('Sabana por grupo'!$BQ$1:$BQ$98175,\"Si\")","v":0},{"$f":"COUNTIF('Sabana por grupo'!$BQ$1:$BQ$98175,\"No\")","v":1},null,32,{"$f":"COUNTIF('Sabana por grupo'!$AN$1:$AN$98175,\"Si\")","v":1},{"$f":"COUNTIF('Sabana por grupo'!$AN$1:$AN$98175,\"No\")","v":0},null,38,{"$f":"B33","v":0},{"$f":"C33","v":1},null,39,{"$f":"J10","v":1},{"$f":"K10","v":0},null,31,{"$f":"B27","v":0},{"$f":"C27","v":1},null,23,{"$f":"B20","v":0},{"$f":"C20","v":1},null,26,{"$f":"J8","v":1},{"$f":"K8","v":0},null,73,{"$f":"F18","v":0},{"$f":"G18","v":1},{"$f":"6*K1","v":6},78,{"$f":"F23","v":0},{"$f":"G23","v":1},null,{"$f":"'Sabana por grupo'!A9","v":0},{"$f":"'Sabana por grupo'!C9","v":0},0,{"$error":"#VALUE!"},{"$f":"'Sabana por grupo'!G9","v":0},{"$error":"#VALUE!"},{"$f":"MID('Sabana por grupo'!B9,1,2)","v":""},81]
[8,{"$f":"COUNTIF('Sabana por grupo'!$P$1:$P$98155,\"Si\")","v":0},{"$f":"COUNTIF('Sabana por grupo'!$P$1:$P$98155,\"No\")","v":1},null,62,{"$f":"COUNTIF('Sabana por grupo'!$BR$1:$BR$98175,\"Si\")","v":0},{"$f":"COUNTIF('Sabana por grupo'!$BR$1:$BR$98175,\"No\")","v":1},null,39,{"$f":"COUNTIF('Sabana por grupo'!$AU$1:$AU$98175,\"Si\")","v":1},{"$f":"COUNTIF('Sabana por grupo'!$AU$1:$AU$98175,\"No\")","v":0},null,41,{"$f":"B35","v":0},{"$f":"C35","v":1},null,45,{"$f":"B39","v":0},{"$f":"C39","v":1},null,35,{"$f":"B30","v":0},{"$f":"C30","v":1},null,28,{"$f":"B24","v":0},{"$f":"C24","v":1},null,34,{"$f":"B29","v":0},{"$f":"C29","v":1},{"$f":"7*K1","v":7},77,{"$f":"F22","v":1},{"$f":"G22","v":0},null,"T",{"$f":"SUM(AL4:AL9)","v":2},{"$f":"SUM(AM4:AM9)","v":4},null,{"$f":"'Sabana por grupo'!A10","v":0},{"$f":"'Sabana por grupo'!C10","v":0},0,{"$error":"#VALUE!"},{"$f":"'Sabana por grupo'!G10","v":0},{"$error":"#VALUE!"},{"$f":"MID('Sabana por grupo'!B10,1,2)","v":""},81]
[9,{"$f":"COUNTIF('Sabana por grupo'!$Q$1:$Q$98156,\"Si\")","v":0},{"$f":"COUNTIF('Sabana por grupo'!$Q$1:$Q$98156,\"No\")","v":1},null,63,{"$f":"COUNTIF('Sabana por grupo'!$BS$1:$BS$98175,\"Si\")","v":0},{"$f":"COUNTIF('Sabana por grupo'!$BS$1:$BS$98175,\"No\")","v":1},null,52,{"$f":"COUNTIF('Sabana por grupo'!$BH$1:$BH$98175,\"Si\")","v":1},{"$f":"COUNTIF('Sabana por grupo'!$BH$1:$BH$98175,\"No\")","v":0},null,46,{"$f":"B40","v":0},1,null,52,{"$f":"J11","v":1},{"$f":"K11","v":0},null,37,{"$f":"B32","v":0},{"$f":"C32","v":1},null,40,{"$f":"B34","v":0},{"$f":"C34","v":1},null,40,{"$f":"B34","v":0},{"$f":"C34","v":1},null,"T",{"$f":"AH4+AI5+AH6+AH7+AH8+AH9+AH10","v":2},{"$f":"SUM(AI4:AI10)","v":4},null,"P",{"$f":"(AL10*100%)/$AJ$9","v":0.33333333333333331},{"$f":"(AM10*100%)/$AJ$9","v":0.66666666666666663},null,{"$f":"'Sabana por grupo'!A11","v":0},{"$f":"'Sabana por grupo'!C11","v":0},0,{"$error":"#VALUE!"},{"$f":"'Sabana por grupo'!G11","v":0},{"$error":"#VALUE!"},{"$f":"MID('Sabana por grupo'!B11,1,2)","v":""},81]
[10,{"$f":"COUNTIF('Sabana por grupo'!$R$1:$R$98157,\"Si\")","v":0},{"$f":"COUNTIF('Sabana por grupo'!$R$1:$R$98157,\"No\")","v":1},null,64,{"$f":"COUNTIF('Sabana por grupo'!$BT$1:$BT$98175,\"Si\")","v":0},{"$f":"COUNTIF('Sabana por grupo'!$BT$1:$BT$98175,\"No\")","v":1},null,69,{"$f":"COUNTIF('Sabana por grupo'!$BY$1:$BY$98175,\"Si\")","v":1},{"$f":"COUNTIF('Sabana por grupo'!$BY$1:$BY$98175,\"No\")","v":0},null,47,0,1,null,70,{"$f":"J13","v":1},{"$f":"K13","v":0},null,49,{"$f":"B43","v":0},{"$f":"C43","v":1},null,43,{"$f":"B37","v":0},{"$f":"C37","v":1},null,42,{"$f":"B36","v":0},{"$f":"C36","v":1},null,"P",{"$f":"(AH11*100%)/$AF$10","v":0.2857142857142857},{"$f":"(AI11*100%)/$AF$10","v":0.5714285714285714},null,null,null,null,null,{"$f":"'Sabana por grupo'!A12","v":0},{"$f":"'Sabana por grupo'!C12","v":0},0,{"$error":"#VALUE!"},{"$f":"'Sabana por grupo'!G12","v":0},{"$error":"#VALUE!"},{"$f":"MID('Sabana por grupo'!B12,1,2)","v":""},81]
[11,{"$f":"COUNTIF('Sabana por grupo'!$S$1:$S$98158,\"Si\")","v":0},{"$f":"COUNTIF('Sabana por grupo'!$S$1:$S$98158,\"No\")","v":1},null,65,{"$f":"COUNTIF('Sabana por grupo'!$BU$1:$BU$98175,\"Si\")","v":0},{"$f":"COUNTIF('Sabana por grupo'!$BU$1:$BU$98175,\"No\")","v":1},null,70,{"$f":"COUNTIF('Sabana por grupo'!$BZ$1:$BZ$98175,\"Si\")","v":1},{"$f":"COUNTIF('Sabana por grupo'!$BZ$1:$BZ$98175,\"No\")","v":0},null,48,0,1,{"$f":"10*K1","v":10},71,{"$f":"J14","v":1},{"$f":"K14","v":0},null,50,{"$f":"B44","v":0},{"$f":"C44","v":1},null,55,{"$f":"F3","v":0},{"$f":"G3","v":1},null,61,{"$f":"F9","v":0},{"$f":"G9","v":1},null,null,null,null,null,null,null,null,null,{"$f":"'Sabana por grupo'!A13","v":0},{"$f":"'Sabana por grupo'!C13","v":0},0,{"$error":"#VALUE!"},{"$f":"'Sabana por grupo'!G13","v":0},{"$error":"#VALUE!"},{"$f":"MID('Sabana por grupo'!B13,1,2)","v":""},81]
[14,{"$f":"COUNTIF('Sabana por grupo'!$V$1:$V$98161,\"Si\")","v":0},{"$f":"COUNTIF('Sabana por grupo'!$V$1:$V$98161,\"No\")","v":1},null,66,{"$f":"COUNTIF('Sabana por grupo'!$BV$1:$BV$98175,\"Si\")","v":0},{"$f":"COUNTIF('Sabana por grupo'!$BV$1:$BV$98175,\"No\")","v":1},null,71,{"$f":"COUNTIF('Sabana por grupo'!$CA$1:$CA$98175,\"Si\")","v":1},{"$f":"COUNTIF('Sabana por grupo'!$CA$1:$CA$98175,\"No\")","v":0},null,54,{"$f":"B47","v":0},{"$f":"C47","v":1},null,"T",{"$f":"(R4+R5+S6+S7+S8+S9+R10+S11+S12+S13)","v":1},{"$f":"SUM(S4:S13)","v":4},null,53,{"$f":"B46","v":0},{"$f":"C46","v":1},null,60,{"$f":"F8","v":0},{"$f":"G8","v":1},null,66,{"$f":"F14","v":0},{"$f":"G14","v":1},null,null,null,"Riesgo Suicida",null,null,null,null,null,{"$f":"'Sabana por grupo'!A14","v":0},{"$f":"'Sabana por grupo'!C14","v":0},0,{"$error":"#VALUE!"},{"$f":"'Sabana por grupo'!G14","v":0},{"$error":"#VALUE!"},{"$f":"MID('Sabana por grupo'!B14,1,2)","v":""},81]
[15,{"$f":"COUNTIF('Sabana por grupo'!$W$1:$W$98162,\"Si\")","v":0},{"$f":"COUNTIF('Sabana por grupo'!$W$1:$W$98162,\"No\")","v":1},null,67,{"$f":"COUNTIF('Sabana por grupo'!$BW$1:$BW$98175,\"Si\")","v":0},{"$f":"COUNTIF('Sabana por grupo'!$BW$1:$BW$98175,\"No\")","v":1},null,"T3",{"$f":"SUM(J3:J14)","v":10},{"$f":"SUM(K3:K14)","v":2},null,56,{"$f":"F4","v":0},1,null,"P",{"$f":"(R14*100%)/$P$13","v":0.1},{"$f":"(S14*100%)/$P$13","v":0.4},null,59,{"$f":"F7","v":0},{"$f":"G7","v":1},null,63,{"$f":"F11","v":0},{"$f":"G11","v":1},null,69,{"$f":"J12","v":1},{"$f":"K12","v":0},null,null,null,"#","Si","No",null,null,null,{"$f":"'Sabana por grupo'!A15","v":0},{"$f":"'Sabana por grupo'!C15","v":0},0,{"$error":"#VALUE!"},{"$f":"'Sabana por grupo'!G15","v":0},{"$error":"#VALUE!"},{"$f":"MID('Sabana por grupo'!B15,1,2)","v":""},81]
[16,{"$f":"COUNTIF('Sabana por grupo'!$X$1:$X$98163,\"Si\")","v":1},{"$f":"COUNTIF('Sabana por grupo'!$X$1:$X$98163,\"No\")","v":0},null,68,{"$f":"COUNTIF('Sabana por grupo'!$BX$1:$BX$98175,\"Si\")","v":0},{"$f":"COUNTIF('Sabana por grupo'!$BX$1:$BX$98175,\"No\")","v":1},null,null,null,null,null,57,0,1,null,null,null,null,null,64,{"$f":"F12","v":0},{"$f":"G12","v":1},null,66,{"$f":"F14","v":0},{"$f":"G14","v":1},null,72,{"$f":"F17","v":1},{"$f":"G17","v":0},null,null,null,1,{"$f":"COUNTIF('Sabana por grupo'!$CL$1:$CL$5500,\"Si\")","v":0},{"$f":"COUNTIF('Sabana por grupo'!$CL$1:$CL$5500,\"No\")","v":1},null,null,null,{"$f":"'Sabana por grupo'!A16","v":0},{"$f":"'Sabana por grupo'!C16","v":0},0,{"$error":"#VALUE!"},{"$f":"'Sabana por grupo'!G16","v":0},{"$error":"#VALUE!"},{"$f":"MID('Sabana por grupo'!B16,1,2)","v":""},81]
[17,{"$f":"COUNTIF('Sabana por grupo'!$Y$1:$Y$98164,\"Si\")","v":0},{"$f":"COUNTIF('Sabana por grupo'!$Y$1:$Y$98164,\"No\")","v":1},null,72,{"$f":"COUNTIF('Sabana por grupo'!$CB$1:$CB$98175,\"Si\")","v":1},{"$f":"COUNTIF('Sabana por grupo'!$CB$1:$CB$98175,\"No\")","v":0},null,null,null,null,null,58,0,1,null,null,null,null,{"$f":"14*K1","v":14},81,{"$f":"F26","v":0},{"$f":"G26","v":1},null,75,{"$f":"F20","v":0},{"$f":"G20","v":1},null,79,{"$f":"F24","v":0},{"$f":"G24","v":1},null,null,null,2,{"$f":"COUNTIF('Sabana por grupo'!$CM$1:$CM$5500,\"Si\")","v":0},{"$f":"COUNTIF('Sabana por grupo'!$CM$1:$CM$5500,\"No\")","v":1},null,null,null,{"$f":"'Sabana por grupo'!A17","v":0},{"$f":"'Sabana por grupo'!C17","v":0},0,{"$error":"#VALUE!"},{"$f":"'Sabana por grupo'!G17","v":0},{"$error":"#VALUE!"},{"$f":"MID('Sabana por grupo'!B17,1,2)","v":""},81]
[19,{"$f":"COUNTIF('Sabana por grupo'!$AA$1:$AA$98166,\"Si\")","v":0},{"$f":"COUNTIF('Sabana por grupo'!$AA$1:$AA$98166,\"No\")","v":1},null,73,{"$f":"COUNTIF('Sabana por grupo'!$CC$1:$CC$98175,\"Si\")","v":0},{"$f":"COUNTIF('Sabana por grupo'!$CC$1:$CC$98175,\"No\")","v":1},null,null,null,null,null,62,{"$f":"F10","v":0},{"$f":"G10","v":1},null,null,null,null,null,"T",{"$f":"SUM(V4:V17)","v":0},{"$f":"SUM(W4:W17)","v":14},null,76,{"$f":"F21","v":0},{"$f":"G21","v":1},{"$f":"15*K1","v":15},80,{"$f":"F25","v":0},{"$f":"G25","v":1},null,null,null,3,{"$f":"COUNTIF('Sabana por grupo'!$CN$1:$CN$5500,\"Si\")","v":0},{"$f":"COUNTIF('Sabana por grupo'!$CN$1:$CN$5500,\"No\")","v":1},null,null,null,{"$f":"'Sabana por grupo'!A18","v":0},{"$f":"'Sabana por grupo'!C18","v":0},0,{"$error":"#VALUE!"},{"$f":"'Sabana por grupo'!G18","v":0},{"$error":"#VALUE!"},{"$f":"MID('Sabana por grupo'!B18,1,2)","v":""},81]
[21,{"$f":"COUNTIF('Sabana por grupo'!$AC$1:$AC$98168,\"Si\")","v":0},{"$f":"COUNTIF('Sabana por grupo'!$AC$1:$AC$98168,\"No\")","v":1},null,74,{"$f":"COUNTIF('Sabana por grupo'!$CD$1:$CD$98175,\"Si\")","v":0},{"$f":"COUNTIF('Sabana por grupo'!$CD$1:$CD$98175,\"No\")","v":1},null,null,null,null,null,65,{"$f":"F13","v":0},{"$f":"G13","v":1},null,null,null,null,null,"P",{"$f":"(V18*100%)/$T$17","v":0},{"$f":"(W18*100%)/$T$17","v":1},{"$f":"16*K1","v":16},80,{"$f":"F25","v":0},{"$f":"G25","v":1},null,"T",{"$f":"AD4+AE5+AE6+AE7+AE8+AE9+AD10+AE11+AD12+AD13+AE14+AE15+AD16+AD17+AE18","v":7},{"$f":"SUM(AE4:AE18)","v":11},null,null,null,4,{"$f":"COUNTIF('Sabana por grupo'!$CO$1:$CO$5500,\"Si\")","v":0},{"$f":"COUNTIF('Sabana por grupo'!$CO$1:$CO$5500,\"No\")","v":1},null,null,null,{"$f":"'Sabana por grupo'!A19","v":0},{"$f":"'Sabana por grupo'!C19","v":0},0,{"$error":"#VALUE!"},{"$f":"'Sabana por grupo'!G19","v":0},{"$error":"#VALUE!"},{"$f":"MID('Sabana por grupo'!B19,1,2)","v":""},81]
[23,{"$f":"COUNTIF('Sabana por grupo'!$AE$1:$AE$98170,\"Si\")","v":0},{"$f":"COUNTIF('Sabana por grupo'!$AE$1:$AE$98170,\"No\")","v":1},null,75,{"$f":"COUNTIF('Sabana por grupo'!$CE$1:$CE$98175,\"Si\")","v":0},{"$f":"COUNTIF('Sabana por grupo'!$CE$1:$CE$98175,\"No\")","v":1},null,null,null,null,{"$f":"17*K1","v":17},68,{"$f":"F16","v":0},{"$f":"G16","v":1},null,null,null,null,null,null,null,null,null,"T",{"$f":"(Z4+Z5+AA6+Z7+AA8+Z9+Z10+AA11+Z12+Z13+Z14+Z15+AA16+Z17+Z18+AA19)","v":5},{"$f":"SUM(AA4:AA19)","v":16},null,"P",{"$f":"(AD19*100%)/$AB$18","v":0.46666666666666667},{"$f":"(AE19*100%)/$AB$18","v":0.73333333333333328},null,null,null,5,{"$f":"COUNTIF('Sabana por grupo'!$CP$1:$CP$5500,\"Si\")","v":0},{"$f":"COUNTIF('Sabana por grupo'!$CP$1:$CP$5500,\"No\")","v":1},null,null,null,{"$f":"'Sabana por grupo'!A20","v":0},{"$f":"'Sabana por grupo'!C20","v":0},0,{"$error":"#VALUE!"},{"$f":"'Sabana por grupo'!G20","v":0},{"$error":"#VALUE!"},{"$f":"MID('Sabana por grupo'!B20,1,2)","v":""},81]
[24,{"$f":"COUNTIF('Sabana por grupo'!$AF$1:$AF$498171,\"Si\")","v":0},{"$f":"COUNTIF('Sabana por grupo'!$AF$1:$AF$498171,\"No\")","v":1},null,76,{"$f":"COUNTIF('Sabana por grupo'!$CF$1:$CF$98175,\"Si\")","v":0},{"$f":"COUNTIF('Sabana por grupo'!$CF$1:$CF$98175,\"No\")","v":1},null,null,null,null,null,"T",{"$f":"SUM(N4:N20)","v":0},{"$f":"SUM(O4:O20)","v":17},null,null,null,null,null,null,null,null,null,"P",{"$f":"(Z20*100%)/X19","v":0.3125},{"$f":"(AA20*100%)/X19","v":1},null,null,null,null,null,null,null,6,{"$f":"COUNTIF('Sabana por grupo'!$CQ$1:$CQ$5500,\"Si\")","v":0},{"$f":"COUNTIF('Sabana por grupo'!$CQ$1:$CQ$5500,\"No\")","v":1},null,null,null,{"$f":"'Sabana por grupo'!A21","v":0},{"$f":"'Sabana por grupo'!C21","v":0},0,{"$error":"#VALUE!"},{"$f":"'Sabana por grupo'!G21","v":0},{"$error":"#VALUE!"},{"$f":"MID('Sabana por grupo'!B21,1,2)","v":""},81]
[25,{"$f":"COUNTIF('Sabana por grupo'!$AG$1:$AG$98172,\"Si\")","v":0},{"$f":"COUNTIF('Sabana por grupo'!$AG$1:$AG$98172,\"No\")","v":1},null,77,{"$f":"COUNTIF('Sabana por grupo'!$CG$1:$CG$98175,\"Si\")","v":1},{"$f":"COUNTIF('Sabana por grupo'!$CG$1:$CG$98175,\"No\")","v":0},null,null,null,null,null,"P",{"$f":"(N21*100%)/$L$20","v":0},{"$f":"(O21*100%)/$L$20","v":1},null,null,null,null,null,null,null,null,null,null,null,null,null,null,null,null,null,null,null,7,{"$f":"COUNTIF('Sabana por grupo'!$CR$1:$CR$5500,\"Si\")","v":0},{"$f":"COUNTIF('Sabana por grupo'!$CR$1:$CR$5500,\"No\")","v":1},null,null,null,{"$f":"'Sabana por grupo'!A22","v":0},{"$f":"'Sabana por grupo'!C22","v":0},0,{"$error":"#VALUE!"},{"$f":"'Sabana por grupo'!G22","v":0},{"$error":"#VALUE!"},{"$f":"MID('Sabana por grupo'!B22,1,2)","v":""},81]
[27,{"$f":"COUNTIF('Sabana por grupo'!$AI$1:$AI$98174,\"Si\")","v":0},{"$f":"COUNTIF('Sabana por grupo'!$AI$1:$AI$98174,\"No\")","v":1},null,78,{"$f":"COUNTIF('Sabana por grupo'!$CH$1:$CH$98175,\"Si\")","v":0},{"$f":"COUNTIF('Sabana por grupo'!$CH$1:$CH$98175,\"No\")","v":1},null,"TOTAL",null,null,"SI","NO",null,"TOTAL",null,null,"SI","NO",null,"SI=T1+T2",null,"NO=T3",null,"TOTAL",null,null,null,null,null,null,null,null,null,8,{"$f":"COUNTIF('Sabana por grupo'!$CS$1:$CS$5500,\"Si\")","v":1},{"$f":"COUNTIF('Sabana por grupo'!$CS$1:$CS$5500,\"No\")","v":0},null,null,null,{"$f":"'Sabana por grupo'!A23","v":0},{"$f":"'Sabana por grupo'!C23","v":0},0,{"$error":"#VALUE!"},{"$f":"'Sabana por grupo'!G23","v":0},{"$error":"#VALUE!"},{"$f":"MID('Sabana por grupo'!B23,1,2)","v":""},81]
[28,{"$f":"COUNTIF('Sabana por grupo'!$AJ$1:$AJ$98175,\"Si\")","v":0},{"$f":"COUNTIF('Sabana por grupo'!$AJ$1:$AJ$98175,\"No\")","v":1},null,79,{"$f":"COUNTIF('Sabana por grupo'!$CI$1:$CI$98175,\"Si\")","v":0},{"$f":"COUNTIF('Sabana por grupo'!$CI$1:$CI$98175,\"No\")","v":1},null,"TI+T2",null,null,{"$f":"(B48+F27)","v":5},{"$f":"(C48+G27)","v":64},null,"T3",null,null,{"$f":"J15","v":10},{"$f":"K15","v":2},null,{"$f":"L24","v":5},null,{"$f":"S24","v":2},null,{"$f":"(U24+W24)","v":7},null,null,null,null,null,null,null,null,null,9,{"$f":"COUNTIF('Sabana por grupo'!$CT$1:$CT$5500,\"Si\")","v":0},{"$f":"COUNTIF('Sabana por grupo'!$CT$1:$CT$5500,\"No\")","v":1},null,null,null,{"$f":"'Sabana por grupo'!A24","v":0},{"$f":"'Sabana por grupo'!C24","v":0},0,{"$error":"#VALUE!"},{"$f":"'Sabana por grupo'!G24","v":0},{"$error":"#VALUE!"},{"$f":"MID('Sabana por grupo'!B24,1,2)","v":""},81]
[29,{"$f":"COUNTIF('Sabana por grupo'!$AK$1:$AK$98175,\"Si\")","v":0},{"$f":"COUNTIF('Sabana por grupo'!$AK$1:$AK$98175,\"No\")","v":1},null,80,{"$f":"COUNTIF('Sabana por grupo'!$CJ$1:$CJ$98175,\"Si\")","v":0},{"$f":"COUNTIF('Sabana por grupo'!$CJ$1:$CJ$98175,\"No\")","v":1},null,null,null,null,null,null,null,null,null,null,null,null,null,null,"Percentiles",null,null,null,null,null,null,null,null,null,null,null,null,10,{"$f":"COUNTIF('Sabana por grupo'!$CU$1:$CU$5500,\"Si\")","v":0},{"$f":"COUNTIF('Sabana por grupo'!$CU$1:$CU$5500,\"No\")","v":1},null,null,null,{"$f":"'Sabana por grupo'!A25","v":0},{"$f":"'Sabana por grupo'!C25","v":0},0,{"$error":"#VALUE!"},{"$f":"'Sabana por grupo'!G25","v":0},{"$error":"#VALUE!"},{"$f":"MID('Sabana por grupo'!B25,1,2)","v":""},81]
[30,{"$f":"COUNTIF('Sabana por grupo'!$AL$1:$AL$98175,\"Si\")","v":0},{"$f":"COUNTIF('Sabana por grupo'!$AL$1:$AL$98175,\"No\")","v":1},null,81,{"$f":"COUNTIF('Sabana por grupo'!$CK$1:$CK$98175,\"Si\")","v":0},{"$f":"COUNTIF('Sabana por grupo'!$CK$1:$CK$98175,\"No\")","v":1},null,null,"Rasgos de Riesgo",null,null,null,null,null,null,null,null,null,null,null,null,null,null,null,null,null,null,null,null,null,null,null,null,11,{"$f":"COUNTIF('Sabana por grupo'!$CV$1:$CV$5500,\"Si\")","v":0},{"$f":"COUNTIF('Sabana por grupo'!$CV$1:$CV$5500,\"No\")","v":1},null,null,null,{"$f":"'Sabana por grupo'!A26","v":0},{"$f":"'Sabana por grupo'!C26","v":0},0,{"$error":"#VALUE!"},{"$f":"'Sabana por grupo'!G26","v":0},{"$error":"#VALUE!"},{"$f":"MID('Sabana por grupo'!B26,1,2)","v":""},81]
[31,{"$f":"COUNTIF('Sabana por grupo'!$AM$1:$AM$98175,\"Si\")","v":0},{"$f":"COUNTIF('Sabana por grupo'!$AM$1:$AM$98175,\"No\")","v":1},null,"T2",{"$f":"SUM(F3:F26)","v":2},{"$f":"SUM(G3:G26)","v":22},null,null,null,null,null,null,null,null,"suma","Promedio","Perc",null,null,null,"Percentiles","Riesgo",null,null,null,null,null,null,null,null,null,null,null,12,{"$f":"COUNTIF('Sabana por grupo'!$CW$1:$CW$5500,\"Si\")","v":0},{"$f":"COUNTIF('Sabana por grupo'!$CW$1:$CW$5500,\"No\")","v":1},null,null,null,{"$f":"'Sabana por grupo'!A27","v":0},{"$f":"'Sabana por grupo'!C27","v":0},0,{"$error":"#VALUE!"},{"$f":"'Sabana por grupo'!G27","v":0},{"$error":"#VALUE!"},{"$f":"MID('Sabana por grupo'!B27,1,2)","v":""},81]
[33,{"$f":"COUNTIF('Sabana por grupo'!$AO$1:$AO$98175,\"Si\")","v":0},{"$f":"COUNTIF('Sabana por grupo'!$AO$1:$AO$98175,\"No\")","v":1},null,null,null,null,null,null,"Sentimientos de inutilidad",null,null,null,"R3",{"$f":"AJ18","v":0},{"$f":"(O28+O29+O30+O31)","v":1},{"$f":"P28/K1","v":1},{"$f":"(Q28*100%)/4","v":0.25},null,null,null,5,"Sin riesgo",null,null,null,null,null,null,null,null,null,null,null,13,{"$f":"COUNTIF('Sabana por grupo'!$CX$1:$CX$5500,\"Si\")","v":0},{"$f":"COUNTIF('Sabana por grupo'!$CX$1:$CX$5500,\"No\")","v":1},null,null,null,{"$f":"'Sabana por grupo'!A28","v":0},{"$f":"'Sabana por grupo'!C28","v":0},0,{"$error":"#VALUE!"},{"$f":"'Sabana por grupo'!G28","v":0},{"$error":"#VALUE!"},{"$f":"MID('Sabana por grupo'!B28,1,2)","v":""},81]
[34,{"$f":"COUNTIF('Sabana por grupo'!$AP$1:$AP$98175,\"Si\")","v":0},{"$f":"COUNTIF('Sabana por grupo'!$AP$1:$AP$98175,\"No\")","v":1},null,null,null,null,null,null,null,null,null,null,"R6",{"$f":"AJ21","v":0},null,null,null,null,null,null,10,null,null,null,null,null,null,null,null,null,null,null,null,14,{"$f":"COUNTIF('Sabana por grupo'!$CY$1:$CY$5500,\"Si\")","v":0},{"$f":"COUNTIF('Sabana por grupo'!$CY$1:$CY$5500,\"No\")","v":1},null,null,null,{"$f":"'Sabana por grupo'!A29","v":0},{"$f":"'Sabana por grupo'!C29","v":0},0,{"$error":"#VALUE!"},{"$f":"'Sabana por grupo'!G29","v":0},{"$error":"#VALUE!"},{"$f":"MID('Sabana por grupo'!B29,1,2)","v":""},81]
[35,{"$f":"COUNTIF('Sabana por grupo'!$AQ$1:$AQ$98175,\"Si\")","v":0},{"$f":"COUNTIF('Sabana por grupo'!$AQ$1:$AQ$98175,\"No\")","v":1},null,null,null,null,null,null,null,null,null,null,"R8",{"$f":"AJ23","v":1},null,null,null,null,null,null,15,null,null,null,null,null,null,null,null,null,null,null,null,15,{"$f":"COUNTIF('Sabana por grupo'!$CZ$1:$CZ$5500,\"Si\")","v":0},{"$f":"COUNTIF('Sabana por grupo'!$CZ$1:$CZ$5500,\"No\")","v":1},null,null,null,{"$f":"'Sabana por grupo'!A30","v":0},{"$f":"'Sabana por grupo'!C30","v":0},0,{"$error":"#VALUE!"},{"$f":"'Sabana por grupo'!G30","v":0},{"$error":"#VALUE!"},{"$f":"MID('Sabana por grupo'!B30,1,2)","v":""},81]
[36,{"$f":"COUNTIF('Sabana por grupo'!$AR$1:$AR$98175,\"Si\")","v":1},{"$f":"COUNTIF('Sabana por grupo'!$AR$1:$AR$98175,\"No\")","v":0},null,null,null,null,null,null,null,null,null,null,"R12",{"$f":"AJ27","v":0},null,null,null,null,null,null,20,null,null,null,null,null,null,null,null,null,null,null,null,"T",{"$f":"SUM(AJ16:AJ30)","v":1},{"$f":"SUM(AK16:AK30)","v":14},null,null,null,{"$f":"'Sabana por grupo'!A31","v":0},{"$f":"'Sabana por grupo'!C31","v":0},0,{"$error":"#VALUE!"},{"$f":"'Sabana por grupo'!G31","v":0},{"$error":"#VALUE!"},{"$f":"MID('Sabana por grupo'!B31,1,2)","v":""},81]
[37,{"$f":"COUNTIF('Sabana por grupo'!$AS$1:$AS$98175,\"Si\")","v":0},{"$f":"COUNTIF('Sabana por grupo'!$AS$1:$AS$98175,\"No\")","v":1},null,null,null,null,null,null,"Ideación suicida",null,null,null,"R2",{"$f":"AJ17","v":0},{"$f":"(O32+O33+O34)","v":0},{"$f":"P32/K1","v":0},{"$f":"(Q32*100%)/3","v":0},null,null,null,25,null,null,null,null,null,null,null,null,null,null,"Promedio",null,null,{"$f":"AJ31/K1","v":1},null,null,null,null,{"$f":"'Sabana por grupo'!A32","v":0},{"$f":"'Sabana por grupo'!C32","v":0},0,{"$error":"#VALUE!"},{"$f":"'Sabana por grupo'!G32","v":0},{"$error":"#VALUE!"},{"$f":"MID('Sabana por grupo'!B32,1,2)","v":""},81]
[38,{"$f":"COUNTIF('Sabana por grupo'!$AT$1:$AT$98175,\"Si\")","v":0},{"$f":"COUNTIF('Sabana por grupo'!$AT$1:$AT$98175,\"No\")","v":1},null,null,null,null,null,null,null,null,null,null,"R13",{"$f":"AJ28","v":0},null,null,null,null,null,null,30,"Riesgo Bajo",null,null,null,null,null,null,null,null,null,"Percentil",null,null,{"$f":"(AJ32*100)/AI30","v":6.666666666666667},null,null,null,null,{"$f":"'Sabana por grupo'!A33","v":0},{"$f":"'Sabana por grupo'!C33","v":0},0,{"$error":"#VALUE!"},{"$f":"'Sabana por grupo'!G33","v":0},{"$error":"#VALUE!"},{"$f":"MID('Sabana por grupo'!B33,1,2)","v":""},81]
[40,{"$f":"COUNTIF('Sabana por grupo'!$AV$1:$AV$98175,\"Si\")","v":0},{"$f":"COUNTIF('Sabana por grupo'!$AV$1:$AV$98175,\"No\")","v":1},null,null,null,null,null,null,null,null,null,null,"R14",{"$f":"AJ29","v":0},null,null,null,null,null,null,35,null,null,null,null,null,null,null,null,null,null,null,null,null,null,null,null,null,null,{"$f":"'Sabana por grupo'!A34","v":0},{"$f":"'Sabana por grupo'!C34","v":0},0,{"$error":"#VALUE!"},{"$f":"'Sabana por grupo'!G34","v":0},{"$error":"#VALUE!"},{"$f":"MID('Sabana por grupo'!B34,1,2)","v":""},81]
[41,{"$f":"COUNTIF('Sabana por grupo'!$AW$1:$AW$98175,\"Si\")","v":0},{"$f":"COUNTIF('Sabana por grupo'!$AW$1:$AW$98175,\"No\")","v":1},null,null,null,null,null,null,"Desesperanza",null,null,null,"R5",{"$f":"AJ20","v":0},{"$f":"(O35+O36+O37)","v":0},{"$f":"P35/K1","v":0},{"$f":"(Q35*100%)/3","v":0},null,null,null,40,null,null,null,null,null,null,null,null,null,null,null,null,null,null,null,null,null,null,{"$f":"'Sabana por grupo'!A35","v":0},{"$f":"'Sabana por grupo'!C35","v":0},0,{"$error":"#VALUE!"},{"$f":"'Sabana por grupo'!G35","v":0},{"$error":"#VALUE!"},{"$f":"MID('Sabana por grupo'!B35,1,2)","v":""},81]
[42,{"$f":"COUNTIF('Sabana por grupo'!$AX$1:$AX$98175,\"Si\")","v":0},{"$f":"COUNTIF('Sabana por grupo'!$AX$1:$AX$98175,\"No\")","v":1},null,null,null,null,null,null,null,null,null,null,"R7",{"$f":"AJ22","v":0},null,null,null,null,null,null,45,null,null,null,null,null,null,null,null,null,null,null,null,null,null,null,null,null,null,{"$f":"'Sabana por grupo'!A36","v":0},{"$f":"'Sabana por grupo'!C36","v":0},0,{"$error":"#VALUE!"},{"$f":"'Sabana por grupo'!G36","v":0},{"$error":"#VALUE!"},{"$f":"MID('Sabana por grupo'!B36,1,2)","v":""},81]
[43,{"$f":"COUNTIF('Sabana por grupo'!$AY$1:$AY$98175,\"Si\")","v":0},{"$f":"COUNTIF('Sabana por grupo'!$AY$1:$AY$98175,\"No\")","v":1},null,null,null,null,null,null,null,null,null,null,"R9",{"$f":"AJ24","v":0},null,null,null,null,null,null,50,null,null,null,null,null,null,null,null,null,null,null,null,null,null,null,null,null,null,{"$f":"'Sabana por grupo'!A37","v":0},{"$f":"'Sabana por grupo'!C37","v":0},0,{"$error":"#VALUE!"},{"$f":"'Sabana por grupo'!G37","v":0},{"$error":"#VALUE!"},{"$f":"MID('Sabana por grupo'!B37,1,2)","v":""},81]
[44,{"$f":"COUNTIF('Sabana por grupo'!$AZ$1:$AZ$98175,\"Si\")","v":0},{"$f":"COUNTIF('Sabana por grupo'!$AZ$1:$AZ$98175,\"No\")","v":1},null,null,null,null,null,null,"Factores sociales",null,null,null,"R1",{"$f":"AJ16","v":0},{"$f":"SUM(O38:O42)","v":0},{"$f":"P38/K1","v":0},{"$f":"(Q38*100%)/5","v":0},null,null,null,55,"Riesgo Medio",null,null,null,null,null,null,null,null,null,null,null,null,null,null,null,null,null,{"$f":"'Sabana por grupo'!A38","v":0},{"$f":"'Sabana por grupo'!C38","v":0},0,{"$error":"#VALUE!"},{"$f":"'Sabana por grupo'!G38","v":0},{"$error":"#VALUE!"},{"$f":"MID('Sabana por grupo'!B38,1,2)","v":""},81]
[45,{"$f":"COUNTIF('Sabana por grupo'!$BA$1:$BA$98175,\"Si\")","v":0},{"$f":"COUNTIF('Sabana por grupo'!$BA$1:$BA$98175,\"No\")","v":1},null,null,null,null,null,null,null,null,null,null,"R4",{"$f":"AJ19","v":0},null,null,null,null,null,null,60,null,null,null,null,null,null,null,null,null,null,null,null,null,null,null,null,null,null,{"$f":"'Sabana por grupo'!A39","v":0},{"$f":"'Sabana por grupo'!C39","v":0},0,{"$error":"#VALUE!"},{"$f":"'Sabana por grupo'!G39","v":0},{"$error":"#VALUE!"},{"$f":"MID('Sabana por grupo'!B39,1,2)","v":""},81]
[46,{"$f":"COUNTIF('Sabana por grupo'!$BB$1:$BB$98175,\"Si\")","v":0},{"$f":"COUNTIF('Sabana por grupo'!$BB$1:$BB$98175,\"No\")","v":1},null,null,null,null,null,null,null,null,null,null,"R10",{"$f":"AJ25","v":0},null,null,null,null,null,null,65,null,null,null,null,null,null,null,null,null,null,null,null,null,null,null,null,null,null,{"$f":"'Sabana por grupo'!A40","v":0},{"$f":"'Sabana por grupo'!C40","v":0},0,{"$error":"#VALUE!"},{"$f":"'Sabana por grupo'!G40","v":0},{"$error":"#VALUE!"},{"$f":"MID('Sabana por grupo'!B40,1,2)","v":""},81]
[47,{"$f":"COUNTIF('Sabana por grupo'!$BC$1:$BC$98175,\"Si\")","v":0},{"$f":"COUNTIF('Sabana por grupo'!$BC$1:$BC$98175,\"No\")","v":1},null,null,null,null,null,null,null,null,null,null,"R11",{"$f":"AJ26","v":0},null,null,null,null,null,null,70,null,null,null,null,null,null,null,null,null,null,null,null,null,null,null,null,null,null,{"$f":"'Sabana por grupo'!A41","v":0},{"$f":"'Sabana por grupo'!C41","v":0},0,{"$error":"#VALUE!"},{"$f":"'Sabana por grupo'!G41","v":0},{"$error":"#VALUE!"},{"$f":"MID('Sabana por grupo'!B41,1,2)","v":""},81]
[48,{"$f":"COUNTIF('Sabana por grupo'!$BD$1:$BD$98175,\"Si\")","v":0},{"$f":"COUNTIF('Sabana por grupo'!$BD$1:$BD$98175,\"No\")","v":1},null,null,null,null,null,null,null,null,null,null,"R15",{"$f":"AJ30","v":0},null,null,null,null,null,null,75,null,null,null,null,null,null,null,null,null,null,null,null,null,null,null,null,null,null,{"$f":"'Sabana por grupo'!A42","v":0},{"$f":"'Sabana por grupo'!C42","v":0},0,{"$error":"#VALUE!"},{"$f":"'Sabana por grupo'!G42","v":0},{"$error":"#VALUE!"},{"$f":"MID('Sabana por grupo'!B42,1,2)","v":""},81]
[49,{"$f":"COUNTIF('Sabana por grupo'!$BE$1:$BE$98175,\"Si\")","v":0},{"$f":"COUNTIF('Sabana por grupo'!$BE$1:$BE$98175,\"No\")","v":1},null,null,null,null,null,null,null,null,null,null,null,null,null,null,null,null,null,null,80,"Riesgo alto",null,null,null,null,null,null,null,null,null,null,null,null,null,null,null,null,null,{"$f":"'Sabana por grupo'!A43","v":0},{"$f":"'Sabana por grupo'!C43","v":0},0,{"$error":"#VALUE!"},{"$f":"'Sabana por grupo'!G43","v":0},{"$error":"#VALUE!"},{"$f":"MID('Sabana por grupo'!B43,1,2)","v":""},81]
[50,{"$f":"COUNTIF('Sabana por grupo'!$BF$1:$BF$98175,\"Si\")","v":0},{"$f":"COUNTIF('Sabana por grupo'!$BF$1:$BF$98175,\"No\")","v":1},null,null,null,null,null,null,null,null,null,null,null,null,null,null,null,null,null,null,85,null,null,null,null,null,null,null,null,null,null,null,null,null,null,null,null,null,null,{"$f":"'Sabana por grupo'!A44","v":0},{"$f":"'Sabana por grupo'!C44","v":0},0,{"$error":"#VALUE!"},{"$f":"'Sabana por grupo'!G44","v":0},{"$error":"#VALUE!"},{"$f":"MID('Sabana por grupo'!B44,1,2)","v":""},81]
[51,{"$f":"COUNTIF('Sabana por grupo'!$BG$1:$BG$98175,\"Si\")","v":0},{"$f":"COUNTIF('Sabana por grupo'!$BG$1:$BG$98175,\"No\")","v":1},null,null,null,null,null,null,null,null,null,null,null,null,null,null,null,null,null,null,90,null,null,null,null,null,null,null,null,null,null,null,null,null,null,null,null,null,null,{"$f":"'Sabana por grupo'!A45","v":0},{"$f":"'Sabana por grupo'!C45","v":0},0,{"$error":"#VALUE!"},{"$f":"'Sabana por grupo'!G45","v":0},{"$error":"#VALUE!"},{"$f":"MID('Sabana por grupo'!B45,1,2)","v":""},81]
[53,{"$f":"COUNTIF('Sabana por grupo'!$BI$1:$BI$98175,\"Si\")","v":0},{"$f":"COUNTIF('Sabana por grupo'!$BI$1:$BI$98175,\"No\")","v":1},null,null,null,null,null,null,null,null,null,null,null,null,null,null,null,null,null,null,95,null,null,null,null,null,null,null,null,null,null,null,null,null,null,null,null,null,null,{"$f":"'Sabana por grupo'!A46","v":0},{"$f":"'Sabana por grupo'!C46","v":0},0,{"$error":"#VALUE!"},{"$f":"'Sabana por grupo'!G46","v":0},{"$error":"#VALUE!"},{"$f":"MID('Sabana por grupo'!B46,1,2)","v":""},81]
[54,{"$f":"COUNTIF('Sabana por grupo'!$BJ$1:$BJ$98175,\"Si\")","v":0},{"$f":"COUNTIF('Sabana por grupo'!$BJ$1:$BJ$98175,\"No\")","v":1},null,null,null,null,null,null,null,null,null,null,null,null,null,null,null,null,null,null,100,null,null,null,null,null,null,null,null,null,null,null,null,null,null,null,null,null,null,{"$f":"'Sabana por grupo'!A47","v":0},{"$f":"'Sabana por grupo'!C47","v":0},0,{"$error":"#VALUE!"},{"$f":"'Sabana por grupo'!G47","v":0},{"$error":"#VALUE!"},{"$f":"MID('Sabana por grupo'!B47,1,2)","v":""},81]
["T1",{"$f":"SUM(B3:B47)","v":3},{"$f":"SUM(C3:C47)","v":42},null,null,null,null,null,null,null,null,null,null,null,null,null,null,null,null,null,null,null,null,null,null,null,null,null,null,null,null,null,null,null,null,null,null,null,null,null,{"$f":"'Sabana por grupo'!A48","v":0},{"$f":"'Sabana por grupo'!C48","v":0},0,{"$error":"#VALUE!"},{"$f":"'Sabana por grupo'!G48","v":0},{"$error":"#VALUE!"},{"$f":"MID('Sabana por grupo'!B48,1,2)","v":""},81]
[null,null,null,null,null,null,null,null,null,null,null,null,null,null,null,null,null,null,null,null,null,null,null,null,null,null,null,null,null,null,null,null,null,null,null,null,null,null,null,null,{"$f":"'Sabana por grupo'!A49","v":0},{"$f":"'Sabana por grupo'!C49","v":0},0,{"$error":"#VALUE!"},{"$f":"'Sabana por grupo'!G49","v":0},{"$error":"#VALUE!"},{"$f":"MID('Sabana por grupo'!B49,1,2)","v":""},81]
[null,null,null,null,null,null,null,null,null,null,null,null,null,null,null,null,null,null,null,null,null,null,null,null,null,null,null,null,null,null,null,null,null,null,null,null,null,null,null,null,{"$f":"'Sabana por grupo'!A50","v":0},{"$f":"'Sabana por grupo'!C50","v":0},0,{"$error":"#VALUE!"},{"$f":"'Sabana por grupo'!G50","v":0},{"$error":"#VALUE!"},{"$f":"MID('Sabana por grupo'!B50,1,2)","v":""},81]
[null,null,null,null,null,null,null,null,null,null,null,null,null,null,null,null,null,null,null,null,null,null,null,null,null,null,null,null,null,null,null,null,null,null,null,null,null,null,null,null,{"$f":"'Sabana por grupo'!A51","v":0},{"$f":"'Sabana por grupo'!C51","v":0},0,{"$error":"#VALUE!"},{"$f":"'Sabana por grupo'!G51","v":0},{"$error":"#VALUE!"},{"$f":"MID('Sabana por grupo'!B51,1,2)","v":""},81]
[null,null,null,null,null,null,null,null,null,null,null,null,null,null,null,null,null,null,null,null,null,null,null,null,null,null,null,null,null,null,null,null,null,null,null,null,null,null,null,null,{"$f":"'Sabana por grupo'!A52","v":0},{"$f":"'Sabana por grupo'!C52","v":0},0,{"$error":"#VALUE!"},{"$f":"'Sabana por grupo'!G52","v":0},{"$error":"#VALUE!"},{"$f":"MID('Sabana por grupo'!B52,1,2)","v":""},81]
[null,null,null,null,null,null,null,null,null,null,null,null,null,null,null,null,null,null,null,null,null,null,null,null,null,null,null,null,null,null,null,null,null,null,null,null,null,null,null,null,{"$f":"'Sabana por grupo'!A53","v":0},{"$f":"'Sabana por grupo'!C53","v":0},0,{"$error":"#VALUE!"},{"$f":"'Sabana por grupo'!G53","v":0},{"$error":"#VALUE!"},{"$f":"MID('Sabana por grupo'!B53,1,2)","v":""},81]
[null,null,null,null,null,null,null,null,null,null,null,null,null,null,null,null,null,null,null,null,null,null,null,null,null,null,null,null,null,null,null,null,null,null,null,null,null,null,null,null,{"$f":"'Sabana por grupo'!A54","v":0},{"$f":"'Sabana por grupo'!C54","v":0},0,{"$error":"#VALUE!"},{"$f":"'Sabana por grupo'!G54","v":0},{"$error":"#VALUE!"},{"$f":"MID('Sabana por grupo'!B54,1,2)","v":""},81]
[null,null,null,null,null,null,null,null,null,null,null,null,null,null,null,null,null,null,null,null,null,null,null,null,null,null,null,null,null,null,null,null,null,null,null,null,null,null,null,null,{"$f":"'Sabana por grupo'!A55","v":0},{"$f":"'Sabana por grupo'!C55","v":0},0,{"$error":"#VALUE!"},{"$f":"'Sabana por grupo'!G55","v":0},{"$error":"#VALUE!"},{"$f":"MID('Sabana por grupo'!B55,1,2)","v":""},81]
[null,null,null,null,null,null,null,null,null,null,null,null,null,null,null,null,null,null,null,null,null,null,null,null,null,null,null,null,null,null,null,null,null,null,null,null,null,null,null,null,{"$f":"'Sabana por grupo'!A56","v":0},{"$f":"'Sabana por grupo'!C56","v":0},0,{"$error":"#VALUE!"},{"$f":"'Sabana por grupo'!G56","v":0},{"$error":"#VALUE!"},{"$f":"MID('Sabana por grupo'!B56,1,2)","v":""},81]
[null,null,null,null,null,null,null,null,null,null,null,null,null,null,null,null,null,null,null,null,null,null,null,null,null,null,null,null,null,null,null,null,null,null,null,null,null,null,null,null,{"$f":"'Sabana por grupo'!A57","v":0},{"$f":"'Sabana por grupo'!C57","v":0},0,{"$error":"#VALUE!"},{"$f":"'Sabana por grupo'!G57","v":0},{"$error":"#VALUE!"},{"$f":"MID('Sabana por grupo'!B57,1,2)","v":""},81]
[null,null,null,null,null,null,null,null,null,null,null,null,null,null,null,null,null,null,null,null,null,null,null,null,null,null,null,null,null,null,null,null,null,null,null,null,null,null,null,null,{"$f":"'Sabana por grupo'!A58","v":0},{"$f":"'Sabana por grupo'!C58","v":0},0,{"$error":"#VALUE!"},{"$f":"'Sabana por grupo'!G58","v":0},{"$error":"#VALUE!"},{"$f":"MID('Sabana por grupo'!B58,1,2)","v":""},81]
[null,null,null,null,null,null,null,null,null,null,null,null,null,null,null,null,null,null,null,null,null,null,null,null,null,null,null,null,null,null,null,null,null,null,null,null,null,null,null,null,{"$f":"'Sabana por grupo'!A59","v":0},{"$f":"'Sabana por grupo'!C59","v":0},0,{"$error":"#VALUE!"},{"$f":"'Sabana por grupo'!G59","v":0},{"$error":"#VALUE!"},{"$f":"MID('Sabana por grupo'!B59,1,2)","v":""},81]
[null,null,null,null,null,null,null,null,null,null,null,null,null,null,null,null,null,null,null,null,null,null,null,null,null,null,null,null,null,null,null,null,null,null,null,null,null,null,null,null,{"$f":"'Sabana por grupo'!A60","v":0},{"$f":"'Sabana por grupo'!C60","v":0},0,{"$error":"#VALUE!"},{"$f":"'Sabana por grupo'!G60","v":0},{"$error":"#VALUE!"},{"$f":"MID('Sabana por grupo'!B60,1,2)","v":""},81]
[null,null,null,null,null,null,null,null,null,null,null,null,null,null,null,null,null,null,null,null,null,null,null,null,null,null,null,null,null,null,null,null,null,null,null,null,null,null,null,null,{"$f":"'Sabana por grupo'!A61","v":0},{"$f":"'Sabana por grupo'!C61","v":0},0,{"$error":"#VALUE!"},{"$f":"'Sabana por grupo'!G61","v":0},{"$error":"#VALUE!"},{"$f":"MID('Sabana por grupo'!B61,1,2)","v":""},81]
[null,null,null,null,null,null,null,null,null,null,null,null,null,null,null,null,null,null,null,null,null,null,null,null,null,null,null,null,null,null,null,null,null,null,null,null,null,null,null,null,{"$f":"'Sabana por grupo'!A62","v":0},{"$f":"'Sabana por grupo'!C62","v":0},0,{"$error":"#VALUE!"},{"$f":"'Sabana por grupo'!G62","v":0},{"$error":"#VALUE!"},{"$f":"MID('Sabana por grupo'!B62,1,2)","v":""},81]
[null,null,null,null,null,null,null,null,null,null,null,null,null,null,null,null,null,null,null,null,null,null,null,null,null,null,null,null,null,null,null,null,null,null,null,null,null,null,null,null,{"$f":"'Sabana por grupo'!A63","v":0},{"$f":"'Sabana por grupo'!C63","v":0},0,{"$error":"#VALUE!"},{"$f":"'Sabana por grupo'!G63","v":0},{"$error":"#VALUE!"},{"$f":"MID('Sabana por grupo'!B63,1,2)","v":""},81]
[null,null,null,null,null,null,null,null,null,null,null,null,null,null,null,null,null,null,null,null,null,null,null,null,null,null,null,null,null,null,null,null,null,null,null,null,null,null,null,null,{"$f":"'Sabana por grupo'!A64","v":0},{"$f":"'Sabana por grupo'!C64","v":0},0,{"$error":"#VALUE!"},{"$f":"'Sabana por grupo'!G64","v":0},{"$error":"#VALUE!"},{"$f":"MID('Sabana por grupo'!B64,1,2)","v":""},81]
[null,null,null,null,null,null,null,null,null,null,null,null,null,null,null,null,null,null,null,null,null,null,null,null,null,null,null,null,null,null,null,null,null,null,null,null,null,null,null,null,{"$f":"'Sabana por grupo'!A65","v":0},{"$f":"'Sabana por grupo'!C65","v":0},0,{"$error":"#VALUE!"},{"$f":"'Sabana por grupo'!G65","v":0},{"$error":"#VALUE!"},{"$f":"MID('Sabana por grupo'!B65,1,2)","v":""},81]
[null,null,null,null,null,null,null,null,null,null,null,null,null,null,null,null,null,null,null,null,null,null,null,null,null,null,null,null,null,null,null,null,null,null,null,null,null,null,null,null,{"$f":"'Sabana por grupo'!A66","v":0},{"$f":"'Sabana por grupo'!C66","v":0},{"$f":"_xlfn.NUMBERVALUE(AU66)","v":0},{"$error":"#VALUE!"},{"$f":"'Sabana por grupo'!G66","v":0},{"$error":"#VALUE!"},{"$f":"MID('Sabana por grupo'!B66,1,2)","v":""},81]
[null,null,null,null,null,null,null,null,null,null,null,null,null,null,null,null,null,null,null,null,null,null,null,null,null,null,null,null,null,null,null,null,null,null,null,null,null,null,null,null,{"$f":"'Sabana por grupo'!A67","v":0},{"$f":"'Sabana por grupo'!C67","v":0},0,{"$f":"IF(AT67=0,\"N/A\",IF(AT67<$AX$2,\"Riesgo Menor\",IF(AT67<$AX$3,\"Riesgo Probable\",\"Atencion de Prioridad\")))","v":{"$error":"#VALUE!"}},{"$f":"'Sabana por grupo'!G67","v":0},{"$f":"(AU67/AV78)","v":{"$error":"#VALUE!"}},{"$f":"MID('Sabana por grupo'!B67,1,2)","v":""},81]
[null,null,null,null,null,null,null,null,null,null,null,null,null,null,null,null,null,null,null,null,null,null,null,null,null,null,null,null,null,null,null,null,null,null,null,null,null,null,null,null,{"$f":"'Sabana por grupo'!A68","v":0},{"$f":"'Sabana por grupo'!C68","v":0},0,{"$error":"#VALUE!"},{"$f":"'Sabana por grupo'!G68","v":0},{"$error":"#VALUE!"},{"$f":"MID('Sabana por grupo'!B68,1,2)","v":""},81]
[null,null,null,null,null,null,null,null,null,null,null,null,null,null,null,null,null,null,null,null,null,null,null,null,null,null,null,null,null,null,null,null,null,null,null,null,null,null,null,null,{"$f":"'Sabana por grupo'!A69","v":0},{"$f":"'Sabana por grupo'!C69","v":0},0,{"$error":"#VALUE!"},{"$f":"'Sabana por grupo'!G69","v":0},{"$error":"#VALUE!"},{"$f":"MID('Sabana por grupo'!B69,1,2)","v":""},81]
[null,null,null,null,null,null,null,null,null,null,null,null,null,null,null,null,null,null,null,null,null,null,null,null,null,null,null,null,null,null,null,null,null,null,null,null,null,null,null,null,{"$f":"'Sabana por grupo'!A70","v":0},{"$f":"'Sabana por grupo'!C70","v":0},0,{"$error":"#VALUE!"},{"$f":"'Sabana por grupo'!G70","v":0},{"$error":"#VALUE!"},{"$f":"MID('Sabana por grupo'!B70,1,2)","v":""},81]
[null,null,null,null,null,null,null,null,null,null,null,null,null,null,null,null,null,null,null,null,null,null,null,null,null,null,null,null,null,null,null,null,null,null,null,null,null,null,null,null,{"$f":"'Sabana por grupo'!A71","v":0},{"$f":"'Sabana por grupo'!C71","v":0},0,{"$error":"#VALUE!"},{"$f":"'Sabana por grupo'!G71","v":0},{"$error":"#VALUE!"},{"$f":"MID('Sabana por grupo'!B71,1,2)","v":""},81]
[null,null,null,null,null,null,null,null,null,null,null,null,null,null,null,null,null,null,null,null,null,null,null,null,null,null,null,null,null,null,null,null,null,null,null,null,null,null,null,null,{"$f":"'Sabana por grupo'!A72","v":0},{"$f":"'Sabana por grupo'!C72","v":0},0,{"$error":"#VALUE!"},{"$f":"'Sabana por grupo'!G72","v":0},{"$error":"#VALUE!"},{"$f":"MID('Sabana por grupo'!B72,1,2)","v":""},81]
[null,null,null,null,null,null,null,null,null,null,null,null,null,null,null,null,null,null,null,null,null,null,null,null,null,null,null,null,null,null,null,null,null,null,null,null,null,null,null,null,{"$f":"'Sabana por grupo'!A73","v":0},{"$f":"'Sabana por grupo'!C73","v":0},0,{"$error":"#VALUE!"},{"$f":"'Sabana por grupo'!G73","v":0},{"$error":"#VALUE!"},{"$f":"MID('Sabana por grupo'!B73,1,2)","v":""},81]
[null,null,null,null,null,null,null,null,null,null,null,null,null,null,null,null,null,null,null,null,null,null,null,null,null,null,null,null,null,null,null,null,null,null,null,null,null,null,null,null,{"$f":"'Sabana por grupo'!A74","v":0},{"$f":"'Sabana por grupo'!C74","v":0},0,{"$error":"#VALUE!"},{"$f":"'Sabana por grupo'!G74","v":0},{"$error":"#VALUE!"},{"$f":"MID('Sabana por grupo'!B74,1,2)","v":""},81]
[null,null,null,null,null,null,null,null,null,null,null,null,null,null,null,null,null,null,null,null,null,null,null,null,null,null,null,null,null,null,null,null,null,null,null,null,null,null,null,null,{"$f":"'Sabana por grupo'!A75","v":0},{"$f":"'Sabana por grupo'!C75","v":0},0,{"$error":"#VALUE!"},{"$f":"'Sabana por grupo'!G75","v":0},{"$error":"#VALUE!"},{"$f":"MID('Sabana por grupo'!B75,1,2)","v":""},81]
[null,null,null,null,null,null,null,null,null,null,null,null,null,null,null,null,null,null,null,null,null,null,null,null,null,null,null,null,null,null,null,null,null,null,null,null,null,null,null,null,{"$f":"'Sabana por grupo'!A76","v":0},{"$f":"'Sabana por grupo'!C76","v":0},0,{"$error":"#VALUE!"},{"$f":"'Sabana por grupo'!G76","v":0},{"$error":"#VALUE!"},{"$f":"MID('Sabana por grupo'!B76,1,2)","v":""},81]
[null,null,null,null,null,null,null,null,null,null,null,null,null,null,null,null,null,null,null,null,null,null,null,null,null,null,null,null,null,null,null,null,null,null,null,null,null,null,null,null,{"$f":"'Sabana por grupo'!A77","v":0},{"$f":"'Sabana por grupo'!C77","v":0},0,{"$error":"#VALUE!"},{"$f":"'Sabana por grupo'!G77","v":0},{"$error":"#VALUE!"},{"$f":"MID('Sabana por grupo'!B77,1,2)","v":""},81]
[null,null,null,null,null,null,null,null,null,null,null,null,null,null,null,null,null,null,null,null,null,null,null,null,null,null,null,null,null,null,null,null,null,null,null,null,null,null,null,null,{"$f":"'Sabana por grupo'!A78","v":0},{"$f":"'Sabana por grupo'!C78","v":0},0,{"$error":"#VALUE!"},{"$f":"'Sabana por grupo'!G78","v":0},{"$error":"#VALUE!"},{"$f":"MID('Sabana por grupo'!B78,1,2)","v":""},81]
[null,null,null,null,null,null,null,null,null,null,null,null,null,null,null,null,null,null,null,null,null,null,null,null,null,null,null,null,null,null,null,null,null,null,null,null,null,null,null,null,{"$f":"'Sabana por grupo'!A79","v":0},{"$f":"'Sabana por grupo'!C79","v":0},0,{"$error":"#VALUE!"},{"$f":"'Sabana por grupo'!G79","v":0},{"$error":"#VALUE!"},{"$f":"MID('Sabana por grupo'!B79,1,2)","v":""},81]
[null,null,null,null,null,null,null,null,null,null,null,null,null,null,null,null,null,null,null,null,null,null,null,null,null,null,null,null,null,null,null,null,null,null,null,null,null,null,null,null,{"$f":"'Sabana por grupo'!A80","v":0},{"$f":"'Sabana por grupo'!C80","v":0},0,{"$error":"#VALUE!"},{"$f":"'Sabana por grupo'!G80","v":0},{"$error":"#VALUE!"},{"$f":"MID('Sabana por grupo'!B80,1,2)","v":""},81]
[null,null,null,null,null,null,null,null,null,null,null,null,null,null,null,null,null,null,null,null,null,null,null,null,null,null,null,null,null,null,null,null,null,null,null,null,null,null,null,null,{"$f":"'Sabana por grupo'!A81","v":0},{"$f":"'Sabana por grupo'!C81","v":0},0,{"$error":"#VALUE!"},{"$f":"'Sabana por grupo'!G81","v":0},{"$error":"#VALUE!"},{"$f":"MID('Sabana por grupo'!B81,1,2)","v":""},81]
[null,null,null,null,null,null,null,null,null,null,null,null,null,null,null,null,null,null,null,null,null,null,null,null,null,null,null,null,null,null,null,null,null,null,null,null,null,null,null,null,{"$f":"'Sabana por grupo'!A82","v":0},{"$f":"'Sabana por grupo'!C82","v":0},0,{"$error":"#VALUE!"},{"$f":"'Sabana por grupo'!G82","v":0},{"$error":"#VALUE!"},{"$f":"MID('Sabana por grupo'!B82,1,2)","v":""},81]
[null,null,null,null,null,null,null,null,null,null,null,null,null,null,null,null,null,null,null,null,null,null,null,null,null,null,null,null,null,null,null,null,null,null,null,null,null,null,null,null,{"$f":"'Sabana por grupo'!A83","v":0},{"$f":"'Sabana por grupo'!C83","v":0},0,{"$error":"#VALUE!"},{"$f":"'Sabana por grupo'!G83","v":0},{"$error":"#VALUE!"},{"$f":"MID('Sabana por grupo'!B83,1,2)","v":""},81]
[null,null,null,null,null,null,null,null,null,null,null,null,null,null,null,null,null,null,null,null,null,null,null,null,null,null,null,null,null,null,null,null,null,null,null,null,null,null,null,null,{"$f":"'Sabana por grupo'!A84","v":0},{"$f":"'Sabana por grupo'!C84","v":0},0,{"$error":"#VALUE!"},{"$f":"'Sabana por grupo'!G84","v":0},{"$error":"#VALUE!"},{"$f":"MID('Sabana por grupo'!B84,1,2)","v":""},81]
[null,null,null,null,null,null,null,null,null,null,null,null,null,null,null,null,null,null,null,null,null,null,null,null,null,null,null,null,null,null,null,null,null,null,null,null,null,null,null,null,{"$f":"'Sabana por grupo'!A85","v":0},{"$f":"'Sabana por grupo'!C85","v":0},0,{"$error":"#VALUE!"},{"$f":"'Sabana por grupo'!G85","v":0},{"$error":"#VALUE!"},{"$f":"MID('Sabana por grupo'!B85,1,2)","v":""},81]
[null,null,null,null,null,null,null,null,null,null,null,null,null,null,null,null,null,null,null,null,null,null,null,null,null,null,null,null,null,null,null,null,null,null,null,null,null,null,null,null,{"$f":"'Sabana por grupo'!A86","v":0},{"$f":"'Sabana por grupo'!C86","v":0},0,{"$error":"#VALUE!"},{"$f":"'Sabana por grupo'!G86","v":0},{"$error":"#VALUE!"},{"$f":"MID('Sabana por grupo'!B86,1,2)","v":""},81]
[null,null,null,null,null,null,null,null,null,null,null,null,null,null,null,null,null,null,null,null,null,null,null,null,null,null,null,null,null,null,null,null,null,null,null,null,null,null,null,null,{"$f":"'Sabana por grupo'!A87","v":0},{"$f":"'Sabana por grupo'!C87","v":0},0,{"$error":"#VALUE!"},{"$f":"'Sabana por grupo'!G87","v":0},{"$error":"#VALUE!"},{"$f":"MID('Sabana por grupo'!B87,1,2)","v":""},81]
[null,null,null,null,null,null,null,null,null,null,null,null,null,null,null,null,null,null,null,null,null,null,null,null,null,null,null,null,null,null,null,null,null,null,null,null,null,null,null,null,{"$f":"'Sabana por grupo'!A88","v":0},{"$f":"'Sabana por grupo'!C88","v":0},0,{"$error":"#VALUE!"},{"$f":"'Sabana por grupo'!G88","v":0},{"$error":"#VALUE!"},{"$f":"MID('Sabana por grupo'!B88,1,2)","v":""},81]
[null,null,null,null,null,null,null,null,null,null,null,null,null,null,null,null,null,null,null,null,null,null,null,null,null,null,null,null,null,null,null,null,null,null,null,null,null,null,null,null,{"$f":"'Sabana por grupo'!A89","v":0},{"$f":"'Sabana por grupo'!C89","v":0},0,{"$error":"#VALUE!"},{"$f":"'Sabana por grupo'!G89","v":0},{"$error":"#VALUE!"},{"$f":"MID('Sabana por grupo'!B89,1,2)","v":""},81]
[null,null,null,null,null,null,null,null,null,null,null,null,null,null,null,null,null,null,null,null,null,null,null,null,null,null,null,null,null,null,null,null,null,null,null,null,null,null,null,null,{"$f":"'Sabana por grupo'!A90","v":0},{"$f":"'Sabana por grupo'!C90","v":0},0,{"$error":"#VALUE!"},{"$f":"'Sabana por grupo'!G90","v":0},{"$error":"#VALUE!"},{"$f":"MID('Sabana por grupo'!B90,1,2)","v":""},81]
[null,null,null,null,null,null,null,null,null,null,null,null,null,null,null,null,null,null,null,null,null,null,null,null,null,null,null,null,null,null,null,null,null,null,null,null,null,null,null,null,{"$f":"'Sabana por grupo'!A91","v":0},{"$f":"'Sabana por grupo'!C91","v":0},0,{"$error":"#VALUE!"},{"$f":"'Sabana por grupo'!G91","v":0},{"$error":"#VALUE!"},{"$f":"MID('Sabana por grupo'!B91,1,2)","v":""},81]
[null,null,null,null,null,null,null,null,null,null,null,null,null,null,null,null,null,null,null,null,null,null,null,null,null,null,null,null,null,null,null,null,null,null,null,null,null,null,null,null,{"$f":"'Sabana por grupo'!A92","v":0},{"$f":"'Sabana por grupo'!C92","v":0},0,{"$error":"#VALUE!"},{"$f":"'Sabana por grupo'!G92","v":0},{"$error":"#VALUE!"},{"$f":"MID('Sabana por grupo'!B92,1,2)","v":""},81]
[null,null,null,null,null,null,null,null,null,null,null,null,null,null,null,null,null,null,null,null,null,null,null,null,null,null,null,null,null,null,null,null,null,null,null,null,null,null,null,null,{"$f":"'Sabana por grupo'!A93","v":0},{"$f":"'Sabana por grupo'!C93","v":0},0,{"$error":"#VALUE!"},{"$f":"'Sabana por grupo'!G93","v":0},{"$error":"#VALUE!"},{"$f":"MID('Sabana por grupo'!B93,1,2)","v":""},81]
[null,null,null,null,null,null,null,null,null,null,null,null,null,null,null,null,null,null,null,null,null,null,null,null,null,null,null,null,null,null,null,null,null,null,null,null,null,null,null,null,{"$f":"'Sabana por grupo'!A94","v":0},{"$f":"'Sabana por grupo'!C94","v":0},0,{"$error":"#VALUE!"},{"$f":"'Sabana por grupo'!G94","v":0},{"$error":"#VALUE!"},{"$f":"MID('Sabana por grupo'!B94,1,2)","v":""},81]
[null,null,null,null,null,null,null,null,null,null,null,null,null,null,null,null,null,null,null,null,null,null,null,null,null,null,null,null,null,null,null,null,null,null,null,null,null,null,null,null,{"$f":"'Sabana por grupo'!A95","v":0},{"$f":"'Sabana por grupo'!C95","v":0},0,{"$error":"#VALUE!"},{"$f":"'Sabana por grupo'!G95","v":0},{"$error":"#VALUE!"},{"$f":"MID('Sabana por grupo'!B95,1,2)","v":""},81]
[null,null,null,null,null,null,null,null,null,null,null,null,null,null,null,null,null,null,null,null,null,null,null,null,null,null,null,null,null,null,null,null,null,null,null,null,null,null,null,null,{"$f":"'Sabana por grupo'!A96","v":0},{"$f":"'Sabana por grupo'!C96","v":0},0,{"$error":"#VALUE!"},{"$f":"'Sabana por grupo'!G96","v":0},{"$error":"#VALUE!"},{"$f":"MID('Sabana por grupo'!B96,1,2)","v":""},81]
[null,null,null,null,null,null,null,null,null,null,null,null,null,null,null,null,null,null,null,null,null,null,null,null,null,null,null,null,null,null,null,null,null,null,null,null,null,null,null,null,{"$f":"'Sabana por grupo'!A97","v":0},{"$f":"'Sabana por grupo'!C97","v":0},0,{"$error":"#VALUE!"},{"$f":"'Sabana por grupo'!G97","v":0},{"$error":"#VALUE!"},{"$f":"MID('Sabana por grupo'!B97,1,2)","v":""},81]
[null,null,null,null,null,null,null,null,null,null,null,null,null,null,null,null,null,null,null,null,null,null,null,null,null,null,null,null,null,null,null,null,null,null,null,null,null,null,null,null,{"$f":"'Sabana por grupo'!A98","v":0},{"$f":"'Sabana por grupo'!C98","v":0},0,{"$error":"#VALUE!"},{"$f":"'Sabana por grupo'!G98","v":0},{"$error":"#VALUE!"},{"$f":"MID('Sabana por grupo'!B98,1,2)","v":""},81]
[null,null,null,null,null,null,null,null,null,null,null,null,null,null,null,null,null,null,null,null,null,null,null,null,null,null,null,null,null,null,null,null,null,null,null,null,null,null,null,null,{"$f":"'Sabana por grupo'!A99","v":0},{"$f":"'Sabana por grupo'!C99","v":0},0,{"$error":"#VALUE!"},{"$f":"'Sabana por grupo'!G99","v":0},{"$error":"#VALUE!"},{"$f":"MID('Sabana por grupo'!B99,1,2)","v":""},81]
[null,null,null,null,null,null,null,null,null,null,null,null,null,null,null,null,null,null,null,null,null,null,null,null,null,null,null,null,null,null,null,null,null,null,null,null,null,null,null,null,{"$f":"'Sabana por grupo'!A100","v":0},{"$f":"'Sabana por grupo'!C100","v":0},0,{"$error":"#VALUE!"},{"$f":"'Sabana por grupo'!G100","v":0},{"$error":"#VALUE!"},{"$f":"MID('Sabana por grupo'!B100,1,2)","v":""},81]
[null,null,null,null,null,null,null,null,null,null,null,null,null,null,null,null,null,null,null,null,null,null,null,null,null,null,null,null,null,null,null,null,null,null,null,null,null,null,null,null,{"$f":"'Sabana por grupo'!A101","v":0},{"$f":"'Sabana por grupo'!C101","v":0},0,{"$error":"#VALUE!"},{"$f":"'Sabana por grupo'!G101","v":0},{"$error":"#VALUE!"},{"$f":"MID('Sabana por grupo'!B101,1,2)","v":""},81]
[null,null,null,null,null,null,null,null,null,null,null,null,null,null,null,null,null,null,null,null,null,null,null,null,null,null,null,null,null,null,null,null,null,null,null,null,null,null,null,null,{"$f":"'Sabana por grupo'!A102","v":0},{"$f":"'Sabana por grupo'!C102","v":0},0,{"$error":"#VALUE!"},{"$f":"'Sabana por grupo'!G102","v":0},{"$error":"#VALUE!"},{"$f":"MID('Sabana por grupo'!B102,1,2)","v":""},81]
[null,null,null,null,null,null,null,null,null,null,null,null,null,null,null,null,null,null,null,null,null,null,null,null,null,null,null,null,null,null,null,null,null,null,null,null,null,null,null,null,{"$f":"'Sabana por grupo'!A103","v":0},{"$f":"'Sabana por grupo'!C103","v":0},0,{"$error":"#VALUE!"},{"$f":"'Sabana por grupo'!G103","v":0},{"$error":"#VALUE!"},{"$f":"MID('Sabana por grupo'!B103,1,2)","v":""},81]
[null,null,null,null,null,null,null,null,null,null,null,null,null,null,null,null,null,null,null,null,null,null,null,null,null,null,null,null,null,null,null,null,null,null,null,null,null,null,null,null,{"$f":"'Sabana por grupo'!A104","v":0},{"$f":"'Sabana por grupo'!C104","v":0},0,{"$error":"#VALUE!"},{"$f":"'Sabana por grupo'!G104","v":0},{"$error":"#VALUE!"},{"$f":"MID('Sabana por grupo'!B104,1,2)","v":""},81]
[null,null,null,null,null,null,null,null,null,null,null,null,null,null,null,null,null,null,null,null,null,null,null,null,null,null,null,null,null,null,null,null,null,null,null,null,null,null,null,null,{"$f":"'Sabana por grupo'!A105","v":0},{"$f":"'Sabana por grupo'!C105","v":0},0,{"$error":"#VALUE!"},{"$f":"'Sabana por grupo'!G105","v":0},{"$error":"#VALUE!"},{"$f":"MID('Sabana por grupo'!B105,1,2)","v":""},81]
[null,null,null,null,null,null,null,null,null,null,null,null,null,null,null,null,null,null,null,null,null,null,null,null,null,null,null,null,null,null,null,null,null,null,null,null,null,null,null,null,{"$f":"'Sabana por grupo'!A106","v":0},{"$f":"'Sabana por grupo'!C106","v":0},0,{"$error":"#VALUE!"},{"$f":"'Sabana por grupo'!G106","v":0},{"$error":"#VALUE!"},{"$f":"MID('Sabana por grupo'!B106,1,2)","v":""},81]
[null,null,null,null,null,null,null,null,null,null,null,null,null,null,null,null,null,null,null,null,null,null,null,null,null,null,null,null,null,null,null,null,null,null,null,null,null,null,null,null,{"$f":"'Sabana por grupo'!A107","v":0},{"$f":"'Sabana por grupo'!C107","v":0},0,{"$error":"#VALUE!"},{"$f":"'Sabana por grupo'!G107","v":0},{"$error":"#VALUE!"},{"$f":"MID('Sabana por grupo'!B107,1,2)","v":""},81]
[null,null,null,null,null,null,null,null,null,null,null,null,null,null,null,null,null,null,null,null,null,null,null,null,null,null,null,null,null,null,null,null,null,null,null,null,null,null,null,null,{"$f":"'Sabana por grupo'!A108","v":0},{"$f":"'Sabana por grupo'!C108","v":0},0,{"$error":"#VALUE!"},{"$f":"'Sabana por grupo'!G108","v":0},{"$error":"#VALUE!"},{"$f":"MID('Sabana por grupo'!B108,1,2)","v":""},81]
[null,null,null,null,null,null,null,null,null,null,null,null,null,null,null,null,null,null,null,null,null,null,null,null,null,null,null,null,null,null,null,null,null,null,null,null,null,null,null,null,{"$f":"'Sabana por grupo'!A109","v":0},{"$f":"'Sabana por grupo'!C109","v":0},0,{"$error":"#VALUE!"},{"$f":"'Sabana por grupo'!G109","v":0},{"$error":"#VALUE!"},{"$f":"MID('Sabana por grupo'!B109,1,2)","v":""},81]
[null,null,null,null,null,null,null,null,null,null,null,null,null,null,null,null,null,null,null,null,null,null,null,null,null,null,null,null,null,null,null,null,null,null,null,null,null,null,null,null,{"$f":"'Sabana por grupo'!A110","v":0},{"$f":"'Sabana por grupo'!C110","v":0},0,{"$error":"#VALUE!"},{"$f":"'Sabana por grupo'!G110","v":0},{"$error":"#VALUE!"},{"$f":"MID('Sabana por grupo'!B110,1,2)","v":""},81]
[null,null,null,null,null,null,null,null,null,null,null,null,null,null,null,null,null,null,null,null,null,null,null,null,null,null,null,null,null,null,null,null,null,null,null,null,null,null,null,null,{"$f":"'Sabana por grupo'!A111","v":0},{"$f":"'Sabana por grupo'!C111","v":0},0,{"$error":"#VALUE!"},{"$f":"'Sabana por grupo'!G111","v":0},{"$error":"#VALUE!"},{"$f":"MID('Sabana por grupo'!B111,1,2)","v":""},81]
[null,null,null,null,null,null,null,null,null,null,null,null,null,null,null,null,null,null,null,null,null,null,null,null,null,null,null,null,null,null,null,null,null,null,null,null,null,null,null,null,{"$f":"'Sabana por grupo'!A112","v":0},{"$f":"'Sabana por grupo'!C112","v":0},0,{"$error":"#VALUE!"},{"$f":"'Sabana por grupo'!G112","v":0},{"$error":"#VALUE!"},{"$f":"MID('Sabana por grupo'!B112,1,2)","v":""},81]
[null,null,null,null,null,null,null,null,null,null,null,null,null,null,null,null,null,null,null,null,null,null,null,null,null,null,null,null,null,null,null,null,null,null,null,null,null,null,null,null,{"$f":"'Sabana por grupo'!A113","v":0},{"$f":"'Sabana por grupo'!C113","v":0},0,{"$error":"#VALUE!"},{"$f":"'Sabana por grupo'!G113","v":0},{"$error":"#VALUE!"},{"$f":"MID('Sabana por grupo'!B113,1,2)","v":""},81]
[null,null,null,null,null,null,null,null,null,null,null,null,null,null,null,null,null,null,null,null,null,null,null,null,null,null,null,null,null,null,null,null,null,null,null,null,null,null,null,null,{"$f":"'Sabana por grupo'!A114","v":0},{"$f":"'Sabana por grupo'!C114","v":0},0,{"$error":"#VALUE!"},{"$f":"'Sabana por grupo'!G114","v":0},{"$error":"#VALUE!"},{"$f":"MID('Sabana por grupo'!B114,1,2)","v":""},81]
[null,null,null,null,null,null,null,null,null,null,null,null,null,null,null,null,null,null,null,null,null,null,null,null,null,null,null,null,null,null,null,null,null,null,null,null,null,null,null,null,{"$f":"'Sabana por grupo'!A115","v":0},{"$f":"'Sabana por grupo'!C115","v":0},0,{"$error":"#VALUE!"},{"$f":"'Sabana por grupo'!G115","v":0},{"$error":"#VALUE!"},{"$f":"MID('Sabana por grupo'!B115,1,2)","v":""},81]
[null,null,null,null,null,null,null,null,null,null,null,null,null,null,null,null,null,null,null,null,null,null,null,null,null,null,null,null,null,null,null,null,null,null,null,null,null,null,null,null,{"$f":"'Sabana por grupo'!A116","v":0},{"$f":"'Sabana por grupo'!C116","v":0},0,{"$error":"#VALUE!"},{"$f":"'Sabana por grupo'!G116","v":0},{"$error":"#VALUE!"},{"$f":"MID('Sabana por grupo'!B116,1,2)","v":""},81]
[null,null,null,null,null,null,null,null,null,null,null,null,null,null,null,null,null,null,null,null,null,null,null,null,null,null,null,null,null,null,null,null,null,null,null,null,null,null,null,null,{"$f":"'Sabana por grupo'!A117","v":0},{"$f":"'Sabana por grupo'!C117","v":0},0,{"$error":"#VALUE!"},{"$f":"'Sabana por grupo'!G117","v":0},{"$error":"#VALUE!"},{"$f":"MID('Sabana por grupo'!B117,1,2)","v":""},81]
[null,null,null,null,null,null,null,null,null,null,null,null,null,null,null,null,null,null,null,null,null,null,null,null,null,null,null,null,null,null,null,null,null,null,null,null,null,null,null,null,{"$f":"'Sabana por grupo'!A118","v":0},{"$f":"'Sabana por grupo'!C118","v":0},0,{"$error":"#VALUE!"},{"$f":"'Sabana por grupo'!G118","v":0},{"$error":"#VALUE!"},{"$f":"MID('Sabana por grupo'!B118,1,2)","v":""},81]
[null,null,null,null,null,null,null,null,null,null,null,null,null,null,null,null,null,null,null,null,null,null,null,null,null,null,null,null,null,null,null,null,null,null,null,null,null,null,null,null,{"$f":"'Sabana por grupo'!A119","v":0},{"$f":"'Sabana por grupo'!C119","v":0},0,{"$error":"#VALUE!"},{"$f":"'Sabana por grupo'!G119","v":0},{"$error":"#VALUE!"},{"$f":"MID('Sabana por grupo'!B119,1,2)","v":""},81]
[null,null,null,null,null,null,null,null,null,null,null,null,null,null,null,null,null,null,null,null,null,null,null,null,null,null,null,null,null,null,null,null,null,null,null,null,null,null,null,null,{"$f":"'Sabana por grupo'!A120","v":0},{"$f":"'Sabana por grupo'!C120","v":0},0,{"$error":"#VALUE!"},{"$f":"'Sabana por grupo'!G120","v":0},{"$error":"#VALUE!"},{"$f":"MID('Sabana por grupo'!B120,1,2)","v":""},81]
[null,null,null,null,null,null,null,null,null,null,null,null,null,null,null,null,null,null,null,null,null,null,null,null,null,null,null,null,null,null,null,null,null,null,null,null,null,null,null,null,{"$f":"'Sabana por grupo'!A121","v":0},{"$f":"'Sabana por grupo'!C121","v":0},0,{"$error":"#VALUE!"},{"$f":"'Sabana por grupo'!G121","v":0},{"$error":"#VALUE!"},{"$f":"MID('Sabana por grupo'!B121,1,2)","v":""},81]
[null,null,null,null,null,null,null,null,null,null,null,null,null,null,null,null,null,null,null,null,null,null,null,null,null,null,null,null,null,null,null,null,null,null,null,null,null,null,null,null,{"$f":"'Sabana por grupo'!A122","v":0},{"$f":"'Sabana por grupo'!C122","v":0},0,{"$error":"#VALUE!"},{"$f":"'Sabana por grupo'!G122","v":0},{"$error":"#VALUE!"},{"$f":"MID('Sabana por grupo'!B122,1,2)","v":""},81]
[null,null,null,null,null,null,null,null,null,null,null,null,null,null,null,null,null,null,null,null,null,null,null,null,null,null,null,null,null,null,null,null,null,null,null,null,null,null,null,null,{"$f":"'Sabana por grupo'!A123","v":0},{"$f":"'Sabana por grupo'!C123","v":0},0,{"$error":"#VALUE!"},{"$f":"'Sabana por grupo'!G123","v":0},{"$error":"#VALUE!"},{"$f":"MID('Sabana por grupo'!B123,1,2)","v":""},81]
[null,null,null,null,null,null,null,null,null,null,null,null,null,null,null,null,null,null,null,null,null,null,null,null,null,null,null,null,null,null,null,null,null,null,null,null,null,null,null,null,{"$f":"'Sabana por grupo'!A124","v":0},{"$f":"'Sabana por grupo'!C124","v":0},0,{"$error":"#VALUE!"},{"$f":"'Sabana por grupo'!G124","v":0},{"$error":"#VALUE!"},{"$f":"MID('Sabana por grupo'!B124,1,2)","v":""},81]
[null,null,null,null,null,null,null,null,null,null,null,null,null,null,null,null,null,null,null,null,null,null,null,null,null,null,null,null,null,null,null,null,null,null,null,null,null,null,null,null,{"$f":"'Sabana por grupo'!A125","v":0},{"$f":"'Sabana por grupo'!C125","v":0},0,{"$error":"#VALUE!"},{"$f":"'Sabana por grupo'!G125","v":0},{"$error":"#VALUE!"},{"$f":"MID('Sabana por grupo'!B125,1,2)","v":""},81]
[null,null,null,null,null,null,null,null,null,null,null,null,null,null,null,null,null,null,null,null,null,null,null,null,null,null,null,null,null,null,null,null,null,null,null,null,null,null,null,null,{"$f":"'Sabana por grupo'!A126","v":0},{"$f":"'Sabana por grupo'!C126","v":0},0,{"$error":"#VALUE!"},{"$f":"'Sabana por grupo'!G126","v":0},{"$error":"#VALUE!"},{"$f":"MID('Sabana por grupo'!B126,1,2)","v":""},81]
[null,null,null,null,null,null,null,null,null,null,null,null,null,null,null,null,null,null,null,null,null,null,null,null,null,null,null,null,null,null,null,null,null,null,null,null,null,null,null,null,{"$f":"'Sabana por grupo'!A127","v":0},{"$f":"'Sabana por grupo'!C127","v":0},0,{"$error":"#VALUE!"},{"$f":"'Sabana por grupo'!G127","v":0},{"$error":"#VALUE!"},{"$f":"MID('Sabana por grupo'!B127,1,2)","v":""},81]
[null,null,null,null,null,null,null,null,null,null,null,null,null,null,null,null,null,null,null,null,null,null,null,null,null,null,null,null,null,null,null,null,null,null,null,null,null,null,null,null,{"$f":"'Sabana por grupo'!A128","v":0},{"$f":"'Sabana por grupo'!C128","v":0},0,{"$error":"#VALUE!"},{"$f":"'Sabana por grupo'!G128","v":0},{"$error":"#VALUE!"},{"$f":"MID('Sabana por grupo'!B128,1,2)","v":""},81]
[null,null,null,null,null,null,null,null,null,null,null,null,null,null,null,null,null,null,null,null,null,null,null,null,null,null,null,null,null,null,null,null,null,null,null,null,null,null,null,null,{"$f":"'Sabana por grupo'!A129","v":0},{"$f":"'Sabana por grupo'!C129","v":0},0,{"$error":"#VALUE!"},{"$f":"'Sabana por grupo'!G129","v":0},{"$error":"#VALUE!"},{"$f":"MID('Sabana por grupo'!B129,1,2)","v":""},81]
[null,null,null,null,null,null,null,null,null,null,null,null,null,null,null,null,null,null,null,null,null,null,null,null,null,null,null,null,null,null,null,null,null,null,null,null,null,null,null,null,{"$f":"'Sabana por grupo'!A130","v":0},{"$f":"'Sabana por grupo'!C130","v":0},{"$f":"_xlfn.NUMBERVALUE(AU130)","v":0},{"$error":"#VALUE!"},{"$f":"'Sabana por grupo'!G130","v":0},{"$error":"#VALUE!"},{"$f":"MID('Sabana por grupo'!B130,1,2)","v":""},81]
[null,null,null,null,null,null,null,null,null,null,null,null,null,null,null,null,null,null,null,null,null,null,null,null,null,null,null,null,null,null,null,null,null,null,null,null,null,null,null,null,{"$f":"'Sabana por grupo'!A131","v":0},{"$f":"'Sabana por grupo'!C131","v":0},0,{"$f":"IF(AT131=0,\"N/A\",IF(AT131<$AX$2,\"Riesgo Menor\",IF(AT131<$AX$3,\"Riesgo Probable\",\"Atencion de Prioridad\")))","v":{"$error":"#VALUE!"}},{"$f":"'Sabana por grupo'!G131","v":0},{"$f":"(AU131/AV142)","v":{"$error":"#VALUE!"}},{"$f":"MID('Sabana por grupo'!B131,1,2)","v":""},81]
[null,null,null,null,null,null,null,null,null,null,null,null,null,null,null,null,null,null,null,null,null,null,null,null,null,null,null,null,null,null,null,null,null,null,null,null,null,null,null,null,{"$f":"'Sabana por grupo'!A132","v":0},{"$f":"'Sabana por grupo'!C132","v":0},0,{"$error":"#VALUE!"},{"$f":"'Sabana por grupo'!G132","v":0},{"$error":"#VALUE!"},{"$f":"MID('Sabana por grupo'!B132,1,2)","v":""},81]
[null,null,null,null,null,null,null,null,null,null,null,null,null,null,null,null,null,null,null,null,null,null,null,null,null,null,null,null,null,null,null,null,null,null,null,null,null,null,null,null,{"$f":"'Sabana por grupo'!A133","v":0},{"$f":"'Sabana por grupo'!C133","v":0},0,{"$error":"#VALUE!"},{"$f":"'Sabana por grupo'!G133","v":0},{"$error":"#VALUE!"},{"$f":"MID('Sabana por grupo'!B133,1,2)","v":""},81]
[null,null,null,null,null,null,null,null,null,null,null,null,null,null,null,null,null,null,null,null,null,null,null,null,null,null,null,null,null,null,null,null,null,null,null,null,null,null,null,null,{"$f":"'Sabana por grupo'!A134","v":0},{"$f":"'Sabana por grupo'!C134","v":0},0,{"$error":"#VALUE!"},{"$f":"'Sabana por grupo'!G134","v":0},{"$error":"#VALUE!"},{"$f":"MID('Sabana por grupo'!B134,1,2)","v":""},81]
[null,null,null,null,null,null,null,null,null,null,null,null,null,null,null,null,null,null,null,null,null,null,null,null,null,null,null,null,null,null,null,null,null,null,null,null,null,null,null,null,{"$f":"'Sabana por grupo'!A135","v":0},{"$f":"'Sabana por grupo'!C135","v":0},0,{"$error":"#VALUE!"},{"$f":"'Sabana por grupo'!G135","v":0},{"$error":"#VALUE!"},{"$f":"MID('Sabana por grupo'!B135,1,2)","v":""},81]
[null,null,null,null,null,null,null,null,null,null,null,null,null,null,null,null,null,null,null,null,null,null,null,null,null,null,null,null,null,null,null,null,null,null,null,null,null,null,null,null,{"$f":"'Sabana por grupo'!A136","v":0},{"$f":"'Sabana por grupo'!C136","v":0},0,{"$error":"#VALUE!"},{"$f":"'Sabana por grupo'!G136","v":0},{"$error":"#VALUE!"},{"$f":"MID('Sabana por grupo'!B136,1,2)","v":""},81]
[null,null,null,null,null,null,null,null,null,null,null,null,null,null,null,null,null,null,null,null,null,null,null,null,null,null,null,null,null,null,null,null,null,null,null,null,null,null,null,null,{"$f":"'Sabana por grupo'!A137","v":0},{"$f":"'Sabana por grupo'!C137","v":0},0,{"$error":"#VALUE!"},{"$f":"'Sabana por grupo'!G137","v":0},{"$error":"#VALUE!"},{"$f":"MID('Sabana por grupo'!B137,1,2)","v":""},81]
[null,null,null,null,null,null,null,null,null,null,null,null,null,null,null,null,null,null,null,null,null,null,null,null,null,null,null,null,null,null,null,null,null,null,null,null,null,null,null,null,{"$f":"'Sabana por grupo'!A138","v":0},{"$f":"'Sabana por grupo'!C138","v":0},0,{"$error":"#VALUE!"},{"$f":"'Sabana por grupo'!G138","v":0},{"$error":"#VALUE!"},{"$f":"MID('Sabana por grupo'!B138,1,2)","v":""},81]
[null,null,null,null,null,null,null,null,null,null,null,null,null,null,null,null,null,null,null,null,null,null,null,null,null,null,null,null,null,null,null,null,null,null,null,null,null,null,null,null,{"$f":"'Sabana por grupo'!A139","v":0},{"$f":"'Sabana por grupo'!C139","v":0},0,{"$error":"#VALUE!"},{"$f":"'Sabana por grupo'!G139","v":0},{"$error":"#VALUE!"},{"$f":"MID('Sabana por grupo'!B139,1,2)","v":""},81]
[null,null,null,null,null,null,null,null,null,null,null,null,null,null,null,null,null,null,null,null,null,null,null,null,null,null,null,null,null,null,null,null,null,null,null,null,null,null,null,null,{"$f":"'Sabana por grupo'!A140","v":0},{"$f":"'Sabana por grupo'!C140","v":0},0,{"$error":"#VALUE!"},{"$f":"'Sabana por grupo'!G140","v":0},{"$error":"#VALUE!"},{"$f":"MID('Sabana por grupo'!B140,1,2)","v":""},81]
[null,null,null,null,null,null,null,null,null,null,null,null,null,null,null,null,null,null,null,null,null,null,null,null,null,null,null,null,null,null,null,null,null,null,null,null,null,null,null,null,{"$f":"'Sabana por grupo'!A141","v":0},{"$f":"'Sabana por grupo'!C141","v":0},0,{"$error":"#VALUE!"},{"$f":"'Sabana por grupo'!G141","v":0},{"$error":"#VALUE!"},{"$f":"MID('Sabana por grupo'!B141,1,2)","v":""},81]
[null,null,null,null,null,null,null,null,null,null,null,null,null,null,null,null,null,null,null,null,null,null,null,null,null,null,null,null,null,null,null,null,null,null,null,null,null,null,null,null,{"$f":"'Sabana por grupo'!A142","v":0},{"$f":"'Sabana por grupo'!C142","v":0},0,{"$error":"#VALUE!"},{"$f":"'Sabana por grupo'!G142","v":0},{"$error":"#VALUE!"},{"$f":"MID('Sabana por grupo'!B142,1,2)","v":""},81]
[null,null,null,null,null,null,null,null,null,null,null,null,null,null,null,null,null,null,null,null,null,null,null,null,null,null,null,null,null,null,null,null,null,null,null,null,null,null,null,null,{"$f":"'Sabana por grupo'!A143","v":0},{"$f":"'Sabana por grupo'!C143","v":0},0,{"$error":"#VALUE!"},{"$f":"'Sabana por grupo'!G143","v":0},{"$error":"#VALUE!"},{"$f":"MID('Sabana por grupo'!B143,1,2)","v":""},81]
[null,null,null,null,null,null,null,null,null,null,null,null,null,null,null,null,null,null,null,null,null,null,null,null,null,null,null,null,null,null,null,null,null,null,null,null,null,null,null,null,{"$f":"'Sabana por grupo'!A144","v":0},{"$f":"'Sabana por grupo'!C144","v":0},0,{"$error":"#VALUE!"},{"$f":"'Sabana por grupo'!G144","v":0},{"$error":"#VALUE!"},{"$f":"MID('Sabana por grupo'!B144,1,2)","v":""},81]
[null,null,null,null,null,null,null,null,null,null,null,null,null,null,null,null,null,null,null,null,null,null,null,null,null,null,null,null,null,null,null,null,null,null,null,null,null,null,null,null,{"$f":"'Sabana por grupo'!A145","v":0},{"$f":"'Sabana por grupo'!C145","v":0},0,{"$error":"#VALUE!"},{"$f":"'Sabana por grupo'!G145","v":0},{"$error":"#VALUE!"},{"$f":"MID('Sabana por grupo'!B145,1,2)","v":""},81]
[null,null,null,null,null,null,null,null,null,null,null,null,null,null,null,null,null,null,null,null,null,null,null,null,null,null,null,null,null,null,null,null,null,null,null,null,null,null,null,null,{"$f":"'Sabana por grupo'!A146","v":0},{"$f":"'Sabana por grupo'!C146","v":0},0,{"$error":"#VALUE!"},{"$f":"'Sabana por grupo'!G146","v":0},{"$error":"#VALUE!"},{"$f":"MID('Sabana por grupo'!B146,1,2)","v":""},81]
[null,null,null,null,null,null,null,null,null,null,null,null,null,null,null,null,null,null,null,null,null,null,null,null,null,null,null,null,null,null,null,null,null,null,null,null,null,null,null,null,{"$f":"'Sabana por grupo'!A147","v":0},{"$f":"'Sabana por grupo'!C147","v":0},0,{"$error":"#VALUE!"},{"$f":"'Sabana por grupo'!G147","v":0},{"$error":"#VALUE!"},{"$f":"MID('Sabana por grupo'!B147,1,2)","v":""},81]
[null,null,null,null,null,null,null,null,null,null,null,null,null,null,null,null,null,null,null,null,null,null,null,null,null,null,null,null,null,null,null,null,null,null,null,null,null,null,null,null,{"$f":"'Sabana por grupo'!A148","v":0},{"$f":"'Sabana por grupo'!C148","v":0},0,{"$error":"#VALUE!"},{"$f":"'Sabana por grupo'!G148","v":0},{"$error":"#VALUE!"},{"$f":"MID('Sabana por grupo'!B148,1,2)","v":""},81]
[null,null,null,null,null,null,null,null,null,null,null,null,null,null,null,null,null,null,null,null,null,null,null,null,null,null,null,null,null,null,null,null,null,null,null,null,null,null,null,null,{"$f":"'Sabana por grupo'!A149","v":0},{"$f":"'Sabana por grupo'!C149","v":0},0,{"$error":"#VALUE!"},{"$f":"'Sabana por grupo'!G149","v":0},{"$error":"#VALUE!"},{"$f":"MID('Sabana por grupo'!B149,1,2)","v":""},81]
[null,null,null,null,null,null,null,null,null,null,null,null,null,null,null,null,null,null,null,null,null,null,null,null,null,null,null,null,null,null,null,null,null,null,null,null,null,null,null,null,{"$f":"'Sabana por grupo'!A150","v":0},{"$f":"'Sabana por grupo'!C150","v":0},0,{"$error":"#VALUE!"},{"$f":"'Sabana por grupo'!G150","v":0},{"$error":"#VALUE!"},{"$f":"MID('Sabana por grupo'!B150,1,2)","v":""},81]
[null,null,null,null,null,null,null,null,null,null,null,null,null,null,null,null,null,null,null,null,null,null,null,null,null,null,null,null,null,null,null,null,null,null,null,null,null,null,null,null,{"$f":"'Sabana por grupo'!A151","v":0},{"$f":"'Sabana por grupo'!C151","v":0},0,{"$error":"#VALUE!"},{"$f":"'Sabana por grupo'!G151","v":0},{"$error":"#VALUE!"},{"$f":"MID('Sabana por grupo'!B151,1,2)","v":""},81]
[null,null,null,null,null,null,null,null,null,null,null,null,null,null,null,null,null,null,null,null,null,null,null,null,null,null,null,null,null,null,null,null,null,null,null,null,null,null,null,null,{"$f":"'Sabana por grupo'!A152","v":0},{"$f":"'Sabana por grupo'!C152","v":0},0,{"$error":"#VALUE!"},{"$f":"'Sabana por grupo'!G152","v":0},{"$error":"#VALUE!"},{"$f":"MID('Sabana por grupo'!B152,1,2)","v":""},81]
[null,null,null,null,null,null,null,null,null,null,null,null,null,null,null,null,null,null,null,null,null,null,null,null,null,null,null,null,null,null,null,null,null,null,null,null,null,null,null,null,{"$f":"'Sabana por grupo'!A153","v":0},{"$f":"'Sabana por grupo'!C153","v":0},0,{"$error":"#VALUE!"},{"$f":"'Sabana por grupo'!G153","v":0},{"$error":"#VALUE!"},{"$f":"MID('Sabana por grupo'!B153,1,2)","v":""},81]
[null,null,null,null,null,null,null,null,null,null,null,null,null,null,null,null,null,null,null,null,null,null,null,null,null,null,null,null,null,null,null,null,null,null,null,null,null,null,null,null,{"$f":"'Sabana por grupo'!A154","v":0},{"$f":"'Sabana por grupo'!C154","v":0},0,{"$error":"#VALUE!"},{"$f":"'Sabana por grupo'!G154","v":0},{"$error":"#VALUE!"},{"$f":"MID('Sabana por grupo'!B154,1,2)","v":""},81]
[null,null,null,null,null,null,null,null,null,null,null,null,null,null,null,null,null,null,null,null,null,null,null,null,null,null,null,null,null,null,null,null,null,null,null,null,null,null,null,null,{"$f":"'Sabana por grupo'!A155","v":0},{"$f":"'Sabana por grupo'!C155","v":0},0,{"$error":"#VALUE!"},{"$f":"'Sabana por grupo'!G155","v":0},{"$error":"#VALUE!"},{"$f":"MID('Sabana por grupo'!B155,1,2)","v":""},81]
[null,null,null,null,null,null,null,null,null,null,null,null,null,null,null,null,null,null,null,null,null,null,null,null,null,null,null,null,null,null,null,null,null,null,null,null,null,null,null,null,{"$f":"'Sabana por grupo'!A156","v":0},{"$f":"'Sabana por grupo'!C156","v":0},0,{"$error":"#VALUE!"},{"$f":"'Sabana por grupo'!G156","v":0},{"$error":"#VALUE!"},{"$f":"MID('Sabana por grupo'!B156,1,2)","v":""},81]
[null,null,null,null,null,null,null,null,null,null,null,null,null,null,null,null,null,null,null,null,null,null,null,null,null,null,null,null,null,null,null,null,null,null,null,null,null,null,null,null,{"$f":"'Sabana por grupo'!A157","v":0},{"$f":"'Sabana por grupo'!C157","v":0},0,{"$error":"#VALUE!"},{"$f":"'Sabana por grupo'!G157","v":0},{"$error":"#VALUE!"},{"$f":"MID('Sabana por grupo'!B157,1,2)","v":""},81]
[null,null,null,null,null,null,null,null,null,null,null,null,null,null,null,null,null,null,null,null,null,null,null,null,null,null,null,null,null,null,null,null,null,null,null,null,null,null,null,null,{"$f":"'Sabana por grupo'!A158","v":0},{"$f":"'Sabana por grupo'!C158","v":0},0,{"$error":"#VALUE!"},{"$f":"'Sabana por grupo'!G158","v":0},{"$error":"#VALUE!"},{"$f":"MID('Sabana por grupo'!B158,1,2)","v":""},81]
[null,null,null,null,null,null,null,null,null,null,null,null,null,null,null,null,null,null,null,null,null,null,null,null,null,null,null,null,null,null,null,null,null,null,null,null,null,null,null,null,{"$f":"'Sabana por grupo'!A159","v":0},{"$f":"'Sabana por grupo'!C159","v":0},0,{"$error":"#VALUE!"},{"$f":"'Sabana por grupo'!G159","v":0},{"$error":"#VALUE!"},{"$f":"MID('Sabana por grupo'!B159,1,2)","v":""},81]
[null,null,null,null,null,null,null,null,null,null,null,null,null,null,null,null,null,null,null,null,null,null,null,null,null,null,null,null,null,null,null,null,null,null,null,null,null,null,null,null,{"$f":"'Sabana por grupo'!A160","v":0},{"$f":"'Sabana por grupo'!C160","v":0},0,{"$error":"#VALUE!"},{"$f":"'Sabana por grupo'!G160","v":0},{"$error":"#VALUE!"},{"$f":"MID('Sabana por grupo'!B160,1,2)","v":""},81]
[null,null,null,null,null,null,null,null,null,null,null,null,null,null,null,null,null,null,null,null,null,null,null,null,null,null,null,null,null,null,null,null,null,null,null,null,null,null,null,null,{"$f":"'Sabana por grupo'!A161","v":0},{"$f":"'Sabana por grupo'!C161","v":0},0,{"$error":"#VALUE!"},{"$f":"'Sabana por grupo'!G161","v":0},{"$error":"#VALUE!"},{"$f":"MID('Sabana por grupo'!B161,1,2)","v":""},81]
[null,null,null,null,null,null,null,null,null,null,null,null,null,null,null,null,null,null,null,null,null,null,null,null,null,null,null,null,null,null,null,null,null,null,null,null,null,null,null,null,{"$f":"'Sabana por grupo'!A162","v":0},{"$f":"'Sabana por grupo'!C162","v":0},0,{"$error":"#VALUE!"},{"$f":"'Sabana por grupo'!G162","v":0},{"$error":"#VALUE!"},{"$f":"MID('Sabana por grupo'!B162,1,2)","v":""},81]
[null,null,null,null,null,null,null,null,null,null,null,null,null,null,null,null,null,null,null,null,null,null,null,null,null,null,null,null,null,null,null,null,null,null,null,null,null,null,null,null,{"$f":"'Sabana por grupo'!A163","v":0},{"$f":"'Sabana por grupo'!C163","v":0},0,{"$error":"#VALUE!"},{"$f":"'Sabana por grupo'!G163","v":0},{"$error":"#VALUE!"},{"$f":"MID('Sabana por grupo'!B163,1,2)","v":""},81]
[null,null,null,null,null,null,null,null,null,null,null,null,null,null,null,null,null,null,null,null,null,null,null,null,null,null,null,null,null,null,null,null,null,null,null,null,null,null,null,null,{"$f":"'Sabana por grupo'!A164","v":0},{"$f":"'Sabana por grupo'!C164","v":0},0,{"$error":"#VALUE!"},{"$f":"'Sabana por grupo'!G164","v":0},{"$error":"#VALUE!"},{"$f":"MID('Sabana por grupo'!B164,1,2)","v":""},81]
[null,null,null,null,null,null,null,null,null,null,null,null,null,null,null,null,null,null,null,null,null,null,null,null,null,null,null,null,null,null,null,null,null,null,null,null,null,null,null,null,{"$f":"'Sabana por grupo'!A165","v":0},{"$f":"'Sabana por grupo'!C165","v":0},0,{"$error":"#VALUE!"},{"$f":"'Sabana por grupo'!G165","v":0},{"$error":"#VALUE!"},{"$f":"MID('Sabana por grupo'!B165,1,2)","v":""},81]
[null,null,null,null,null,null,null,null,null,null,null,null,null,null,null,null,null,null,null,null,null,null,null,null,null,null,null,null,null,null,null,null,null,null,null,null,null,null,null,null,{"$f":"'Sabana por grupo'!A166","v":0},{"$f":"'Sabana por grupo'!C166","v":0},0,{"$error":"#VALUE!"},{"$f":"'Sabana por grupo'!G166","v":0},{"$error":"#VALUE!"},{"$f":"MID('Sabana por grupo'!B166,1,2)","v":""},81]
[null,null,null,null,null,null,null,null,null,null,null,null,null,null,null,null,null,null,null,null,null,null,null,null,null,null,null,null,null,null,null,null,null,null,null,null,null,null,null,null,{"$f":"'Sabana por grupo'!A167","v":0},{"$f":"'Sabana por grupo'!C167","v":0},0,{"$error":"#VALUE!"},{"$f":"'Sabana por grupo'!G167","v":0},{"$error":"#VALUE!"},{"$f":"MID('Sabana por grupo'!B167,1,2)","v":""},81]
[null,null,null,null,null,null,null,null,null,null,null,null,null,null,null,null,null,null,null,null,null,null,null,null,null,null,null,null,null,null,null,null,null,null,null,null,null,null,null,null,{"$f":"'Sabana por grupo'!A168","v":0},{"$f":"'Sabana por grupo'!C168","v":0},0,{"$error":"#VALUE!"},{"$f":"'Sabana por grupo'!G168","v":0},{"$error":"#VALUE!"},{"$f":"MID('Sabana por grupo'!B168,1,2)","v":""},81]
[null,null,null,null,null,null,null,null,null,null,null,null,null,null,null,null,null,null,null,null,null,null,null,null,null,null,null,null,null,null,null,null,null,null,null,null,null,null,null,null,{"$f":"'Sabana por grupo'!A169","v":0},{"$f":"'Sabana por grupo'!C169","v":0},0,{"$error":"#VALUE!"},{"$f":"'Sabana por grupo'!G169","v":0},{"$error":"#VALUE!"},{"$f":"MID('Sabana por grupo'!B169,1,2)","v":""},81]
[null,null,null,null,null,null,null,null,null,null,null,null,null,null,null,null,null,null,null,null,null,null,null,null,null,null,null,null,null,null,null,null,null,null,null,null,null,null,null,null,{"$f":"'Sabana por grupo'!A170","v":0},{"$f":"'Sabana por grupo'!C170","v":0},0,{"$error":"#VALUE!"},{"$f":"'Sabana por grupo'!G170","v":0},{"$error":"#VALUE!"},{"$f":"MID('Sabana por grupo'!B170,1,2)","v":""},81]
[null,null,null,null,null,null,null,null,null,null,null,null,null,null,null,null,null,null,null,null,null,null,null,null,null,null,null,null,null,null,null,null,null,null,null,null,null,null,null,null,{"$f":"'Sabana por grupo'!A171","v":0},{"$f":"'Sabana por grupo'!C171","v":0},0,{"$error":"#VALUE!"},{"$f":"'Sabana por grupo'!G171","v":0},{"$error":"#VALUE!"},{"$f":"MID('Sabana por grupo'!B171,1,2)","v":""},81]
[null,null,null,null,null,null,null,null,null,null,null,null,null,null,null,null,null,null,null,null,null,null,null,null,null,null,null,null,null,null,null,null,null,null,null,null,null,null,null,null,{"$f":"'Sabana por grupo'!A172","v":0},{"$f":"'Sabana por grupo'!C172","v":0},0,{"$error":"#VALUE!"},{"$f":"'Sabana por grupo'!G172","v":0},{"$error":"#VALUE!"},{"$f":"MID('Sabana por grupo'!B172,1,2)","v":""},81]
[null,null,null,null,null,null,null,null,null,null,null,null,null,null,null,null,null,null,null,null,null,null,null,null,null,null,null,null,null,null,null,null,null,null,null,null,null,null,null,null,{"$f":"'Sabana por grupo'!A173","v":0},{"$f":"'Sabana por grupo'!C173","v":0},0,{"$error":"#VALUE!"},{"$f":"'Sabana por grupo'!G173","v":0},{"$error":"#VALUE!"},{"$f":"MID('Sabana por grupo'!B173,1,2)","v":""},81]
[null,null,null,null,null,null,null,null,null,null,null,null,null,null,null,null,null,null,null,null,null,null,null,null,null,null,null,null,null,null,null,null,null,null,null,null,null,null,null,null,{"$f":"'Sabana por grupo'!A174","v":0},{"$f":"'Sabana por grupo'!C174","v":0},0,{"$error":"#VALUE!"},{"$f":"'Sabana por grupo'!G174","v":0},{"$error":"#VALUE!"},{"$f":"MID('Sabana por grupo'!B174,1,2)","v":""},81]
[null,null,null,null,null,null,null,null,null,null,null,null,null,null,null,null,null,null,null,null,null,null,null,null,null,null,null,null,null,null,null,null,null,null,null,null,null,null,null,null,{"$f":"'Sabana por grupo'!A175","v":0},{"$f":"'Sabana por grupo'!C175","v":0},0,{"$error":"#VALUE!"},{"$f":"'Sabana por grupo'!G175","v":0},{"$error":"#VALUE!"},{"$f":"MID('Sabana por grupo'!B175,1,2)","v":""},81]
[null,null,null,null,null,null,null,null,null,null,null,null,null,null,null,null,null,null,null,null,null,null,null,null,null,null,null,null,null,null,null,null,null,null,null,null,null,null,null,null,{"$f":"'Sabana por grupo'!A176","v":0},{"$f":"'Sabana por grupo'!C176","v":0},0,{"$error":"#VALUE!"},{"$f":"'Sabana por grupo'!G176","v":0},{"$error":"#VALUE!"},{"$f":"MID('Sabana por grupo'!B176,1,2)","v":""},81]
[null,null,null,null,null,null,null,null,null,null,null,null,null,null,null,null,null,null,null,null,null,null,null,null,null,null,null,null,null,null,null,null,null,null,null,null,null,null,null,null,{"$f":"'Sabana por grupo'!A177","v":0},{"$f":"'Sabana por grupo'!C177","v":0},0,{"$error":"#VALUE!"},{"$f":"'Sabana por grupo'!G177","v":0},{"$error":"#VALUE!"},{"$f":"MID('Sabana por grupo'!B177,1,2)","v":""},81]
[null,null,null,null,null,null,null,null,null,null,null,null,null,null,null,null,null,null,null,null,null,null,null,null,null,null,null,null,null,null,null,null,null,null,null,null,null,null,null,null,{"$f":"'Sabana por grupo'!A178","v":0},{"$f":"'Sabana por grupo'!C178","v":0},0,{"$error":"#VALUE!"},{"$f":"'Sabana por grupo'!G178","v":0},{"$error":"#VALUE!"},{"$f":"MID('Sabana por grupo'!B178,1,2)","v":""},81]
[null,null,null,null,null,null,null,null,null,null,null,null,null,null,null,null,null,null,null,null,null,null,null,null,null,null,null,null,null,null,null,null,null,null,null,null,null,null,null,null,{"$f":"'Sabana por grupo'!A179","v":0},{"$f":"'Sabana por grupo'!C179","v":0},0,{"$error":"#VALUE!"},{"$f":"'Sabana por grupo'!G179","v":0},{"$error":"#VALUE!"},{"$f":"MID('Sabana por grupo'!B179,1,2)","v":""},81]
[null,null,null,null,null,null,null,null,null,null,null,null,null,null,null,null,null,null,null,null,null,null,null,null,null,null,null,null,null,null,null,null,null,null,null,null,null,null,null,null,{"$f":"'Sabana por grupo'!A180","v":0},{"$f":"'Sabana por grupo'!C180","v":0},0,{"$error":"#VALUE!"},{"$f":"'Sabana por grupo'!G180","v":0},{"$error":"#VALUE!"},{"$f":"MID('Sabana por grupo'!B180,1,2)","v":""},81]
[null,null,null,null,null,null,null,null,null,null,null,null,null,null,null,null,null,null,null,null,null,null,null,null,null,null,null,null,null,null,null,null,null,null,null,null,null,null,null,null,{"$f":"'Sabana por grupo'!A181","v":0},{"$f":"'Sabana por grupo'!C181","v":0},0,{"$error":"#VALUE!"},{"$f":"'Sabana por grupo'!G181","v":0},{"$error":"#VALUE!"},{"$f":"MID('Sabana por grupo'!B181,1,2)","v":""},81]
[null,null,null,null,null,null,null,null,null,null,null,null,null,null,null,null,null,null,null,null,null,null,null,null,null,null,null,null,null,null,null,null,null,null,null,null,null,null,null,null,{"$f":"'Sabana por grupo'!A182","v":0},{"$f":"'Sabana por grupo'!C182","v":0},0,{"$error":"#VALUE!"},{"$f":"'Sabana por grupo'!G182","v":0},{"$error":"#VALUE!"},{"$f":"MID('Sabana por grupo'!B182,1,2)","v":""},81]
[null,null,null,null,null,null,null,null,null,null,null,null,null,null,null,null,null,null,null,null,null,null,null,null,null,null,null,null,null,null,null,null,null,null,null,null,null,null,null,null,{"$f":"'Sabana por grupo'!A183","v":0},{"$f":"'Sabana por grupo'!C183","v":0},0,{"$error":"#VALUE!"},{"$f":"'Sabana por grupo'!G183","v":0},{"$error":"#VALUE!"},{"$f":"MID('Sabana por grupo'!B183,1,2)","v":""},81]
[null,null,null,null,null,null,null,null,null,null,null,null,null,null,null,null,null,null,null,null,null,null,null,null,null,null,null,null,null,null,null,null,null,null,null,null,null,null,null,null,{"$f":"'Sabana por grupo'!A184","v":0},{"$f":"'Sabana por grupo'!C184","v":0},0,{"$error":"#VALUE!"},{"$f":"'Sabana por grupo'!G184","v":0},{"$error":"#VALUE!"},{"$f":"MID('Sabana por grupo'!B184,1,2)","v":""},81]
[null,null,null,null,null,null,null,null,null,null,null,null,null,null,null,null,null,null,null,null,null,null,null,null,null,null,null,null,null,null,null,null,null,null,null,null,null,null,null,null,{"$f":"'Sabana por grupo'!A185","v":0},{"$f":"'Sabana por grupo'!C185","v":0},0,{"$error":"#VALUE!"},{"$f":"'Sabana por grupo'!G185","v":0},{"$error":"#VALUE!"},{"$f":"MID('Sabana por grupo'!B185,1,2)","v":""},81]
[null,null,null,null,null,null,null,null,null,null,null,null,null,null,null,null,null,null,null,null,null,null,null,null,null,null,null,null,null,null,null,null,null,null,null,null,null,null,null,null,{"$f":"'Sabana por grupo'!A186","v":0},{"$f":"'Sabana por grupo'!C186","v":0},0,{"$error":"#VALUE!"},{"$f":"'Sabana por grupo'!G186","v":0},{"$error":"#VALUE!"},{"$f":"MID('Sabana por grupo'!B186,1,2)","v":""},81]
[null,null,null,null,null,null,null,null,null,null,null,null,null,null,null,null,null,null,null,null,null,null,null,null,null,null,null,null,null,null,null,null,null,null,null,null,null,null,null,null,{"$f":"'Sabana por grupo'!A187","v":0},{"$f":"'Sabana por grupo'!C187","v":0},0,{"$error":"#VALUE!"},{"$f":"'Sabana por grupo'!G187","v":0},{"$error":"#VALUE!"},{"$f":"MID('Sabana por grupo'!B187,1,2)","v":""},81]
[null,null,null,null,null,null,null,null,null,null,null,null,null,null,null,null,null,null,null,null,null,null,null,null,null,null,null,null,null,null,null,null,null,null,null,null,null,null,null,null,{"$f":"'Sabana por grupo'!A188","v":0},{"$f":"'Sabana por grupo'!C188","v":0},0,{"$error":"#VALUE!"},{"$f":"'Sabana por grupo'!G188","v":0},{"$error":"#VALUE!"},{"$f":"MID('Sabana por grupo'!B188,1,2)","v":""},81]
[null,null,null,null,null,null,null,null,null,null,null,null,null,null,null,null,null,null,null,null,null,null,null,null,null,null,null,null,null,null,null,null,null,null,null,null,null,null,null,null,{"$f":"'Sabana por grupo'!A189","v":0},{"$f":"'Sabana por grupo'!C189","v":0},0,{"$error":"#VALUE!"},{"$f":"'Sabana por grupo'!G189","v":0},{"$error":"#VALUE!"},{"$f":"MID('Sabana por grupo'!B189,1,2)","v":""},81]
[null,null,null,null,null,null,null,null,null,null,null,null,null,null,null,null,null,null,null,null,null,null,null,null,null,null,null,null,null,null,null,null,null,null,null,null,null,null,null,null,{"$f":"'Sabana por grupo'!A190","v":0},{"$f":"'Sabana por grupo'!C190","v":0},0,{"$error":"#VALUE!"},{"$f":"'Sabana por grupo'!G190","v":0},{"$error":"#VALUE!"},{"$f":"MID('Sabana por grupo'!B190,1,2)","v":""},81]
[null,null,null,null,null,null,null,null,null,null,null,null,null,null,null,null,null,null,null,null,null,null,null,null,null,null,null,null,null,null,null,null,null,null,null,null,null,null,null,null,{"$f":"'Sabana por grupo'!A191","v":0},{"$f":"'Sabana por grupo'!C191","v":0},0,{"$error":"#VALUE!"},{"$f":"'Sabana por grupo'!G191","v":0},{"$error":"#VALUE!"},{"$f":"MID('Sabana por grupo'!B191,1,2)","v":""},81]
[null,null,null,null,null,null,null,null,null,null,null,null,null,null,null,null,null,null,null,null,null,null,null,null,null,null,null,null,null,null,null,null,null,null,null,null,null,null,null,null,{"$f":"'Sabana por grupo'!A192","v":0},{"$f":"'Sabana por grupo'!C192","v":0},0,{"$error":"#VALUE!"},{"$f":"'Sabana por grupo'!G192","v":0},{"$error":"#VALUE!"},{"$f":"MID('Sabana por grupo'!B192,1,2)","v":""},81]
[null,null,null,null,null,null,null,null,null,null,null,null,null,null,null,null,null,null,null,null,null,null,null,null,null,null,null,null,null,null,null,null,null,null,null,null,null,null,null,null,{"$f":"'Sabana por grupo'!A193","v":0},{"$f":"'Sabana por grupo'!C193","v":0},0,{"$error":"#VALUE!"},{"$f":"'Sabana por grupo'!G193","v":0},{"$error":"#VALUE!"},{"$f":"MID('Sabana por grupo'!B193,1,2)","v":""},81]
[null,null,null,null,null,null,null,null,null,null,null,null,null,null,null,null,null,null,null,null,null,null,null,null,null,null,null,null,null,null,null,null,null,null,null,null,null,null,null,null,{"$f":"'Sabana por grupo'!A194","v":0},{"$f":"'Sabana por grupo'!C194","v":0},{"$f":"_xlfn.NUMBERVALUE(AU194)","v":0},{"$error":"#VALUE!"},{"$f":"'Sabana por grupo'!G194","v":0},{"$error":"#VALUE!"},{"$f":"MID('Sabana por grupo'!B194,1,2)","v":""},81]
[null,null,null,null,null,null,null,null,null,null,null,null,null,null,null,null,null,null,null,null,null,null,null,null,null,null,null,null,null,null,null,null,null,null,null,null,null,null,null,null,{"$f":"'Sabana por grupo'!A195","v":0},{"$f":"'Sabana por grupo'!C195","v":0},0,{"$f":"IF(AT195=0,\"N/A\",IF(AT195<$AX$2,\"Riesgo Menor\",IF(AT195<$AX$3,\"Riesgo Probable\",\"Atencion de Prioridad\")))","v":{"$error":"#VALUE!"}},{"$f":"'Sabana por grupo'!G195","v":0},{"$f":"(AU195/AV206)","v":{"$error":"#VALUE!"}},{"$f":"MID('Sabana por grupo'!B195,1,2)","v":""},81]
[null,null,null,null,null,null,null,null,null,null,null,null,null,null,null,null,null,null,null,null,null,null,null,null,null,null,null,null,null,null,null,null,null,null,null,null,null,null,null,null,{"$f":"'Sabana por grupo'!A196","v":0},{"$f":"'Sabana por grupo'!C196","v":0},0,{"$error":"#VALUE!"},{"$f":"'Sabana por grupo'!G196","v":0},{"$error":"#VALUE!"},{"$f":"MID('Sabana por grupo'!B196,1,2)","v":""},81]
[null,null,null,null,null,null,null,null,null,null,null,null,null,null,null,null,null,null,null,null,null,null,null,null,null,null,null,null,null,null,null,null,null,null,null,null,null,null,null,null,{"$f":"'Sabana por grupo'!A197","v":0},{"$f":"'Sabana por grupo'!C197","v":0},0,{"$error":"#VALUE!"},{"$f":"'Sabana por grupo'!G197","v":0},{"$error":"#VALUE!"},{"$f":"MID('Sabana por grupo'!B197,1,2)","v":""},81]
[null,null,null,null,null,null,null,null,null,null,null,null,null,null,null,null,null,null,null,null,null,null,null,null,null,null,null,null,null,null,null,null,null,null,null,null,null,null,null,null,{"$f":"'Sabana por grupo'!A198","v":0},{"$f":"'Sabana por grupo'!C198","v":0},0,{"$error":"#VALUE!"},{"$f":"'Sabana por grupo'!G198","v":0},{"$error":"#VALUE!"},{"$f":"MID('Sabana por grupo'!B198,1,2)","v":""},81]
[null,null,null,null,null,null,null,null,null,null,null,null,null,null,null,null,null,null,null,null,null,null,null,null,null,null,null,null,null,null,null,null,null,null,null,null,null,null,null,null,{"$f":"'Sabana por grupo'!A199","v":0},{"$f":"'Sabana por grupo'!C199","v":0},0,{"$error":"#VALUE!"},{"$f":"'Sabana por grupo'!G199","v":0},{"$error":"#VALUE!"},{"$f":"MID('Sabana por grupo'!B199,1,2)","v":""},81]
[null,null,null,null,null,null,null,null,null,null,null,null,null,null,null,null,null,null,null,null,null,null,null,null,null,null,null,null,null,null,null,null,null,null,null,null,null,null,null,null,{"$f":"'Sabana por grupo'!A200","v":0},{"$f":"'Sabana por grupo'!C200","v":0},0,{"$error":"#VALUE!"},{"$f":"'Sabana por grupo'!G200","v":0},{"$error":"#VALUE!"},{"$f":"MID('Sabana por grupo'!B200,1,2)","v":""},81]
[null,null,null,null,null,null,null,null,null,null,null,null,null,null,null,null,null,null,null,null,null,null,null,null,null,null,null,null,null,null,null,null,null,null,null,null,null,null,null,null,{"$f":"'Sabana por grupo'!A201","v":0},{"$f":"'Sabana por grupo'!C201","v":0},0,{"$error":"#VALUE!"},{"$f":"'Sabana por grupo'!G201","v":0},{"$error":"#VALUE!"},{"$f":"MID('Sabana por grupo'!B201,1,2)","v":""},81]
[null,null,null,null,null,null,null,null,null,null,null,null,null,null,null,null,null,null,null,null,null,null,null,null,null,null,null,null,null,null,null,null,null,null,null,null,null,null,null,null,{"$f":"'Sabana por grupo'!A202","v":0},{"$f":"'Sabana por grupo'!C202","v":0},0,{"$error":"#VALUE!"},{"$f":"'Sabana por grupo'!G202","v":0},{"$error":"#VALUE!"},{"$f":"MID('Sabana por grupo'!B202,1,2)","v":""},81]
[null,null,null,null,null,null,null,null,null,null,null,null,null,null,null,null,null,null,null,null,null,null,null,null,null,null,null,null,null,null,null,null,null,null,null,null,null,null,null,null,{"$f":"'Sabana por grupo'!A203","v":0},{"$f":"'Sabana por grupo'!C203","v":0},0,{"$error":"#VALUE!"},{"$f":"'Sabana por grupo'!G203","v":0},{"$error":"#VALUE!"},{"$f":"MID('Sabana por grupo'!B203,1,2)","v":""},81]
[null,null,null,null,null,null,null,null,null,null,null,null,null,null,null,null,null,null,null,null,null,null,null,null,null,null,null,null,null,null,null,null,null,null,null,null,null,null,null,null,{"$f":"'Sabana por grupo'!A204","v":0},{"$f":"'Sabana por grupo'!C204","v":0},0,{"$error":"#VALUE!"},{"$f":"'Sabana por grupo'!G204","v":0},{"$error":"#VALUE!"},{"$f":"MID('Sabana por grupo'!B204,1,2)","v":""},81]
[null,null,null,null,null,null,null,null,null,null,null,null,null,null,null,null,null,null,null,null,null,null,null,null,null,null,null,null,null,null,null,null,null,null,null,null,null,null,null,null,{"$f":"'Sabana por grupo'!A205","v":0},{"$f":"'Sabana por grupo'!C205","v":0},0,{"$error":"#VALUE!"},{"$f":"'Sabana por grupo'!G205","v":0},{"$error":"#VALUE!"},{"$f":"MID('Sabana por grupo'!B205,1,2)","v":""},81]
[null,null,null,null,null,null,null,null,null,null,null,null,null,null,null,null,null,null,null,null,null,null,null,null,null,null,null,null,null,null,null,null,null,null,null,null,null,null,null,null,{"$f":"'Sabana por grupo'!A206","v":0},{"$f":"'Sabana por grupo'!C206","v":0},0,{"$error":"#VALUE!"},{"$f":"'Sabana por grupo'!G206","v":0},{"$error":"#VALUE!"},{"$f":"MID('Sabana por grupo'!B206,1,2)","v":""},81]
[null,null,null,null,null,null,null,null,null,null,null,null,null,null,null,null,null,null,null,null,null,null,null,null,null,null,null,null,null,null,null,null,null,null,null,null,null,null,null,null,{"$f":"'Sabana por grupo'!A207","v":0},{"$f":"'Sabana por grupo'!C207","v":0},0,{"$error":"#VALUE!"},{"$f":"'Sabana por grupo'!G207","v":0},{"$error":"#VALUE!"},{"$f":"MID('Sabana por grupo'!B207,1,2)","v":""},81]
[null,null,null,null,null,null,null,null,null,null,null,null,null,null,null,null,null,null,null,null,null,null,null,null,null,null,null,null,null,null,null,null,null,null,null,null,null,null,null,null,{"$f":"'Sabana por grupo'!A208","v":0},{"$f":"'Sabana por grupo'!C208","v":0},0,{"$error":"#VALUE!"},{"$f":"'Sabana por grupo'!G208","v":0},{"$error":"#VALUE!"},{"$f":"MID('Sabana por grupo'!B208,1,2)","v":""},81]
[null,null,null,null,null,null,null,null,null,null,null,null,null,null,null,null,null,null,null,null,null,null,null,null,null,null,null,null,null,null,null,null,null,null,null,null,null,null,null,null,{"$f":"'Sabana por grupo'!A209","v":0},{"$f":"'Sabana por grupo'!C209","v":0},0,{"$error":"#VALUE!"},{"$f":"'Sabana por grupo'!G209","v":0},{"$error":"#VALUE!"},{"$f":"MID('Sabana por grupo'!B209,1,2)","v":""},81]
[null,null,null,null,null,null,null,null,null,null,null,null,null,null,null,null,null,null,null,null,null,null,null,null,null,null,null,null,null,null,null,null,null,null,null,null,null,null,null,null,{"$f":"'Sabana por grupo'!A210","v":0},{"$f":"'Sabana por grupo'!C210","v":0},0,{"$error":"#VALUE!"},{"$f":"'Sabana por grupo'!G210","v":0},{"$error":"#VALUE!"},{"$f":"MID('Sabana por grupo'!B210,1,2)","v":""},81]
[null,null,null,null,null,null,null,null,null,null,null,null,null,null,null,null,null,null,null,null,null,null,null,null,null,null,null,null,null,null,null,null,null,null,null,null,null,null,null,null,{"$f":"'Sabana por grupo'!A211","v":0},{"$f":"'Sabana por grupo'!C211","v":0},0,{"$error":"#VALUE!"},{"$f":"'Sabana por grupo'!G211","v":0},{"$error":"#VALUE!"},{"$f":"MID('Sabana por grupo'!B211,1,2)","v":""},81]
[null,null,null,null,null,null,null,null,null,null,null,null,null,null,null,null,null,null,null,null,null,null,null,null,null,null,null,null,null,null,null,null,null,null,null,null,null,null,null,null,{"$f":"'Sabana por grupo'!A212","v":0},{"$f":"'Sabana por grupo'!C212","v":0},0,{"$error":"#VALUE!"},{"$f":"'Sabana por grupo'!G212","v":0},{"$error":"#VALUE!"},{"$f":"MID('Sabana por grupo'!B212,1,2)","v":""},81]
[null,null,null,null,null,null,null,null,null,null,null,null,null,null,null,null,null,null,null,null,null,null,null,null,null,null,null,null,null,null,null,null,null,null,null,null,null,null,null,null,{"$f":"'Sabana por grupo'!A213","v":0},{"$f":"'Sabana por grupo'!C213","v":0},0,{"$error":"#VALUE!"},{"$f":"'Sabana por grupo'!G213","v":0},{"$error":"#VALUE!"},{"$f":"MID('Sabana por grupo'!B213,1,2)","v":""},81]
[null,null,null,null,null,null,null,null,null,null,null,null,null,null,null,null,null,null,null,null,null,null,null,null,null,null,null,null,null,null,null,null,null,null,null,null,null,null,null,null,{"$f":"'Sabana por grupo'!A214","v":0},{"$f":"'Sabana por grupo'!C214","v":0},0,{"$error":"#VALUE!"},{"$f":"'Sabana por grupo'!G214","v":0},{"$error":"#VALUE!"},{"$f":"MID('Sabana por grupo'!B214,1,2)","v":""},81]
[null,null,null,null,null,null,null,null,null,null,null,null,null,null,null,null,null,null,null,null,null,null,null,null,null,null,null,null,null,null,null,null,null,null,null,null,null,null,null,null,{"$f":"'Sabana por grupo'!A215","v":0},{"$f":"'Sabana por grupo'!C215","v":0},0,{"$error":"#VALUE!"},{"$f":"'Sabana por grupo'!G215","v":0},{"$error":"#VALUE!"},{"$f":"MID('Sabana por grupo'!B215,1,2)","v":""},81]
[null,null,null,null,null,null,null,null,null,null,null,null,null,null,null,null,null,null,null,null,null,null,null,null,null,null,null,null,null,null,null,null,null,null,null,null,null,null,null,null,{"$f":"'Sabana por grupo'!A216","v":0},{"$f":"'Sabana por grupo'!C216","v":0},0,{"$error":"#VALUE!"},{"$f":"'Sabana por grupo'!G216","v":0},{"$error":"#VALUE!"},{"$f":"MID('Sabana por grupo'!B216,1,2)","v":""},81]
[null,null,null,null,null,null,null,null,null,null,null,null,null,null,null,null,null,null,null,null,null,null,null,null,null,null,null,null,null,null,null,null,null,null,null,null,null,null,null,null,{"$f":"'Sabana por grupo'!A217","v":0},{"$f":"'Sabana por grupo'!C217","v":0},0,{"$error":"#VALUE!"},{"$f":"'Sabana por grupo'!G217","v":0},{"$error":"#VALUE!"},{"$f":"MID('Sabana por grupo'!B217,1,2)","v":""},81]
[null,null,null,null,null,null,null,null,null,null,null,null,null,null,null,null,null,null,null,null,null,null,null,null,null,null,null,null,null,null,null,null,null,null,null,null,null,null,null,null,{"$f":"'Sabana por grupo'!A218","v":0},{"$f":"'Sabana por grupo'!C218","v":0},0,{"$error":"#VALUE!"},{"$f":"'Sabana por grupo'!G218","v":0},{"$error":"#VALUE!"},{"$f":"MID('Sabana por grupo'!B218,1,2)","v":""},81]
[null,null,null,null,null,null,null,null,null,null,null,null,null,null,null,null,null,null,null,null,null,null,null,null,null,null,null,null,null,null,null,null,null,null,null,null,null,null,null,null,{"$f":"'Sabana por grupo'!A219","v":0},{"$f":"'Sabana por grupo'!C219","v":0},0,{"$error":"#VALUE!"},{"$f":"'Sabana por grupo'!G219","v":0},{"$error":"#VALUE!"},{"$f":"MID('Sabana por grupo'!B219,1,2)","v":""},81]
[null,null,null,null,null,null,null,null,null,null,null,null,null,null,null,null,null,null,null,null,null,null,null,null,null,null,null,null,null,null,null,null,null,null,null,null,null,null,null,null,{"$f":"'Sabana por grupo'!A220","v":0},{"$f":"'Sabana por grupo'!C220","v":0},0,{"$error":"#VALUE!"},{"$f":"'Sabana por grupo'!G220","v":0},{"$error":"#VALUE!"},{"$f":"MID('Sabana por grupo'!B220,1,2)","v":""},81]
[null,null,null,null,null,null,null,null,null,null,null,null,null,null,null,null,null,null,null,null,null,null,null,null,null,null,null,null,null,null,null,null,null,null,null,null,null,null,null,null,{"$f":"'Sabana por grupo'!A221","v":0},{"$f":"'Sabana por grupo'!C221","v":0},0,{"$error":"#VALUE!"},{"$f":"'Sabana por grupo'!G221","v":0},{"$error":"#VALUE!"},{"$f":"MID('Sabana por grupo'!B221,1,2)","v":""},81]
[null,null,null,null,null,null,null,null,null,null,null,null,null,null,null,null,null,null,null,null,null,null,null,null,null,null,null,null,null,null,null,null,null,null,null,null,null,null,null,null,{"$f":"'Sabana por grupo'!A222","v":0},{"$f":"'Sabana por grupo'!C222","v":0},0,{"$error":"#VALUE!"},{"$f":"'Sabana por grupo'!G222","v":0},{"$error":"#VALUE!"},{"$f":"MID('Sabana por grupo'!B222,1,2)","v":""},81]
[null,null,null,null,null,null,null,null,null,null,null,null,null,null,null,null,null,null,null,null,null,null,null,null,null,null,null,null,null,null,null,null,null,null,null,null,null,null,null,null,{"$f":"'Sabana por grupo'!A223","v":0},{"$f":"'Sabana por grupo'!C223","v":0},0,{"$error":"#VALUE!"},{"$f":"'Sabana por grupo'!G223","v":0},{"$error":"#VALUE!"},{"$f":"MID('Sabana por grupo'!B223,1,2)","v":""},81]
[null,null,null,null,null,null,null,null,null,null,null,null,null,null,null,null,null,null,null,null,null,null,null,null,null,null,null,null,null,null,null,null,null,null,null,null,null,null,null,null,{"$f":"'Sabana por grupo'!A224","v":0},{"$f":"'Sabana por grupo'!C224","v":0},0,{"$error":"#VALUE!"},{"$f":"'Sabana por grupo'!G224","v":0},{"$error":"#VALUE!"},{"$f":"MID('Sabana por grupo'!B224,1,2)","v":""},81]
[null,null,null,null,null,null,null,null,null,null,null,null,null,null,null,null,null,null,null,null,null,null,null,null,null,null,null,null,null,null,null,null,null,null,null,null,null,null,null,null,{"$f":"'Sabana por grupo'!A225","v":0},{"$f":"'Sabana por grupo'!C225","v":0},0,{"$error":"#VALUE!"},{"$f":"'Sabana por grupo'!G225","v":0},{"$error":"#VALUE!"},{"$f":"MID('Sabana por grupo'!B225,1,2)","v":""},81]
[null,null,null,null,null,null,null,null,null,null,null,null,null,null,null,null,null,null,null,null,null,null,null,null,null,null,null,null,null,null,null,null,null,null,null,null,null,null,null,null,{"$f":"'Sabana por grupo'!A226","v":0},{"$f":"'Sabana por grupo'!C226","v":0},0,{"$error":"#VALUE!"},{"$f":"'Sabana por grupo'!G226","v":0},{"$error":"#VALUE!"},{"$f":"MID('Sabana por grupo'!B226,1,2)","v":""},81]
[null,null,null,null,null,null,null,null,null,null,null,null,null,null,null,null,null,null,null,null,null,null,null,null,null,null,null,null,null,null,null,null,null,null,null,null,null,null,null,null,{"$f":"'Sabana por grupo'!A227","v":0},{"$f":"'Sabana por grupo'!C227","v":0},0,{"$error":"#VALUE!"},{"$f":"'Sabana por grupo'!G227","v":0},{"$error":"#VALUE!"},{"$f":"MID('Sabana por grupo'!B227,1,2)","v":""},81]
[null,null,null,null,null,null,null,null,null,null,null,null,null,null,null,null,null,null,null,null,null,null,null,null,null,null,null,null,null,null,null,null,null,null,null,null,null,null,null,null,{"$f":"'Sabana por grupo'!A228","v":0},{"$f":"'Sabana por grupo'!C228","v":0},0,{"$error":"#VALUE!"},{"$f":"'Sabana por grupo'!G228","v":0},{"$error":"#VALUE!"},{"$f":"MID('Sabana por grupo'!B228,1,2)","v":""},81]
[null,null,null,null,null,null,null,null,null,null,null,null,null,null,null,null,null,null,null,null,null,null,null,null,null,null,null,null,null,null,null,null,null,null,null,null,null,null,null,null,{"$f":"'Sabana por grupo'!A229","v":0},{"$f":"'Sabana por grupo'!C229","v":0},0,{"$error":"#VALUE!"},{"$f":"'Sabana por grupo'!G229","v":0},{"$error":"#VALUE!"},{"$f":"MID('Sabana por grupo'!B229,1,2)","v":""},81]
[null,null,null,null,null,null,null,null,null,null,null,null,null,null,null,null,null,null,null,null,null,null,null,null,null,null,null,null,null,null,null,null,null,null,null,null,null,null,null,null,{"$f":"'Sabana por grupo'!A230","v":0},{"$f":"'Sabana por grupo'!C230","v":0},0,{"$error":"#VALUE!"},{"$f":"'Sabana por grupo'!G230","v":0},{"$error":"#VALUE!"},{"$f":"MID('Sabana por grupo'!B230,1,2)","v":""},81]
[null,null,null,null,null,null,null,null,null,null,null,null,null,null,null,null,null,null,null,null,null,null,null,null,null,null,null,null,null,null,null,null,null,null,null,null,null,null,null,null,{"$f":"'Sabana por grupo'!A231","v":0},{"$f":"'Sabana por grupo'!C231","v":0},0,{"$error":"#VALUE!"},{"$f":"'Sabana por grupo'!G231","v":0},{"$error":"#VALUE!"},{"$f":"MID('Sabana por grupo'!B231,1,2)","v":""},81]
[null,null,null,null,null,null,null,null,null,null,null,null,null,null,null,null,null,null,null,null,null,null,null,null,null,null,null,null,null,null,null,null,null,null,null,null,null,null,null,null,{"$f":"'Sabana por grupo'!A232","v":0},{"$f":"'Sabana por grupo'!C232","v":0},0,{"$error":"#VALUE!"},{"$f":"'Sabana por grupo'!G232","v":0},{"$error":"#VALUE!"},{"$f":"MID('Sabana por grupo'!B232,1,2)","v":""},81]
[null,null,null,null,null,null,null,null,null,null,null,null,null,null,null,null,null,null,null,null,null,null,null,null,null,null,null,null,null,null,null,null,null,null,null,null,null,null,null,null,{"$f":"'Sabana por grupo'!A233","v":0},{"$f":"'Sabana por grupo'!C233","v":0},0,{"$error":"#VALUE!"},{"$f":"'Sabana por grupo'!G233","v":0},{"$error":"#VALUE!"},{"$f":"MID('Sabana por grupo'!B233,1,2)","v":""},81]
[null,null,null,null,null,null,null,null,null,null,null,null,null,null,null,null,null,null,null,null,null,null,null,null,null,null,null,null,null,null,null,null,null,null,null,null,null,null,null,null,{"$f":"'Sabana por grupo'!A234","v":0},{"$f":"'Sabana por grupo'!C234","v":0},0,{"$error":"#VALUE!"},{"$f":"'Sabana por grupo'!G234","v":0},{"$error":"#VALUE!"},{"$f":"MID('Sabana por grupo'!B234,1,2)","v":""},81]
[null,null,null,null,null,null,null,null,null,null,null,null,null,null,null,null,null,null,null,null,null,null,null,null,null,null,null,null,null,null,null,null,null,null,null,null,null,null,null,null,{"$f":"'Sabana por grupo'!A235","v":0},{"$f":"'Sabana por grupo'!C235","v":0},0,{"$error":"#VALUE!"},{"$f":"'Sabana por grupo'!G235","v":0},{"$error":"#VALUE!"},{"$f":"MID('Sabana por grupo'!B235,1,2)","v":""},81]
[null,null,null,null,null,null,null,null,null,null,null,null,null,null,null,null,null,null,null,null,null,null,null,null,null,null,null,null,null,null,null,null,null,null,null,null,null,null,null,null,{"$f":"'Sabana por grupo'!A236","v":0},{"$f":"'Sabana por grupo'!C236","v":0},0,{"$error":"#VALUE!"},{"$f":"'Sabana por grupo'!G236","v":0},{"$error":"#VALUE!"},{"$f":"MID('Sabana por grupo'!B236,1,2)","v":""},81]
[null,null,null,null,null,null,null,null,null,null,null,null,null,null,null,null,null,null,null,null,null,null,null,null,null,null,null,null,null,null,null,null,null,null,null,null,null,null,null,null,{"$f":"'Sabana por grupo'!A237","v":0},{"$f":"'Sabana por grupo'!C237","v":0},0,{"$error":"#VALUE!"},{"$f":"'Sabana por grupo'!G237","v":0},{"$error":"#VALUE!"},{"$f":"MID('Sabana por grupo'!B237,1,2)","v":""},81]
[null,null,null,null,null,null,null,null,null,null,null,null,null,null,null,null,null,null,null,null,null,null,null,null,null,null,null,null,null,null,null,null,null,null,null,null,null,null,null,null,{"$f":"'Sabana por grupo'!A238","v":0},{"$f":"'Sabana por grupo'!C238","v":0},0,{"$error":"#VALUE!"},{"$f":"'Sabana por grupo'!G238","v":0},{"$error":"#VALUE!"},{"$f":"MID('Sabana por grupo'!B238,1,2)","v":""},81]
[null,null,null,null,null,null,null,null,null,null,null,null,null,null,null,null,null,null,null,null,null,null,null,null,null,null,null,null,null,null,null,null,null,null,null,null,null,null,null,null,{"$f":"'Sabana por grupo'!A239","v":0},{"$f":"'Sabana por grupo'!C239","v":0},0,{"$error":"#VALUE!"},{"$f":"'Sabana por grupo'!G239","v":0},{"$error":"#VALUE!"},{"$f":"MID('Sabana por grupo'!B239,1,2)","v":""},81]
[null,null,null,null,null,null,null,null,null,null,null,null,null,null,null,null,null,null,null,null,null,null,null,null,null,null,null,null,null,null,null,null,null,null,null,null,null,null,null,null,{"$f":"'Sabana por grupo'!A240","v":0},{"$f":"'Sabana por grupo'!C240","v":0},0,{"$error":"#VALUE!"},{"$f":"'Sabana por grupo'!G240","v":0},{"$error":"#VALUE!"},{"$f":"MID('Sabana por grupo'!B240,1,2)","v":""},81]
[null,null,null,null,null,null,null,null,null,null,null,null,null,null,null,null,null,null,null,null,null,null,null,null,null,null,null,null,null,null,null,null,null,null,null,null,null,null,null,null,{"$f":"'Sabana por grupo'!A241","v":0},{"$f":"'Sabana por grupo'!C241","v":0},0,{"$error":"#VALUE!"},{"$f":"'Sabana por grupo'!G241","v":0},{"$error":"#VALUE!"},{"$f":"MID('Sabana por grupo'!B241,1,2)","v":""},81]
[null,null,null,null,null,null,null,null,null,null,null,null,null,null,null,null,null,null,null,null,null,null,null,null,null,null,null,null,null,null,null,null,null,null,null,null,null,null,null,null,{"$f":"'Sabana por grupo'!A242","v":0},{"$f":"'Sabana por grupo'!C242","v":0},0,{"$error":"#VALUE!"},{"$f":"'Sabana por grupo'!G242","v":0},{"$error":"#VALUE!"},{"$f":"MID('Sabana por grupo'!B242,1,2)","v":""},81]
[null,null,null,null,null,null,null,null,null,null,null,null,null,null,null,null,null,null,null,null,null,null,null,null,null,null,null,null,null,null,null,null,null,null,null,null,null,null,null,null,{"$f":"'Sabana por grupo'!A243","v":0},{"$f":"'Sabana por grupo'!C243","v":0},0,{"$error":"#VALUE!"},{"$f":"'Sabana por grupo'!G243","v":0},{"$error":"#VALUE!"},{"$f":"MID('Sabana por grupo'!B243,1,2)","v":""},81]
[null,null,null,null,null,null,null,null,null,null,null,null,null,null,null,null,null,null,null,null,null,null,null,null,null,null,null,null,null,null,null,null,null,null,null,null,null,null,null,null,{"$f":"'Sabana por grupo'!A244","v":0},{"$f":"'Sabana por grupo'!C244","v":0},0,{"$error":"#VALUE!"},{"$f":"'Sabana por grupo'!G244","v":0},{"$error":"#VALUE!"},{"$f":"MID('Sabana por grupo'!B244,1,2)","v":""},81]
[null,null,null,null,null,null,null,null,null,null,null,null,null,null,null,null,null,null,null,null,null,null,null,null,null,null,null,null,null,null,null,null,null,null,null,null,null,null,null,null,{"$f":"'Sabana por grupo'!A245","v":0},{"$f":"'Sabana por grupo'!C245","v":0},0,{"$error":"#VALUE!"},{"$f":"'Sabana por grupo'!G245","v":0},{"$error":"#VALUE!"},{"$f":"MID('Sabana por grupo'!B245,1,2)","v":""},81]
[null,null,null,null,null,null,null,null,null,null,null,null,null,null,null,null,null,null,null,null,null,null,null,null,null,null,null,null,null,null,null,null,null,null,null,null,null,null,null,null,{"$f":"'Sabana por grupo'!A246","v":0},{"$f":"'Sabana por grupo'!C246","v":0},0,{"$error":"#VALUE!"},{"$f":"'Sabana por grupo'!G246","v":0},{"$error":"#VALUE!"},{"$f":"MID('Sabana por grupo'!B246,1,2)","v":""},81]
[null,null,null,null,null,null,null,null,null,null,null,null,null,null,null,null,null,null,null,null,null,null,null,null,null,null,null,null,null,null,null,null,null,null,null,null,null,null,null,null,{"$f":"'Sabana por grupo'!A247","v":0},{"$f":"'Sabana por grupo'!C247","v":0},0,{"$error":"#VALUE!"},{"$f":"'Sabana por grupo'!G247","v":0},{"$error":"#VALUE!"},{"$f":"MID('Sabana por grupo'!B247,1,2)","v":""},81]
[null,null,null,null,null,null,null,null,null,null,null,null,null,null,null,null,null,null,null,null,null,null,null,null,null,null,null,null,null,null,null,null,null,null,null,null,null,null,null,null,{"$f":"'Sabana por grupo'!A248","v":0},{"$f":"'Sabana por grupo'!C248","v":0},0,{"$error":"#VALUE!"},{"$f":"'Sabana por grupo'!G248","v":0},{"$error":"#VALUE!"},{"$f":"MID('Sabana por grupo'!B248,1,2)","v":""},81]
[null,null,null,null,null,null,null,null,null,null,null,null,null,null,null,null,null,null,null,null,null,null,null,null,null,null,null,null,null,null,null,null,null,null,null,null,null,null,null,null,{"$f":"'Sabana por grupo'!A249","v":0},{"$f":"'Sabana por grupo'!C249","v":0},0,{"$error":"#VALUE!"},{"$f":"'Sabana por grupo'!G249","v":0},{"$error":"#VALUE!"},{"$f":"MID('Sabana por grupo'!B249,1,2)","v":""},81]
[null,null,null,null,null,null,null,null,null,null,null,null,null,null,null,null,null,null,null,null,null,null,null,null,null,null,null,null,null,null,null,null,null,null,null,null,null,null,null,null,{"$f":"'Sabana por grupo'!A250","v":0},{"$f":"'Sabana por grupo'!C250","v":0},0,{"$error":"#VALUE!"},{"$f":"'Sabana por grupo'!G250","v":0},{"$error":"#VALUE!"},{"$f":"MID('Sabana por grupo'!B250,1,2)","v":""},81]
[null,null,null,null,null,null,null,null,null,null,null,null,null,null,null,null,null,null,null,null,null,null,null,null,null,null,null,null,null,null,null,null,null,null,null,null,null,null,null,null,{"$f":"'Sabana por grupo'!A251","v":0},{"$f":"'Sabana por grupo'!C251","v":0},0,{"$error":"#VALUE!"},{"$f":"'Sabana por grupo'!G251","v":0},{"$error":"#VALUE!"},{"$f":"MID('Sabana por grupo'!B251,1,2)","v":""},81]
[null,null,null,null,null,null,null,null,null,null,null,null,null,null,null,null,null,null,null,null,null,null,null,null,null,null,null,null,null,null,null,null,null,null,null,null,null,null,null,null,{"$f":"'Sabana por grupo'!A252","v":0},{"$f":"'Sabana por grupo'!C252","v":0},0,{"$error":"#VALUE!"},{"$f":"'Sabana por grupo'!G252","v":0},{"$error":"#VALUE!"},{"$f":"MID('Sabana por grupo'!B252,1,2)","v":""},81]
[null,null,null,null,null,null,null,null,null,null,null,null,null,null,null,null,null,null,null,null,null,null,null,null,null,null,null,null,null,null,null,null,null,null,null,null,null,null,null,null,{"$f":"'Sabana por grupo'!A253","v":0},{"$f":"'Sabana por grupo'!C253","v":0},0,{"$error":"#VALUE!"},{"$f":"'Sabana por grupo'!G253","v":0},{"$error":"#VALUE!"},{"$f":"MID('Sabana por grupo'!B253,1,2)","v":""},81]
[null,null,null,null,null,null,null,null,null,null,null,null,null,null,null,null,null,null,null,null,null,null,null,null,null,null,null,null,null,null,null,null,null,null,null,null,null,null,null,null,{"$f":"'Sabana por grupo'!A254","v":0},{"$f":"'Sabana por grupo'!C254","v":0},0,{"$error":"#VALUE!"},{"$f":"'Sabana por grupo'!G254","v":0},{"$error":"#VALUE!"},{"$f":"MID('Sabana por grupo'!B254,1,2)","v":""},81]
[null,null,null,null,null,null,null,null,null,null,null,null,null,null,null,null,null,null,null,null,null,null,null,null,null,null,null,null,null,null,null,null,null,null,null,null,null,null,null,null,{"$f":"'Sabana por grupo'!A255","v":0},{"$f":"'Sabana por grupo'!C255","v":0},0,{"$error":"#VALUE!"},{"$f":"'Sabana por grupo'!G255","v":0},{"$error":"#VALUE!"},{"$f":"MID('Sabana por grupo'!B255,1,2)","v":""},81]
[null,null,null,null,null,null,null,null,null,null,null,null,null,null,null,null,null,null,null,null,null,null,null,null,null,null,null,null,null,null,null,null,null,null,null,null,null,null,null,null,{"$f":"'Sabana por grupo'!A256","v":0},{"$f":"'Sabana por grupo'!C256","v":0},0,{"$error":"#VALUE!"},{"$f":"'Sabana por grupo'!G256","v":0},{"$error":"#VALUE!"},{"$f":"MID('Sabana por grupo'!B256,1,2)","v":""},81]
[null,null,null,null,null,null,null,null,null,null,null,null,null,null,null,null,null,null,null,null,null,null,null,null,null,null,null,null,null,null,null,null,null,null,null,null,null,null,null,null,{"$f":"'Sabana por grupo'!A257","v":0},{"$f":"'Sabana por grupo'!C257","v":0},0,{"$error":"#VALUE!"},{"$f":"'Sabana por grupo'!G257","v":0},{"$error":"#VALUE!"},{"$f":"MID('Sabana por grupo'!B257,1,2)","v":""},81]
[null,null,null,null,null,null,null,null,null,null,null,null,null,null,null,null,null,null,null,null,null,null,null,null,null,null,null,null,null,null,null,null,null,null,null,null,null,null,null,null,{"$f":"'Sabana por grupo'!A258","v":0},{"$f":"'Sabana por grupo'!C258","v":0},{"$f":"_xlfn.NUMBERVALUE(AU258)","v":0},{"$error":"#VALUE!"},{"$f":"'Sabana por grupo'!G258","v":0},{"$error":"#VALUE!"},{"$f":"MID('Sabana por grupo'!B258,1,2)","v":""},81]
[null,null,null,null,null,null,null,null,null,null,null,null,null,null,null,null,null,null,null,null,null,null,null,null,null,null,null,null,null,null,null,null,null,null,null,null,null,null,null,null,{"$f":"'Sabana por grupo'!A259","v":0},{"$f":"'Sabana por grupo'!C259","v":0},0,{"$f":"IF(AT259=0,\"N/A\",IF(AT259<$AX$2,\"Riesgo Menor\",IF(AT259<$AX$3,\"Riesgo Probable\",\"Atencion de Prioridad\")))","v":{"$error":"#VALUE!"}},{"$f":"'Sabana por grupo'!G259","v":0},{"$f":"(AU259/AV270)","v":{"$error":"#VALUE!"}},{"$f":"MID('Sabana por grupo'!B259,1,2)","v":""},81]
[null,null,null,null,null,null,null,null,null,null,null,null,null,null,null,null,null,null,null,null,null,null,null,null,null,null,null,null,null,null,null,null,null,null,null,null,null,null,null,null,{"$f":"'Sabana por grupo'!A260","v":0},{"$f":"'Sabana por grupo'!C260","v":0},0,{"$error":"#VALUE!"},{"$f":"'Sabana por grupo'!G260","v":0},{"$error":"#VALUE!"},{"$f":"MID('Sabana por grupo'!B260,1,2)","v":""},81]
[null,null,null,null,null,null,null,null,null,null,null,null,null,null,null,null,null,null,null,null,null,null,null,null,null,null,null,null,null,null,null,null,null,null,null,null,null,null,null,null,{"$f":"'Sabana por grupo'!A261","v":0},{"$f":"'Sabana por grupo'!C261","v":0},0,{"$error":"#VALUE!"},{"$f":"'Sabana por grupo'!G261","v":0},{"$error":"#VALUE!"},{"$f":"MID('Sabana por grupo'!B261,1,2)","v":""},81]
[null,null,null,null,null,null,null,null,null,null,null,null,null,null,null,null,null,null,null,null,null,null,null,null,null,null,null,null,null,null,null,null,null,null,null,null,null,null,null,null,{"$f":"'Sabana por grupo'!A262","v":0},{"$f":"'Sabana por grupo'!C262","v":0},0,{"$error":"#VALUE!"},{"$f":"'Sabana por grupo'!G262","v":0},{"$error":"#VALUE!"},{"$f":"MID('Sabana por grupo'!B262,1,2)","v":""},81]
[null,null,null,null,null,null,null,null,null,null,null,null,null,null,null,null,null,null,null,null,null,null,null,null,null,null,null,null,null,null,null,null,null,null,null,null,null,null,null,null,{"$f":"'Sabana por grupo'!A263","v":0},{"$f":"'Sabana por grupo'!C263","v":0},0,{"$error":"#VALUE!"},{"$f":"'Sabana por grupo'!G263","v":0},{"$error":"#VALUE!"},{"$f":"MID('Sabana por grupo'!B263,1,2)","v":""},81]
[null,null,null,null,null,null,null,null,null,null,null,null,null,null,null,null,null,null,null,null,null,null,null,null,null,null,null,null,null,null,null,null,null,null,null,null,null,null,null,null,{"$f":"'Sabana por grupo'!A264","v":0},{"$f":"'Sabana por grupo'!C264","v":0},0,{"$error":"#VALUE!"},{"$f":"'Sabana por grupo'!G264","v":0},{"$error":"#VALUE!"},{"$f":"MID('Sabana por grupo'!B264,1,2)","v":""},81]
[null,null,null,null,null,null,null,null,null,null,null,null,null,null,null,null,null,null,null,null,null,null,null,null,null,null,null,null,null,null,null,null,null,null,null,null,null,null,null,null,{"$f":"'Sabana por grupo'!A265","v":0},{"$f":"'Sabana por grupo'!C265","v":0},0,{"$error":"#VALUE!"},{"$f":"'Sabana por grupo'!G265","v":0},{"$error":"#VALUE!"},{"$f":"MID('Sabana por grupo'!B265,1,2)","v":""},81]
[null,null,null,null,null,null,null,null,null,null,null,null,null,null,null,null,null,null,null,null,null,null,null,null,null,null,null,null,null,null,null,null,null,null,null,null,null,null,null,null,{"$f":"'Sabana por grupo'!A266","v":0},{"$f":"'Sabana por grupo'!C266","v":0},0,{"$error":"#VALUE!"},{"$f":"'Sabana por grupo'!G266","v":0},{"$error":"#VALUE!"},{"$f":"MID('Sabana por grupo'!B266,1,2)","v":""},81]
[null,null,null,null,null,null,null,null,null,null,null,null,null,null,null,null,null,null,null,null,null,null,null,null,null,null,null,null,null,null,null,null,null,null,null,null,null,null,null,null,{"$f":"'Sabana por grupo'!A267","v":0},{"$f":"'Sabana por grupo'!C267","v":0},0,{"$error":"#VALUE!"},{"$f":"'Sabana por grupo'!G267","v":0},{"$error":"#VALUE!"},{"$f":"MID('Sabana por grupo'!B267,1,2)","v":""},81]
[null,null,null,null,null,null,null,null,null,null,null,null,null,null,null,null,null,null,null,null,null,null,null,null,null,null,null,null,null,null,null,null,null,null,null,null,null,null,null,null,{"$f":"'Sabana por grupo'!A268","v":0},{"$f":"'Sabana por grupo'!C268","v":0},0,{"$error":"#VALUE!"},{"$f":"'Sabana por grupo'!G268","v":0},{"$error":"#VALUE!"},{"$f":"MID('Sabana por grupo'!B268,1,2)","v":""},81]
[null,null,null,null,null,null,null,null,null,null,null,null,null,null,null,null,null,null,null,null,null,null,null,null,null,null,null,null,null,null,null,null,null,null,null,null,null,null,null,null,{"$f":"'Sabana por grupo'!A269","v":0},{"$f":"'Sabana por grupo'!C269","v":0},0,{"$error":"#VALUE!"},{"$f":"'Sabana por grupo'!G269","v":0},{"$error":"#VALUE!"},{"$f":"MID('Sabana por grupo'!B269,1,2)","v":""},81]
[null,null,null,null,null,null,null,null,null,null,null,null,null,null,null,null,null,null,null,null,null,null,null,null,null,null,null,null,null,null,null,null,null,null,null,null,null,null,null,null,{"$f":"'Sabana por grupo'!A270","v":0},{"$f":"'Sabana por grupo'!C270","v":0},0,{"$error":"#VALUE!"},{"$f":"'Sabana por grupo'!G270","v":0},{"$error":"#VALUE!"},{"$f":"MID('Sabana por grupo'!B270,1,2)","v":""},81]
[null,null,null,null,null,null,null,null,null,null,null,null,null,null,null,null,null,null,null,null,null,null,null,null,null,null,null,null,null,null,null,null,null,null,null,null,null,null,null,null,{"$f":"'Sabana por grupo'!A271","v":0},{"$f":"'Sabana por grupo'!C271","v":0},0,{"$error":"#VALUE!"},{"$f":"'Sabana por grupo'!G271","v":0},{"$error":"#VALUE!"},{"$f":"MID('Sabana por grupo'!B271,1,2)","v":""},81]
[null,null,null,null,null,null,null,null,null,null,null,null,null,null,null,null,null,null,null,null,null,null,null,null,null,null,null,null,null,null,null,null,null,null,null,null,null,null,null,null,{"$f":"'Sabana por grupo'!A272","v":0},{"$f":"'Sabana por grupo'!C272","v":0},0,{"$error":"#VALUE!"},{"$f":"'Sabana por grupo'!G272","v":0},{"$error":"#VALUE!"},{"$f":"MID('Sabana por grupo'!B272,1,2)","v":""},81]
[null,null,null,null,null,null,null,null,null,null,null,null,null,null,null,null,null,null,null,null,null,null,null,null,null,null,null,null,null,null,null,null,null,null,null,null,null,null,null,null,{"$f":"'Sabana por grupo'!A273","v":0},{"$f":"'Sabana por grupo'!C273","v":0},0,{"$error":"#VALUE!"},{"$f":"'Sabana por grupo'!G273","v":0},{"$error":"#VALUE!"},{"$f":"MID('Sabana por grupo'!B273,1,2)","v":""},81]
[null,null,null,null,null,null,null,null,null,null,null,null,null,null,null,null,null,null,null,null,null,null,null,null,null,null,null,null,null,null,null,null,null,null,null,null,null,null,null,null,{"$f":"'Sabana por grupo'!A274","v":0},{"$f":"'Sabana por grupo'!C274","v":0},0,{"$error":"#VALUE!"},{"$f":"'Sabana por grupo'!G274","v":0},{"$error":"#VALUE!"},{"$f":"MID('Sabana por grupo'!B274,1,2)","v":""},81]
[null,null,null,null,null,null,null,null,null,null,null,null,null,null,null,null,null,null,null,null,null,null,null,null,null,null,null,null,null,null,null,null,null,null,null,null,null,null,null,null,{"$f":"'Sabana por grupo'!A275","v":0},{"$f":"'Sabana por grupo'!C275","v":0},0,{"$error":"#VALUE!"},{"$f":"'Sabana por grupo'!G275","v":0},{"$error":"#VALUE!"},{"$f":"MID('Sabana por grupo'!B275,1,2)","v":""},81]
[null,null,null,null,null,null,null,null,null,null,null,null,null,null,null,null,null,null,null,null,null,null,null,null,null,null,null,null,null,null,null,null,null,null,null,null,null,null,null,null,{"$f":"'Sabana por grupo'!A276","v":0},{"$f":"'Sabana por grupo'!C276","v":0},0,{"$error":"#VALUE!"},{"$f":"'Sabana por grupo'!G276","v":0},{"$error":"#VALUE!"},{"$f":"MID('Sabana por grupo'!B276,1,2)","v":""},81]
[null,null,null,null,null,null,null,null,null,null,null,null,null,null,null,null,null,null,null,null,null,null,null,null,null,null,null,null,null,null,null,null,null,null,null,null,null,null,null,null,{"$f":"'Sabana por grupo'!A277","v":0},{"$f":"'Sabana por grupo'!C277","v":0},0,{"$error":"#VALUE!"},{"$f":"'Sabana por grupo'!G277","v":0},{"$error":"#VALUE!"},{"$f":"MID('Sabana por grupo'!B277,1,2)","v":""},81]
[null,null,null,null,null,null,null,null,null,null,null,null,null,null,null,null,null,null,null,null,null,null,null,null,null,null,null,null,null,null,null,null,null,null,null,null,null,null,null,null,{"$f":"'Sabana por grupo'!A278","v":0},{"$f":"'Sabana por grupo'!C278","v":0},0,{"$error":"#VALUE!"},{"$f":"'Sabana por grupo'!G278","v":0},{"$error":"#VALUE!"},{"$f":"MID('Sabana por grupo'!B278,1,2)","v":""},81]
[null,null,null,null,null,null,null,null,null,null,null,null,null,null,null,null,null,null,null,null,null,null,null,null,null,null,null,null,null,null,null,null,null,null,null,null,null,null,null,null,{"$f":"'Sabana por grupo'!A279","v":0},{"$f":"'Sabana por grupo'!C279","v":0},0,{"$error":"#VALUE!"},{"$f":"'Sabana por grupo'!G279","v":0},{"$error":"#VALUE!"},{"$f":"MID('Sabana por grupo'!B279,1,2)","v":""},81]
[null,null,null,null,null,null,null,null,null,null,null,null,null,null,null,null,null,null,null,null,null,null,null,null,null,null,null,null,null,null,null,null,null,null,null,null,null,null,null,null,{"$f":"'Sabana por grupo'!A280","v":0},{"$f":"'Sabana por grupo'!C280","v":0},0,{"$error":"#VALUE!"},{"$f":"'Sabana por grupo'!G280","v":0},{"$error":"#VALUE!"},{"$f":"MID('Sabana por grupo'!B280,1,2)","v":""},81]
[null,null,null,null,null,null,null,null,null,null,null,null,null,null,null,null,null,null,null,null,null,null,null,null,null,null,null,null,null,null,null,null,null,null,null,null,null,null,null,null,{"$f":"'Sabana por grupo'!A281","v":0},{"$f":"'Sabana por grupo'!C281","v":0},0,{"$error":"#VALUE!"},{"$f":"'Sabana por grupo'!G281","v":0},{"$error":"#VALUE!"},{"$f":"MID('Sabana por grupo'!B281,1,2)","v":""},81]
[null,null,null,null,null,null,null,null,null,null,null,null,null,null,null,null,null,null,null,null,null,null,null,null,null,null,null,null,null,null,null,null,null,null,null,null,null,null,null,null,{"$f":"'Sabana por grupo'!A282","v":0},{"$f":"'Sabana por grupo'!C282","v":0},0,{"$error":"#VALUE!"},{"$f":"'Sabana por grupo'!G282","v":0},{"$error":"#VALUE!"},{"$f":"MID('Sabana por grupo'!B282,1,2)","v":""},81]
[null,null,null,null,null,null,null,null,null,null,null,null,null,null,null,null,null,null,null,null,null,null,null,null,null,null,null,null,null,null,null,null,null,null,null,null,null,null,null,null,{"$f":"'Sabana por grupo'!A283","v":0},{"$f":"'Sabana por grupo'!C283","v":0},0,{"$error":"#VALUE!"},{"$f":"'Sabana por grupo'!G283","v":0},{"$error":"#VALUE!"},{"$f":"MID('Sabana por grupo'!B283,1,2)","v":""},81]
[null,null,null,null,null,null,null,null,null,null,null,null,null,null,null,null,null,null,null,null,null,null,null,null,null,null,null,null,null,null,null,null,null,null,null,null,null,null,null,null,{"$f":"'Sabana por grupo'!A284","v":0},{"$f":"'Sabana por grupo'!C284","v":0},0,{"$error":"#VALUE!"},{"$f":"'Sabana por grupo'!G284","v":0},{"$error":"#VALUE!"},{"$f":"MID('Sabana por grupo'!B284,1,2)","v":""},81]
[null,null,null,null,null,null,null,null,null,null,null,null,null,null,null,null,null,null,null,null,null,null,null,null,null,null,null,null,null,null,null,null,null,null,null,null,null,null,null,null,{"$f":"'Sabana por grupo'!A285","v":0},{"$f":"'Sabana por grupo'!C285","v":0},0,{"$error":"#VALUE!"},{"$f":"'Sabana por grupo'!G285","v":0},{"$error":"#VALUE!"},{"$f":"MID('Sabana por grupo'!B285,1,2)","v":""},81]
[null,null,null,null,null,null,null,null,null,null,null,null,null,null,null,null,null,null,null,null,null,null,null,null,null,null,null,null,null,null,null,null,null,null,null,null,null,null,null,null,{"$f":"'Sabana por grupo'!A286","v":0},{"$f":"'Sabana por grupo'!C286","v":0},0,{"$error":"#VALUE!"},{"$f":"'Sabana por grupo'!G286","v":0},{"$error":"#VALUE!"},{"$f":"MID('Sabana por grupo'!B286,1,2)","v":""},81]
[null,null,null,null,null,null,null,null,null,null,null,null,null,null,null,null,null,null,null,null,null,null,null,null,null,null,null,null,null,null,null,null,null,null,null,null,null,null,null,null,{"$f":"'Sabana por grupo'!A287","v":0},{"$f":"'Sabana por grupo'!C287","v":0},0,{"$error":"#VALUE!"},{"$f":"'Sabana por grupo'!G287","v":0},{"$error":"#VALUE!"},{"$f":"MID('Sabana por grupo'!B287,1,2)","v":""},81]
[null,null,null,null,null,null,null,null,null,null,null,null,null,null,null,null,null,null,null,null,null,null,null,null,null,null,null,null,null,null,null,null,null,null,null,null,null,null,null,null,{"$f":"'Sabana por grupo'!A288","v":0},{"$f":"'Sabana por grupo'!C288","v":0},0,{"$error":"#VALUE!"},{"$f":"'Sabana por grupo'!G288","v":0},{"$error":"#VALUE!"},{"$f":"MID('Sabana por grupo'!B288,1,2)","v":""},81]
[null,null,null,null,null,null,null,null,null,null,null,null,null,null,null,null,null,null,null,null,null,null,null,null,null,null,null,null,null,null,null,null,null,null,null,null,null,null,null,null,{"$f":"'Sabana por grupo'!A289","v":0},{"$f":"'Sabana por grupo'!C289","v":0},0,{"$error":"#VALUE!"},{"$f":"'Sabana por grupo'!G289","v":0},{"$error":"#VALUE!"},{"$f":"MID('Sabana por grupo'!B289,1,2)","v":""},81]
[null,null,null,null,null,null,null,null,null,null,null,null,null,null,null,null,null,null,null,null,null,null,null,null,null,null,null,null,null,null,null,null,null,null,null,null,null,null,null,null,{"$f":"'Sabana por grupo'!A290","v":0},{"$f":"'Sabana por grupo'!C290","v":0},0,{"$error":"#VALUE!"},{"$f":"'Sabana por grupo'!G290","v":0},{"$error":"#VALUE!"},{"$f":"MID('Sabana por grupo'!B290,1,2)","v":""},81]
[null,null,null,null,null,null,null,null,null,null,null,null,null,null,null,null,null,null,null,null,null,null,null,null,null,null,null,null,null,null,null,null,null,null,null,null,null,null,null,null,{"$f":"'Sabana por grupo'!A291","v":0},{"$f":"'Sabana por grupo'!C291","v":0},0,{"$error":"#VALUE!"},{"$f":"'Sabana por grupo'!G291","v":0},{"$error":"#VALUE!"},{"$f":"MID('Sabana por grupo'!B291,1,2)","v":""},81]
[null,null,null,null,null,null,null,null,null,null,null,null,null,null,null,null,null,null,null,null,null,null,null,null,null,null,null,null,null,null,null,null,null,null,null,null,null,null,null,null,{"$f":"'Sabana por grupo'!A292","v":0},{"$f":"'Sabana por grupo'!C292","v":0},0,{"$error":"#VALUE!"},{"$f":"'Sabana por grupo'!G292","v":0},{"$error":"#VALUE!"},{"$f":"MID('Sabana por grupo'!B292,1,2)","v":""},81]
[null,null,null,null,null,null,null,null,null,null,null,null,null,null,null,null,null,null,null,null,null,null,null,null,null,null,null,null,null,null,null,null,null,null,null,null,null,null,null,null,{"$f":"'Sabana por grupo'!A293","v":0},{"$f":"'Sabana por grupo'!C293","v":0},0,{"$error":"#VALUE!"},{"$f":"'Sabana por grupo'!G293","v":0},{"$error":"#VALUE!"},{"$f":"MID('Sabana por grupo'!B293,1,2)","v":""},81]
[null,null,null,null,null,null,null,null,null,null,null,null,null,null,null,null,null,null,null,null,null,null,null,null,null,null,null,null,null,null,null,null,null,null,null,null,null,null,null,null,{"$f":"'Sabana por grupo'!A294","v":0},{"$f":"'Sabana por grupo'!C294","v":0},0,{"$error":"#VALUE!"},{"$f":"'Sabana por grupo'!G294","v":0},{"$error":"#VALUE!"},{"$f":"MID('Sabana por grupo'!B294,1,2)","v":""},81]
[null,null,null,null,null,null,null,null,null,null,null,null,null,null,null,null,null,null,null,null,null,null,null,null,null,null,null,null,null,null,null,null,null,null,null,null,null,null,null,null,{"$f":"'Sabana por grupo'!A295","v":0},{"$f":"'Sabana por grupo'!C295","v":0},0,{"$error":"#VALUE!"},{"$f":"'Sabana por grupo'!G295","v":0},{"$error":"#VALUE!"},{"$f":"MID('Sabana por grupo'!B295,1,2)","v":""},81]
[null,null,null,null,null,null,null,null,null,null,null,null,null,null,null,null,null,null,null,null,null,null,null,null,null,null,null,null,null,null,null,null,null,null,null,null,null,null,null,null,{"$f":"'Sabana por grupo'!A296","v":0},{"$f":"'Sabana por grupo'!C296","v":0},0,{"$error":"#VALUE!"},{"$f":"'Sabana por grupo'!G296","v":0},{"$error":"#VALUE!"},{"$f":"MID('Sabana por grupo'!B296,1,2)","v":""},81]
[null,null,null,null,null,null,null,null,null,null,null,null,null,null,null,null,null,null,null,null,null,null,null,null,null,null,null,null,null,null,null,null,null,null,null,null,null,null,null,null,{"$f":"'Sabana por grupo'!A297","v":0},{"$f":"'Sabana por grupo'!C297","v":0},0,{"$error":"#VALUE!"},{"$f":"'Sabana por grupo'!G297","v":0},{"$error":"#VALUE!"},{"$f":"MID('Sabana por grupo'!B297,1,2)","v":""},81]
[null,null,null,null,null,null,null,null,null,null,null,null,null,null,null,null,null,null,null,null,null,null,null,null,null,null,null,null,null,null,null,null,null,null,null,null,null,null,null,null,{"$f":"'Sabana por grupo'!A298","v":0},{"$f":"'Sabana por grupo'!C298","v":0},0,{"$error":"#VALUE!"},{"$f":"'Sabana por grupo'!G298","v":0},{"$error":"#VALUE!"},{"$f":"MID('Sabana por grupo'!B298,1,2)","v":""},81]
[null,null,null,null,null,null,null,null,null,null,null,null,null,null,null,null,null,null,null,null,null,null,null,null,null,null,null,null,null,null,null,null,null,null,null,null,null,null,null,null,{"$f":"'Sabana por grupo'!A299","v":0},{"$f":"'Sabana por grupo'!C299","v":0},0,{"$error":"#VALUE!"},{"$f":"'Sabana por grupo'!G299","v":0},{"$error":"#VALUE!"},{"$f":"MID('Sabana por grupo'!B299,1,2)","v":""},81]
[null,null,null,null,null,null,null,null,null,null,null,null,null,null,null,null,null,null,null,null,null,null,null,null,null,null,null,null,null,null,null,null,null,null,null,null,null,null,null,null,{"$f":"'Sabana por grupo'!A300","v":0},{"$f":"'Sabana por grupo'!C300","v":0},0,{"$error":"#VALUE!"},{"$f":"'Sabana por grupo'!G300","v":0},{"$error":"#VALUE!"},{"$f":"MID('Sabana por grupo'!B300,1,2)","v":""},81]
[null,null,null,null,null,null,null,null,null,null,null,null,null,null,null,null,null,null,null,null,null,null,null,null,null,null,null,null,null,null,null,null,null,null,null,null,null,null,null,null,{"$f":"'Sabana por grupo'!A301","v":0},{"$f":"'Sabana por grupo'!C301","v":0},0,{"$error":"#VALUE!"},{"$f":"'Sabana por grupo'!G301","v":0},{"$error":"#VALUE!"},{"$f":"MID('Sabana por grupo'!B301,1,2)","v":""},81]
[null,null,null,null,null,null,null,null,null,null,null,null,null,null,null,null,null,null,null,null,null,null,null,null,null,null,null,null,null,null,null,null,null,null,null,null,null,null,null,null,{"$f":"'Sabana por grupo'!A302","v":0},{"$f":"'Sabana por grupo'!C302","v":0},0,{"$error":"#VALUE!"},{"$f":"'Sabana por grupo'!G302","v":0},{"$error":"#VALUE!"},{"$f":"MID('Sabana por grupo'!B302,1,2)","v":""},81]
[null,null,null,null,null,null,null,null,null,null,null,null,null,null,null,null,null,null,null,null,null,null,null,null,null,null,null,null,null,null,null,null,null,null,null,null,null,null,null,null,{"$f":"'Sabana por grupo'!A303","v":0},{"$f":"'Sabana por grupo'!C303","v":0},0,{"$error":"#VALUE!"},{"$f":"'Sabana por grupo'!G303","v":0},{"$error":"#VALUE!"},{"$f":"MID('Sabana por grupo'!B303,1,2)","v":""},81]
[null,null,null,null,null,null,null,null,null,null,null,null,null,null,null,null,null,null,null,null,null,null,null,null,null,null,null,null,null,null,null,null,null,null,null,null,null,null,null,null,{"$f":"'Sabana por grupo'!A304","v":0},{"$f":"'Sabana por grupo'!C304","v":0},0,{"$error":"#VALUE!"},{"$f":"'Sabana por grupo'!G304","v":0},{"$error":"#VALUE!"},{"$f":"MID('Sabana por grupo'!B304,1,2)","v":""},81]
[null,null,null,null,null,null,null,null,null,null,null,null,null,null,null,null,null,null,null,null,null,null,null,null,null,null,null,null,null,null,null,null,null,null,null,null,null,null,null,null,{"$f":"'Sabana por grupo'!A305","v":0},{"$f":"'Sabana por grupo'!C305","v":0},0,{"$error":"#VALUE!"},{"$f":"'Sabana por grupo'!G305","v":0},{"$error":"#VALUE!"},{"$f":"MID('Sabana por grupo'!B305,1,2)","v":""},81]
[null,null,null,null,null,null,null,null,null,null,null,null,null,null,null,null,null,null,null,null,null,null,null,null,null,null,null,null,null,null,null,null,null,null,null,null,null,null,null,null,{"$f":"'Sabana por grupo'!A306","v":0},{"$f":"'Sabana por grupo'!C306","v":0},0,{"$error":"#VALUE!"},{"$f":"'Sabana por grupo'!G306","v":0},{"$error":"#VALUE!"},{"$f":"MID('Sabana por grupo'!B306,1,2)","v":""},81]
[null,null,null,null,null,null,null,null,null,null,null,null,null,null,null,null,null,null,null,null,null,null,null,null,null,null,null,null,null,null,null,null,null,null,null,null,null,null,null,null,{"$f":"'Sabana por grupo'!A307","v":0},{"$f":"'Sabana por grupo'!C307","v":0},0,{"$error":"#VALUE!"},{"$f":"'Sabana por grupo'!G307","v":0},{"$error":"#VALUE!"},{"$f":"MID('Sabana por grupo'!B307,1,2)","v":""},81]
[null,null,null,null,null,null,null,null,null,null,null,null,null,null,null,null,null,null,null,null,null,null,null,null,null,null,null,null,null,null,null,null,null,null,null,null,null,null,null,null,{"$f":"'Sabana por grupo'!A308","v":0},{"$f":"'Sabana por grupo'!C308","v":0},0,{"$error":"#VALUE!"},{"$f":"'Sabana por grupo'!G308","v":0},{"$error":"#VALUE!"},{"$f":"MID('Sabana por grupo'!B308,1,2)","v":""},81]
[null,null,null,null,null,null,null,null,null,null,null,null,null,null,null,null,null,null,null,null,null,null,null,null,null,null,null,null,null,null,null,null,null,null,null,null,null,null,null,null,{"$f":"'Sabana por grupo'!A309","v":0},{"$f":"'Sabana por grupo'!C309","v":0},0,{"$error":"#VALUE!"},{"$f":"'Sabana por grupo'!G309","v":0},{"$error":"#VALUE!"},{"$f":"MID('Sabana por grupo'!B309,1,2)","v":""},81]
[null,null,null,null,null,null,null,null,null,null,null,null,null,null,null,null,null,null,null,null,null,null,null,null,null,null,null,null,null,null,null,null,null,null,null,null,null,null,null,null,{"$f":"'Sabana por grupo'!A310","v":0},{"$f":"'Sabana por grupo'!C310","v":0},0,{"$error":"#VALUE!"},{"$f":"'Sabana por grupo'!G310","v":0},{"$error":"#VALUE!"},{"$f":"MID('Sabana por grupo'!B310,1,2)","v":""},81]
[null,null,null,null,null,null,null,null,null,null,null,null,null,null,null,null,null,null,null,null,null,null,null,null,null,null,null,null,null,null,null,null,null,null,null,null,null,null,null,null,{"$f":"'Sabana por grupo'!A311","v":0},{"$f":"'Sabana por grupo'!C311","v":0},0,{"$error":"#VALUE!"},{"$f":"'Sabana por grupo'!G311","v":0},{"$error":"#VALUE!"},{"$f":"MID('Sabana por grupo'!B311,1,2)","v":""},81]
[null,null,null,null,null,null,null,null,null,null,null,null,null,null,null,null,null,null,null,null,null,null,null,null,null,null,null,null,null,null,null,null,null,null,null,null,null,null,null,null,{"$f":"'Sabana por grupo'!A312","v":0},{"$f":"'Sabana por grupo'!C312","v":0},0,{"$error":"#VALUE!"},{"$f":"'Sabana por grupo'!G312","v":0},{"$error":"#VALUE!"},{"$f":"MID('Sabana por grupo'!B312,1,2)","v":""},81]
[null,null,null,null,null,null,null,null,null,null,null,null,null,null,null,null,null,null,null,null,null,null,null,null,null,null,null,null,null,null,null,null,null,null,null,null,null,null,null,null,{"$f":"'Sabana por grupo'!A313","v":0},{"$f":"'Sabana por grupo'!C313","v":0},0,{"$error":"#VALUE!"},{"$f":"'Sabana por grupo'!G313","v":0},{"$error":"#VALUE!"},{"$f":"MID('Sabana por grupo'!B313,1,2)","v":""},81]
[null,null,null,null,null,null,null,null,null,null,null,null,null,null,null,null,null,null,null,null,null,null,null,null,null,null,null,null,null,null,null,null,null,null,null,null,null,null,null,null,{"$f":"'Sabana por grupo'!A314","v":0},{"$f":"'Sabana por grupo'!C314","v":0},0,{"$error":"#VALUE!"},{"$f":"'Sabana por grupo'!G314","v":0},{"$error":"#VALUE!"},{"$f":"MID('Sabana por grupo'!B314,1,2)","v":""},81]
[null,null,null,null,null,null,null,null,null,null,null,null,null,null,null,null,null,null,null,null,null,null,null,null,null,null,null,null,null,null,null,null,null,null,null,null,null,null,null,null,{"$f":"'Sabana por grupo'!A315","v":0},{"$f":"'Sabana por grupo'!C315","v":0},0,{"$error":"#VALUE!"},{"$f":"'Sabana por grupo'!G315","v":0},{"$error":"#VALUE!"},{"$f":"MID('Sabana por grupo'!B315,1,2)","v":""},81]
[null,null,null,null,null,null,null,null,null,null,null,null,null,null,null,null,null,null,null,null,null,null,null,null,null,null,null,null,null,null,null,null,null,null,null,null,null,null,null,null,{"$f":"'Sabana por grupo'!A316","v":0},{"$f":"'Sabana por grupo'!C316","v":0},0,{"$error":"#VALUE!"},{"$f":"'Sabana por grupo'!G316","v":0},{"$error":"#VALUE!"},{"$f":"MID('Sabana por grupo'!B316,1,2)","v":""},81]
[null,null,null,null,null,null,null,null,null,null,null,null,null,null,null,null,null,null,null,null,null,null,null,null,null,null,null,null,null,null,null,null,null,null,null,null,null,null,null,null,{"$f":"'Sabana por grupo'!A317","v":0},{"$f":"'Sabana por grupo'!C317","v":0},0,{"$error":"#VALUE!"},{"$f":"'Sabana por grupo'!G317","v":0},{"$error":"#VALUE!"},{"$f":"MID('Sabana por grupo'!B317,1,2)","v":""},81]
[null,null,null,null,null,null,null,null,null,null,null,null,null,null,null,null,null,null,null,null,null,null,null,null,null,null,null,null,null,null,null,null,null,null,null,null,null,null,null,null,{"$f":"'Sabana por grupo'!A318","v":0},{"$f":"'Sabana por grupo'!C318","v":0},0,{"$error":"#VALUE!"},{"$f":"'Sabana por grupo'!G318","v":0},{"$error":"#VALUE!"},{"$f":"MID('Sabana por grupo'!B318,1,2)","v":""},81]
[null,null,null,null,null,null,null,null,null,null,null,null,null,null,null,null,null,null,null,null,null,null,null,null,null,null,null,null,null,null,null,null,null,null,null,null,null,null,null,null,{"$f":"'Sabana por grupo'!A319","v":0},{"$f":"'Sabana por grupo'!C319","v":0},0,{"$error":"#VALUE!"},{"$f":"'Sabana por grupo'!G319","v":0},{"$error":"#VALUE!"},{"$f":"MID('Sabana por grupo'!B319,1,2)","v":""},81]
[null,null,null,null,null,null,null,null,null,null,null,null,null,null,null,null,null,null,null,null,null,null,null,null,null,null,null,null,null,null,null,null,null,null,null,null,null,null,null,null,{"$f":"'Sabana por grupo'!A320","v":0},{"$f":"'Sabana por grupo'!C320","v":0},0,{"$error":"#VALUE!"},{"$f":"'Sabana por grupo'!G320","v":0},{"$error":"#VALUE!"},{"$f":"MID('Sabana por grupo'!B320,1,2)","v":""},81]
[null,null,null,null,null,null,null,null,null,null,null,null,null,null,null,null,null,null,null,null,null,null,null,null,null,null,null,null,null,null,null,null,null,null,null,null,null,null,null,null,{"$f":"'Sabana por grupo'!A321","v":0},{"$f":"'Sabana por grupo'!C321","v":0},0,{"$error":"#VALUE!"},{"$f":"'Sabana por grupo'!G321","v":0},{"$error":"#VALUE!"},{"$f":"MID('Sabana por grupo'!B321,1,2)","v":""},81]
[null,null,null,null,null,null,null,null,null,null,null,null,null,null,null,null,null,null,null,null,null,null,null,null,null,null,null,null,null,null,null,null,null,null,null,null,null,null,null,null,{"$f":"'Sabana por grupo'!A322","v":0},{"$f":"'Sabana por grupo'!C322","v":0},{"$f":"_xlfn.NUMBERVALUE(AU322)","v":0},{"$error":"#VALUE!"},{"$f":"'Sabana por grupo'!G322","v":0},{"$error":"#VALUE!"},{"$f":"MID('Sabana por grupo'!B322,1,2)","v":""},81]
[null,null,null,null,null,null,null,null,null,null,null,null,null,null,null,null,null,null,null,null,null,null,null,null,null,null,null,null,null,null,null,null,null,null,null,null,null,null,null,null,{"$f":"'Sabana por grupo'!A323","v":0},{"$f":"'Sabana por grupo'!C323","v":0},0,{"$f":"IF(AT323=0,\"N/A\",IF(AT323<$AX$2,\"Riesgo Menor\",IF(AT323<$AX$3,\"Riesgo Probable\",\"Atencion de Prioridad\")))","v":{"$error":"#VALUE!"}},{"$f":"'Sabana por grupo'!G323","v":0},{"$f":"(AU323/AV334)","v":{"$error":"#VALUE!"}},{"$f":"MID('Sabana por grupo'!B323,1,2)","v":""},81]
[null,null,null,null,null,null,null,null,null,null,null,null,null,null,null,null,null,null,null,null,null,null,null,null,null,null,null,null,null,null,null,null,null,null,null,null,null,null,null,null,{"$f":"'Sabana por grupo'!A324","v":0},{"$f":"'Sabana por grupo'!C324","v":0},0,{"$error":"#VALUE!"},{"$f":"'Sabana por grupo'!G324","v":0},{"$error":"#VALUE!"},{"$f":"MID('Sabana por grupo'!B324,1,2)","v":""},81]
[null,null,null,null,null,null,null,null,null,null,null,null,null,null,null,null,null,null,null,null,null,null,null,null,null,null,null,null,null,null,null,null,null,null,null,null,null,null,null,null,{"$f":"'Sabana por grupo'!A325","v":0},{"$f":"'Sabana por grupo'!C325","v":0},0,{"$error":"#VALUE!"},{"$f":"'Sabana por grupo'!G325","v":0},{"$error":"#VALUE!"},{"$f":"MID('Sabana por grupo'!B325,1,2)","v":""},81]
[null,null,null,null,null,null,null,null,null,null,null,null,null,null,null,null,null,null,null,null,null,null,null,null,null,null,null,null,null,null,null,null,null,null,null,null,null,null,null,null,{"$f":"'Sabana por grupo'!A326","v":0},{"$f":"'Sabana por grupo'!C326","v":0},0,{"$error":"#VALUE!"},{"$f":"'Sabana por grupo'!G326","v":0},{"$error":"#VALUE!"},{"$f":"MID('Sabana por grupo'!B326,1,2)","v":""},81]
[null,null,null,null,null,null,null,null,null,null,null,null,null,null,null,null,null,null,null,null,null,null,null,null,null,null,null,null,null,null,null,null,null,null,null,null,null,null,null,null,{"$f":"'Sabana por grupo'!A327","v":0},{"$f":"'Sabana por grupo'!C327","v":0},0,{"$error":"#VALUE!"},{"$f":"'Sabana por grupo'!G327","v":0},{"$error":"#VALUE!"},{"$f":"MID('Sabana por grupo'!B327,1,2)","v":""},81]
[null,null,null,null,null,null,null,null,null,null,null,null,null,null,null,null,null,null,null,null,null,null,null,null,null,null,null,null,null,null,null,null,null,null,null,null,null,null,null,null,{"$f":"'Sabana por grupo'!A328","v":0},{"$f":"'Sabana por grupo'!C328","v":0},0,{"$error":"#VALUE!"},{"$f":"'Sabana por grupo'!G328","v":0},{"$error":"#VALUE!"},{"$f":"MID('Sabana por grupo'!B328,1,2)","v":""},81]
[null,null,null,null,null,null,null,null,null,null,null,null,null,null,null,null,null,null,null,null,null,null,null,null,null,null,null,null,null,null,null,null,null,null,null,null,null,null,null,null,{"$f":"'Sabana por grupo'!A329","v":0},{"$f":"'Sabana por grupo'!C329","v":0},0,{"$error":"#VALUE!"},{"$f":"'Sabana por grupo'!G329","v":0},{"$error":"#VALUE!"},{"$f":"MID('Sabana por grupo'!B329,1,2)","v":""},81]
[null,null,null,null,null,null,null,null,null,null,null,null,null,null,null,null,null,null,null,null,null,null,null,null,null,null,null,null,null,null,null,null,null,null,null,null,null,null,null,null,{"$f":"'Sabana por grupo'!A330","v":0},{"$f":"'Sabana por grupo'!C330","v":0},0,{"$error":"#VALUE!"},{"$f":"'Sabana por grupo'!G330","v":0},{"$error":"#VALUE!"},{"$f":"MID('Sabana por grupo'!B330,1,2)","v":""},81]
[null,null,null,null,null,null,null,null,null,null,null,null,null,null,null,null,null,null,null,null,null,null,null,null,null,null,null,null,null,null,null,null,null,null,null,null,null,null,null,null,{"$f":"'Sabana por grupo'!A331","v":0},{"$f":"'Sabana por grupo'!C331","v":0},0,{"$error":"#VALUE!"},{"$f":"'Sabana por grupo'!G331","v":0},{"$error":"#VALUE!"},{"$f":"MID('Sabana por grupo'!B331,1,2)","v":""},81]
[null,null,null,null,null,null,null,null,null,null,null,null,null,null,null,null,null,null,null,null,null,null,null,null,null,null,null,null,null,null,null,null,null,null,null,null,null,null,null,null,{"$f":"'Sabana por grupo'!A332","v":0},{"$f":"'Sabana por grupo'!C332","v":0},0,{"$error":"#VALUE!"},{"$f":"'Sabana por grupo'!G332","v":0},{"$error":"#VALUE!"},{"$f":"MID('Sabana por grupo'!B332,1,2)","v":""},81]
[null,null,null,null,null,null,null,null,null,null,null,null,null,null,null,null,null,null,null,null,null,null,null,null,null,null,null,null,null,null,null,null,null,null,null,null,null,null,null,null,{"$f":"'Sabana por grupo'!A333","v":0},{"$f":"'Sabana por grupo'!C333","v":0},0,{"$error":"#VALUE!"},{"$f":"'Sabana por grupo'!G333","v":0},{"$error":"#VALUE!"},{"$f":"MID('Sabana por grupo'!B333,1,2)","v":""},81]
[null,null,null,null,null,null,null,null,null,null,null,null,null,null,null,null,null,null,null,null,null,null,null,null,null,null,null,null,null,null,null,null,null,null,null,null,null,null,null,null,{"$f":"'Sabana por grupo'!A334","v":0},{"$f":"'Sabana por grupo'!C334","v":0},0,{"$error":"#VALUE!"},{"$f":"'Sabana por grupo'!G334","v":0},{"$error":"#VALUE!"},{"$f":"MID('Sabana por grupo'!B334,1,2)","v":""},81]
[null,null,null,null,null,null,null,null,null,null,null,null,null,null,null,null,null,null,null,null,null,null,null,null,null,null,null,null,null,null,null,null,null,null,null,null,null,null,null,null,{"$f":"'Sabana por grupo'!A335","v":0},{"$f":"'Sabana por grupo'!C335","v":0},0,{"$error":"#VALUE!"},{"$f":"'Sabana por grupo'!G335","v":0},{"$error":"#VALUE!"},{"$f":"MID('Sabana por grupo'!B335,1,2)","v":""},81]
[null,null,null,null,null,null,null,null,null,null,null,null,null,null,null,null,null,null,null,null,null,null,null,null,null,null,null,null,null,null,null,null,null,null,null,null,null,null,null,null,{"$f":"'Sabana por grupo'!A336","v":0},{"$f":"'Sabana por grupo'!C336","v":0},0,{"$error":"#VALUE!"},{"$f":"'Sabana por grupo'!G336","v":0},{"$error":"#VALUE!"},{"$f":"MID('Sabana por grupo'!B336,1,2)","v":""},81]
[null,null,null,null,null,null,null,null,null,null,null,null,null,null,null,null,null,null,null,null,null,null,null,null,null,null,null,null,null,null,null,null,null,null,null,null,null,null,null,null,{"$f":"'Sabana por grupo'!A337","v":0},{"$f":"'Sabana por grupo'!C337","v":0},0,{"$error":"#VALUE!"},{"$f":"'Sabana por grupo'!G337","v":0},{"$error":"#VALUE!"},{"$f":"MID('Sabana por grupo'!B337,1,2)","v":""},81]
[null,null,null,null,null,null,null,null,null,null,null,null,null,null,null,null,null,null,null,null,null,null,null,null,null,null,null,null,null,null,null,null,null,null,null,null,null,null,null,null,{"$f":"'Sabana por grupo'!A338","v":0},{"$f":"'Sabana por grupo'!C338","v":0},0,{"$error":"#VALUE!"},{"$f":"'Sabana por grupo'!G338","v":0},{"$error":"#VALUE!"},{"$f":"MID('Sabana por grupo'!B338,1,2)","v":""},81]
[null,null,null,null,null,null,null,null,null,null,null,null,null,null,null,null,null,null,null,null,null,null,null,null,null,null,null,null,null,null,null,null,null,null,null,null,null,null,null,null,{"$f":"'Sabana por grupo'!A339","v":0},{"$f":"'Sabana por grupo'!C339","v":0},0,{"$error":"#VALUE!"},{"$f":"'Sabana por grupo'!G339","v":0},{"$error":"#VALUE!"},{"$f":"MID('Sabana por grupo'!B339,1,2)","v":""},81]
[null,null,null,null,null,null,null,null,null,null,null,null,null,null,null,null,null,null,null,null,null,null,null,null,null,null,null,null,null,null,null,null,null,null,null,null,null,null,null,null,{"$f":"'Sabana por grupo'!A340","v":0},{"$f":"'Sabana por grupo'!C340","v":0},0,{"$error":"#VALUE!"},{"$f":"'Sabana por grupo'!G340","v":0},{"$error":"#VALUE!"},{"$f":"MID('Sabana por grupo'!B340,1,2)","v":""},81]
[null,null,null,null,null,null,null,null,null,null,null,null,null,null,null,null,null,null,null,null,null,null,null,null,null,null,null,null,null,null,null,null,null,null,null,null,null,null,null,null,{"$f":"'Sabana por grupo'!A341","v":0},{"$f":"'Sabana por grupo'!C341","v":0},0,{"$error":"#VALUE!"},{"$f":"'Sabana por grupo'!G341","v":0},{"$error":"#VALUE!"},{"$f":"MID('Sabana por grupo'!B341,1,2)","v":""},81]
[null,null,null,null,null,null,null,null,null,null,null,null,null,null,null,null,null,null,null,null,null,null,null,null,null,null,null,null,null,null,null,null,null,null,null,null,null,null,null,null,{"$f":"'Sabana por grupo'!A342","v":0},{"$f":"'Sabana por grupo'!C342","v":0},0,{"$error":"#VALUE!"},{"$f":"'Sabana por grupo'!G342","v":0},{"$error":"#VALUE!"},{"$f":"MID('Sabana por grupo'!B342,1,2)","v":""},81]
[null,null,null,null,null,null,null,null,null,null,null,null,null,null,null,null,null,null,null,null,null,null,null,null,null,null,null,null,null,null,null,null,null,null,null,null,null,null,null,null,{"$f":"'Sabana por grupo'!A343","v":0},{"$f":"'Sabana por grupo'!C343","v":0},0,{"$error":"#VALUE!"},{"$f":"'Sabana por grupo'!G343","v":0},{"$error":"#VALUE!"},{"$f":"MID('Sabana por grupo'!B343,1,2)","v":""},81]
[null,null,null,null,null,null,null,null,null,null,null,null,null,null,null,null,null,null,null,null,null,null,null,null,null,null,null,null,null,null,null,null,null,null,null,null,null,null,null,null,{"$f":"'Sabana por grupo'!A344","v":0},{"$f":"'Sabana por grupo'!C344","v":0},0,{"$error":"#VALUE!"},{"$f":"'Sabana por grupo'!G344","v":0},{"$error":"#VALUE!"},{"$f":"MID('Sabana por grupo'!B344,1,2)","v":""},81]
[null,null,null,null,null,null,null,null,null,null,null,null,null,null,null,null,null,null,null,null,null,null,null,null,null,null,null,null,null,null,null,null,null,null,null,null,null,null,null,null,{"$f":"'Sabana por grupo'!A345","v":0},{"$f":"'Sabana por grupo'!C345","v":0},0,{"$error":"#VALUE!"},{"$f":"'Sabana por grupo'!G345","v":0},{"$error":"#VALUE!"},{"$f":"MID('Sabana por grupo'!B345,1,2)","v":""},81]
[null,null,null,null,null,null,null,null,null,null,null,null,null,null,null,null,null,null,null,null,null,null,null,null,null,null,null,null,null,null,null,null,null,null,null,null,null,null,null,null,{"$f":"'Sabana por grupo'!A346","v":0},{"$f":"'Sabana por grupo'!C346","v":0},0,{"$error":"#VALUE!"},{"$f":"'Sabana por grupo'!G346","v":0},{"$error":"#VALUE!"},{"$f":"MID('Sabana por grupo'!B346,1,2)","v":""},81]
[null,null,null,null,null,null,null,null,null,null,null,null,null,null,null,null,null,null,null,null,null,null,null,null,null,null,null,null,null,null,null,null,null,null,null,null,null,null,null,null,{"$f":"'Sabana por grupo'!A347","v":0},{"$f":"'Sabana por grupo'!C347","v":0},0,{"$error":"#VALUE!"},{"$f":"'Sabana por grupo'!G347","v":0},{"$error":"#VALUE!"},{"$f":"MID('Sabana por grupo'!B347,1,2)","v":""},81]
[null,null,null,null,null,null,null,null,null,null,null,null,null,null,null,null,null,null,null,null,null,null,null,null,null,null,null,null,null,null,null,null,null,null,null,null,null,null,null,null,{"$f":"'Sabana por grupo'!A348","v":0},{"$f":"'Sabana por grupo'!C348","v":0},0,{"$error":"#VALUE!"},{"$f":"'Sabana por grupo'!G348","v":0},{"$error":"#VALUE!"},{"$f":"MID('Sabana por grupo'!B348,1,2)","v":""},81]
[null,null,null,null,null,null,null,null,null,null,null,null,null,null,null,null,null,null,null,null,null,null,null,null,null,null,null,null,null,null,null,null,null,null,null,null,null,null,null,null,{"$f":"'Sabana por grupo'!A349","v":0},{"$f":"'Sabana por grupo'!C349","v":0},0,{"$error":"#VALUE!"},{"$f":"'Sabana por grupo'!G349","v":0},{"$error":"#VALUE!"},{"$f":"MID('Sabana por grupo'!B349,1,2)","v":""},81]
[null,null,null,null,null,null,null,null,null,null,null,null,null,null,null,null,null,null,null,null,null,null,null,null,null,null,null,null,null,null,null,null,null,null,null,null,null,null,null,null,{"$f":"'Sabana por grupo'!A350","v":0},{"$f":"'Sabana por grupo'!C350","v":0},0,{"$error":"#VALUE!"},{"$f":"'Sabana por grupo'!G350","v":0},{"$error":"#VALUE!"},{"$f":"MID('Sabana por grupo'!B350,1,2)","v":""},81]
[null,null,null,null,null,null,null,null,null,null,null,null,null,null,null,null,null,null,null,null,null,null,null,null,null,null,null,null,null,null,null,null,null,null,null,null,null,null,null,null,{"$f":"'Sabana por grupo'!A351","v":0},{"$f":"'Sabana por grupo'!C351","v":0},0,{"$error":"#VALUE!"},{"$f":"'Sabana por grupo'!G351","v":0},{"$error":"#VALUE!"},{"$f":"MID('Sabana por grupo'!B351,1,2)","v":""},81]
[null,null,null,null,null,null,null,null,null,null,null,null,null,null,null,null,null,null,null,null,null,null,null,null,null,null,null,null,null,null,null,null,null,null,null,null,null,null,null,null,{"$f":"'Sabana por grupo'!A352","v":0},{"$f":"'Sabana por grupo'!C352","v":0},0,{"$error":"#VALUE!"},{"$f":"'Sabana por grupo'!G352","v":0},{"$error":"#VALUE!"},{"$f":"MID('Sabana por grupo'!B352,1,2)","v":""},81]
[null,null,null,null,null,null,null,null,null,null,null,null,null,null,null,null,null,null,null,null,null,null,null,null,null,null,null,null,null,null,null,null,null,null,null,null,null,null,null,null,{"$f":"'Sabana por grupo'!A353","v":0},{"$f":"'Sabana por grupo'!C353","v":0},0,{"$error":"#VALUE!"},{"$f":"'Sabana por grupo'!G353","v":0},{"$error":"#VALUE!"},{"$f":"MID('Sabana por grupo'!B353,1,2)","v":""},81]
[null,null,null,null,null,null,null,null,null,null,null,null,null,null,null,null,null,null,null,null,null,null,null,null,null,null,null,null,null,null,null,null,null,null,null,null,null,null,null,null,{"$f":"'Sabana por grupo'!A354","v":0},{"$f":"'Sabana por grupo'!C354","v":0},0,{"$error":"#VALUE!"},{"$f":"'Sabana por grupo'!G354","v":0},{"$error":"#VALUE!"},{"$f":"MID('Sabana por grupo'!B354,1,2)","v":""},81]
[null,null,null,null,null,null,null,null,null,null,null,null,null,null,null,null,null,null,null,null,null,null,null,null,null,null,null,null,null,null,null,null,null,null,null,null,null,null,null,null,{"$f":"'Sabana por grupo'!A355","v":0},{"$f":"'Sabana por grupo'!C355","v":0},0,{"$error":"#VALUE!"},{"$f":"'Sabana por grupo'!G355","v":0},{"$error":"#VALUE!"},{"$f":"MID('Sabana por grupo'!B355,1,2)","v":""},81]
[null,null,null,null,null,null,null,null,null,null,null,null,null,null,null,null,null,null,null,null,null,null,null,null,null,null,null,null,null,null,null,null,null,null,null,null,null,null,null,null,{"$f":"'Sabana por grupo'!A356","v":0},{"$f":"'Sabana por grupo'!C356","v":0},0,{"$error":"#VALUE!"},{"$f":"'Sabana por grupo'!G356","v":0},{"$error":"#VALUE!"},{"$f":"MID('Sabana por grupo'!B356,1,2)","v":""},81]
[null,null,null,null,null,null,null,null,null,null,null,null,null,null,null,null,null,null,null,null,null,null,null,null,null,null,null,null,null,null,null,null,null,null,null,null,null,null,null,null,{"$f":"'Sabana por grupo'!A357","v":0},{"$f":"'Sabana por grupo'!C357","v":0},0,{"$error":"#VALUE!"},{"$f":"'Sabana por grupo'!G357","v":0},{"$error":"#VALUE!"},{"$f":"MID('Sabana por grupo'!B357,1,2)","v":""},81]
[null,null,null,null,null,null,null,null,null,null,null,null,null,null,null,null,null,null,null,null,null,null,null,null,null,null,null,null,null,null,null,null,null,null,null,null,null,null,null,null,{"$f":"'Sabana por grupo'!A358","v":0},{"$f":"'Sabana por grupo'!C358","v":0},0,{"$error":"#VALUE!"},{"$f":"'Sabana por grupo'!G358","v":0},{"$error":"#VALUE!"},{"$f":"MID('Sabana por grupo'!B358,1,2)","v":""},81]
[null,null,null,null,null,null,null,null,null,null,null,null,null,null,null,null,null,null,null,null,null,null,null,null,null,null,null,null,null,null,null,null,null,null,null,null,null,null,null,null,{"$f":"'Sabana por grupo'!A359","v":0},{"$f":"'Sabana por grupo'!C359","v":0},0,{"$error":"#VALUE!"},{"$f":"'Sabana por grupo'!G359","v":0},{"$error":"#VALUE!"},{"$f":"MID('Sabana por grupo'!B359,1,2)","v":""},81]
[null,null,null,null,null,null,null,null,null,null,null,null,null,null,null,null,null,null,null,null,null,null,null,null,null,null,null,null,null,null,null,null,null,null,null,null,null,null,null,null,{"$f":"'Sabana por grupo'!A360","v":0},{"$f":"'Sabana por grupo'!C360","v":0},0,{"$error":"#VALUE!"},{"$f":"'Sabana por grupo'!G360","v":0},{"$error":"#VALUE!"},{"$f":"MID('Sabana por grupo'!B360,1,2)","v":""},81]
[null,null,null,null,null,null,null,null,null,null,null,null,null,null,null,null,null,null,null,null,null,null,null,null,null,null,null,null,null,null,null,null,null,null,null,null,null,null,null,null,{"$f":"'Sabana por grupo'!A361","v":0},{"$f":"'Sabana por grupo'!C361","v":0},0,{"$error":"#VALUE!"},{"$f":"'Sabana por grupo'!G361","v":0},{"$error":"#VALUE!"},{"$f":"MID('Sabana por grupo'!B361,1,2)","v":""},81]
[null,null,null,null,null,null,null,null,null,null,null,null,null,null,null,null,null,null,null,null,null,null,null,null,null,null,null,null,null,null,null,null,null,null,null,null,null,null,null,null,{"$f":"'Sabana por grupo'!A362","v":0},{"$f":"'Sabana por grupo'!C362","v":0},0,{"$error":"#VALUE!"},{"$f":"'Sabana por grupo'!G362","v":0},{"$error":"#VALUE!"},{"$f":"MID('Sabana por grupo'!B362,1,2)","v":""},81]
[null,null,null,null,null,null,null,null,null,null,null,null,null,null,null,null,null,null,null,null,null,null,null,null,null,null,null,null,null,null,null,null,null,null,null,null,null,null,null,null,{"$f":"'Sabana por grupo'!A363","v":0},{"$f":"'Sabana por grupo'!C363","v":0},0,{"$error":"#VALUE!"},{"$f":"'Sabana por grupo'!G363","v":0},{"$error":"#VALUE!"},{"$f":"MID('Sabana por grupo'!B363,1,2)","v":""},81]
[null,null,null,null,null,null,null,null,null,null,null,null,null,null,null,null,null,null,null,null,null,null,null,null,null,null,null,null,null,null,null,null,null,null,null,null,null,null,null,null,{"$f":"'Sabana por grupo'!A364","v":0},{"$f":"'Sabana por grupo'!C364","v":0},0,{"$error":"#VALUE!"},{"$f":"'Sabana por grupo'!G364","v":0},{"$error":"#VALUE!"},{"$f":"MID('Sabana por grupo'!B364,1,2)","v":""},81]
[null,null,null,null,null,null,null,null,null,null,null,null,null,null,null,null,null,null,null,null,null,null,null,null,null,null,null,null,null,null,null,null,null,null,null,null,null,null,null,null,{"$f":"'Sabana por grupo'!A365","v":0},{"$f":"'Sabana por grupo'!C365","v":0},0,{"$error":"#VALUE!"},{"$f":"'Sabana por grupo'!G365","v":0},{"$error":"#VALUE!"},{"$f":"MID('Sabana por grupo'!B365,1,2)","v":""},81]
[null,null,null,null,null,null,null,null,null,null,null,null,null,null,null,null,null,null,null,null,null,null,null,null,null,null,null,null,null,null,null,null,null,null,null,null,null,null,null,null,{"$f":"'Sabana por grupo'!A366","v":0},{"$f":"'Sabana por grupo'!C366","v":0},0,{"$error":"#VALUE!"},{"$f":"'Sabana por grupo'!G366","v":0},{"$error":"#VALUE!"},{"$f":"MID('Sabana por grupo'!B366,1,2)","v":""},81]
[null,null,null,null,null,null,null,null,null,null,null,null,null,null,null,null,null,null,null,null,null,null,null,null,null,null,null,null,null,null,null,null,null,null,null,null,null,null,null,null,{"$f":"'Sabana por grupo'!A367","v":0},{"$f":"'Sabana por grupo'!C367","v":0},0,{"$error":"#VALUE!"},{"$f":"'Sabana por grupo'!G367","v":0},{"$error":"#VALUE!"},{"$f":"MID('Sabana por grupo'!B367,1,2)","v":""},81]
[null,null,null,null,null,null,null,null,null,null,null,null,null,null,null,null,null,null,null,null,null,null,null,null,null,null,null,null,null,null,null,null,null,null,null,null,null,null,null,null,{"$f":"'Sabana por grupo'!A368","v":0},{"$f":"'Sabana por grupo'!C368","v":0},0,{"$error":"#VALUE!"},{"$f":"'Sabana por grupo'!G368","v":0},{"$error":"#VALUE!"},{"$f":"MID('Sabana por grupo'!B368,1,2)","v":""},81]
[null,null,null,null,null,null,null,null,null,null,null,null,null,null,null,null,null,null,null,null,null,null,null,null,null,null,null,null,null,null,null,null,null,null,null,null,null,null,null,null,{"$f":"'Sabana por grupo'!A369","v":0},{"$f":"'Sabana por grupo'!C369","v":0},0,{"$error":"#VALUE!"},{"$f":"'Sabana por grupo'!G369","v":0},{"$error":"#VALUE!"},{"$f":"MID('Sabana por grupo'!B369,1,2)","v":""},81]
[null,null,null,null,null,null,null,null,null,null,null,null,null,null,null,null,null,null,null,null,null,null,null,null,null,null,null,null,null,null,null,null,null,null,null,null,null,null,null,null,{"$f":"'Sabana por grupo'!A370","v":0},{"$f":"'Sabana por grupo'!C370","v":0},0,{"$error":"#VALUE!"},{"$f":"'Sabana por grupo'!G370","v":0},{"$error":"#VALUE!"},{"$f":"MID('Sabana por grupo'!B370,1,2)","v":""},81]
[null,null,null,null,null,null,null,null,null,null,null,null,null,null,null,null,null,null,null,null,null,null,null,null,null,null,null,null,null,null,null,null,null,null,null,null,null,null,null,null,{"$f":"'Sabana por grupo'!A371","v":0},{"$f":"'Sabana por grupo'!C371","v":0},0,{"$error":"#VALUE!"},{"$f":"'Sabana por grupo'!G371","v":0},{"$error":"#VALUE!"},{"$f":"MID('Sabana por grupo'!B371,1,2)","v":""},81]
[null,null,null,null,null,null,null,null,null,null,null,null,null,null,null,null,null,null,null,null,null,null,null,null,null,null,null,null,null,null,null,null,null,null,null,null,null,null,null,null,{"$f":"'Sabana por grupo'!A372","v":0},{"$f":"'Sabana por grupo'!C372","v":0},0,{"$error":"#VALUE!"},{"$f":"'Sabana por grupo'!G372","v":0},{"$error":"#VALUE!"},{"$f":"MID('Sabana por grupo'!B372,1,2)","v":""},81]
[null,null,null,null,null,null,null,null,null,null,null,null,null,null,null,null,null,null,null,null,null,null,null,null,null,null,null,null,null,null,null,null,null,null,null,null,null,null,null,null,{"$f":"'Sabana por grupo'!A373","v":0},{"$f":"'Sabana por grupo'!C373","v":0},0,{"$error":"#VALUE!"},{"$f":"'Sabana por grupo'!G373","v":0},{"$error":"#VALUE!"},{"$f":"MID('Sabana por grupo'!B373,1,2)","v":""},81]
[null,null,null,null,null,null,null,null,null,null,null,null,null,null,null,null,null,null,null,null,null,null,null,null,null,null,null,null,null,null,null,null,null,null,null,null,null,null,null,null,{"$f":"'Sabana por grupo'!A374","v":0},{"$f":"'Sabana por grupo'!C374","v":0},0,{"$error":"#VALUE!"},{"$f":"'Sabana por grupo'!G374","v":0},{"$error":"#VALUE!"},{"$f":"MID('Sabana por grupo'!B374,1,2)","v":""},81]
[null,null,null,null,null,null,null,null,null,null,null,null,null,null,null,null,null,null,null,null,null,null,null,null,null,null,null,null,null,null,null,null,null,null,null,null,null,null,null,null,{"$f":"'Sabana por grupo'!A375","v":0},{"$f":"'Sabana por grupo'!C375","v":0},0,{"$error":"#VALUE!"},{"$f":"'Sabana por grupo'!G375","v":0},{"$error":"#VALUE!"},{"$f":"MID('Sabana por grupo'!B375,1,2)","v":""},81]
[null,null,null,null,null,null,null,null,null,null,null,null,null,null,null,null,null,null,null,null,null,null,null,null,null,null,null,null,null,null,null,null,null,null,null,null,null,null,null,null,{"$f":"'Sabana por grupo'!A376","v":0},{"$f":"'Sabana por grupo'!C376","v":0},0,{"$error":"#VALUE!"},{"$f":"'Sabana por grupo'!G376","v":0},{"$error":"#VALUE!"},{"$f":"MID('Sabana por grupo'!B376,1,2)","v":""},81]
[null,null,null,null,null,null,null,null,null,null,null,null,null,null,null,null,null,null,null,null,null,null,null,null,null,null,null,null,null,null,null,null,null,null,null,null,null,null,null,null,{"$f":"'Sabana por grupo'!A377","v":0},{"$f":"'Sabana por grupo'!C377","v":0},0,{"$error":"#VALUE!"},{"$f":"'Sabana por grupo'!G377","v":0},{"$error":"#VALUE!"},{"$f":"MID('Sabana por grupo'!B377,1,2)","v":""},81]
[null,null,null,null,null,null,null,null,null,null,null,null,null,null,null,null,null,null,null,null,null,null,null,null,null,null,null,null,null,null,null,null,null,null,null,null,null,null,null,null,{"$f":"'Sabana por grupo'!A378","v":0},{"$f":"'Sabana por grupo'!C378","v":0},0,{"$error":"#VALUE!"},{"$f":"'Sabana por grupo'!G378","v":0},{"$error":"#VALUE!"},{"$f":"MID('Sabana por grupo'!B378,1,2)","v":""},81]
[null,null,null,null,null,null,null,null,null,null,null,null,null,null,null,null,null,null,null,null,null,null,null,null,null,null,null,null,null,null,null,null,null,null,null,null,null,null,null,null,{"$f":"'Sabana por grupo'!A379","v":0},{"$f":"'Sabana por grupo'!C379","v":0},0,{"$error":"#VALUE!"},{"$f":"'Sabana por grupo'!G379","v":0},{"$error":"#VALUE!"},{"$f":"MID('Sabana por grupo'!B379,1,2)","v":""},81]
[null,null,null,null,null,null,null,null,null,null,null,null,null,null,null,null,null,null,null,null,null,null,null,null,null,null,null,null,null,null,null,null,null,null,null,null,null,null,null,null,{"$f":"'Sabana por grupo'!A380","v":0},{"$f":"'Sabana por grupo'!C380","v":0},0,{"$error":"#VALUE!"},{"$f":"'Sabana por grupo'!G380","v":0},{"$error":"#VALUE!"},{"$f":"MID('Sabana por grupo'!B380,1,2)","v":""},81]
[null,null,null,null,null,null,null,null,null,null,null,null,null,null,null,null,null,null,null,null,null,null,null,null,null,null,null,null,null,null,null,null,null,null,null,null,null,null,null,null,{"$f":"'Sabana por grupo'!A381","v":0},{"$f":"'Sabana por grupo'!C381","v":0},0,{"$error":"#VALUE!"},{"$f":"'Sabana por grupo'!G381","v":0},{"$error":"#VALUE!"},{"$f":"MID('Sabana por grupo'!B381,1,2)","v":""},81]
[null,null,null,null,null,null,null,null,null,null,null,null,null,null,null,null,null,null,null,null,null,null,null,null,null,null,null,null,null,null,null,null,null,null,null,null,null,null,null,null,{"$f":"'Sabana por grupo'!A382","v":0},{"$f":"'Sabana por grupo'!C382","v":0},0,{"$error":"#VALUE!"},{"$f":"'Sabana por grupo'!G382","v":0},{"$error":"#VALUE!"},{"$f":"MID('Sabana por grupo'!B382,1,2)","v":""},81]
[null,null,null,null,null,null,null,null,null,null,null,null,null,null,null,null,null,null,null,null,null,null,null,null,null,null,null,null,null,null,null,null,null,null,null,null,null,null,null,null,{"$f":"'Sabana por grupo'!A383","v":0},{"$f":"'Sabana por grupo'!C383","v":0},0,{"$error":"#VALUE!"},{"$f":"'Sabana por grupo'!G383","v":0},{"$error":"#VALUE!"},{"$f":"MID('Sabana por grupo'!B383,1,2)","v":""},81]
[null,null,null,null,null,null,null,null,null,null,null,null,null,null,null,null,null,null,null,null,null,null,null,null,null,null,null,null,null,null,null,null,null,null,null,null,null,null,null,null,{"$f":"'Sabana por grupo'!A384","v":0},{"$f":"'Sabana por grupo'!C384","v":0},0,{"$error":"#VALUE!"},{"$f":"'Sabana por grupo'!G384","v":0},{"$error":"#VALUE!"},{"$f":"MID('Sabana por grupo'!B384,1,2)","v":""},81]
[null,null,null,null,null,null,null,null,null,null,null,null,null,null,null,null,null,null,null,null,null,null,null,null,null,null,null,null,null,null,null,null,null,null,null,null,null,null,null,null,{"$f":"'Sabana por grupo'!A385","v":0},{"$f":"'Sabana por grupo'!C385","v":0},0,{"$error":"#VALUE!"},{"$f":"'Sabana por grupo'!G385","v":0},{"$error":"#VALUE!"},{"$f":"MID('Sabana por grupo'!B385,1,2)","v":""},81]
[null,null,null,null,null,null,null,null,null,null,null,null,null,null,null,null,null,null,null,null,null,null,null,null,null,null,null,null,null,null,null,null,null,null,null,null,null,null,null,null,{"$f":"'Sabana por grupo'!A386","v":0},{"$f":"'Sabana por grupo'!C386","v":0},{"$f":"_xlfn.NUMBERVALUE(AU386)","v":0},{"$error":"#VALUE!"},{"$f":"'Sabana por grupo'!G386","v":0},{"$error":"#VALUE!"},{"$f":"MID('Sabana por grupo'!B386,1,2)","v":""},81]
[null,null,null,null,null,null,null,null,null,null,null,null,null,null,null,null,null,null,null,null,null,null,null,null,null,null,null,null,null,null,null,null,null,null,null,null,null,null,null,null,{"$f":"'Sabana por grupo'!A387","v":0},{"$f":"'Sabana por grupo'!C387","v":0},0,{"$f":"IF(AT387=0,\"N/A\",IF(AT387<$AX$2,\"Riesgo Menor\",IF(AT387<$AX$3,\"Riesgo Probable\",\"Atencion de Prioridad\")))","v":{"$error":"#VALUE!"}},{"$f":"'Sabana por grupo'!G387","v":0},{"$f":"(AU387/AV398)","v":{"$error":"#VALUE!"}},{"$f":"MID('Sabana por grupo'!B387,1,2)","v":""},81]
[null,null,null,null,null,null,null,null,null,null,null,null,null,null,null,null,null,null,null,null,null,null,null,null,null,null,null,null,null,null,null,null,null,null,null,null,null,null,null,null,{"$f":"'Sabana por grupo'!A388","v":0},{"$f":"'Sabana por grupo'!C388","v":0},0,{"$error":"#VALUE!"},{"$f":"'Sabana por grupo'!G388","v":0},{"$error":"#VALUE!"},{"$f":"MID('Sabana por grupo'!B388,1,2)","v":""},81]
[null,null,null,null,null,null,null,null,null,null,null,null,null,null,null,null,null,null,null,null,null,null,null,null,null,null,null,null,null,null,null,null,null,null,null,null,null,null,null,null,{"$f":"'Sabana por grupo'!A389","v":0},{"$f":"'Sabana por grupo'!C389","v":0},0,{"$error":"#VALUE!"},{"$f":"'Sabana por grupo'!G389","v":0},{"$error":"#VALUE!"},{"$f":"MID('Sabana por grupo'!B389,1,2)","v":""},81]
[null,null,null,null,null,null,null,null,null,null,null,null,null,null,null,null,null,null,null,null,null,null,null,null,null,null,null,null,null,null,null,null,null,null,null,null,null,null,null,null,{"$f":"'Sabana por grupo'!A390","v":0},{"$f":"'Sabana por grupo'!C390","v":0},0,{"$error":"#VALUE!"},{"$f":"'Sabana por grupo'!G390","v":0},{"$error":"#VALUE!"},{"$f":"MID('Sabana por grupo'!B390,1,2)","v":""},81]
[null,null,null,null,null,null,null,null,null,null,null,null,null,null,null,null,null,null,null,null,null,null,null,null,null,null,null,null,null,null,null,null,null,null,null,null,null,null,null,null,{"$f":"'Sabana por grupo'!A391","v":0},{"$f":"'Sabana por grupo'!C391","v":0},0,{"$error":"#VALUE!"},{"$f":"'Sabana por grupo'!G391","v":0},{"$error":"#VALUE!"},{"$f":"MID('Sabana por grupo'!B391,1,2)","v":""},81]
[null,null,null,null,null,null,null,null,null,null,null,null,null,null,null,null,null,null,null,null,null,null,null,null,null,null,null,null,null,null,null,null,null,null,null,null,null,null,null,null,{"$f":"'Sabana por grupo'!A392","v":0},{"$f":"'Sabana por grupo'!C392","v":0},0,{"$error":"#VALUE!"},{"$f":"'Sabana por grupo'!G392","v":0},{"$error":"#VALUE!"},{"$f":"MID('Sabana por grupo'!B392,1,2)","v":""},81]
[null,null,null,null,null,null,null,null,null,null,null,null,null,null,null,null,null,null,null,null,null,null,null,null,null,null,null,null,null,null,null,null,null,null,null,null,null,null,null,null,{"$f":"'Sabana por grupo'!A393","v":0},{"$f":"'Sabana por grupo'!C393","v":0},0,{"$error":"#VALUE!"},{"$f":"'Sabana por grupo'!G393","v":0},{"$error":"#VALUE!"},{"$f":"MID('Sabana por grupo'!B393,1,2)","v":""},81]
[null,null,null,null,null,null,null,null,null,null,null,null,null,null,null,null,null,null,null,null,null,null,null,null,null,null,null,null,null,null,null,null,null,null,null,null,null,null,null,null,{"$f":"'Sabana por grupo'!A394","v":0},{"$f":"'Sabana por grupo'!C394","v":0},0,{"$error":"#VALUE!"},{"$f":"'Sabana por grupo'!G394","v":0},{"$error":"#VALUE!"},{"$f":"MID('Sabana por grupo'!B394,1,2)","v":""},81]
[null,null,null,null,null,null,null,null,null,null,null,null,null,null,null,null,null,null,null,null,null,null,null,null,null,null,null,null,null,null,null,null,null,null,null,null,null,null,null,null,{"$f":"'Sabana por grupo'!A395","v":0},{"$f":"'Sabana por grupo'!C395","v":0},0,{"$error":"#VALUE!"},{"$f":"'Sabana por grupo'!G395","v":0},{"$error":"#VALUE!"},{"$f":"MID('Sabana por grupo'!B395,1,2)","v":""},81]
[null,null,null,null,null,null,null,null,null,null,null,null,null,null,null,null,null,null,null,null,null,null,null,null,null,null,null,null,null,null,null,null,null,null,null,null,null,null,null,null,{"$f":"'Sabana por grupo'!A396","v":0},{"$f":"'Sabana por grupo'!C396","v":0},0,{"$error":"#VALUE!"},{"$f":"'Sabana por grupo'!G396","v":0},{"$error":"#VALUE!"},{"$f":"MID('Sabana por grupo'!B396,1,2)","v":""},81]
[null,null,null,null,null,null,null,null,null,null,null,null,null,null,null,null,null,null,null,null,null,null,null,null,null,null,null,null,null,null,null,null,null,null,null,null,null,null,null,null,{"$f":"'Sabana por grupo'!A397","v":0},{"$f":"'Sabana por grupo'!C397","v":0},0,{"$error":"#VALUE!"},{"$f":"'Sabana por grupo'!G397","v":0},{"$error":"#VALUE!"},{"$f":"MID('Sabana por grupo'!B397,1,2)","v":""},81]
[null,null,null,null,null,null,null,null,null,null,null,null,null,null,null,null,null,null,null,null,null,null,null,null,null,null,null,null,null,null,null,null,null,null,null,null,null,null,null,null,{"$f":"'Sabana por grupo'!A398","v":0},{"$f":"'Sabana por grupo'!C398","v":0},0,{"$error":"#VALUE!"},{"$f":"'Sabana por grupo'!G398","v":0},{"$error":"#VALUE!"},{"$f":"MID('Sabana por grupo'!B398,1,2)","v":""},81]
[null,null,null,null,null,null,null,null,null,null,null,null,null,null,null,null,null,null,null,null,null,null,null,null,null,null,null,null,null,null,null,null,null,null,null,null,null,null,null,null,{"$f":"'Sabana por grupo'!A399","v":0},{"$f":"'Sabana por grupo'!C399","v":0},0,{"$error":"#VALUE!"},{"$f":"'Sabana por grupo'!G399","v":0},{"$error":"#VALUE!"},{"$f":"MID('Sabana por grupo'!B399,1,2)","v":""},81]
[null,null,null,null,null,null,null,null,null,null,null,null,null,null,null,null,null,null,null,null,null,null,null,null,null,null,null,null,null,null,null,null,null,null,null,null,null,null,null,null,{"$f":"'Sabana por grupo'!A400","v":0},{"$f":"'Sabana por grupo'!C400","v":0},0,{"$error":"#VALUE!"},{"$f":"'Sabana por grupo'!G400","v":0},{"$error":"#VALUE!"},{"$f":"MID('Sabana por grupo'!B400,1,2)","v":""},81]
[null,null,null,null,null,null,null,null,null,null,null,null,null,null,null,null,null,null,null,null,null,null,null,null,null,null,null,null,null,null,null,null,null,null,null,null,null,null,null,null,{"$f":"'Sabana por grupo'!A401","v":0},{"$f":"'Sabana por grupo'!C401","v":0},0,{"$error":"#VALUE!"},{"$f":"'Sabana por grupo'!G401","v":0},{"$error":"#VALUE!"},{"$f":"MID('Sabana por grupo'!B401,1,2)","v":""},81]
[null,null,null,null,null,null,null,null,null,null,null,null,null,null,null,null,null,null,null,null,null,null,null,null,null,null,null,null,null,null,null,null,null,null,null,null,null,null,null,null,{"$f":"'Sabana por grupo'!A402","v":0},{"$f":"'Sabana por grupo'!C402","v":0},0,{"$error":"#VALUE!"},{"$f":"'Sabana por grupo'!G402","v":0},{"$error":"#VALUE!"},{"$f":"MID('Sabana por grupo'!B402,1,2)","v":""},81]
[null,null,null,null,null,null,null,null,null,null,null,null,null,null,null,null,null,null,null,null,null,null,null,null,null,null,null,null,null,null,null,null,null,null,null,null,null,null,null,null,{"$f":"'Sabana por grupo'!A403","v":0},{"$f":"'Sabana por grupo'!C403","v":0},0,{"$error":"#VALUE!"},{"$f":"'Sabana por grupo'!G403","v":0},{"$error":"#VALUE!"},{"$f":"MID('Sabana por grupo'!B403,1,2)","v":""},81]
[null,null,null,null,null,null,null,null,null,null,null,null,null,null,null,null,null,null,null,null,null,null,null,null,null,null,null,null,null,null,null,null,null,null,null,null,null,null,null,null,{"$f":"'Sabana por grupo'!A404","v":0},{"$f":"'Sabana por grupo'!C404","v":0},0,{"$error":"#VALUE!"},{"$f":"'Sabana por grupo'!G404","v":0},{"$error":"#VALUE!"},{"$f":"MID('Sabana por grupo'!B404,1,2)","v":""},81]
[null,null,null,null,null,null,null,null,null,null,null,null,null,null,null,null,null,null,null,null,null,null,null,null,null,null,null,null,null,null,null,null,null,null,null,null,null,null,null,null,{"$f":"'Sabana por grupo'!A405","v":0},{"$f":"'Sabana por grupo'!C405","v":0},0,{"$error":"#VALUE!"},{"$f":"'Sabana por grupo'!G405","v":0},{"$error":"#VALUE!"},{"$f":"MID('Sabana por grupo'!B405,1,2)","v":""},81]
[null,null,null,null,null,null,null,null,null,null,null,null,null,null,null,null,null,null,null,null,null,null,null,null,null,null,null,null,null,null,null,null,null,null,null,null,null,null,null,null,{"$f":"'Sabana por grupo'!A406","v":0},{"$f":"'Sabana por grupo'!C406","v":0},0,{"$error":"#VALUE!"},{"$f":"'Sabana por grupo'!G406","v":0},{"$error":"#VALUE!"},{"$f":"MID('Sabana por grupo'!B406,1,2)","v":""},81]
[null,null,null,null,null,null,null,null,null,null,null,null,null,null,null,null,null,null,null,null,null,null,null,null,null,null,null,null,null,null,null,null,null,null,null,null,null,null,null,null,{"$f":"'Sabana por grupo'!A407","v":0},{"$f":"'Sabana por grupo'!C407","v":0},0,{"$error":"#VALUE!"},{"$f":"'Sabana por grupo'!G407","v":0},{"$error":"#VALUE!"},{"$f":"MID('Sabana por grupo'!B407,1,2)","v":""},81]
[null,null,null,null,null,null,null,null,null,null,null,null,null,null,null,null,null,null,null,null,null,null,null,null,null,null,null,null,null,null,null,null,null,null,null,null,null,null,null,null,{"$f":"'Sabana por grupo'!A408","v":0},{"$f":"'Sabana por grupo'!C408","v":0},0,{"$error":"#VALUE!"},{"$f":"'Sabana por grupo'!G408","v":0},{"$error":"#VALUE!"},{"$f":"MID('Sabana por grupo'!B408,1,2)","v":""},81]
[null,null,null,null,null,null,null,null,null,null,null,null,null,null,null,null,null,null,null,null,null,null,null,null,null,null,null,null,null,null,null,null,null,null,null,null,null,null,null,null,{"$f":"'Sabana por grupo'!A409","v":0},{"$f":"'Sabana por grupo'!C409","v":0},0,{"$error":"#VALUE!"},{"$f":"'Sabana por grupo'!G409","v":0},{"$error":"#VALUE!"},{"$f":"MID('Sabana por grupo'!B409,1,2)","v":""},81]
[null,null,null,null,null,null,null,null,null,null,null,null,null,null,null,null,null,null,null,null,null,null,null,null,null,null,null,null,null,null,null,null,null,null,null,null,null,null,null,null,{"$f":"'Sabana por grupo'!A410","v":0},{"$f":"'Sabana por grupo'!C410","v":0},0,{"$error":"#VALUE!"},{"$f":"'Sabana por grupo'!G410","v":0},{"$error":"#VALUE!"},{"$f":"MID('Sabana por grupo'!B410,1,2)","v":""},81]
[null,null,null,null,null,null,null,null,null,null,null,null,null,null,null,null,null,null,null,null,null,null,null,null,null,null,null,null,null,null,null,null,null,null,null,null,null,null,null,null,{"$f":"'Sabana por grupo'!A411","v":0},{"$f":"'Sabana por grupo'!C411","v":0},0,{"$error":"#VALUE!"},{"$f":"'Sabana por grupo'!G411","v":0},{"$error":"#VALUE!"},{"$f":"MID('Sabana por grupo'!B411,1,2)","v":""},81]
[null,null,null,null,null,null,null,null,null,null,null,null,null,null,null,null,null,null,null,null,null,null,null,null,null,null,null,null,null,null,null,null,null,null,null,null,null,null,null,null,{"$f":"'Sabana por grupo'!A412","v":0},{"$f":"'Sabana por grupo'!C412","v":0},0,{"$error":"#VALUE!"},{"$f":"'Sabana por grupo'!G412","v":0},{"$error":"#VALUE!"},{"$f":"MID('Sabana por grupo'!B412,1,2)","v":""},81]
[null,null,null,null,null,null,null,null,null,null,null,null,null,null,null,null,null,null,null,null,null,null,null,null,null,null,null,null,null,null,null,null,null,null,null,null,null,null,null,null,{"$f":"'Sabana por grupo'!A413","v":0},{"$f":"'Sabana por grupo'!C413","v":0},0,{"$error":"#VALUE!"},{"$f":"'Sabana por grupo'!G413","v":0},{"$error":"#VALUE!"},{"$f":"MID('Sabana por grupo'!B413,1,2)","v":""},81]
[null,null,null,null,null,null,null,null,null,null,null,null,null,null,null,null,null,null,null,null,null,null,null,null,null,null,null,null,null,null,null,null,null,null,null,null,null,null,null,null,{"$f":"'Sabana por grupo'!A414","v":0},{"$f":"'Sabana por grupo'!C414","v":0},0,{"$error":"#VALUE!"},{"$f":"'Sabana por grupo'!G414","v":0},{"$error":"#VALUE!"},{"$f":"MID('Sabana por grupo'!B414,1,2)","v":""},81]
[null,null,null,null,null,null,null,null,null,null,null,null,null,null,null,null,null,null,null,null,null,null,null,null,null,null,null,null,null,null,null,null,null,null,null,null,null,null,null,null,{"$f":"'Sabana por grupo'!A415","v":0},{"$f":"'Sabana por grupo'!C415","v":0},0,{"$error":"#VALUE!"},{"$f":"'Sabana por grupo'!G415","v":0},{"$error":"#VALUE!"},{"$f":"MID('Sabana por grupo'!B415,1,2)","v":""},81]
[null,null,null,null,null,null,null,null,null,null,null,null,null,null,null,null,null,null,null,null,null,null,null,null,null,null,null,null,null,null,null,null,null,null,null,null,null,null,null,null,{"$f":"'Sabana por grupo'!A416","v":0},{"$f":"'Sabana por grupo'!C416","v":0},0,{"$error":"#VALUE!"},{"$f":"'Sabana por grupo'!G416","v":0},{"$error":"#VALUE!"},{"$f":"MID('Sabana por grupo'!B416,1,2)","v":""},81]
[null,null,null,null,null,null,null,null,null,null,null,null,null,null,null,null,null,null,null,null,null,null,null,null,null,null,null,null,null,null,null,null,null,null,null,null,null,null,null,null,{"$f":"'Sabana por grupo'!A417","v":0},{"$f":"'Sabana por grupo'!C417","v":0},0,{"$error":"#VALUE!"},{"$f":"'Sabana por grupo'!G417","v":0},{"$error":"#VALUE!"},{"$f":"MID('Sabana por grupo'!B417,1,2)","v":""},81]
[null,null,null,null,null,null,null,null,null,null,null,null,null,null,null,null,null,null,null,null,null,null,null,null,null,null,null,null,null,null,null,null,null,null,null,null,null,null,null,null,{"$f":"'Sabana por grupo'!A418","v":0},{"$f":"'Sabana por grupo'!C418","v":0},0,{"$error":"#VALUE!"},{"$f":"'Sabana por grupo'!G418","v":0},{"$error":"#VALUE!"},{"$f":"MID('Sabana por grupo'!B418,1,2)","v":""},81]
[null,null,null,null,null,null,null,null,null,null,null,null,null,null,null,null,null,null,null,null,null,null,null,null,null,null,null,null,null,null,null,null,null,null,null,null,null,null,null,null,{"$f":"'Sabana por grupo'!A419","v":0},{"$f":"'Sabana por grupo'!C419","v":0},0,{"$error":"#VALUE!"},{"$f":"'Sabana por grupo'!G419","v":0},{"$error":"#VALUE!"},{"$f":"MID('Sabana por grupo'!B419,1,2)","v":""},81]
[null,null,null,null,null,null,null,null,null,null,null,null,null,null,null,null,null,null,null,null,null,null,null,null,null,null,null,null,null,null,null,null,null,null,null,null,null,null,null,null,{"$f":"'Sabana por grupo'!A420","v":0},{"$f":"'Sabana por grupo'!C420","v":0},0,{"$error":"#VALUE!"},{"$f":"'Sabana por grupo'!G420","v":0},{"$error":"#VALUE!"},{"$f":"MID('Sabana por grupo'!B420,1,2)","v":""},81]
[null,null,null,null,null,null,null,null,null,null,null,null,null,null,null,null,null,null,null,null,null,null,null,null,null,null,null,null,null,null,null,null,null,null,null,null,null,null,null,null,{"$f":"'Sabana por grupo'!A421","v":0},{"$f":"'Sabana por grupo'!C421","v":0},0,{"$error":"#VALUE!"},{"$f":"'Sabana por grupo'!G421","v":0},{"$error":"#VALUE!"},{"$f":"MID('Sabana por grupo'!B421,1,2)","v":""},81]
[null,null,null,null,null,null,null,null,null,null,null,null,null,null,null,null,null,null,null,null,null,null,null,null,null,null,null,null,null,null,null,null,null,null,null,null,null,null,null,null,{"$f":"'Sabana por grupo'!A422","v":0},{"$f":"'Sabana por grupo'!C422","v":0},0,{"$error":"#VALUE!"},{"$f":"'Sabana por grupo'!G422","v":0},{"$error":"#VALUE!"},{"$f":"MID('Sabana por grupo'!B422,1,2)","v":""},81]
[null,null,null,null,null,null,null,null,null,null,null,null,null,null,null,null,null,null,null,null,null,null,null,null,null,null,null,null,null,null,null,null,null,null,null,null,null,null,null,null,{"$f":"'Sabana por grupo'!A423","v":0},{"$f":"'Sabana por grupo'!C423","v":0},0,{"$error":"#VALUE!"},{"$f":"'Sabana por grupo'!G423","v":0},{"$error":"#VALUE!"},{"$f":"MID('Sabana por grupo'!B423,1,2)","v":""},81]
[null,null,null,null,null,null,null,null,null,null,null,null,null,null,null,null,null,null,null,null,null,null,null,null,null,null,null,null,null,null,null,null,null,null,null,null,null,null,null,null,{"$f":"'Sabana por grupo'!A424","v":0},{"$f":"'Sabana por grupo'!C424","v":0},0,{"$error":"#VALUE!"},{"$f":"'Sabana por grupo'!G424","v":0},{"$error":"#VALUE!"},{"$f":"MID('Sabana por grupo'!B424,1,2)","v":""},81]
[null,null,null,null,null,null,null,null,null,null,null,null,null,null,null,null,null,null,null,null,null,null,null,null,null,null,null,null,null,null,null,null,null,null,null,null,null,null,null,null,{"$f":"'Sabana por grupo'!A425","v":0},{"$f":"'Sabana por grupo'!C425","v":0},0,{"$error":"#VALUE!"},{"$f":"'Sabana por grupo'!G425","v":0},{"$error":"#VALUE!"},{"$f":"MID('Sabana por grupo'!B425,1,2)","v":""},81]
[null,null,null,null,null,null,null,null,null,null,null,null,null,null,null,null,null,null,null,null,null,null,null,null,null,null,null,null,null,null,null,null,null,null,null,null,null,null,null,null,{"$f":"'Sabana por grupo'!A426","v":0},{"$f":"'Sabana por grupo'!C426","v":0},0,{"$error":"#VALUE!"},{"$f":"'Sabana por grupo'!G426","v":0},{"$error":"#VALUE!"},{"$f":"MID('Sabana por grupo'!B426,1,2)","v":""},81]
[null,null,null,null,null,null,null,null,null,null,null,null,null,null,null,null,null,null,null,null,null,null,null,null,null,null,null,null,null,null,null,null,null,null,null,null,null,null,null,null,{"$f":"'Sabana por grupo'!A427","v":0},{"$f":"'Sabana por grupo'!C427","v":0},0,{"$error":"#VALUE!"},{"$f":"'Sabana por grupo'!G427","v":0},{"$error":"#VALUE!"},{"$f":"MID('Sabana por grupo'!B427,1,2)","v":""},81]
[null,null,null,null,null,null,null,null,null,null,null,null,null,null,null,null,null,null,null,null,null,null,null,null,null,null,null,null,null,null,null,null,null,null,null,null,null,null,null,null,{"$f":"'Sabana por grupo'!A428","v":0},{"$f":"'Sabana por grupo'!C428","v":0},0,{"$error":"#VALUE!"},{"$f":"'Sabana por grupo'!G428","v":0},{"$error":"#VALUE!"},{"$f":"MID('Sabana por grupo'!B428,1,2)","v":""},81]
[null,null,null,null,null,null,null,null,null,null,null,null,null,null,null,null,null,null,null,null,null,null,null,null,null,null,null,null,null,null,null,null,null,null,null,null,null,null,null,null,{"$f":"'Sabana por grupo'!A429","v":0},{"$f":"'Sabana por grupo'!C429","v":0},0,{"$error":"#VALUE!"},{"$f":"'Sabana por grupo'!G429","v":0},{"$error":"#VALUE!"},{"$f":"MID('Sabana por grupo'!B429,1,2)","v":""},81]
[null,null,null,null,null,null,null,null,null,null,null,null,null,null,null,null,null,null,null,null,null,null,null,null,null,null,null,null,null,null,null,null,null,null,null,null,null,null,null,null,{"$f":"'Sabana por grupo'!A430","v":0},{"$f":"'Sabana por grupo'!C430","v":0},0,{"$error":"#VALUE!"},{"$f":"'Sabana por grupo'!G430","v":0},{"$error":"#VALUE!"},{"$f":"MID('Sabana por grupo'!B430,1,2)","v":""},81]
[null,null,null,null,null,null,null,null,null,null,null,null,null,null,null,null,null,null,null,null,null,null,null,null,null,null,null,null,null,null,null,null,null,null,null,null,null,null,null,null,{"$f":"'Sabana por grupo'!A431","v":0},{"$f":"'Sabana por grupo'!C431","v":0},0,{"$error":"#VALUE!"},{"$f":"'Sabana por grupo'!G431","v":0},{"$error":"#VALUE!"},{"$f":"MID('Sabana por grupo'!B431,1,2)","v":""},81]
[null,null,null,null,null,null,null,null,null,null,null,null,null,null,null,null,null,null,null,null,null,null,null,null,null,null,null,null,null,null,null,null,null,null,null,null,null,null,null,null,{"$f":"'Sabana por grupo'!A432","v":0},{"$f":"'Sabana por grupo'!C432","v":0},0,{"$error":"#VALUE!"},{"$f":"'Sabana por grupo'!G432","v":0},{"$error":"#VALUE!"},{"$f":"MID('Sabana por grupo'!B432,1,2)","v":""},81]
[null,null,null,null,null,null,null,null,null,null,null,null,null,null,null,null,null,null,null,null,null,null,null,null,null,null,null,null,null,null,null,null,null,null,null,null,null,null,null,null,{"$f":"'Sabana por grupo'!A433","v":0},{"$f":"'Sabana por grupo'!C433","v":0},0,{"$error":"#VALUE!"},{"$f":"'Sabana por grupo'!G433","v":0},{"$error":"#VALUE!"},{"$f":"MID('Sabana por grupo'!B433,1,2)","v":""},81]
[null,null,null,null,null,null,null,null,null,null,null,null,null,null,null,null,null,null,null,null,null,null,null,null,null,null,null,null,null,null,null,null,null,null,null,null,null,null,null,null,{"$f":"'Sabana por grupo'!A434","v":0},{"$f":"'Sabana por grupo'!C434","v":0},0,{"$error":"#VALUE!"},{"$f":"'Sabana por grupo'!G434","v":0},{"$error":"#VALUE!"},{"$f":"MID('Sabana por grupo'!B434,1,2)","v":""},81]
[null,null,null,null,null,null,null,null,null,null,null,null,null,null,null,null,null,null,null,null,null,null,null,null,null,null,null,null,null,null,null,null,null,null,null,null,null,null,null,null,{"$f":"'Sabana por grupo'!A435","v":0},{"$f":"'Sabana por grupo'!C435","v":0},0,{"$error":"#VALUE!"},{"$f":"'Sabana por grupo'!G435","v":0},{"$error":"#VALUE!"},{"$f":"MID('Sabana por grupo'!B435,1,2)","v":""},81]
[null,null,null,null,null,null,null,null,null,null,null,null,null,null,null,null,null,null,null,null,null,null,null,null,null,null,null,null,null,null,null,null,null,null,null,null,null,null,null,null,{"$f":"'Sabana por grupo'!A436","v":0},{"$f":"'Sabana por grupo'!C436","v":0},0,{"$error":"#VALUE!"},{"$f":"'Sabana por grupo'!G436","v":0},{"$error":"#VALUE!"},{"$f":"MID('Sabana por grupo'!B436,1,2)","v":""},81]
[null,null,null,null,null,null,null,null,null,null,null,null,null,null,null,null,null,null,null,null,null,null,null,null,null,null,null,null,null,null,null,null,null,null,null,null,null,null,null,null,{"$f":"'Sabana por grupo'!A437","v":0},{"$f":"'Sabana por grupo'!C437","v":0},0,{"$error":"#VALUE!"},{"$f":"'Sabana por grupo'!G437","v":0},{"$error":"#VALUE!"},{"$f":"MID('Sabana por grupo'!B437,1,2)","v":""},81]
[null,null,null,null,null,null,null,null,null,null,null,null,null,null,null,null,null,null,null,null,null,null,null,null,null,null,null,null,null,null,null,null,null,null,null,null,null,null,null,null,{"$f":"'Sabana por grupo'!A438","v":0},{"$f":"'Sabana por grupo'!C438","v":0},0,{"$error":"#VALUE!"},{"$f":"'Sabana por grupo'!G438","v":0},{"$error":"#VALUE!"},{"$f":"MID('Sabana por grupo'!B438,1,2)","v":""},81]
[null,null,null,null,null,null,null,null,null,null,null,null,null,null,null,null,null,null,null,null,null,null,null,null,null,null,null,null,null,null,null,null,null,null,null,null,null,null,null,null,{"$f":"'Sabana por grupo'!A439","v":0},{"$f":"'Sabana por grupo'!C439","v":0},0,{"$error":"#VALUE!"},{"$f":"'Sabana por grupo'!G439","v":0},{"$error":"#VALUE!"},{"$f":"MID('Sabana por grupo'!B439,1,2)","v":""},81]
[null,null,null,null,null,null,null,null,null,null,null,null,null,null,null,null,null,null,null,null,null,null,null,null,null,null,null,null,null,null,null,null,null,null,null,null,null,null,null,null,{"$f":"'Sabana por grupo'!A440","v":0},{"$f":"'Sabana por grupo'!C440","v":0},0,{"$error":"#VALUE!"},{"$f":"'Sabana por grupo'!G440","v":0},{"$error":"#VALUE!"},{"$f":"MID('Sabana por grupo'!B440,1,2)","v":""},81]
[null,null,null,null,null,null,null,null,null,null,null,null,null,null,null,null,null,null,null,null,null,null,null,null,null,null,null,null,null,null,null,null,null,null,null,null,null,null,null,null,{"$f":"'Sabana por grupo'!A441","v":0},{"$f":"'Sabana por grupo'!C441","v":0},0,{"$error":"#VALUE!"},{"$f":"'Sabana por grupo'!G441","v":0},{"$error":"#VALUE!"},{"$f":"MID('Sabana por grupo'!B441,1,2)","v":""},81]
[null,null,null,null,null,null,null,null,null,null,null,null,null,null,null,null,null,null,null,null,null,null,null,null,null,null,null,null,null,null,null,null,null,null,null,null,null,null,null,null,{"$f":"'Sabana por grupo'!A442","v":0},{"$f":"'Sabana por grupo'!C442","v":0},0,{"$error":"#VALUE!"},{"$f":"'Sabana por grupo'!G442","v":0},{"$error":"#VALUE!"},{"$f":"MID('Sabana por grupo'!B442,1,2)","v":""},81]
[null,null,null,null,null,null,null,null,null,null,null,null,null,null,null,null,null,null,null,null,null,null,null,null,null,null,null,null,null,null,null,null,null,null,null,null,null,null,null,null,{"$f":"'Sabana por grupo'!A443","v":0},{"$f":"'Sabana por grupo'!C443","v":0},0,{"$error":"#VALUE!"},{"$f":"'Sabana por grupo'!G443","v":0},{"$error":"#VALUE!"},{"$f":"MID('Sabana por grupo'!B443,1,2)","v":""},81]
[null,null,null,null,null,null,null,null,null,null,null,null,null,null,null,null,null,null,null,null,null,null,null,null,null,null,null,null,null,null,null,null,null,null,null,null,null,null,null,null,{"$f":"'Sabana por grupo'!A444","v":0},{"$f":"'Sabana por grupo'!C444","v":0},0,{"$error":"#VALUE!"},{"$f":"'Sabana por grupo'!G444","v":0},{"$error":"#VALUE!"},{"$f":"MID('Sabana por grupo'!B444,1,2)","v":""},81]
[null,null,null,null,null,null,null,null,null,null,null,null,null,null,null,null,null,null,null,null,null,null,null,null,null,null,null,null,null,null,null,null,null,null,null,null,null,null,null,null,{"$f":"'Sabana por grupo'!A445","v":0},{"$f":"'Sabana por grupo'!C445","v":0},0,{"$error":"#VALUE!"},{"$f":"'Sabana por grupo'!G445","v":0},{"$error":"#VALUE!"},{"$f":"MID('Sabana por grupo'!B445,1,2)","v":""},81]
[null,null,null,null,null,null,null,null,null,null,null,null,null,null,null,null,null,null,null,null,null,null,null,null,null,null,null,null,null,null,null,null,null,null,null,null,null,null,null,null,{"$f":"'Sabana por grupo'!A446","v":0},{"$f":"'Sabana por grupo'!C446","v":0},0,{"$error":"#VALUE!"},{"$f":"'Sabana por grupo'!G446","v":0},{"$error":"#VALUE!"},{"$f":"MID('Sabana por grupo'!B446,1,2)","v":""},81]
[null,null,null,null,null,null,null,null,null,null,null,null,null,null,null,null,null,null,null,null,null,null,null,null,null,null,null,null,null,null,null,null,null,null,null,null,null,null,null,null,{"$f":"'Sabana por grupo'!A447","v":0},{"$f":"'Sabana por grupo'!C447","v":0},0,{"$error":"#VALUE!"},{"$f":"'Sabana por grupo'!G447","v":0},{"$error":"#VALUE!"},{"$f":"MID('Sabana por grupo'!B447,1,2)","v":""},81]
[null,null,null,null,null,null,null,null,null,null,null,null,null,null,null,null,null,null,null,null,null,null,null,null,null,null,null,null,null,null,null,null,null,null,null,null,null,null,null,null,{"$f":"'Sabana por grupo'!A448","v":0},{"$f":"'Sabana por grupo'!C448","v":0},0,{"$error":"#VALUE!"},{"$f":"'Sabana por grupo'!G448","v":0},{"$error":"#VALUE!"},{"$f":"MID('Sabana por grupo'!B448,1,2)","v":""},81]
[null,null,null,null,null,null,null,null,null,null,null,null,null,null,null,null,null,null,null,null,null,null,null,null,null,null,null,null,null,null,null,null,null,null,null,null,null,null,null,null,{"$f":"'Sabana por grupo'!A449","v":0},{"$f":"'Sabana por grupo'!C449","v":0},0,{"$error":"#VALUE!"},{"$f":"'Sabana por grupo'!G449","v":0},{"$error":"#VALUE!"},{"$f":"MID('Sabana por grupo'!B449,1,2)","v":""},81]
[null,null,null,null,null,null,null,null,null,null,null,null,null,null,null,null,null,null,null,null,null,null,null,null,null,null,null,null,null,null,null,null,null,null,null,null,null,null,null,null,{"$f":"'Sabana por grupo'!A450","v":0},{"$f":"'Sabana por grupo'!C450","v":0},{"$f":"_xlfn.NUMBERVALUE(AU450)","v":0},{"$error":"#VALUE!"},{"$f":"'Sabana por grupo'!G450","v":0},{"$error":"#VALUE!"},{"$f":"MID('Sabana por grupo'!B450,1,2)","v":""},81]
[null,null,null,null,null,null,null,null,null,null,null,null,null,null,null,null,null,null,null,null,null,null,null,null,null,null,null,null,null,null,null,null,null,null,null,null,null,null,null,null,{"$f":"'Sabana por grupo'!A451","v":0},{"$f":"'Sabana por grupo'!C451","v":0},0,{"$f":"IF(AT451=0,\"N/A\",IF(AT451<$AX$2,\"Riesgo Menor\",IF(AT451<$AX$3,\"Riesgo Probable\",\"Atencion de Prioridad\")))","v":{"$error":"#VALUE!"}},{"$f":"'Sabana por grupo'!G451","v":0},{"$f":"(AU451/AV462)","v":{"$error":"#VALUE!"}},{"$f":"MID('Sabana por grupo'!B451,1,2)","v":""},81]
[null,null,null,null,null,null,null,null,null,null,null,null,null,null,null,null,null,null,null,null,null,null,null,null,null,null,null,null,null,null,null,null,null,null,null,null,null,null,null,null,{"$f":"'Sabana por grupo'!A452","v":0},{"$f":"'Sabana por grupo'!C452","v":0},0,{"$error":"#VALUE!"},{"$f":"'Sabana por grupo'!G452","v":0},{"$error":"#VALUE!"},{"$f":"MID('Sabana por grupo'!B452,1,2)","v":""},81]
[null,null,null,null,null,null,null,null,null,null,null,null,null,null,null,null,null,null,null,null,null,null,null,null,null,null,null,null,null,null,null,null,null,null,null,null,null,null,null,null,{"$f":"'Sabana por grupo'!A453","v":0},{"$f":"'Sabana por grupo'!C453","v":0},0,{"$error":"#VALUE!"},{"$f":"'Sabana por grupo'!G453","v":0},{"$error":"#VALUE!"},{"$f":"MID('Sabana por grupo'!B453,1,2)","v":""},81]
[null,null,null,null,null,null,null,null,null,null,null,null,null,null,null,null,null,null,null,null,null,null,null,null,null,null,null,null,null,null,null,null,null,null,null,null,null,null,null,null,{"$f":"'Sabana por grupo'!A454","v":0},{"$f":"'Sabana por grupo'!C454","v":0},0,{"$error":"#VALUE!"},{"$f":"'Sabana por grupo'!G454","v":0},{"$error":"#VALUE!"},{"$f":"MID('Sabana por grupo'!B454,1,2)","v":""},81]
[null,null,null,null,null,null,null,null,null,null,null,null,null,null,null,null,null,null,null,null,null,null,null,null,null,null,null,null,null,null,null,null,null,null,null,null,null,null,null,null,{"$f":"'Sabana por grupo'!A455","v":0},{"$f":"'Sabana por grupo'!C455","v":0},0,{"$error":"#VALUE!"},{"$f":"'Sabana por grupo'!G455","v":0},{"$error":"#VALUE!"},{"$f":"MID('Sabana por grupo'!B455,1,2)","v":""},81]
[null,null,null,null,null,null,null,null,null,null,null,null,null,null,null,null,null,null,null,null,null,null,null,null,null,null,null,null,null,null,null,null,null,null,null,null,null,null,null,null,{"$f":"'Sabana por grupo'!A456","v":0},{"$f":"'Sabana por grupo'!C456","v":0},0,{"$error":"#VALUE!"},{"$f":"'Sabana por grupo'!G456","v":0},{"$error":"#VALUE!"},{"$f":"MID('Sabana por grupo'!B456,1,2)","v":""},81]
[null,null,null,null,null,null,null,null,null,null,null,null,null,null,null,null,null,null,null,null,null,null,null,null,null,null,null,null,null,null,null,null,null,null,null,null,null,null,null,null,{"$f":"'Sabana por grupo'!A457","v":0},{"$f":"'Sabana por grupo'!C457","v":0},0,{"$error":"#VALUE!"},{"$f":"'Sabana por grupo'!G457","v":0},{"$error":"#VALUE!"},{"$f":"MID('Sabana por grupo'!B457,1,2)","v":""},81]
[null,null,null,null,null,null,null,null,null,null,null,null,null,null,null,null,null,null,null,null,null,null,null,null,null,null,null,null,null,null,null,null,null,null,null,null,null,null,null,null,{"$f":"'Sabana por grupo'!A458","v":0},{"$f":"'Sabana por grupo'!C458","v":0},0,{"$error":"#VALUE!"},{"$f":"'Sabana por grupo'!G458","v":0},{"$error":"#VALUE!"},{"$f":"MID('Sabana por grupo'!B458,1,2)","v":""},81]
[null,null,null,null,null,null,null,null,null,null,null,null,null,null,null,null,null,null,null,null,null,null,null,null,null,null,null,null,null,null,null,null,null,null,null,null,null,null,null,null,{"$f":"'Sabana por grupo'!A459","v":0},{"$f":"'Sabana por grupo'!C459","v":0},0,{"$error":"#VALUE!"},{"$f":"'Sabana por grupo'!G459","v":0},{"$error":"#VALUE!"},{"$f":"MID('Sabana por grupo'!B459,1,2)","v":""},81]
[null,null,null,null,null,null,null,null,null,null,null,null,null,null,null,null,null,null,null,null,null,null,null,null,null,null,null,null,null,null,null,null,null,null,null,null,null,null,null,null,{"$f":"'Sabana por grupo'!A460","v":0},{"$f":"'Sabana por grupo'!C460","v":0},0,{"$error":"#VALUE!"},{"$f":"'Sabana por grupo'!G460","v":0},{"$error":"#VALUE!"},{"$f":"MID('Sabana por grupo'!B460,1,2)","v":""},81]
[null,null,null,null,null,null,null,null,null,null,null,null,null,null,null,null,null,null,null,null,null,null,null,null,null,null,null,null,null,null,null,null,null,null,null,null,null,null,null,null,{"$f":"'Sabana por grupo'!A461","v":0},{"$f":"'Sabana por grupo'!C461","v":0},0,{"$error":"#VALUE!"},{"$f":"'Sabana por grupo'!G461","v":0},{"$error":"#VALUE!"},{"$f":"MID('Sabana por grupo'!B461,1,2)","v":""},81]
[null,null,null,null,null,null,null,null,null,null,null,null,null,null,null,null,null,null,null,null,null,null,null,null,null,null,null,null,null,null,null,null,null,null,null,null,null,null,null,null,{"$f":"'Sabana por grupo'!A462","v":0},{"$f":"'Sabana por grupo'!C462","v":0},0,{"$error":"#VALUE!"},{"$f":"'Sabana por grupo'!G462","v":0},{"$error":"#VALUE!"},{"$f":"MID('Sabana por grupo'!B462,1,2)","v":""},81]
[null,null,null,null,null,null,null,null,null,null,null,null,null,null,null,null,null,null,null,null,null,null,null,null,null,null,null,null,null,null,null,null,null,null,null,null,null,null,null,null,{"$f":"'Sabana por grupo'!A463","v":0},{"$f":"'Sabana por grupo'!C463","v":0},0,{"$error":"#VALUE!"},{"$f":"'Sabana por grupo'!G463","v":0},{"$error":"#VALUE!"},{"$f":"MID('Sabana por grupo'!B463,1,2)","v":""},81]
[null,null,null,null,null,null,null,null,null,null,null,null,null,null,null,null,null,null,null,null,null,null,null,null,null,null,null,null,null,null,null,null,null,null,null,null,null,null,null,null,{"$f":"'Sabana por grupo'!A464","v":0},{"$f":"'Sabana por grupo'!C464","v":0},0,{"$error":"#VALUE!"},{"$f":"'Sabana por grupo'!G464","v":0},{"$error":"#VALUE!"},{"$f":"MID('Sabana por grupo'!B464,1,2)","v":""},81]
[null,null,null,null,null,null,null,null,null,null,null,null,null,null,null,null,null,null,null,null,null,null,null,null,null,null,null,null,null,null,null,null,null,null,null,null,null,null,null,null,{"$f":"'Sabana por grupo'!A465","v":0},{"$f":"'Sabana por grupo'!C465","v":0},0,{"$error":"#VALUE!"},{"$f":"'Sabana por grupo'!G465","v":0},{"$error":"#VALUE!"},{"$f":"MID('Sabana por grupo'!B465,1,2)","v":""},81]
[null,null,null,null,null,null,null,null,null,null,null,null,null,null,null,null,null,null,null,null,null,null,null,null,null,null,null,null,null,null,null,null,null,null,null,null,null,null,null,null,{"$f":"'Sabana por grupo'!A466","v":0},{"$f":"'Sabana por grupo'!C466","v":0},0,{"$error":"#VALUE!"},{"$f":"'Sabana por grupo'!G466","v":0},{"$error":"#VALUE!"},{"$f":"MID('Sabana por grupo'!B466,1,2)","v":""},81]
[null,null,null,null,null,null,null,null,null,null,null,null,null,null,null,null,null,null,null,null,null,null,null,null,null,null,null,null,null,null,null,null,null,null,null,null,null,null,null,null,{"$f":"'Sabana por grupo'!A467","v":0},{"$f":"'Sabana por grupo'!C467","v":0},0,{"$error":"#VALUE!"},{"$f":"'Sabana por grupo'!G467","v":0},{"$error":"#VALUE!"},{"$f":"MID('Sabana por grupo'!B467,1,2)","v":""},81]
[null,null,null,null,null,null,null,null,null,null,null,null,null,null,null,null,null,null,null,null,null,null,null,null,null,null,null,null,null,null,null,null,null,null,null,null,null,null,null,null,{"$f":"'Sabana por grupo'!A468","v":0},{"$f":"'Sabana por grupo'!C468","v":0},0,{"$error":"#VALUE!"},{"$f":"'Sabana por grupo'!G468","v":0},{"$error":"#VALUE!"},{"$f":"MID('Sabana por grupo'!B468,1,2)","v":""},81]
[null,null,null,null,null,null,null,null,null,null,null,null,null,null,null,null,null,null,null,null,null,null,null,null,null,null,null,null,null,null,null,null,null,null,null,null,null,null,null,null,{"$f":"'Sabana por grupo'!A469","v":0},{"$f":"'Sabana por grupo'!C469","v":0},0,{"$error":"#VALUE!"},{"$f":"'Sabana por grupo'!G469","v":0},{"$error":"#VALUE!"},{"$f":"MID('Sabana por grupo'!B469,1,2)","v":""},81]
[null,null,null,null,null,null,null,null,null,null,null,null,null,null,null,null,null,null,null,null,null,null,null,null,null,null,null,null,null,null,null,null,null,null,null,null,null,null,null,null,{"$f":"'Sabana por grupo'!A470","v":0},{"$f":"'Sabana por grupo'!C470","v":0},0,{"$error":"#VALUE!"},{"$f":"'Sabana por grupo'!G470","v":0},{"$error":"#VALUE!"},{"$f":"MID('Sabana por grupo'!B470,1,2)","v":""},81]
[null,null,null,null,null,null,null,null,null,null,null,null,null,null,null,null,null,null,null,null,null,null,null,null,null,null,null,null,null,null,null,null,null,null,null,null,null,null,null,null,{"$f":"'Sabana por grupo'!A471","v":0},{"$f":"'Sabana por grupo'!C471","v":0},0,{"$error":"#VALUE!"},{"$f":"'Sabana por grupo'!G471","v":0},{"$error":"#VALUE!"},{"$f":"MID('Sabana por grupo'!B471,1,2)","v":""},81]
[null,null,null,null,null,null,null,null,null,null,null,null,null,null,null,null,null,null,null,null,null,null,null,null,null,null,null,null,null,null,null,null,null,null,null,null,null,null,null,null,{"$f":"'Sabana por grupo'!A472","v":0},{"$f":"'Sabana por grupo'!C472","v":0},0,{"$error":"#VALUE!"},{"$f":"'Sabana por grupo'!G472","v":0},{"$error":"#VALUE!"},{"$f":"MID('Sabana por grupo'!B472,1,2)","v":""},81]
[null,null,null,null,null,null,null,null,null,null,null,null,null,null,null,null,null,null,null,null,null,null,null,null,null,null,null,null,null,null,null,null,null,null,null,null,null,null,null,null,{"$f":"'Sabana por grupo'!A473","v":0},{"$f":"'Sabana por grupo'!C473","v":0},0,{"$error":"#VALUE!"},{"$f":"'Sabana por grupo'!G473","v":0},{"$error":"#VALUE!"},{"$f":"MID('Sabana por grupo'!B473,1,2)","v":""},81]
[null,null,null,null,null,null,null,null,null,null,null,null,null,null,null,null,null,null,null,null,null,null,null,null,null,null,null,null,null,null,null,null,null,null,null,null,null,null,null,null,{"$f":"'Sabana por grupo'!A474","v":0},{"$f":"'Sabana por grupo'!C474","v":0},0,{"$error":"#VALUE!"},{"$f":"'Sabana por grupo'!G474","v":0},{"$error":"#VALUE!"},{"$f":"MID('Sabana por grupo'!B474,1,2)","v":""},81]
[null,null,null,null,null,null,null,null,null,null,null,null,null,null,null,null,null,null,null,null,null,null,null,null,null,null,null,null,null,null,null,null,null,null,null,null,null,null,null,null,{"$f":"'Sabana por grupo'!A475","v":0},{"$f":"'Sabana por grupo'!C475","v":0},0,{"$error":"#VALUE!"},{"$f":"'Sabana por grupo'!G475","v":0},{"$error":"#VALUE!"},{"$f":"MID('Sabana por grupo'!B475,1,2)","v":""},81]
[null,null,null,null,null,null,null,null,null,null,null,null,null,null,null,null,null,null,null,null,null,null,null,null,null,null,null,null,null,null,null,null,null,null,null,null,null,null,null,null,{"$f":"'Sabana por grupo'!A476","v":0},{"$f":"'Sabana por grupo'!C476","v":0},0,{"$error":"#VALUE!"},{"$f":"'Sabana por grupo'!G476","v":0},{"$error":"#VALUE!"},{"$f":"MID('Sabana por grupo'!B476,1,2)","v":""},81]
[null,null,null,null,null,null,null,null,null,null,null,null,null,null,null,null,null,null,null,null,null,null,null,null,null,null,null,null,null,null,null,null,null,null,null,null,null,null,null,null,{"$f":"'Sabana por grupo'!A477","v":0},{"$f":"'Sabana por grupo'!C477","v":0},0,{"$error":"#VALUE!"},{"$f":"'Sabana por grupo'!G477","v":0},{"$error":"#VALUE!"},{"$f":"MID('Sabana por grupo'!B477,1,2)","v":""},81]
[null,null,null,null,null,null,null,null,null,null,null,null,null,null,null,null,null,null,null,null,null,null,null,null,null,null,null,null,null,null,null,null,null,null,null,null,null,null,null,null,{"$f":"'Sabana por grupo'!A478","v":0},{"$f":"'Sabana por grupo'!C478","v":0},0,{"$error":"#VALUE!"},{"$f":"'Sabana por grupo'!G478","v":0},{"$error":"#VALUE!"},{"$f":"MID('Sabana por grupo'!B478,1,2)","v":""},81]
[null,null,null,null,null,null,null,null,null,null,null,null,null,null,null,null,null,null,null,null,null,null,null,null,null,null,null,null,null,null,null,null,null,null,null,null,null,null,null,null,{"$f":"'Sabana por grupo'!A479","v":0},{"$f":"'Sabana por grupo'!C479","v":0},0,{"$error":"#VALUE!"},{"$f":"'Sabana por grupo'!G479","v":0},{"$error":"#VALUE!"},{"$f":"MID('Sabana por grupo'!B479,1,2)","v":""},81]
[null,null,null,null,null,null,null,null,null,null,null,null,null,null,null,null,null,null,null,null,null,null,null,null,null,null,null,null,null,null,null,null,null,null,null,null,null,null,null,null,{"$f":"'Sabana por grupo'!A480","v":0},{"$f":"'Sabana por grupo'!C480","v":0},0,{"$error":"#VALUE!"},{"$f":"'Sabana por grupo'!G480","v":0},{"$error":"#VALUE!"},{"$f":"MID('Sabana por grupo'!B480,1,2)","v":""},81]
[null,null,null,null,null,null,null,null,null,null,null,null,null,null,null,null,null,null,null,null,null,null,null,null,null,null,null,null,null,null,null,null,null,null,null,null,null,null,null,null,{"$f":"'Sabana por grupo'!A481","v":0},{"$f":"'Sabana por grupo'!C481","v":0},0,{"$error":"#VALUE!"},{"$f":"'Sabana por grupo'!G481","v":0},{"$error":"#VALUE!"},{"$f":"MID('Sabana por grupo'!B481,1,2)","v":""},81]
[null,null,null,null,null,null,null,null,null,null,null,null,null,null,null,null,null,null,null,null,null,null,null,null,null,null,null,null,null,null,null,null,null,null,null,null,null,null,null,null,{"$f":"'Sabana por grupo'!A482","v":0},{"$f":"'Sabana por grupo'!C482","v":0},0,{"$error":"#VALUE!"},{"$f":"'Sabana por grupo'!G482","v":0},{"$error":"#VALUE!"},{"$f":"MID('Sabana por grupo'!B482,1,2)","v":""},81]
[null,null,null,null,null,null,null,null,null,null,null,null,null,null,null,null,null,null,null,null,null,null,null,null,null,null,null,null,null,null,null,null,null,null,null,null,null,null,null,null,{"$f":"'Sabana por grupo'!A483","v":0},{"$f":"'Sabana por grupo'!C483","v":0},0,{"$error":"#VALUE!"},{"$f":"'Sabana por grupo'!G483","v":0},{"$error":"#VALUE!"},{"$f":"MID('Sabana por grupo'!B483,1,2)","v":""},81]
[null,null,null,null,null,null,null,null,null,null,null,null,null,null,null,null,null,null,null,null,null,null,null,null,null,null,null,null,null,null,null,null,null,null,null,null,null,null,null,null,{"$f":"'Sabana por grupo'!A484","v":0},{"$f":"'Sabana por grupo'!C484","v":0},0,{"$error":"#VALUE!"},{"$f":"'Sabana por grupo'!G484","v":0},{"$error":"#VALUE!"},{"$f":"MID('Sabana por grupo'!B484,1,2)","v":""},81]
[null,null,null,null,null,null,null,null,null,null,null,null,null,null,null,null,null,null,null,null,null,null,null,null,null,null,null,null,null,null,null,null,null,null,null,null,null,null,null,null,{"$f":"'Sabana por grupo'!A485","v":0},{"$f":"'Sabana por grupo'!C485","v":0},0,{"$error":"#VALUE!"},{"$f":"'Sabana por grupo'!G485","v":0},{"$error":"#VALUE!"},{"$f":"MID('Sabana por grupo'!B485,1,2)","v":""},81]
[null,null,null,null,null,null,null,null,null,null,null,null,null,null,null,null,null,null,null,null,null,null,null,null,null,null,null,null,null,null,null,null,null,null,null,null,null,null,null,null,{"$f":"'Sabana por grupo'!A486","v":0},{"$f":"'Sabana por grupo'!C486","v":0},0,{"$error":"#VALUE!"},{"$f":"'Sabana por grupo'!G486","v":0},{"$error":"#VALUE!"},{"$f":"MID('Sabana por grupo'!B486,1,2)","v":""},81]
[null,null,null,null,null,null,null,null,null,null,null,null,null,null,null,null,null,null,null,null,null,null,null,null,null,null,null,null,null,null,null,null,null,null,null,null,null,null,null,null,{"$f":"'Sabana por grupo'!A487","v":0},{"$f":"'Sabana por grupo'!C487","v":0},0,{"$error":"#VALUE!"},{"$f":"'Sabana por grupo'!G487","v":0},{"$error":"#VALUE!"},{"$f":"MID('Sabana por grupo'!B487,1,2)","v":""},81]
[null,null,null,null,null,null,null,null,null,null,null,null,null,null,null,null,null,null,null,null,null,null,null,null,null,null,null,null,null,null,null,null,null,null,null,null,null,null,null,null,{"$f":"'Sabana por grupo'!A488","v":0},{"$f":"'Sabana por grupo'!C488","v":0},0,{"$error":"#VALUE!"},{"$f":"'Sabana por grupo'!G488","v":0},{"$error":"#VALUE!"},{"$f":"MID('Sabana por grupo'!B488,1,2)","v":""},81]
[null,null,null,null,null,null,null,null,null,null,null,null,null,null,null,null,null,null,null,null,null,null,null,null,null,null,null,null,null,null,null,null,null,null,null,null,null,null,null,null,{"$f":"'Sabana por grupo'!A489","v":0},{"$f":"'Sabana por grupo'!C489","v":0},0,{"$error":"#VALUE!"},{"$f":"'Sabana por grupo'!G489","v":0},{"$error":"#VALUE!"},{"$f":"MID('Sabana por grupo'!B489,1,2)","v":""},81]
[null,null,null,null,null,null,null,null,null,null,null,null,null,null,null,null,null,null,null,null,null,null,null,null,null,null,null,null,null,null,null,null,null,null,null,null,null,null,null,null,{"$f":"'Sabana por grupo'!A490","v":0},{"$f":"'Sabana por grupo'!C490","v":0},0,{"$error":"#VALUE!"},{"$f":"'Sabana por grupo'!G490","v":0},{"$error":"#VALUE!"},{"$f":"MID('Sabana por grupo'!B490,1,2)","v":""},81]
[null,null,null,null,null,null,null,null,null,null,null,null,null,null,null,null,null,null,null,null,null,null,null,null,null,null,null,null,null,null,null,null,null,null,null,null,null,null,null,null,{"$f":"'Sabana por grupo'!A491","v":0},{"$f":"'Sabana por grupo'!C491","v":0},0,{"$error":"#VALUE!"},{"$f":"'Sabana por grupo'!G491","v":0},{"$error":"#VALUE!"},{"$f":"MID('Sabana por grupo'!B491,1,2)","v":""},81]
[null,null,null,null,null,null,null,null,null,null,null,null,null,null,null,null,null,null,null,null,null,null,null,null,null,null,null,null,null,null,null,null,null,null,null,null,null,null,null,null,{"$f":"'Sabana por grupo'!A492","v":0},{"$f":"'Sabana por grupo'!C492","v":0},0,{"$error":"#VALUE!"},{"$f":"'Sabana por grupo'!G492","v":0},{"$error":"#VALUE!"},{"$f":"MID('Sabana por grupo'!B492,1,2)","v":""},81]
[null,null,null,null,null,null,null,null,null,null,null,null,null,null,null,null,null,null,null,null,null,null,null,null,null,null,null,null,null,null,null,null,null,null,null,null,null,null,null,null,{"$f":"'Sabana por grupo'!A493","v":0},{"$f":"'Sabana por grupo'!C493","v":0},0,{"$error":"#VALUE!"},{"$f":"'Sabana por grupo'!G493","v":0},{"$error":"#VALUE!"},{"$f":"MID('Sabana por grupo'!B493,1,2)","v":""},81]
[null,null,null,null,null,null,null,null,null,null,null,null,null,null,null,null,null,null,null,null,null,null,null,null,null,null,null,null,null,null,null,null,null,null,null,null,null,null,null,null,{"$f":"'Sabana por grupo'!A494","v":0},{"$f":"'Sabana por grupo'!C494","v":0},0,{"$error":"#VALUE!"},{"$f":"'Sabana por grupo'!G494","v":0},{"$error":"#VALUE!"},{"$f":"MID('Sabana por grupo'!B494,1,2)","v":""},81]
[null,null,null,null,null,null,null,null,null,null,null,null,null,null,null,null,null,null,null,null,null,null,null,null,null,null,null,null,null,null,null,null,null,null,null,null,null,null,null,null,{"$f":"'Sabana por grupo'!A495","v":0},{"$f":"'Sabana por grupo'!C495","v":0},0,{"$error":"#VALUE!"},{"$f":"'Sabana por grupo'!G495","v":0},{"$error":"#VALUE!"},{"$f":"MID('Sabana por grupo'!B495,1,2)","v":""},81]
[null,null,null,null,null,null,null,null,null,null,null,null,null,null,null,null,null,null,null,null,null,null,null,null,null,null,null,null,null,null,null,null,null,null,null,null,null,null,null,null,{"$f":"'Sabana por grupo'!A496","v":0},{"$f":"'Sabana por grupo'!C496","v":0},0,{"$error":"#VALUE!"},{"$f":"'Sabana por grupo'!G496","v":0},{"$error":"#VALUE!"},{"$f":"MID('Sabana por grupo'!B496,1,2)","v":""},81]
[null,null,null,null,null,null,null,null,null,null,null,null,null,null,null,null,null,null,null,null,null,null,null,null,null,null,null,null,null,null,null,null,null,null,null,null,null,null,null,null,{"$f":"'Sabana por grupo'!A497","v":0},{"$f":"'Sabana por grupo'!C497","v":0},0,{"$error":"#VALUE!"},{"$f":"'Sabana por grupo'!G497","v":0},{"$error":"#VALUE!"},{"$f":"MID('Sabana por grupo'!B497,1,2)","v":""},81]
[null,null,null,null,null,null,null,null,null,null,null,null,null,null,null,null,null,null,null,null,null,null,null,null,null,null,null,null,null,null,null,null,null,null,null,null,null,null,null,null,{"$f":"'Sabana por grupo'!A498","v":0},{"$f":"'Sabana por grupo'!C498","v":0},0,{"$error":"#VALUE!"},{"$f":"'Sabana por grupo'!G498","v":0},{"$error":"#VALUE!"},{"$f":"MID('Sabana por grupo'!B498,1,2)","v":""},81]
[null,null,null,null,null,null,null,null,null,null,null,null,null,null,null,null,null,null,null,null,null,null,null,null,null,null,null,null,null,null,null,null,null,null,null,null,null,null,null,null,{"$f":"'Sabana por grupo'!A499","v":0},{"$f":"'Sabana por grupo'!C499","v":0},0,{"$error":"#VALUE!"},{"$f":"'Sabana por grupo'!G499","v":0},{"$error":"#VALUE!"},{"$f":"MID('Sabana por grupo'!B499,1,2)","v":""},81]
[null,null,null,null,null,null,null,null,null,null,null,null,null,null,null,null,null,null,null,null,null,null,null,null,null,null,null,null,null,null,null,null,null,null,null,null,null,null,null,null,{"$f":"'Sabana por grupo'!A500","v":0},{"$f":"'Sabana por grupo'!C500","v":0},0,{"$error":"#VALUE!"},{"$f":"'Sabana por grupo'!G500","v":0},{"$error":"#VALUE!"},{"$f":"MID('Sabana por grupo'!B500,1,2)","v":""},81]
[null,null,null,null,null,null,null,null,null,null,null,null,null,null,null,null,null,null,null,null,null,null,null,null,null,null,null,null,null,null,null,null,null,null,null,null,null,null,null,null,{"$f":"'Sabana por grupo'!A501","v":0},{"$f":"'Sabana por grupo'!C501","v":0},0,{"$error":"#VALUE!"},{"$f":"'Sabana por grupo'!G501","v":0},{"$error":"#VALUE!"},{"$f":"MID('Sabana por grupo'!B501,1,2)","v":""},81]
[null,null,null,null,null,null,null,null,null,null,null,null,null,null,null,null,null,null,null,null,null,null,null,null,null,null,null,null,null,null,null,null,null,null,null,null,null,null,null,null,{"$f":"'Sabana por grupo'!A502","v":0},{"$f":"'Sabana por grupo'!C502","v":0},0,{"$error":"#VALUE!"},{"$f":"'Sabana por grupo'!G502","v":0},{"$error":"#VALUE!"},{"$f":"MID('Sabana por grupo'!B502,1,2)","v":""},81]
[null,null,null,null,null,null,null,null,null,null,null,null,null,null,null,null,null,null,null,null,null,null,null,null,null,null,null,null,null,null,null,null,null,null,null,null,null,null,null,null,{"$f":"'Sabana por grupo'!A503","v":0},{"$f":"'Sabana por grupo'!C503","v":0},0,{"$error":"#VALUE!"},{"$f":"'Sabana por grupo'!G503","v":0},{"$error":"#VALUE!"},{"$f":"MID('Sabana por grupo'!B503,1,2)","v":""},81]
[null,null,null,null,null,null,null,null,null,null,null,null,null,null,null,null,null,null,null,null,null,null,null,null,null,null,null,null,null,null,null,null,null,null,null,null,null,null,null,null,{"$f":"'Sabana por grupo'!A504","v":0},{"$f":"'Sabana por grupo'!C504","v":0},0,{"$error":"#VALUE!"},{"$f":"'Sabana por grupo'!G504","v":0},{"$error":"#VALUE!"},{"$f":"MID('Sabana por grupo'!B504,1,2)","v":""},81]
[null,null,null,null,null,null,null,null,null,null,null,null,null,null,null,null,null,null,null,null,null,null,null,null,null,null,null,null,null,null,null,null,null,null,null,null,null,null,null,null,{"$f":"'Sabana por grupo'!A505","v":0},{"$f":"'Sabana por grupo'!C505","v":0},0,{"$error":"#VALUE!"},{"$f":"'Sabana por grupo'!G505","v":0},{"$error":"#VALUE!"},{"$f":"MID('Sabana por grupo'!B505,1,2)","v":""},81]
[null,null,null,null,null,null,null,null,null,null,null,null,null,null,null,null,null,null,null,null,null,null,null,null,null,null,null,null,null,null,null,null,null,null,null,null,null,null,null,null,{"$f":"'Sabana por grupo'!A506","v":0},{"$f":"'Sabana por grupo'!C506","v":0},0,{"$error":"#VALUE!"},{"$f":"'Sabana por grupo'!G506","v":0},{"$error":"#VALUE!"},{"$f":"MID('Sabana por grupo'!B506,1,2)","v":""},81]
[null,null,null,null,null,null,null,null,null,null,null,null,null,null,null,null,null,null,null,null,null,null,null,null,null,null,null,null,null,null,null,null,null,null,null,null,null,null,null,null,{"$f":"'Sabana por grupo'!A507","v":0},{"$f":"'Sabana por grupo'!C507","v":0},0,{"$error":"#VALUE!"},{"$f":"'Sabana por grupo'!G507","v":0},{"$error":"#VALUE!"},{"$f":"MID('Sabana por grupo'!B507,1,2)","v":""},81]
[null,null,null,null,null,null,null,null,null,null,null,null,null,null,null,null,null,null,null,null,null,null,null,null,null,null,null,null,null,null,null,null,null,null,null,null,null,null,null,null,{"$f":"'Sabana por grupo'!A508","v":0},{"$f":"'Sabana por grupo'!C508","v":0},0,{"$error":"#VALUE!"},{"$f":"'Sabana por grupo'!G508","v":0},{"$error":"#VALUE!"},{"$f":"MID('Sabana por grupo'!B508,1,2)","v":""},81]
[null,null,null,null,null,null,null,null,null,null,null,null,null,null,null,null,null,null,null,null,null,null,null,null,null,null,null,null,null,null,null,null,null,null,null,null,null,null,null,null,{"$f":"'Sabana por grupo'!A509","v":0},{"$f":"'Sabana por grupo'!C509","v":0},0,{"$error":"#VALUE!"},{"$f":"'Sabana por grupo'!G509","v":0},{"$error":"#VALUE!"},{"$f":"MID('Sabana por grupo'!B509,1,2)","v":""},81]
[null,null,null,null,null,null,null,null,null,null,null,null,null,null,null,null,null,null,null,null,null,null,null,null,null,null,null,null,null,null,null,null,null,null,null,null,null,null,null,null,{"$f":"'Sabana por grupo'!A510","v":0},{"$f":"'Sabana por grupo'!C510","v":0},0,{"$error":"#VALUE!"},{"$f":"'Sabana por grupo'!G510","v":0},{"$error":"#VALUE!"},{"$f":"MID('Sabana por grupo'!B510,1,2)","v":""},81]
[null,null,null,null,null,null,null,null,null,null,null,null,null,null,null,null,null,null,null,null,null,null,null,null,null,null,null,null,null,null,null,null,null,null,null,null,null,null,null,null,{"$f":"'Sabana por grupo'!A511","v":0},{"$f":"'Sabana por grupo'!C511","v":0},0,{"$error":"#VALUE!"},{"$f":"'Sabana por grupo'!G511","v":0},{"$error":"#VALUE!"},{"$f":"MID('Sabana por grupo'!B511,1,2)","v":""},81]
[null,null,null,null,null,null,null,null,null,null,null,null,null,null,null,null,null,null,null,null,null,null,null,null,null,null,null,null,null,null,null,null,null,null,null,null,null,null,null,null,{"$f":"'Sabana por grupo'!A512","v":0},{"$f":"'Sabana por grupo'!C512","v":0},0,{"$error":"#VALUE!"},{"$f":"'Sabana por grupo'!G512","v":0},{"$error":"#VALUE!"},{"$f":"MID('Sabana por grupo'!B512,1,2)","v":""},81]
[null,null,null,null,null,null,null,null,null,null,null,null,null,null,null,null,null,null,null,null,null,null,null,null,null,null,null,null,null,null,null,null,null,null,null,null,null,null,null,null,{"$f":"'Sabana por grupo'!A513","v":0},{"$f":"'Sabana por grupo'!C513","v":0},0,{"$error":"#VALUE!"},{"$f":"'Sabana por grupo'!G513","v":0},{"$error":"#VALUE!"},{"$f":"MID('Sabana por grupo'!B513,1,2)","v":""},81]
[null,null,null,null,null,null,null,null,null,null,null,null,null,null,null,null,null,null,null,null,null,null,null,null,null,null,null,null,null,null,null,null,null,null,null,null,null,null,null,null,{"$f":"'Sabana por grupo'!A514","v":0},{"$f":"'Sabana por grupo'!C514","v":0},{"$f":"_xlfn.NUMBERVALUE(AU514)","v":0},{"$error":"#VALUE!"},{"$f":"'Sabana por grupo'!G514","v":0},{"$error":"#VALUE!"},{"$f":"MID('Sabana por grupo'!B514,1,2)","v":""},81]
[null,null,null,null,null,null,null,null,null,null,null,null,null,null,null,null,null,null,null,null,null,null,null,null,null,null,null,null,null,null,null,null,null,null,null,null,null,null,null,null,{"$f":"'Sabana por grupo'!A515","v":0},{"$f":"'Sabana por grupo'!C515","v":0},0,{"$f":"IF(AT515=0,\"N/A\",IF(AT515<$AX$2,\"Riesgo Menor\",IF(AT515<$AX$3,\"Riesgo Probable\",\"Atencion de Prioridad\")))","v":{"$error":"#VALUE!"}},{"$f":"'Sabana por grupo'!G515","v":0},{"$f":"(AU515/AV526)","v":{"$error":"#VALUE!"}},{"$f":"MID('Sabana por grupo'!B515,1,2)","v":""},81]
[null,null,null,null,null,null,null,null,null,null,null,null,null,null,null,null,null,null,null,null,null,null,null,null,null,null,null,null,null,null,null,null,null,null,null,null,null,null,null,null,{"$f":"'Sabana por grupo'!A516","v":0},{"$f":"'Sabana por grupo'!C516","v":0},0,{"$error":"#VALUE!"},{"$f":"'Sabana por grupo'!G516","v":0},{"$error":"#VALUE!"},{"$f":"MID('Sabana por grupo'!B516,1,2)","v":""},81]
[null,null,null,null,null,null,null,null,null,null,null,null,null,null,null,null,null,null,null,null,null,null,null,null,null,null,null,null,null,null,null,null,null,null,null,null,null,null,null,null,{"$f":"'Sabana por grupo'!A517","v":0},{"$f":"'Sabana por grupo'!C517","v":0},0,{"$error":"#VALUE!"},{"$f":"'Sabana por grupo'!G517","v":0},{"$error":"#VALUE!"},{"$f":"MID('Sabana por grupo'!B517,1,2)","v":""},81]
[null,null,null,null,null,null,null,null,null,null,null,null,null,null,null,null,null,null,null,null,null,null,null,null,null,null,null,null,null,null,null,null,null,null,null,null,null,null,null,null,{"$f":"'Sabana por grupo'!A518","v":0},{"$f":"'Sabana por grupo'!C518","v":0},0,{"$error":"#VALUE!"},{"$f":"'Sabana por grupo'!G518","v":0},{"$error":"#VALUE!"},{"$f":"MID('Sabana por grupo'!B518,1,2)","v":""},81]
[null,null,null,null,null,null,null,null,null,null,null,null,null,null,null,null,null,null,null,null,null,null,null,null,null,null,null,null,null,null,null,null,null,null,null,null,null,null,null,null,{"$f":"'Sabana por grupo'!A519","v":0},{"$f":"'Sabana por grupo'!C519","v":0},0,{"$error":"#VALUE!"},{"$f":"'Sabana por grupo'!G519","v":0},{"$error":"#VALUE!"},{"$f":"MID('Sabana por grupo'!B519,1,2)","v":""},81]
[null,null,null,null,null,null,null,null,null,null,null,null,null,null,null,null,null,null,null,null,null,null,null,null,null,null,null,null,null,null,null,null,null,null,null,null,null,null,null,null,{"$f":"'Sabana por grupo'!A520","v":0},{"$f":"'Sabana por grupo'!C520","v":0},0,{"$error":"#VALUE!"},{"$f":"'Sabana por grupo'!G520","v":0},{"$error":"#VALUE!"},{"$f":"MID('Sabana por grupo'!B520,1,2)","v":""},81]
[null,null,null,null,null,null,null,null,null,null,null,null,null,null,null,null,null,null,null,null,null,null,null,null,null,null,null,null,null,null,null,null,null,null,null,null,null,null,null,null,{"$f":"'Sabana por grupo'!A521","v":0},{"$f":"'Sabana por grupo'!C521","v":0},0,{"$error":"#VALUE!"},{"$f":"'Sabana por grupo'!G521","v":0},{"$error":"#VALUE!"},{"$f":"MID('Sabana por grupo'!B521,1,2)","v":""},81]
[null,null,null,null,null,null,null,null,null,null,null,null,null,null,null,null,null,null,null,null,null,null,null,null,null,null,null,null,null,null,null,null,null,null,null,null,null,null,null,null,{"$f":"'Sabana por grupo'!A522","v":0},{"$f":"'Sabana por grupo'!C522","v":0},0,{"$error":"#VALUE!"},{"$f":"'Sabana por grupo'!G522","v":0},{"$error":"#VALUE!"},{"$f":"MID('Sabana por grupo'!B522,1,2)","v":""},81]
[null,null,null,null,null,null,null,null,null,null,null,null,null,null,null,null,null,null,null,null,null,null,null,null,null,null,null,null,null,null,null,null,null,null,null,null,null,null,null,null,{"$f":"'Sabana por grupo'!A523","v":0},{"$f":"'Sabana por grupo'!C523","v":0},0,{"$error":"#VALUE!"},{"$f":"'Sabana por grupo'!G523","v":0},{"$error":"#VALUE!"},{"$f":"MID('Sabana por grupo'!B523,1,2)","v":""},81]
[null,null,null,null,null,null,null,null,null,null,null,null,null,null,null,null,null,null,null,null,null,null,null,null,null,null,null,null,null,null,null,null,null,null,null,null,null,null,null,null,{"$f":"'Sabana por grupo'!A524","v":0},{"$f":"'Sabana por grupo'!C524","v":0},0,{"$error":"#VALUE!"},{"$f":"'Sabana por grupo'!G524","v":0},{"$error":"#VALUE!"},{"$f":"MID('Sabana por grupo'!B524,1,2)","v":""},81]
[null,null,null,null,null,null,null,null,null,null,null,null,null,null,null,null,null,null,null,null,null,null,null,null,null,null,null,null,null,null,null,null,null,null,null,null,null,null,null,null,{"$f":"'Sabana por grupo'!A525","v":0},{"$f":"'Sabana por grupo'!C525","v":0},0,{"$error":"#VALUE!"},{"$f":"'Sabana por grupo'!G525","v":0},{"$error":"#VALUE!"},{"$f":"MID('Sabana por grupo'!B525,1,2)","v":""},81]
[null,null,null,null,null,null,null,null,null,null,null,null,null,null,null,null,null,null,null,null,null,null,null,null,null,null,null,null,null,null,null,null,null,null,null,null,null,null,null,null,{"$f":"'Sabana por grupo'!A526","v":0},{"$f":"'Sabana por grupo'!C526","v":0},0,{"$error":"#VALUE!"},{"$f":"'Sabana por grupo'!G526","v":0},{"$error":"#VALUE!"},{"$f":"MID('Sabana por grupo'!B526,1,2)","v":""},81]
[null,null,null,null,null,null,null,null,null,null,null,null,null,null,null,null,null,null,null,null,null,null,null,null,null,null,null,null,null,null,null,null,null,null,null,null,null,null,null,null,{"$f":"'Sabana por grupo'!A527","v":0},{"$f":"'Sabana por grupo'!C527","v":0},0,{"$error":"#VALUE!"},{"$f":"'Sabana por grupo'!G527","v":0},{"$error":"#VALUE!"},{"$f":"MID('Sabana por grupo'!B527,1,2)","v":""},81]
[null,null,null,null,null,null,null,null,null,null,null,null,null,null,null,null,null,null,null,null,null,null,null,null,null,null,null,null,null,null,null,null,null,null,null,null,null,null,null,null,{"$f":"'Sabana por grupo'!A528","v":0},{"$f":"'Sabana por grupo'!C528","v":0},0,{"$error":"#VALUE!"},{"$f":"'Sabana por grupo'!G528","v":0},{"$error":"#VALUE!"},{"$f":"MID('Sabana por grupo'!B528,1,2)","v":""},81]
[null,null,null,null,null,null,null,null,null,null,null,null,null,null,null,null,null,null,null,null,null,null,null,null,null,null,null,null,null,null,null,null,null,null,null,null,null,null,null,null,{"$f":"'Sabana por grupo'!A529","v":0},{"$f":"'Sabana por grupo'!C529","v":0},0,{"$error":"#VALUE!"},{"$f":"'Sabana por grupo'!G529","v":0},{"$error":"#VALUE!"},{"$f":"MID('Sabana por grupo'!B529,1,2)","v":""},81]
[null,null,null,null,null,null,null,null,null,null,null,null,null,null,null,null,null,null,null,null,null,null,null,null,null,null,null,null,null,null,null,null,null,null,null,null,null,null,null,null,{"$f":"'Sabana por grupo'!A530","v":0},{"$f":"'Sabana por grupo'!C530","v":0},0,{"$error":"#VALUE!"},{"$f":"'Sabana por grupo'!G530","v":0},{"$error":"#VALUE!"},{"$f":"MID('Sabana por grupo'!B530,1,2)","v":""},81]
[null,null,null,null,null,null,null,null,null,null,null,null,null,null,null,null,null,null,null,null,null,null,null,null,null,null,null,null,null,null,null,null,null,null,null,null,null,null,null,null,{"$f":"'Sabana por grupo'!A531","v":0},{"$f":"'Sabana por grupo'!C531","v":0},0,{"$error":"#VALUE!"},{"$f":"'Sabana por grupo'!G531","v":0},{"$error":"#VALUE!"},{"$f":"MID('Sabana por grupo'!B531,1,2)","v":""},81]
[null,null,null,null,null,null,null,null,null,null,null,null,null,null,null,null,null,null,null,null,null,null,null,null,null,null,null,null,null,null,null,null,null,null,null,null,null,null,null,null,{"$f":"'Sabana por grupo'!A532","v":0},{"$f":"'Sabana por grupo'!C532","v":0},0,{"$error":"#VALUE!"},{"$f":"'Sabana por grupo'!G532","v":0},{"$error":"#VALUE!"},{"$f":"MID('Sabana por grupo'!B532,1,2)","v":""},81]
[null,null,null,null,null,null,null,null,null,null,null,null,null,null,null,null,null,null,null,null,null,null,null,null,null,null,null,null,null,null,null,null,null,null,null,null,null,null,null,null,{"$f":"'Sabana por grupo'!A533","v":0},{"$f":"'Sabana por grupo'!C533","v":0},0,{"$error":"#VALUE!"},{"$f":"'Sabana por grupo'!G533","v":0},{"$error":"#VALUE!"},{"$f":"MID('Sabana por grupo'!B533,1,2)","v":""},81]
[null,null,null,null,null,null,null,null,null,null,null,null,null,null,null,null,null,null,null,null,null,null,null,null,null,null,null,null,null,null,null,null,null,null,null,null,null,null,null,null,{"$f":"'Sabana por grupo'!A534","v":0},{"$f":"'Sabana por grupo'!C534","v":0},0,{"$error":"#VALUE!"},{"$f":"'Sabana por grupo'!G534","v":0},{"$error":"#VALUE!"},{"$f":"MID('Sabana por grupo'!B534,1,2)","v":""},81]
[null,null,null,null,null,null,null,null,null,null,null,null,null,null,null,null,null,null,null,null,null,null,null,null,null,null,null,null,null,null,null,null,null,null,null,null,null,null,null,null,{"$f":"'Sabana por grupo'!A535","v":0},{"$f":"'Sabana por grupo'!C535","v":0},0,{"$error":"#VALUE!"},{"$f":"'Sabana por grupo'!G535","v":0},{"$error":"#VALUE!"},{"$f":"MID('Sabana por grupo'!B535,1,2)","v":""},81]
[null,null,null,null,null,null,null,null,null,null,null,null,null,null,null,null,null,null,null,null,null,null,null,null,null,null,null,null,null,null,null,null,null,null,null,null,null,null,null,null,{"$f":"'Sabana por grupo'!A536","v":0},{"$f":"'Sabana por grupo'!C536","v":0},0,{"$error":"#VALUE!"},{"$f":"'Sabana por grupo'!G536","v":0},{"$error":"#VALUE!"},{"$f":"MID('Sabana por grupo'!B536,1,2)","v":""},81]
[null,null,null,null,null,null,null,null,null,null,null,null,null,null,null,null,null,null,null,null,null,null,null,null,null,null,null,null,null,null,null,null,null,null,null,null,null,null,null,null,{"$f":"'Sabana por grupo'!A537","v":0},{"$f":"'Sabana por grupo'!C537","v":0},0,{"$error":"#VALUE!"},{"$f":"'Sabana por grupo'!G537","v":0},{"$error":"#VALUE!"},{"$f":"MID('Sabana por grupo'!B537,1,2)","v":""},81]
[null,null,null,null,null,null,null,null,null,null,null,null,null,null,null,null,null,null,null,null,null,null,null,null,null,null,null,null,null,null,null,null,null,null,null,null,null,null,null,null,{"$f":"'Sabana por grupo'!A538","v":0},{"$f":"'Sabana por grupo'!C538","v":0},0,{"$error":"#VALUE!"},{"$f":"'Sabana por grupo'!G538","v":0},{"$error":"#VALUE!"},{"$f":"MID('Sabana por grupo'!B538,1,2)","v":""},81]
[null,null,null,null,null,null,null,null,null,null,null,null,null,null,null,null,null,null,null,null,null,null,null,null,null,null,null,null,null,null,null,null,null,null,null,null,null,null,null,null,{"$f":"'Sabana por grupo'!A539","v":0},{"$f":"'Sabana por grupo'!C539","v":0},0,{"$error":"#VALUE!"},{"$f":"'Sabana por grupo'!G539","v":0},{"$error":"#VALUE!"},{"$f":"MID('Sabana por grupo'!B539,1,2)","v":""},81]

{"sheet":"Reporte General","index":4,"n_rows":49,"n_cols":18,"rows_kept":49,"cut":false,"hidden":false,"merged":[[2,2,4,5],[39,9,40,12],[8,16,8,17],[28,16,29,17],[30,16,31,16],[30,17,31,17],[32,16,32,17],[11,2,11,3],[5,16,6,17],[7,16,7,17],[33,16,34,17],[35,16,35,17],[36,16,36,17],[37,16,37,17],[38,16,38,17],[24,5,24,6],[5,10,6,12],[42,1,42,2],[40,1,40,3],[10,0,10,1],[11,0,11,1],[41,1,41,2],[33,5,37,6],[7,0,7,1],[8,0,8,1],[9,0,9,1],[7,2,7,3],[9,2,9,3],[10,2,10,3],[46,16,46,17],[48,0,48,4],[41,9,42,12],[43,9,44,12]]}
[]
[]
[null,null,"Reporte de tamizaje general"]
[]
[]
[null,null,null,null,null,null,null,null,null,null,"     Alumnos en riesgo",null,null,null,null,null,"Ideación Autolítica"]
["Plantel:","Abasolo","Grupo:","101 (1A)"]
["Total de la muestra:",null,{"$f":"'Datos generales'!K1","v":1},null,null,null,null,null,null,"Folio","Nombre","F.R.","Tipo de R","Sexo"]
["Edad promedio de la muestra:",null,{"$f":"AVERAGE('Sabana por grupo'!E2:E100)","v":20},"Años",null,null,null,null,null,{"$f":"'Datos generales'!AO2","v":3},{"$f":"IFERROR('Datos generales'!AP2,\"\")","v":"Cristina Cruz Escalera"},{"$f":"IFERROR('Datos generales'!AT2,\"\")","v":7.407407407407407E-2},{"$f":"IFERROR('Datos generales'!AR2,\"\")","v":"Riesgo Menor"},{"$f":"IFERROR('Datos generales'!AS2,\"\")","v":"Mujer"},null,null,"Rasgos de Riesgo"]
["Muestra masculina:",null,{"$f":"COUNTIF('Sabana por grupo'!G1:G99049,\"Hombre\")","v":0},null,null,null,null,null,null,{"$f":"'Datos generales'!AO3","v":0},{"$f":"IFERROR('Datos generales'!AP3,\"\")","v":0},{"$f":"IFERROR('Datos generales'!AT3,\"\")","v":""},{"$f":"IFERROR('Datos generales'!AR3,\"\")","v":""},{"$f":"IFERROR('Datos generales'!AS3,\"\")","v":0},null,null,"Sentimientos de inutilidad",{"$f":"'Datos generales'!R28","v":0.25}]
["Muestra femenina:",null,{"$f":"COUNTIF('Sabana por grupo'!G1:G99049,\"Mujer\")","v":1},null,null,null,null,null,null,{"$f":"'Datos generales'!AO4","v":0},{"$f":"IFERROR('Datos generales'!AP4,\"\")","v":0},{"$f":"IFERROR('Datos generales'!AT4,\"\")","v":""},{"$f":"IFERROR('Datos generales'!AR4,\"\")","v":""},{"$f":"IFERROR('Datos generales'!AS4,\"\")","v":0},null,null,"Ideación suicida",{"$f":"'Datos generales'!R32","v":0}]
["Puntuacion promedio:",null,{"$f":"AVERAGEIF('Datos generales'!AQ2:AQ539,\">0\")","v":6},null,null,null,null,null,null,{"$f":"'Datos generales'!AO5","v":0},{"$f":"IFERROR('Datos generales'!AP5,\"\")","v":0},{"$f":"IFERROR('Datos generales'!AT5,\"\")","v":""},{"$f":"IFERROR('Datos generales'!AR5,\"\")","v":""},{"$f":"IFERROR('Datos generales'!AS5,\"\")","v":0},null,null,"Desesperanza",{"$f":"'Datos generales'!R35","v":0}]
[null,null,null,null,null,null,null,null,null,{"$f":"'Datos generales'!AO6","v":0},{"$f":"IFERROR('Datos generales'!AP6,\"\")","v":0},{"$f":"IFERROR('Datos generales'!AT6,\"\")","v":""},{"$f":"IFERROR('Datos generales'!AR6,\"\")","v":""},{"$f":"IFERROR('Datos generales'!AS6,\"\")","v":0},null,null,"Factores sociales",{"$f":"'Datos generales'!R38","v":0}]
[null,null,null,null,null,null,null,null,null,{"$f":"'Datos generales'!AO7","v":0},{"$f":"IFERROR('Datos generales'!AP7,\"\")","v":0},{"$f":"IFERROR('Datos generales'!AT7,\"\")","v":""},{"$f":"IFERROR('Datos generales'!AR7,\"\")","v":""},{"$f":"IFERROR('Datos generales'!AS7,\"\")","v":0}]
[null,"Tipo de riesgo","Alumnos",null,null,null,null,null,null,{"$f":"'Datos generales'!AO8","v":0},{"$f":"IFERROR('Datos generales'!AP8,\"\")","v":0},{"$f":"IFERROR('Datos generales'!AT8,\"\")","v":""},{"$f":"IFERROR('Datos generales'!AR8,\"\")","v":""},{"$f":"IFERROR('Datos generales'!AS8,\"\")","v":0}]
[null,"Menor",{"$f":"COUNTIF('Datos generales'!AR2:AR539,\"Riesgo Menor\")","v":1},null,null,null,null,null,null,{"$f":"'Datos generales'!AO9","v":0},{"$f":"IFERROR('Datos generales'!AP9,\"\")","v":0},{"$f":"IFERROR('Datos generales'!AT9,\"\")","v":""},{"$f":"IFERROR('Datos generales'!AR9,\"\")","v":""},{"$f":"IFERROR('Datos generales'!AS9,\"\")","v":0}]
[null,"Probable",{"$f":"COUNTIF('Datos generales'!AR2:AR539,\"Riesgo Probable\")","v":0},null,null,null,null,null,null,{"$f":"'Datos generales'!AO10","v":0},{"$f":"IFERROR('Datos generales'!AP10,\"\")","v":0},{"$f":"IFERROR('Datos generales'!AT10,\"\")","v":""},{"$f":"IFERROR('Datos generales'!AR10,\"\")","v":""},{"$f":"IFERROR('Datos generales'!AS10,\"\")","v":0}]
[null,"Prioridad",{"$f":"COUNTIF('Datos generales'!AR2:AR539,\"Atencion de Prioridad\")","v":0},null,null,null,null,null,null,{"$f":"'Datos generales'!AO11","v":0},{"$f":"IFERROR('Datos generales'!AP11,\"\")","v":0},{"$f":"IFERROR('Datos generales'!AT11,\"\")","v":""},{"$f":"IFERROR('Datos generales'!AR11,\"\")","v":""},{"$f":"IFERROR('Datos generales'!AS11,\"\")","v":0}]
[null,null,null,null,null,null,null,null,null,{"$f":"'Datos generales'!AO12","v":0},{"$f":"IFERROR('Datos generales'!AP12,\"\")","v":0},{"$f":"IFERROR('Datos generales'!AT12,\"\")","v":""},{"$f":"IFERROR('Datos generales'!AR12,\"\")","v":""},{"$f":"IFERROR('Datos generales'!AS12,\"\")","v":0}]
[null,null,null,null,null,null,null,null,null,{"$f":"'Datos generales'!AO13","v":0},{"$f":"IFERROR('Datos generales'!AP13,\"\")","v":0},{"$f":"IFERROR('Datos generales'!AT13,\"\")","v":""},{"$f":"IFERROR('Datos generales'!AR13,\"\")","v":""},{"$f":"IFERROR('Datos generales'!AS13,\"\")","v":0}]
[null,null,null,null,null,null,null,null,null,{"$f":"'Datos generales'!AO14","v":0},{"$f":"IFERROR('Datos generales'!AP14,\"\")","v":0},{"$f":"IFERROR('Datos generales'!AT14,\"\")","v":""},{"$f":"IFERROR('Datos generales'!AR14,\"\")","v":""},{"$f":"IFERROR('Datos generales'!AS14,\"\")","v":0}]
[null,null,null,null,null,null,null,null,null,{"$f":"'Datos generales'!AO15","v":0},{"$f":"IFERROR('Datos generales'!AP15,\"\")","v":0},{"$f":"IFERROR('Datos generales'!AT15,\"\")","v":""},{"$f":"IFERROR('Datos generales'!AR15,\"\")","v":""},{"$f":"IFERROR('Datos generales'!AS15,\"\")","v":0}]
[null,null,null,null,null,null,null,null,null,{"$f":"'Datos generales'!AO16","v":0},{"$f":"IFERROR('Datos generales'!AP16,\"\")","v":0},{"$f":"IFERROR('Datos generales'!AT16,\"\")","v":""},{"$f":"IFERROR('Datos generales'!AR16,\"\")","v":""},{"$f":"IFERROR('Datos generales'!AS16,\"\")","v":0}]
[null,null,null,null,null,null,null,null,null,{"$f":"'Datos generales'!AO17","v":0},{"$f":"IFERROR('Datos generales'!AP17,\"\")","v":0},{"$f":"IFERROR('Datos generales'!AT17,\"\")","v":""},{"$f":"IFERROR('Datos generales'!AR17,\"\")","v":""},{"$f":"IFERROR('Datos generales'!AS17,\"\")","v":0}]
[null,null,null,null,null,"Areas en riesgo",null,null,null,{"$f":"'Datos generales'!AO18","v":0},{"$f":"IFERROR('Datos generales'!AP18,\"\")","v":0},{"$f":"IFERROR('Datos generales'!AT18,\"\")","v":""},{"$f":"IFERROR('Datos generales'!AR18,\"\")","v":""},{"$f":"IFERROR('Datos generales'!AS18,\"\")","v":0}]
[null,null,null,null,null,"Sustancias",{"$f":"'Datos generales'!N22","v":0},null,null,{"$f":"'Datos generales'!AO19","v":0},{"$f":"IFERROR('Datos generales'!AP19,\"\")","v":0},{"$f":"IFERROR('Datos generales'!AT19,\"\")","v":""},{"$f":"IFERROR('Datos generales'!AR19,\"\")","v":""},{"$f":"IFERROR('Datos generales'!AS19,\"\")","v":0}]
[null,null,null,null,null,"Familia",{"$f":"'Datos generales'!R15","v":0.1},null,null,{"$f":"'Datos generales'!AO20","v":0},{"$f":"IFERROR('Datos generales'!AP20,\"\")","v":0},{"$f":"IFERROR('Datos generales'!AT20,\"\")","v":""},{"$f":"IFERROR('Datos generales'!AR20,\"\")","v":""},{"$f":"IFERROR('Datos generales'!AS20,\"\")","v":0}]
[null,null,null,null,null,"Conducta",{"$f":"'Datos generales'!V19","v":0},null,null,{"$f":"'Datos generales'!AO21","v":0},{"$f":"IFERROR('Datos generales'!AP21,\"\")","v":0},{"$f":"IFERROR('Datos generales'!AT21,\"\")","v":""},{"$f":"IFERROR('Datos generales'!AR21,\"\")","v":""},{"$f":"IFERROR('Datos generales'!AS21,\"\")","v":0}]
[null,null,null,null,null,"Salud mental",{"$f":"'Datos generales'!Z21","v":0.3125},null,null,{"$f":"'Datos generales'!AO22","v":0},{"$f":"IFERROR('Datos generales'!AP22,\"\")","v":0},{"$f":"IFERROR('Datos generales'!AT22,\"\")","v":""},{"$f":"IFERROR('Datos generales'!AR22,\"\")","v":""},{"$f":"IFERROR('Datos generales'!AS22,\"\")","v":0},null,null,"Riesgo del grupo en general"]
[null,null,null,null,null,"N. Educativo",{"$f":"'Datos generales'!AD20","v":0.46666666666666667},null,null,{"$f":"'Datos generales'!AO23","v":0},{"$f":"IFERROR('Datos generales'!AP23,\"\")","v":0},{"$f":"IFERROR('Datos generales'!AT23,\"\")","v":""},{"$f":"IFERROR('Datos generales'!AR23,\"\")","v":""},{"$f":"IFERROR('Datos generales'!AS23,\"\")","v":0}]
[null,null,null,null,null,"Amigos",{"$f":"'Datos generales'!AH12","v":0.2857142857142857},null,null,{"$f":"'Datos generales'!AO24","v":0},{"$f":"IFERROR('Datos generales'!AP24,\"\")","v":0},{"$f":"IFERROR('Datos generales'!AT24,\"\")","v":""},{"$f":"IFERROR('Datos generales'!AR24,\"\")","v":""},{"$f":"IFERROR('Datos generales'!AS24,\"\")","v":0},null,null,{"$f":"('Datos generales'!AJ33)/100","v":6.6666666666666666E-2},{"$f":"IF(AND(Q31>0.1,Q31<0.3),\"Sin Riesgo\",IF(AND(Q31>0.3,Q31<0.5),\"Riesgo bajo\",IF(AND(Q31>0.5,Q31<0.8),\"Riesgo medio\",\"Riesgo alto\")))","v":"Riesgo alto"}]
[null,null,null,null,null,"Laboral",{"$f":"'Datos generales'!AL11","v":0.33333333333333331},null,null,{"$f":"'Datos generales'!AO25","v":0},{"$f":"IFERROR('Datos generales'!AP25,\"\")","v":0},{"$f":"IFERROR('Datos generales'!AT25,\"\")","v":""},{"$f":"IFERROR('Datos generales'!AR25,\"\")","v":""},{"$f":"IFERROR('Datos generales'!AS25,\"\")","v":0}]
[null,null,null,null,null,"Promedio",{"$f":"AVERAGE(G26:G32)","v":0.21403061224489797},null,null,{"$f":"'Datos generales'!AO26","v":0},{"$f":"IFERROR('Datos generales'!AP26,\"\")","v":0},{"$f":"IFERROR('Datos generales'!AT26,\"\")","v":""},{"$f":"IFERROR('Datos generales'!AR26,\"\")","v":""},{"$f":"IFERROR('Datos generales'!AS26,\"\")","v":0},null,null,"Tipos de riesgo:"]
[null,null,null,null,null,"El Indice de Riesgo General es el promedio de vulnerabilidad en la poblacion estudiantil, mientras mas alto sea el numero, mayor sera el riesgo en el alumnado",null,null,null,{"$f":"'Datos generales'!AO27","v":0},{"$f":"IFERROR('Datos generales'!AP27,\"\")","v":0},{"$f":"IFERROR('Datos generales'!AT27,\"\")","v":""},{"$f":"IFERROR('Datos generales'!AR27,\"\")","v":""},{"$f":"IFERROR('Datos generales'!AS27,\"\")","v":0},null,null,"Los tipos de riesgo corresponden a el porcentaje de riesgo en el grupo general."]
[null,null,null,null,null,null,null,null,null,{"$f":"'Datos generales'!AO28","v":0},{"$f":"IFERROR('Datos generales'!AP28,\"\")","v":0},{"$f":"IFERROR('Datos generales'!AT28,\"\")","v":""},{"$f":"IFERROR('Datos generales'!AR28,\"\")","v":""},{"$f":"IFERROR('Datos generales'!AS28,\"\")","v":0}]
[null,null,null,null,null,null,null,null,null,{"$f":"'Datos generales'!AO29","v":0},{"$f":"IFERROR('Datos generales'!AP29,\"\")","v":0},{"$f":"IFERROR('Datos generales'!AT29,\"\")","v":""},{"$f":"IFERROR('Datos generales'!AR29,\"\")","v":""},{"$f":"IFERROR('Datos generales'!AS29,\"\")","v":0},null,null,"Sin riesgo en un porcentaje de 1% a 30%"]
[null,null,null,null,null,null,null,null,null,{"$f":"'Datos generales'!AO30","v":0},{"$f":"IFERROR('Datos generales'!AP30,\"\")","v":0},{"$f":"IFERROR('Datos generales'!AT30,\"\")","v":""},{"$f":"IFERROR('Datos generales'!AR30,\"\")","v":""},{"$f":"IFERROR('Datos generales'!AS30,\"\")","v":0},null,null,"Riesgo Bajo en un porcentaje de 30% a 55%"]
[null,null,null,null,null,null,null,null,null,{"$f":"'Datos generales'!AO31","v":0},{"$f":"IFERROR('Datos generales'!AP31,\"\")","v":0},{"$f":"IFERROR('Datos generales'!AT31,\"\")","v":""},{"$f":"IFERROR('Datos generales'!AR31,\"\")","v":""},{"$f":"IFERROR('Datos generales'!AS31,\"\")","v":0},null,null,"Riesgo Medio en un porcentaje de 55% a 80%"]
[null,null,null,null,null,null,null,null,null,null,null,null,null,null,null,null,"Riesgo Alto en un porcentaje de 80% a 100%"]
[null,null,null,null,null,null,null,null,null,"Prioridad: Quiere decir que el alumno requiere una atención inmediata"]
[null,"Riesgo por sexo"]
[null,"Hombres en riesgo",null,{"$f":"COUNTIFS('Datos generales'!AS2:AS6377,\"Hombre\",'Datos generales'!AT2:AT6377,\">0.2832\")","v":0},null,null,null,null,null,"Riesgo Probable: Se refiere a un alumno con posibilidades de presentar conflictos en las áreas mas destacadas, es importante agendar una cita para su atencion."]
[null,"Mujeres en riesgo",null,{"$f":"COUNTIFS('Datos generales'!AS2:AS6378,\"Mujer\",'Datos generales'!AT2:AT6378,\">0.2832\")","v":0}]
[null,null,null,null,null,null,null,null,null,"Riesgo Menor: No requiere agendar cita para su atencion psicológica a menos que el alumno así lo requiera."]
[]
[]
[null,null,null,null,null,null,null,null,null,null,null,null,null,null,null,null,"Según la escala de Plutchik"]
[]
["Según metodología de POSIT"]

{"sheet":"Datos individuales","index":5,"n_rows":58,"n_cols":104,"rows_kept":58,"cut":false,"hidden":true,"merged":[[5,6,5,8],[42,6,42,8],[5,13,5,14],[6,13,6,14],[35,12,35,19],[36,12,36,17],[37,12,40,15],[37,18,40,18],[41,12,43,15],[41,18,43,18],[9,12,9,14],[7,12,7,14],[8,12,8,14],[12,12,12,13],[12,14,12,15],[47,12,51,15],[47,18,51,18],[31,3,31,5],[10,12,10,14],[49,9,49,11],[44,12,46,15],[16,12,16,14],[11,12,11,13],[11,14,11,15],[44,18,46,18]]}
[null,"Folio",null,"Turno","Edad","Grado","Sexo","Plantel","1.- ¿Eres arrogante?","2.- ¿Has tenido dificultades porque consumes drogas o bebidas alcohólicas en la escuela?","3.- ¿Se aburren tus amigos en las fiestas donde no sirven bebidas alcohólicas?","4.- ¿Discuten demasiado tus padres o tutores?","5.- ¿Te cansas con frecuencia?","6.- ¿Te asustas con facilidad?","7.- ¿Tienes menos energía de la que crees que deberías tener?","8.- ¿Te sientes frustrado(a) con facilidad?","9.- ¿Amenazas a otros con hacerles daño?","10.- ¿Te sientes solo (a) la mayor parte del tiempo?","11.- ¿Dices groserías o vulgaridades?","12.- ¿Escuchas cuidadosamente cuando alguien te habla?","13.- ¿Son tus amigos (as) del agrado de tus padres o tutores?","14.- ¿Se niegan tus padres o tutores a hablarte cuando se enfadan contigo?","15.- ¿Actúas impulsivamente y sin pensar en las consecuencias que tendrán tus actos?","16.- ¿Has tenido algún trabajo eventual con sueldo?","17.- ¿Te has hecho daño o le has hecho daño a otra persona accidentalmente, estando bajo los efectos del alcohol o drogas?","18.- ¿Tienes buena ortografía?","19.- ¿Tienes amigos que causan daño o destrucción intencionalmente?","20.- La mayoría de las veces, ¿saben tus padres o tutores dónde estás y lo que estás haciendo?","21.- ¿Sueles perderte actividades o acontecimientos porque has gastado demasiado dinero en drogas o bebidas alcohólicas?","22.- ¿Participas en muchas actividades en compañía de tus padres o tutores?","23.- ¿Te sientes nervioso (a) la mayor parte del tiempo?","24.- ¿Has robado alguna vez?","25.- ¿Has sentido que eres adicto (a) al alcohol o a las drogas?","26.- ¿Sabes leer bien?","27.- ¿Has estado ausente o llegado tarde a tu trabajo o escuela con frecuencia?","28.- ¿Sientes que la gente está en contra tuya?","29.- ¿Tus amigos llevan drogas a las fiestas?","30.- ¿Peleas con frecuencia?","31.- ¿Tienes mal genio?","32.- ¿Te prestan atención tus padres o tutores cuando les hablas?","33.- ¿Has comenzado a consumir mayores cantidades de drogas o alcohol para obtener el efecto que deseas?","34.- ¿Te dice la gente que eres descuidado (a)?","35.- ¿Eres terco (a) o testarudo (a)?","36.- ¿Has tenido alguna vez o tienes actualmente un empleo?","37.- ¿Has amenazado alguna vez a alguien con un arma?","38.- ¿A veces te vas de las fiestas porque en ellas no hay bebidas alcohólicas o drogas?","39.- ¿Saben tus padres o tutores cómo piensas o te sientes realmente?","40.- ¿Actúas impulsivamente con frecuencia?","41.- ¿Sientes un deseo constante de consumir bebidas alcohólicas o drogas?","42.- ¿Pierdes el hilo del pensamiento con mucha frecuencia?","43.- ¿Tienes dificultades para concentrarte?","44.- ¿Has tenido alguna vez un empleo con sueldo que haya durado por lo menos un mes?","45.- ¿Discutes frecuentemente con tus padres o tutores, levantando la voz y gritando?","46.- ¿Has tenido un accidente automovilístico estando bajo los efectos del alcohol o drogas?","47.- ¿Olvidas lo que haces cuando bebes o te drogas?","48.- El mes pasado, ¿manejaste un automóvil estando borracho (a) o drogado (a)?","49.- ¿Levantas la voz más que los demás muchachos de tu edad?","50.- ¿Has ocasionado daños a propiedad ajena intencionalmente?","51.- ¿Has dejado un empleo sencillamente porque no te interesaban las consecuencias de dejarlo?","52.- ¿A tus padres o tutores les gusta hablar y estar contigo?","53.- ¿Has pasado alguna noche fuera de tu casa sin que tus padres o tutores supieran dónde estabas?","54.- ¿El uso del alcohol o drogas te produce cambios repentinos de humor, como pasar de estar contento (a) a estar triste, o viceversa?","55.- ¿Te sientes triste la mayor parte del tiempo?","56.- ¿Pierdes días de clase o llegas tarde a la escuela por haber consumido bebidas alcohólicas o drogas?","57.- ¿Te han dicho alguna vez tus familiares o amigos que debes reducir el uso de bebidas alcohólicas o drogas?","58.- ¿Discutes seriamente con tus amigos o familiares por el uso que haces de bebidas alcohólicas o drogas?","59.- ¿Molestas mucho a tus amigos?","60.- ¿Tienes dificultades para dormir?","61.- ¿Tienes dificultades con trabajos escritos?","62.- Las bebidas alcohólicas o drogas, ¿te han inducido a hacer algo que normalmente no harías, como desobedecer alguna regla o ley, o la hora de llegar a casa, o tener relaciones sexuales con alguien?","63.- ¿Sientes que a veces pierdes control de ti mismo(a) y terminas peleando?","64.- ¿Faltaste a la escuela sin autorización el mes pasado?","65.- ¿Tienes dificultades en tus relaciones con alguno de tus amigos debido a las bebidas alcohólicas o drogas que consumes?","66.- ¿Tienes dificultad para seguir instrucciones?","67.- ¿Tienes amigos que han golpeado o amenazado a alguien sin razón?","68.- ¿Has sentido que no puedes controlar el deseo de consumir bebidas alcohólicas o drogas?","69.- ¿Tienes buena memoria?","70.- ¿Tienen tus padres o tutores una idea relativamente buena de lo que te interesa?","71.- ¿Están tus padres o tutores de acuerdo en cuanto a la forma en que te deben educar?","72.- ¿Se te hace difícil hacer planes u organizar tus actividades?","73.- ¿Tus amigos faltan a la escuela sin autorización con mucha frecuencia?","74.- ¿A veces la escuela te hace sentirte como tonto?","75.- ¿Frecuentemente sientes deseos de llorar?","76.- ¿Te da miedo estar con la gente?","77.- ¿Tienes amigos que han robado?","78.- ¿Has reprobado algún año en la escuela?","79.- ¿Es difícil la escuela para ti?","80.- ¿Eres una persona nerviosa, de las que no pueden estar sentadas mucho tiempo?","81.- ¿Gritas mucho?","1.-¿Toma de forma habitual algún medicamento, como aspirinas o pastillas para dormir?","2.-¿Tiene dificultades para conciliar el sueño?","3.-¿A veces nota que podría perder el control sobre sí mismo/a?","4.- ¿Tiene poco interés en relacionarse con la gente?","5.- ¿Ve su futuro con más pesimismo que optimismo?","6.- ¿Se ha sentido alguna vez inútil o inservible?","7.- ¿Ve su futuro sin ninguna esperanza?","8.- ¿Se ha sentido alguna vez tan fracasado/a que sólo quería meterse en la cama y abandonarlo todo?","9.- ¿Está deprimido/a ahora?","10.- ¿Está usted separado/a, divorciado/a, viudo/a?","11.- ¿Sabe si alguien de su familia ha intentado suicidarse alguna vez?","12.- ¿Alguna vez se ha sentido tan enfadado/a que habría sido capaz de matar a alguien?","13.- ¿Ha pensado alguna vez en suicidarse?","14.- ¿Le ha comentado a alguien, en alguna ocasión, que quería suicidarse?","15.- ¿Ha intentado alguna vez quitarse la vida?"]
[null,"FOLIO","Nombre",{"$f":"LOOKUP($B$3,'Sabana por grupo'!$A$1:$A$99049,'Sabana por grupo'!D$1:D$99049)","v":"Diurno"},{"$f":"LOOKUP($B$3,'Sabana por grupo'!$A$1:$A$99049,'Sabana por grupo'!E$1:E$99049)","v":20},{"$f":"LOOKUP($B$3,'Sabana por grupo'!$A$1:$A$99049,'Sabana por grupo'!F$1:F$99049)","v":"101 (1A)"},{"$f":"LOOKUP($B$3,'Sabana por grupo'!$A$1:$A$99049,'Sabana por grupo'!G$1:G$99049)","v":"Mujer"},{"$f":"LOOKUP($B$3,'Sabana por grupo'!$A$1:$A$99049,'Sabana por grupo'!H$1:H$99049)","v":"Abasolo"},{"$f":"LOOKUP($B$3,'Sabana por grupo'!$A$1:$A$99049,'Sabana por grupo'!I$1:I$99049)","v":"No"},{"$f":"LOOKUP($B$3,'Sabana por grupo'!$A$1:$A$99049,'Sabana por grupo'!J$1:J$99049)","v":"No"},{"$f":"LOOKUP($B$3,'Sabana por grupo'!$A$1:$A$99049,'Sabana por grupo'!K$1:K$99049)","v":"Si"},{"$f":"LOOKUP($B$3,'Sabana por grupo'!$A$1:$A$99049,'Sabana por grupo'!L$1:L$99049)","v":"No"},{"$f":"LOOKUP($B$3,'Sabana por grupo'!$A$1:$A$99049,'Sabana por grupo'!M$1:M$99049)","v":"No"},{"$f":"LOOKUP($B$3,'Sabana por grupo'!$A$1:$A$99049,'Sabana por grupo'!N$1:N$99049)","v":"No"},{"$f":"LOOKUP($B$3,'Sabana por grupo'!$A$1:$A$99049,'Sabana por grupo'!O$1:O$99049)","v":"No"},{"$f":"LOOKUP($B$3,'Sabana por grupo'!$A$1:$A$99049,'Sabana por grupo'!P$1:P$99049)","v":"No"},{"$f":"LOOKUP($B$3,'Sabana por grupo'!$A$1:$A$99049,'Sabana por grupo'!Q$1:Q$99049)","v":"No"},{"$f":"LOOKUP($B$3,'Sabana por grupo'!$A$1:$A$99049,'Sabana por grupo'!R$1:R$99049)","v":"No"},{"$f":"LOOKUP($B$3,'Sabana por grupo'!$A$1:$A$99049,'Sabana por grupo'!S$1:S$99049)","v":"No"},{"$f":"LOOKUP($B$3,'Sabana por grupo'!$A$1:$A$99049,'Sabana por grupo'!T$1:T$99049)","v":"Si"},{"$f":"LOOKUP($B$3,'Sabana por grupo'!$A$1:$A$99049,'Sabana por grupo'!U$1:U$99049)","v":"Si"},{"$f":"LOOKUP($B$3,'Sabana por grupo'!$A$1:$A$99049,'Sabana por grupo'!V$1:V$99049)","v":"No"},{"$f":"LOOKUP($B$3,'Sabana por grupo'!$A$1:$A$99049,'Sabana por grupo'!W$1:W$99049)","v":"No"},{"$f":"LOOKUP($B$3,'Sabana por grupo'!$A$1:$A$99049,'Sabana por grupo'!X$1:X$99049)","v":"Si"},{"$f":"LOOKUP($B$3,'Sabana por grupo'!$A$1:$A$99049,'Sabana por grupo'!Y$1:Y$99049)","v":"No"},{"$f":"LOOKUP($B$3,'Sabana por grupo'!$A$1:$A$99049,'Sabana por grupo'!Z$1:Z$99049)","v":"Si"},{"$f":"LOOKUP($B$3,'Sabana por grupo'!$A$1:$A$99049,'Sabana por grupo'!AA$1:AA$99049)","v":"No"},{"$f":"LOOKUP($B$3,'Sabana por grupo'!$A$1:$A$99049,'Sabana por grupo'!AB$1:AB$99049)","v":"No"},{"$f":"LOOKUP($B$3,'Sabana por grupo'!$A$1:$A$99049,'Sabana por grupo'!AC$1:AC$99049)","v":"No"},{"$f":"LOOKUP($B$3,'Sabana por grupo'!$A$1:$A$99049,'Sabana por grupo'!AD$1:AD$99049)","v":"Si"},{"$f":"LOOKUP($B$3,'Sabana por grupo'!$A$1:$A$99049,'Sabana por grupo'!AE$1:AE$99049)","v":"No"},{"$f":"LOOKUP($B$3,'Sabana por grupo'!$A$1:$A$99049,'Sabana por grupo'!AF$1:AF$99049)","v":"No"},{"$f":"LOOKUP($B$3,'Sabana por grupo'!$A$1:$A$99049,'Sabana por grupo'!AG$1:AG$99049)","v":"No"},{"$f":"LOOKUP($B$3,'Sabana por grupo'!$A$1:$A$99049,'Sabana por grupo'!AH$1:AH$99049)","v":"Si"},{"$f":"LOOKUP($B$3,'Sabana por grupo'!$A$1:$A$99049,'Sabana por grupo'!AI$1:AI$99049)","v":"No"},{"$f":"LOOKUP($B$3,'Sabana por grupo'!$A$1:$A$99049,'Sabana por grupo'!AJ$1:AJ$99049)","v":"No"},{"$f":"LOOKUP($B$3,'Sabana por grupo'!$A$1:$A$99049,'Sabana por grupo'!AK$1:AK$99049)","v":"No"},{"$f":"LOOKUP($B$3,'Sabana por grupo'!$A$1:$A$99049,'Sabana por grupo'!AL$1:AL$99049)","v":"No"},{"$f":"LOOKUP($B$3,'Sabana por grupo'!$A$1:$A$99049,'Sabana por grupo'!AM$1:AM$99049)","v":"No"},{"$f":"LOOKUP($B$3,'Sabana por grupo'!$A$1:$A$99049,'Sabana por grupo'!AN$1:AN$99049)","v":"Si"},{"$f":"LOOKUP($B$3,'Sabana por grupo'!$A$1:$A$99049,'Sabana por grupo'!AO$1:AO$99049)","v":"No"},{"$f":"LOOKUP($B$3,'Sabana por grupo'!$A$1:$A$99049,'Sabana por grupo'!AP$1:AP$99049)","v":"No"},{"$f":"LOOKUP($B$3,'Sabana por grupo'!$A$1:$A$99049,'Sabana por grupo'!AQ$1:AQ$99049)","v":"No"},{"$f":"LOOKUP($B$3,'Sabana por grupo'!$A$1:$A$99049,'Sabana por grupo'!AR$1:AR$99049)","v":"Si"},{"$f":"LOOKUP($B$3,'Sabana por grupo'!$A$1:$A$99049,'Sabana por grupo'!AS$1:AS$99049)","v":"No"},{"$f":"LOOKUP($B$3,'Sabana por grupo'!$A$1:$A$99049,'Sabana por grupo'!AT$1:AT$99049)","v":"No"},{"$f":"LOOKUP($B$3,'Sabana por grupo'!$A$1:$A$99049,'Sabana por grupo'!AU$1:AU$99049)","v":"Si"},{"$f":"LOOKUP($B$3,'Sabana por grupo'!$A$1:$A$99049,'Sabana por grupo'!AV$1:AV$99049)","v":"No"},{"$f":"LOOKUP($B$3,'Sabana por grupo'!$A$1:$A$99049,'Sabana por grupo'!AW$1:AW$99049)","v":"No"},{"$f":"LOOKUP($B$3,'Sabana por grupo'!$A$1:$A$99049,'Sabana por grupo'!AX$1:AX$99049)","v":"No"},{"$f":"LOOKUP($B$3,'Sabana por grupo'!$A$1:$A$99049,'Sabana por grupo'!AY$1:AY$99049)","v":"No"},{"$f":"LOOKUP($B$3,'Sabana por grupo'!$A$1:$A$99049,'Sabana por grupo'!AZ$1:AZ$99049)","v":"No"},{"$f":"LOOKUP($B$3,'Sabana por grupo'!$A$1:$A$99049,'Sabana por grupo'!BA$1:BA$99049)","v":"No"},{"$f":"LOOKUP($B$3,'Sabana por grupo'!$A$1:$A$99049,'Sabana por grupo'!BB$1:BB$99049)","v":"No"},{"$f":"LOOKUP($B$3,'Sabana por grupo'!$A$1:$A$99049,'Sabana por grupo'!BC$1:BC$99049)","v":"No"},{"$f":"LOOKUP($B$3,'Sabana por grupo'!$A$1:$A$99049,'Sabana por grupo'!BD$1:BD$99049)","v":"No"},{"$f":"LOOKUP($B$3,'Sabana por grupo'!$A$1:$A$99049,'Sabana por grupo'!BE$1:BE$99049)","v":"No"},{"$f":"LOOKUP($B$3,'Sabana por grupo'!$A$1:$A$99049,'Sabana por grupo'!BF$1:BF$99049)","v":"No"},{"$f":"LOOKUP($B$3,'Sabana por grupo'!$A$1:$A$99049,'Sabana por grupo'!BG$1:BG$99049)","v":"No"},{"$f":"LOOKUP($B$3,'Sabana por grupo'!$A$1:$A$99049,'Sabana por grupo'!BH$1:BH$99049)","v":"Si"},{"$f":"LOOKUP($B$3,'Sabana por grupo'!$A$1:$A$99049,'Sabana por grupo'!BI$1:BI$99049)","v":"No"},{"$f":"LOOKUP($B$3,'Sabana por grupo'!$A$1:$A$99049,'Sabana por grupo'!BJ$1:BJ$99049)","v":"No"},{"$f":"LOOKUP($B$3,'Sabana por grupo'!$A$1:$A$99049,'Sabana por grupo'!BK$1:BK$99049)","v":"No"},{"$f":"LOOKUP($B$3,'Sabana por grupo'!$A$1:$A$99049,'Sabana por grupo'!BL$1:BL$99049)","v":"No"},{"$f":"LOOKUP($B$3,'Sabana por grupo'!$A$1:$A$99049,'Sabana por grupo'!BM$1:BM$99049)","v":"No"},{"$f":"LOOKUP($B$3,'Sabana por grupo'!$A$1:$A$99049,'Sabana por grupo'!BN$1:BN$99049)","v":"No"},{"$f":"LOOKUP($B$3,'Sabana por grupo'!$A$1:$A$99049,'Sabana por grupo'!BO$1:BO$99049)","v":"No"},{"$f":"LOOKUP($B$3,'Sabana por grupo'!$A$1:$A$99049,'Sabana por grupo'!BP$1:BP$99049)","v":"No"},{"$f":"LOOKUP($B$3,'Sabana por grupo'!$A$1:$A$99049,'Sabana por grupo'!BQ$1:BQ$99049)","v":"No"},{"$f":"LOOKUP($B$3,'Sabana por grupo'!$A$1:$A$99049,'Sabana por grupo'!BR$1:BR$99049)","v":"No"},{"$f":"LOOKUP($B$3,'Sabana por grupo'!$A$1:$A$99049,'Sabana por grupo'!BS$1:BS$99049)","v":"No"},{"$f":"LOOKUP($B$3,'Sabana por grupo'!$A$1:$A$99049,'Sabana por grupo'!BT$1:BT$99049)","v":"No"},{"$f":"LOOKUP($B$3,'Sabana por grupo'!$A$1:$A$99049,'Sabana por grupo'!BU$1:BU$99049)","v":"No"},{"$f":"LOOKUP($B$3,'Sabana por grupo'!$A$1:$A$99049,'Sabana por grupo'!BV$1:BV$99049)","v":"No"},{"$f":"LOOKUP($B$3,'Sabana por grupo'!$A$1:$A$99049,'Sabana por grupo'!BW$1:BW$99049)","v":"No"},{"$f":"LOOKUP($B$3,'Sabana por grupo'!$A$1:$A$99049,'Sabana por grupo'!BX$1:BX$99049)","v":"No"},{"$f":"LOOKUP($B$3,'Sabana por grupo'!$A$1:$A$99049,'Sabana por grupo'!BY$1:BY$99049)","v":"Si"},{"$f":"LOOKUP($B$3,'Sabana por grupo'!$A$1:$A$99049,'Sabana por grupo'!BZ$1:BZ$99049)","v":"Si"},{"$f":"LOOKUP($B$3,'Sabana por grupo'!$A$1:$A$99049,'Sabana por grupo'!CA$1:CA$99049)","v":"Si"},{"$f":"LOOKUP($B$3,'Sabana por grupo'!$A$1:$A$99049,'Sabana por grupo'!CB$1:CB$99049)","v":"Si"},{"$f":"LOOKUP($B$3,'Sabana por grupo'!$A$1:$A$99049,'Sabana por grupo'!CC$1:CC$99049)","v":"No"},{"$f":"LOOKUP($B$3,'Sabana por grupo'!$A$1:$A$99049,'Sabana por grupo'!CD$1:CD$99049)","v":"No"},{"$f":"LOOKUP($B$3,'Sabana por grupo'!$A$1:$A$99049,'Sabana por grupo'!CE$1:CE$99049)","v":"No"},{"$f":"LOOKUP($B$3,'Sabana por grupo'!$A$1:$A$99049,'Sabana por grupo'!CF$1:CF$99049)","v":"No"},{"$f":"LOOKUP($B$3,'Sabana por grupo'!$A$1:$A$99049,'Sabana por grupo'!CG$1:CG$99049)","v":"Si"},{"$f":"LOOKUP($B$3,'Sabana por grupo'!$A$1:$A$99049,'Sabana por grupo'!CH$1:CH$99049)","v":"No"},{"$f":"LOOKUP($B$3,'Sabana por grupo'!$A$1:$A$99049,'Sabana por grupo'!CI$1:CI$99049)","v":"No"},{"$f":"LOOKUP($B$3,'Sabana por grupo'!$A$1:$A$99049,'Sabana por grupo'!CJ$1:CJ$99049)","v":"No"},{"$f":"LOOKUP($B$3,'Sabana por grupo'!$A$1:$A$99049,'Sabana por grupo'!CK$1:CK$99049)","v":"No"},{"$f":"LOOKUP($B$3,'Sabana por grupo'!$A$1:$A$99049,'Sabana por grupo'!CL$1:CL$99049)","v":"No"},{"$f":"LOOKUP($B$3,'Sabana por grupo'!$A$1:$A$99049,'Sabana por grupo'!CM$1:CM$99049)","v":"No"},{"$f":"LOOKUP($B$3,'Sabana por grupo'!$A$1:$A$99049,'Sabana por grupo'!CN$1:CN$99049)","v":"No"},{"$f":"LOOKUP($B$3,'Sabana por grupo'!$A$1:$A$99049,'Sabana por grupo'!CO$1:CO$99049)","v":"No"},{"$f":"LOOKUP($B$3,'Sabana por grupo'!$A$1:$A$99049,'Sabana por grupo'!CP$1:CP$99049)","v":"No"},{"$f":"LOOKUP($B$3,'Sabana por grupo'!$A$1:$A$99049,'Sabana por grupo'!CQ$1:CQ$99049)","v":"No"},{"$f":"LOOKUP($B$3,'Sabana por grupo'!$A$1:$A$99049,'Sabana por grupo'!CR$1:CR$99049)","v":"No"},{"$f":"LOOKUP($B$3,'Sabana por grupo'!$A$1:$A$99049,'Sabana por grupo'!CS$1:CS$99049)","v":"Si"},{"$f":"LOOKUP($B$3,'Sabana por grupo'!$A$1:$A$99049,'Sabana por grupo'!CT$1:CT$99049)","v":"No"},{"$f":"LOOKUP($B$3,'Sabana por grupo'!$A$1:$A$99049,'Sabana por grupo'!CU$1:CU$99049)","v":"No"},{"$f":"LOOKUP($B$3,'Sabana por grupo'!$A$1:$A$99049,'Sabana por grupo'!CV$1:CV$99049)","v":"No"},{"$f":"LOOKUP($B$3,'Sabana por grupo'!$A$1:$A$99049,'Sabana por grupo'!CW$1:CW$99049)","v":"No"},{"$f":"LOOKUP($B$3,'Sabana por grupo'!$A$1:$A$99049,'Sabana por grupo'!CX$1:CX$99049)","v":"No"},{"$f":"LOOKUP($B$3,'Sabana por grupo'!$A$1:$A$99049,'Sabana por grupo'!CY$1:CY$99049)","v":"No"},{"$f":"LOOKUP($B$3,'Sabana por grupo'!$A$1:$A$99049,'Sabana por grupo'!CZ$1:CZ$99049)","v":"No"}]
[null,{"$f":"'Reporte individual'!H9","v":10},{"$f":"LOOKUP($B$3,'Sabana por grupo'!$A$1:$A$99049,'Sabana por grupo'!C$1:C$99049)","v":"Cristina Cruz Escalera"}]
[]
[]
[null,"SI","NO",null,"SI","NO","SALUD",null,null,null,"SI","NO ","R"]
[1,{"$f":"IF($H$2=\"Si\",1,0)","v":0},{"$f":"IF($H$2=\"No\",1,0)","v":0},55,{"$f":"IF($BJ$2=\"Si\",1,0)","v":0},{"$f":"IF($BJ$2=\"No\",1,0)","v":1},null,"SI","NO",12,{"$f":"IF($S$2=\"Si\",1,0)","v":0},{"$f":"IF($S$2=\"No\",1,0)","v":1},"NR"]
[2,{"$f":"IF($I$2=\"Si\",1,0)","v":0},{"$f":"IF($I$2=\"No\",1,0)","v":1},56,{"$f":"IF($BK$2=\"Si\",1,0)","v":0},{"$f":"IF($BK$2=\"No\",1,0)","v":1},5,{"$f":"B11","v":0},{"$f":"C11","v":1},13,{"$f":"IF($T$2=\"Si\",1,0)","v":1},{"$f":"IF($T$2=\"No\",1,0)","v":0},"TOTAL",null,null,"SI","NO"]
[3,{"$f":"IF($J$2=\"Si\",1,0)","v":0},{"$f":"IF($J$2=\"No\",1,0)","v":1},57,{"$f":"IF($BL$2=\"Si\",1,0)","v":0},{"$f":"IF($BL$2=\"No\",1,0)","v":1},6,{"$f":"B12","v":0},{"$f":"C12","v":1},18,{"$f":"IF($Y$2=\"Si\",1,0)","v":0},{"$f":"IF($Y$2=\"No\",1,0)","v":1},"T3",null,null,{"$f":"K19","v":3},{"$f":"L19","v":9}]
[4,{"$f":"IF($K$2=\"Si\",1,0)","v":1},{"$f":"IF($K$2=\"No\",1,0)","v":0},58,{"$f":"IF($BM$2=\"Si\",1,0)","v":0},{"$f":"IF($BM$2=\"No\",1,0)","v":1},8,{"$f":"B14","v":0},{"$f":"C14","v":1},20,{"$f":"IF($AA$2=\"Si\",1,0)","v":0},{"$f":"IF($AA$2=\"No\",1,0)","v":1},"TOTAL",null,null,"SI","NO"]
[5,{"$f":"IF($L$2=\"Si\",1,0)","v":0},{"$f":"IF($L$2=\"No\",1,0)","v":1},59,{"$f":"IF($BN$2=\"Si\",1,0)","v":0},{"$f":"IF($BN$2=\"No\",1,0)","v":1},10,{"$f":"B16","v":0},{"$f":"C16","v":1},22,{"$f":"IF($AC$2=\"Si\",1,0)","v":0},{"$f":"IF($AC$2=\"No\",1,0)","v":1},"TI+T2",null,null,{"$f":"(B52+E31)","v":13},{"$f":"(C52+F31)","v":54}]
[6,{"$f":"IF($M$2=\"Si\",1,0)","v":0},{"$f":"IF($M$2=\"No\",1,0)","v":1},60,{"$f":"IF($BO$2=\"Si\",1,0)","v":0},{"$f":"IF($BO$2=\"No\",1,0)","v":1},15,{"$f":"B19","v":0},{"$f":"C19","v":1},26,{"$f":"IF($Y$2=\"Si\",1,0)","v":0},{"$f":"IF($Y$2=\"No\",1,0)","v":1},"SI=T1+T2",null,"NO=T3",null,"TOTAL"]
[7,{"$f":"IF($N$2=\"Si\",1,0)","v":0},{"$f":"IF($N$2=\"No\",1,0)","v":1},61,{"$f":"IF($BP$2=\"Si\",1,0)","v":0},{"$f":"IF($BP$2=\"No\",1,0)","v":1},23,{"$f":"B24","v":1},{"$f":"C24","v":0},32,{"$f":"IF($AM$2=\"Si\",1,0)","v":0},{"$f":"IF($AM$2=\"No\",1,0)","v":1},{"$f":"P11","v":13},null,{"$f":"Q9","v":9},null,{"$f":"(M13+O13)","v":22}]
[8,{"$f":"IF($O$2=\"Si\",1,0)","v":0},{"$f":"IF($O$2=\"No\",1,0)","v":1},62,{"$f":"IF($BQ$2=\"Si\",1,0)","v":0},{"$f":"IF($BQ$2=\"No\",1,0)","v":1},28,{"$f":"B28","v":0},{"$f":"C28","v":1},39,{"$f":"IF($AT$2=\"Si\",1,0)","v":0},{"$f":"IF($AT$2=\"No\",1,0)","v":1},"No riesgo","antes de",23]
[9,{"$f":"IF($P$2=\"Si\",1,0)","v":0},{"$f":"IF($P$2=\"No\",1,0)","v":1},63,{"$f":"IF($BR$2=\"Si\",1,0)","v":0},{"$f":"IF($BR$2=\"No\",1,0)","v":1},40,{"$f":"B38","v":1},{"$f":"C38","v":0},52,{"$f":"IF($BG$2=\"Si\",1,0)","v":0},{"$f":"IF($BG$2=\"No\",1,0)","v":1},"Riesgo","despues de ",23]
[10,{"$f":"IF($Q$2=\"Si\",1,0)","v":0},{"$f":"IF($Q$2=\"No\",1,0)","v":1},64,{"$f":"IF($BS$2=\"Si\",1,0)","v":0},{"$f":"IF($BS$2=\"No\",1,0)","v":1},43,{"$f":"B41","v":0},{"$f":"C41","v":1},69,{"$f":"IF($BX$2=\"Si\",1,0)","v":0},{"$f":"IF($BX$2=\"No\",1,0)","v":1},"Riesgo Alto","Despues de ",52]
[11,{"$f":"IF($R$2=\"Si\",1,0)","v":0},{"$f":"IF($R$2=\"No\",1,0)","v":1},65,{"$f":"IF($BT$2=\"Si\",1,0)","v":0},{"$f":"IF($BT$2=\"No\",1,0)","v":1},55,{"$f":"E7","v":0},{"$f":"F7","v":1},70,{"$f":"IF($BY$2=\"Si\",1,0)","v":1},{"$f":"IF($BY$2=\"No\",1,0)","v":0},"Riesgo suicida"]
[14,{"$f":"IF($U$2=\"Si\",1,0)","v":1},{"$f":"IF($U$2=\"No\",1,0)","v":0},66,{"$f":"IF($BU$2=\"Si\",1,0)","v":0},{"$f":"IF($BU$2=\"No\",1,0)","v":1},60,{"$f":"E12","v":0},{"$f":"F12","v":1},71,{"$f":"IF($BZ$2=\"Si\",1,0)","v":1},{"$f":"IF($BZ$2=\"No\",1,0)","v":0},"#","Si","No"]
[15,{"$f":"IF($V$2=\"Si\",1,0)","v":0},{"$f":"IF($V$2=\"No\",1,0)","v":1},67,{"$f":"IF($BV$2=\"Si\",1,0)","v":0},{"$f":"IF($BV$2=\"No\",1,0)","v":1},63,{"$f":"E15","v":0},{"$f":"F15","v":1},"T3",{"$f":"SUM(K7:K18)","v":3},{"$f":"SUM(L7:L18)","v":9},1,{"$f":"IF($CL$2=\"Si\",1,0)","v":0},{"$f":"IF($CL$2=\"No\",1,0)","v":1}]
[16,{"$f":"IF($W$2=\"Si\",1,0)","v":0},{"$f":"IF($W$2=\"No\",1,0)","v":1},68,{"$f":"IF($BW$2=\"Si\",1,0)","v":0},{"$f":"IF($BW$2=\"No\",1,0)","v":1},66,{"$f":"E18","v":0},{"$f":"F18","v":1},"CONDUCTA",null,null,2,{"$f":"IF($CM$2=\"Si\",1,0)","v":0},{"$f":"IF($CM$2=\"No\",1,0)","v":1}]
[17,{"$f":"IF($X$2=\"Si\",1,0)","v":1},{"$f":"IF($X$2=\"No\",1,0)","v":0},72,{"$f":"IF($CA$2=\"Si\",1,0)","v":1},{"$f":"IF($CA$2=\"No\",1,0)","v":0},75,{"$f":"E24","v":0},{"$f":"F24","v":1},null,"SI","NO",3,{"$f":"IF($CN$2=\"Si\",1,0)","v":0},{"$f":"IF($CN$2=\"No\",1,0)","v":1}]
[19,{"$f":"IF($Z$2=\"Si\",1,0)","v":1},{"$f":"IF($Z$2=\"No\",1,0)","v":0},73,{"$f":"IF($CB$2=\"Si\",1,0)","v":1},{"$f":"IF($CB$2=\"No\",1,0)","v":0},76,{"$f":"E25","v":0},{"$f":"F25","v":1},1,{"$f":"B7","v":0},{"$f":"C7","v":0},4,{"$f":"IF($CO$2=\"Si\",1,0)","v":0},{"$f":"IF($CO$2=\"No\",1,0)","v":1}]
[21,{"$f":"IF($AB$2=\"Si\",1,0)","v":0},{"$f":"IF($AB$2=\"No\",1,0)","v":1},74,{"$f":"IF($CC$2=\"Si\",1,0)","v":0},{"$f":"IF($CC$2=\"No\",1,0)","v":1},80,{"$f":"E29","v":0},{"$f":"F29","v":0},9,{"$f":"B15","v":0},{"$f":"C15","v":1},5,{"$f":"IF($CP$2=\"Si\",1,0)","v":0},{"$f":"IF($CP$2=\"No\",1,0)","v":1}]
[23,{"$f":"IF($AD$2=\"Si\",1,0)","v":1},{"$f":"IF($AD$2=\"No\",1,0)","v":0},75,{"$f":"IF($CD$2=\"Si\",1,0)","v":0},{"$f":"IF($CD$2=\"No\",1,0)","v":1},"T",{"$f":"SUM(H8:H23)","v":2},{"$f":"SUM(I8:I23)","v":13},11,{"$f":"B17","v":0},{"$f":"C17","v":1},6,{"$f":"IF($CQ$2=\"Si\",1,0)","v":0},{"$f":"IF($CQ$2=\"No\",1,0)","v":1}]
[24,{"$f":"IF($AE$2=\"Si\",1,0)","v":0},{"$f":"IF($AE$2=\"No\",1,0)","v":1},76,{"$f":"IF($CE$2=\"Si\",1,0)","v":0},{"$f":"IF($CE$2=\"No\",1,0)","v":1},"N. EDUCAT",null,null,24,{"$f":"B25","v":0},{"$f":"C25","v":1},7,{"$f":"IF($CR$2=\"Si\",1,0)","v":0},{"$f":"IF($CR$2=\"No\",1,0)","v":1}]
[25,{"$f":"IF($AF$2=\"Si\",1,0)","v":0},{"$f":"IF($AF$2=\"No\",1,0)","v":1},77,{"$f":"IF($CF$2=\"Si\",1,0)","v":0},{"$f":"IF($CF$2=\"No\",1,0)","v":1},null,"SI","NO",30,{"$f":"B30","v":0},{"$f":"C30","v":1},8,{"$f":"IF($CS$2=\"Si\",1,0)","v":1},{"$f":"IF($CS$2=\"No\",1,0)","v":0}]
[27,{"$f":"IF($AH$2=\"Si\",1,0)","v":1},{"$f":"IF($AH$2=\"No\",1,0)","v":0},78,{"$f":"IF($CG$2=\"Si\",1,0)","v":1},{"$f":"IF($CG$2=\"No\",1,0)","v":0},7,{"$f":"B13","v":0},{"$f":"C13","v":1},31,{"$f":"B31","v":0},{"$f":"C31","v":1},9,{"$f":"IF($CT$2=\"Si\",1,0)","v":0},{"$f":"IF($CT$2=\"No\",1,0)","v":1}]
[28,{"$f":"IF($AI$2=\"Si\",1,0)","v":0},{"$f":"IF($AI$2=\"No\",1,0)","v":1},79,{"$f":"IF($CH$2=\"Si\",1,0)","v":0},{"$f":"IF($CH$2=\"No\",1,0)","v":1},8,{"$f":"B14","v":0},{"$f":"C14","v":1},35,{"$f":"B34","v":0},{"$f":"C34","v":1},10,{"$f":"IF($CU$2=\"Si\",1,0)","v":0},{"$f":"IF($CU$2=\"No\",1,0)","v":1}]
[29,{"$f":"IF($AJ$2=\"Si\",1,0)","v":0},{"$f":"IF($AJ$2=\"No\",1,0)","v":1},80,{"$f":"IF($CI$2=\"Si\",1,0)","v":0},{"$f":"IF($NO$2=\"Si\",1,0)","v":0},12,{"$f":"K7","v":0},{"$f":"L7","v":1},37,{"$f":"B36","v":1},{"$f":"C36","v":0},11,{"$f":"IF($CV$2=\"Si\",1,0)","v":0},{"$f":"IF($CV$2=\"No\",1,0)","v":1}]
[30,{"$f":"IF($AK$2=\"Si\",1,0)","v":0},{"$f":"IF($AK$2=\"No\",1,0)","v":1},81,{"$f":"IF($CJ$2=\"Si\",1,0)","v":0},{"$f":"IF($CJ$2=\"No\",1,0)","v":1},15,{"$f":"B19","v":0},{"$f":"C19","v":1},49,{"$f":"B47","v":0},{"$f":"C47","v":1},12,{"$f":"IF($CW$2=\"Si\",1,0)","v":0},{"$f":"IF($CW$2=\"No\",1,0)","v":1}]
[31,{"$f":"IF($AL$2=\"Si\",1,0)","v":0},{"$f":"IF($AL$2=\"No\",1,0)","v":1},"T2",{"$f":"SUM(E7:E30)","v":3},{"$f":"SUM(F7:F30)","v":20},18,{"$f":"K9","v":0},{"$f":"L9","v":1},50,{"$f":"B48","v":0},{"$f":"C48","v":1},13,{"$f":"IF($CX$2=\"Si\",1,0)","v":0},{"$f":"IF($CX$2=\"No\",1,0)","v":1}]
[33,{"$f":"IF($AN$2=\"Si\",1,0)","v":1},{"$f":"IF($AN$2=\"No\",1,0)","v":0},"SUSTANCIAS",null,null,26,{"$f":"K12","v":0},{"$f":"L12","v":1},53,{"$f":"B50","v":1},{"$f":"C50","v":0},14,{"$f":"IF($CL$2=\"Si\",1,0)","v":0},{"$f":"IF($CL$2=\"No\",1,0)","v":1}]
[34,{"$f":"IF($AO$2=\"Si\",1,0)","v":0},{"$f":"IF($AO$2=\"No\",1,0)","v":1},null,"SI ","NO",34,{"$f":"B33","v":0},{"$f":"C33","v":1},59,{"$f":"E11","v":0},{"$f":"F11","v":1},15,0,{"$f":"IF($CL$2=\"No\",1,0)","v":1}]
[35,{"$f":"IF($AP$2=\"Si\",1,0)","v":0},{"$f":"IF($AP$2=\"No\",1,0)","v":1},2,{"$f":"B8","v":0},{"$f":"C8","v":1},40,{"$f":"B38","v":1},{"$f":"C38","v":0},64,{"$f":"E16","v":0},{"$f":"F16","v":1},"T",{"$f":"SUM(N19:N33)","v":1},{"$f":"SUM(O19:O33)","v":14}]
[36,{"$f":"IF($AQ$2=\"Si\",1,0)","v":0},{"$f":"IF($AQ$2=\"No\",1,0)","v":1},17,{"$f":"B21","v":1},{"$f":"C21","v":0},42,{"$f":"B40","v":0},{"$f":"C40","v":1},81,{"$f":"E30","v":0},{"$f":"F30","v":1},"Percentil",{"$f":"(N34*100%)/$M$33","v":6.6666666666666666E-2},{"$f":"(O34*100%)/$M$33","v":0.93333333333333335}]
[37,{"$f":"IF($AR$2=\"Si\",1,0)","v":1},{"$f":"IF($AR$2=\"No\",1,0)","v":0},21,{"$f":"B23","v":0},{"$f":"C23","v":1},61,{"$f":"E13","v":0},{"$f":"F13","v":1},"T",{"$f":"SUM(K22:K35)","v":2},{"$f":"SUM(L22:L35)","v":11},"Rasgos de Riesgo"]
[38,{"$f":"IF($AS$2=\"Si\",1,0)","v":0},{"$f":"IF($AS$2=\"No\",1,0)","v":1},25,{"$f":"B26","v":0},{"$f":"C26","v":1},66,{"$f":"E18","v":0},{"$f":"F18","v":1},"FAMILIA",null,null,null,null,null,null,null,null,"Suma","Percentil"]
[40,{"$f":"IF($AU$2=\"Si\",1,0)","v":1},{"$f":"IF($AU$2=\"No\",1,0)","v":0},33,{"$f":"B32","v":1},{"$f":"C32","v":0},69,{"$f":"K16","v":0},{"$f":"L16","v":1},null,"SI","NO","Sentimientos de inutilidad",null,null,null,"R3",{"$f":"N21","v":0},{"$f":"SUM(R38:R41)","v":1},{"$f":"(S38*100%)/4","v":0.25}]
[41,{"$f":"IF($AV$2=\"Si\",1,0)","v":0},{"$f":"IF($AV$2=\"No\",1,0)","v":1},38,{"$f":"B37","v":0},{"$f":"C37","v":1},72,{"$f":"E21","v":1},{"$f":"F21","v":0},4,{"$f":"B10","v":1},{"$f":"C10","v":0},null,null,null,null,"R6",{"$f":"N24","v":0}]
[42,{"$f":"IF($AW$2=\"Si\",1,0)","v":0},{"$f":"IF($AW$2=\"No\",1,0)","v":1},41,{"$f":"B39","v":0},{"$f":"C39","v":1},79,{"$f":"E28","v":0},{"$f":"F28","v":1},14,{"$f":"B18","v":1},{"$f":"C18","v":0},null,null,null,null,"R8",{"$f":"N26","v":1}]
[43,{"$f":"IF($AX$2=\"Si\",1,0)","v":0},{"$f":"IF($AX$2=\"No\",1,0)","v":1},46,{"$f":"B44","v":0},1,80,{"$f":"E29","v":0},{"$f":"F29","v":0},20,{"$f":"K10","v":0},{"$f":"L10","v":1},null,null,null,null,"R12",{"$f":"N30","v":0}]
[44,{"$f":"IF($AY$2=\"Si\",1,0)","v":0},{"$f":"IF($AY$2=\"No\",1,0)","v":1},47,0,1,"T",{"$f":"(H27+H28+I29+H30+I31+I32+H33+H34+H35+H36+H37+I38+H39+H40+H41)","v":6},{"$f":"SUM(I27:I41)","v":12},22,{"$f":"K11","v":0},{"$f":"L11","v":1},"Ideación suicida",null,null,null,"R2",{"$f":"N20","v":0},{"$f":"SUM(R42:R44)","v":0},{"$f":"(S42*100%)/3","v":0}]
[45,{"$f":"IF($AZ$2=\"Si\",1,0)","v":0},{"$f":"IF($AZ$2=\"No\",1,0)","v":1},48,0,1,"AMIGOS",null,null,32,{"$f":"K13","v":0},{"$f":"L13","v":1},null,null,null,null,"R13",{"$f":"N31","v":0}]
[46,{"$f":"IF($BA$2=\"Si\",1,0)","v":0},{"$f":"IF($BA$2=\"No\",1,0)","v":1},54,{"$f":"B51","v":0},{"$f":"C51","v":1},null,"SI","NO",39,{"$f":"K14","v":0},{"$f":"L14","v":1},null,null,null,null,"R14",{"$f":"N32","v":0}]
[47,{"$f":"IF($BB$2=\"Si\",1,0)","v":0},{"$f":"IF($BB$2=\"No\",1,0)","v":1},56,{"$f":"E8","v":0},1,3,{"$f":"B9","v":0},{"$f":"C9","v":1},45,{"$f":"B43","v":0},{"$f":"C43","v":1},"Desesperanza",null,null,null,"R5",{"$f":"N23","v":0},{"$f":"SUM(R45:R47)","v":0},{"$f":"(S45*100%)/3","v":0}]
[48,{"$f":"IF($BC$2=\"Si\",1,0)","v":0},{"$f":"IF($BC$2=\"No\",1,0)","v":1},57,0,1,13,{"$f":"K8","v":1},{"$f":"L8","v":0},52,{"$f":"K15","v":0},{"$f":"L15","v":1},null,null,null,null,"R7",{"$f":"N25","v":0}]
[49,{"$f":"IF($BD$2=\"Si\",1,0)","v":0},{"$f":"IF($BD$2=\"No\",1,0)","v":1},58,0,1,19,{"$f":"B22","v":1},{"$f":"C22","v":0},70,{"$f":"K17","v":1},{"$f":"L17","v":0},null,null,null,null,"R9",{"$f":"N27","v":0}]
[50,{"$f":"IF($BE$2=\"Si\",1,0)","v":0},{"$f":"IF($BE$2=\"No\",1,0)","v":1},62,{"$f":"E14","v":0},{"$f":"F14","v":1},29,{"$f":"B29","v":0},{"$f":"C29","v":1},71,{"$f":"K18","v":1},{"$f":"L18","v":0},"Factores sociales",null,null,null,"R1",{"$f":"N19","v":0},{"$f":"SUM(R48:R52)","v":0},{"$f":"(S48*100%)/5","v":0}]
[51,{"$f":"IF($BF$2=\"Si\",1,0)","v":0},{"$f":"IF($BF$2=\"No\",1,0)","v":1},65,{"$f":"E17","v":0},{"$f":"F17","v":1},67,{"$f":"E19","v":0},{"$f":"F19","v":1},"T",{"$f":"(K39+K40+L41+L42+L43+L44+K45+L46+L47+L48)","v":7},{"$f":"SUM(L39:L48)","v":6},null,null,null,null,"R4",{"$f":"N22","v":0}]
[53,{"$f":"IF($BH$2=\"Si\",1,0)","v":1},{"$f":"IF($BH$2=\"No\",1,0)","v":0},68,{"$f":"E20","v":0},{"$f":"F20","v":1},73,{"$f":"E22","v":1},{"$f":"F22","v":0},"LABORAL",null,null,null,null,null,null,"R10",{"$f":"N28","v":0}]
[54,{"$f":"IF($BI$2=\"Si\",1,0)","v":0},{"$f":"IF($BI$2=\"No\",1,0)","v":1},"T",{"$f":"SUM(E34:E50)","v":2},{"$f":"SUM(F34:F50)","v":15},77,{"$f":"E26","v":0},{"$f":"F26","v":1},null,"SI","NO",null,null,null,null,"R11",{"$f":"N29","v":0}]
["T1",{"$f":"SUM(B7:B51)","v":10},{"$f":"SUM(C7:C51)","v":34},null,null,null,"T",{"$f":"(H45+I46+H47+H48+H49+H50+H51)","v":2},{"$f":"SUM(I45:I51)","v":4},16,{"$f":"B20","v":0},{"$f":"C20","v":1},null,null,null,null,"R15",{"$f":"N33","v":0}]
[null,null,null,null,null,null,null,null,null,27,{"$f":"B27","v":1},{"$f":"C27","v":0}]
[null,null,null,null,null,null,null,null,null,36,{"$f":"B35","v":0},{"$f":"C35","v":1}]
[null,null,null,null,null,null,null,null,null,44,{"$f":"B42","v":0},{"$f":"C42","v":1}]
[null,null,null,null,null,null,null,null,null,51,{"$f":"B49","v":0},{"$f":"C49","v":1}]
[null,null,null,null,null,null,null,null,null,78,{"$f":"E27","v":1},{"$f":"F27","v":0}]
[null,null,null,null,null,null,null,null,null,"T",{"$f":"SUM(K52:K57)","v":2},{"$f":"SUM(L52:L57)","v":4}]

{"sheet":"Reporte individual","index":6,"n_rows":45,"n_cols":8,"rows_kept":45,"cut":false,"hidden":false,"merged":[[49,0,50,2],[49,4,50,7],[45,0,45,7],[46,0,46,7],[44,1,44,7],[17,0,23,0],[17,4,17,7],[18,4,18,6],[23,4,23,6],[20,4,20,6],[21,4,21,6],[19,4,19,6],[22,4,22,6],[24,4,24,6],[2,2,3,5],[6,1,6,3],[7,1,7,2],[14,1,15,6],[10,1,12,6]]}
[]
[]
[null,null,"Reporte de tamizaje"]
[]
[]
[]
["Nombre:",{"$f":"'Datos individuales'!$C$3","v":"Cristina Cruz Escalera"},null,null,"Edad:",{"$f":"'Datos individuales'!$F$2","v":"101 (1A)"},"Turno:",{"$f":"'Datos individuales'!$D$2","v":"Diurno"}]
["Plantel:",{"$f":"'Datos individuales'!H2","v":"Abasolo"},null,null,"Grado y grupo:",{"$f":"'Datos individuales'!$E$2","v":20},"Puntuacion:",{"$f":"'Datos individuales'!$Q$13","v":22}]
[null,null,null,null,null,null,"Folio:",10]
[]
[null,{"$f":"IF($H$8<23,\"Riesgo Menor\",IF($H$8<50,\"Riesgo Probable\",\"Atencion de Prioridad\"))","v":"Riesgo Menor"}]
[]
[]
[]
[null,"Áreas de riesgo "]
[]
[]
["Nota: Cualquier puntaje a partir de 1  en el area de Substancias corresponde a un RIESGO ALTO ","Área","Puntaje","Perc","Ideación autolítica"]
[null,"Substancias",{"$f":"'Datos individuales'!$E$51","v":2},{"$f":"(C19*100)/17","v":11.764705882352942},"Dimension",null,null,"Percentil"]
[null,"Salud",{"$f":"'Datos individuales'!$H$24","v":2},{"$f":"(C20*100)/16","v":12.5},"Sentimientos de inutilidad",null,null,{"$f":"'Datos individuales'!T38","v":0.25}]
[null,"N. Educativo",{"$f":"'Datos individuales'!$H$42","v":6},{"$f":"(C21*100)/15","v":40},"Ideación autolítica",null,null,{"$f":"'Datos individuales'!T42","v":0}]
[null,"Amigos",{"$f":"'Datos individuales'!$H$52","v":2},{"$f":"(C22*100)/7","v":28.571428571428573},"Desesperanza",null,null,{"$f":"'Datos individuales'!T45","v":0}]
[null,"Conducta",{"$f":"'Datos individuales'!$K$36","v":2},{"$f":"(C23*100)/14","v":14.285714285714286},"Factores sociales",null,null,{"$f":"'Datos individuales'!T48","v":0}]
[null,"Familia",{"$f":"'Datos individuales'!$K$49","v":7},{"$f":"(C24*100)/10","v":70},"Ideacion autolítica general",null,null,{"$f":"'Datos individuales'!N35","v":6.6666666666666666E-2}]
[null,"Laboral",{"$f":"'Datos individuales'!$K$58","v":2},{"$f":"(C25*100)/6","v":33.333333333333336},"Riesgo de ideacion autolítica",null,null,{"$f":"IF(AND(H24>0.01,H24<0.3),\"Sin Riesgo\",IF(AND(H24>0.3,H24<0.5),\"Riesgo bajo\",IF(AND(H24>0.5,H24<0.8),\"Riesgo medio\",\"Riesgo alto\")))","v":"Sin Riesgo"}]
[]
[]
[]
[]
[]
[]
[]
[]
[]
[]
[]
[]
[]
[]
[]
[]
[]
[]
[]
["Observaciones:"]

{"sheet":"Datos generales de planteles","index":7,"n_rows":1502,"n_cols":9,"rows_kept":1502,"cut":false,"hidden":true,"merged":[]}
["Plantel","Puntuacion","Puntuación"]
["Zacatecas",{"$f":"ABS(MID(C2,1,2))","v":9},9,null,"Planteles","Aplicaciones","Promedio de puntuación","Limite promedio de puntuación","Limite Critico de puntuación"]
["Zacatecas",19,"19 / 81",null,"Zacatecas",{"$f":"COUNTIF($A$2:$A$796,\"Zacatecas\")","v":39},{"$f":"AVERAGEIFS($B$2:$B$796,$A$2:$A$796,\"Zacatecas\")","v":19.897435897435898},20,50]
["Zacatecas",24,"24 / 81",null,"Silao 1",{"$f":"COUNTIF($A$2:$A$796,\"Silao 1\")","v":17},{"$f":"AVERAGEIFS($B$2:$B$796,$A$2:$A$796,\"Silao 1\")","v":15.294117647058824},20,50]
["Zacatecas",8,8,null,"Salamanca",{"$f":"COUNTIF($A$2:$A$796,\"Salamanca\")","v":47},{"$f":"AVERAGEIFS($B$2:$B$796,$A$2:$A$796,\"Salamanca\")","v":19.574468085106382},20,50]
["Zacatecas",32,"32 / 81",null,"León - Madero 801",{"$f":"COUNTIF($A$2:$A$796,\"León - Madero 801\")","v":38},{"$f":"AVERAGEIFS($B$2:$B$796,$A$2:$A$796,\"León - Madero 801\")","v":21.710526315789473},20,50]
["Zacatecas",27,"27 / 81",null,"León - Firenze",{"$f":"COUNTIF($A$2:$A$796,\"León - Firenze\")","v":35},{"$f":"AVERAGEIFS($B$2:$B$796,$A$2:$A$796,\"León - Firenze\")","v":18.771428571428572},20,50]
["Zacatecas",28,"28 / 81",null,"Irapuato - Fiesta",{"$f":"COUNTIF($A$2:$A$796,\"Irapuato - Fiesta\")","v":14},{"$f":"AVERAGEIFS($B$2:$B$796,$A$2:$A$796,\"Irapuato - Fiesta\")","v":19.214285714285715},20,50]
["Zacatecas",38,"38 / 81",null,"Celaya - Firenze",{"$f":"COUNTIF($A$2:$A$796,\"Celaya - Firenze\")","v":17},{"$f":"AVERAGEIFS($B$2:$B$796,$A$2:$A$796,\"Celaya - Firenze\")","v":25.705882352941178},20,50]
["Zacatecas",39,"39 / 81",null,"Aguascalientes",{"$f":"COUNTIF($A$2:$A$796,\"Aguascalientes\")","v":12},{"$f":"AVERAGEIFS($B$2:$B$796,$A$2:$A$796,\"Aguascalientes\")","v":26.916666666666668},20,50]
["Zacatecas",34,"34 / 81",null,"Champs Elysees León",{"$f":"COUNTIF($A$2:$A$796,\"Champs Elysees León\")","v":29},{"$f":"AVERAGEIFS($B$2:$B$796,$A$2:$A$796,\"Champs Elysees León\")","v":16.310344827586206},20,50]
["Zacatecas",36,"36 / 81",null,"León - Pino Suárez (Motolinía)",{"$f":"COUNTIF($A$2:$A$796,\"León - Pino Suárez (Motolinía)\")","v":84},{"$f":"AVERAGEIFS($B$2:$B$796,$A$2:$A$796,\"León - Pino Suárez (Motolinía)\")","v":19.547619047619047},20,50]
["Zacatecas",31,"31 / 81",null,"León - Juárez 404",{"$f":"COUNTIF($A$2:$A$796,\"León - Juárez 404\")","v":21},{"$f":"AVERAGEIFS($B$2:$B$796,$A$2:$A$796,\"León - Juárez 404\")","v":19.857142857142858},20,50]
["Zacatecas",38,"38 / 81",null,"León - Francisco Z. Mena",{"$f":"COUNTIF($A$2:$A$796,\"León - Francisco Z. Mena\")","v":28},{"$f":"AVERAGEIFS($B$2:$B$796,$A$2:$A$796,\"León - Francisco Z. Mena\")","v":19.428571428571427},20,50]
["Zacatecas",22,"22 / 81",null,"León - Díaz Mirón",{"$f":"COUNTIF($A$2:$A$796,\"León - Díaz Mirón\")","v":170},{"$f":"AVERAGEIFS($B$2:$B$796,$A$2:$A$796,\"León - Díaz Mirón\")","v":19.511764705882353},20,50]
["Zacatecas",3,3,null,"Saltillo 1",{"$f":"COUNTIF($A$2:$A$796,\"Saltillo 1\")","v":121},{"$f":"AVERAGEIFS($B$2:$B$796,$A$2:$A$796,\"Saltillo 1\")","v":18.132231404958677},20,50]
["Zacatecas",28,"28 / 81",null,"León - Insurgentes",{"$f":"COUNTIF($A$2:$A$796,\"León - Insurgentes\")","v":87},{"$f":"AVERAGEIFS($B$2:$B$796,$A$2:$A$796,\"León - Insurgentes\")","v":15.459770114942529},20,50]
["Zacatecas",4,4,null,"Juventino Rosas",{"$f":"COUNTIF($A$2:$A$796,\"Juventino Rosas\")","v":15},{"$f":"AVERAGEIFS($B$2:$B$796,$A$2:$A$796,\"Juventino Rosas\")","v":11.666666666666666},20,50]
["Zacatecas",7,7,null,"Total",{"$f":"SUM(F3:F18)","v":774}]
["Zacatecas",5,5]
["Zacatecas",7,7]
["Zacatecas",6,6]
["Zacatecas",29,"29 / 81"]
["Zacatecas",36,"36 / 81"]
["Zacatecas",26,"26 / 81"]
["Zacatecas",3,3]
["Zacatecas",15,"15 / 81"]
["Zacatecas",14,"14 / 81"]
["Zacatecas",24,"24 / 81"]
["Zacatecas",29,"29 / 81"]
["Zacatecas",15,"15 / 81"]
["Zacatecas",15,"15 / 81"]
["Zacatecas",10,10]
["Zacatecas",33,"33 / 81"]
["Zacatecas",22,"22 / 81"]
["Zacatecas",21,"21 / 81"]
["Zacatecas",8,8]
["Zacatecas",10,10]
["Zacatecas",7,7]
["Zacatecas",14,"14 / 81"]
["Silao 1",8,8]
["Silao 1",20,"20 / 81"]
["Silao 1",5,5]
["Silao 1",14,"14 / 81"]
["Silao 1",10,10]
["Silao 1",20,"20 / 81"]
["Silao 1",11,11]
["Silao 1",27,"27 / 81"]
["Silao 1",29,"29 / 81"]
["Silao 1",21,"21 / 81"]
["Silao 1",10,10]
["Silao 1",8,8]
["Silao 1",6,6]
["Silao 1",10,10]
["Silao 1",3,3]
["Silao 1",24,"24 / 81"]
["Silao 1",34,"34 / 81"]
["Saltillo 1",16,"16 / 81"]
["Saltillo 1",34,"34 / 81"]
["Saltillo 1",29,"29 / 81"]
["Saltillo 1",27,"27 / 81"]
["Saltillo 1",25,"25 / 81"]
["Saltillo 1",29,"29 / 81"]
["Saltillo 1",23,"23 / 81"]
["Saltillo 1",23,"23 / 81"]
["Saltillo 1",{"$f":"ABS(MID(C66,1,2))","v":24},"24 / 81"]
["Saltillo 1",13,"13 / 81"]
["Saltillo 1",32,"32 / 81"]
["Saltillo 1",19,"19 / 81"]
["Saltillo 1",10,10]
["Saltillo 1",23,"23 / 81"]
["Saltillo 1",32,"32 / 81"]
["Saltillo 1",9,9]
["Saltillo 1",23,"23 / 81"]
["Saltillo 1",12,12]
["Saltillo 1",11,11]
["Saltillo 1",8,8]
["Saltillo 1",8,8]
["Saltillo 1",16,"16 / 81"]
["Saltillo 1",18,"18 / 81"]
["Saltillo 1",21,"21 / 81"]
["Saltillo 1",22,"22 / 81"]
["Saltillo 1",11,11]
["Saltillo 1",30,"30 / 81"]
["Saltillo 1",7,7]
["Saltillo 1",19,"19 / 81"]
["Saltillo 1",53,"53 / 81"]
["Saltillo 1",20,"20 / 81"]
["Saltillo 1",17,"17 / 81"]
["Saltillo 1",23,"23 / 81"]
["Saltillo 1",4,4]
["Saltillo 1",10,10]
["Saltillo 1",30,"30 / 81"]
["Saltillo 1",22,"22 / 81"]
["Saltillo 1",49,"49 / 81"]
["Saltillo 1",21,"21 / 81"]
["Saltillo 1",24,"24 / 81"]
["Saltillo 1",18,"18 / 81"]
["Saltillo 1",24,"24 / 81"]
["Saltillo 1",47,"47 / 81"]
["Saltillo 1",16,"16 / 81"]
["Saltillo 1",16,"16 / 81"]
["Saltillo 1",17,"17 / 81"]
["Saltillo 1",22,"22 / 81"]
["Saltillo 1",22,"22 / 81"]
["Saltillo 1",10,10]
["Saltillo 1",24,"24 / 81"]
["Saltillo 1",19,"19 / 81"]
["Saltillo 1",1,1]
["Saltillo 1",21,"21 / 81"]
["Saltillo 1",10,10]
["Saltillo 1",17,"17 / 81"]
["Saltillo 1",14,"14 / 81"]
["Saltillo 1",21,"21 / 81"]
["Saltillo 1",5,5]
["Saltillo 1",13,"13 / 81"]
["Saltillo 1",31,"31 / 81"]
["Saltillo 1",13,"13 / 81"]
["Saltillo 1",7,7]
["Saltillo 1",11,11]
["Saltillo 1",12,12]
["Saltillo 1",23,"23 / 81"]
["Saltillo 1",27,"27 / 81"]
["Saltillo 1",7,7]
["Saltillo 1",34,"34 / 81"]
["Saltillo 1",29,"1981-12-01"]
["Saltillo 1",11,11]
["Saltillo 1",17,"17 / 81"]
["Saltillo 1",26,"26 / 81"]
["Saltillo 1",{"$f":"ABS(MID(C130,1,2))","v":20},"20 / 81"]
["Saltillo 1",5,5]
["Saltillo 1",23,"23 / 81"]
["Saltillo 1",17,"17 / 81"]
["Saltillo 1",14,"14 / 81"]
["Saltillo 1",11,11]
["Saltillo 1",12,12]
["Saltillo 1",3,3]
["Saltillo 1",8,8]
["Saltillo 1",2,2]
["Saltillo 1",14,"14 / 81"]
["Saltillo 1",20,"20 / 81"]
["Saltillo 1",19,"19 / 81"]
["Saltillo 1",18,"18 / 81"]
["Saltillo 1",29,"29 / 81"]
["Saltillo 1",17,"17 / 81"]
["Saltillo 1",8,8]
["Saltillo 1",4,4]
["Saltillo 1",25,"25 / 81"]
["Saltillo 1",17,"17 / 81"]
["Saltillo 1",19,"19 / 81"]
["Saltillo 1",15,"15 / 81"]
["Saltillo 1",19,"19 / 81"]
["Saltillo 1",4,4]
["Saltillo 1",12,12]
["Saltillo 1",6,6]
["Saltillo 1",8,8]
["Saltillo 1",18,"18 / 81"]
["Saltillo 1",6,6]
["Saltillo 1",10,10]
["Saltillo 1",21,"21 / 81"]
["Saltillo 1",30,"30 / 81"]
["Saltillo 1",16,"16 / 81"]
["Saltillo 1",5,5]
["Saltillo 1",7,7]
["Saltillo 1",32,"32 / 81"]
["Saltillo 1",9,9]
["Saltillo 1",16,"16 / 81"]
["Saltillo 1",15,"15 / 81"]
["Saltillo 1",20,"20 / 81"]
["Saltillo 1",12,12]
["Saltillo 1",15,"15 / 81"]
["Saltillo 1",19,"19 / 81"]
["Saltillo 1",29,"29 / 81"]
["Saltillo 1",15,"15 / 81"]
["Saltillo 1",16,"16 / 81"]
["Saltillo 1",25,"25 / 81"]
["Saltillo 1",38,"38 / 81"]
["Saltillo 1",19,"19 / 81"]
["Salamanca",17,"17 / 81"]
["Salamanca",21,"21 / 81"]
["Salamanca",13,"13 / 81"]
["Salamanca",14,"14 / 81"]
["Salamanca",19,"19 / 81"]
["Salamanca",24,"24 / 81"]
["Salamanca",6,6]
["Salamanca",28,"28 / 81"]
["Salamanca",37,"37 / 81"]
["Salamanca",22,"22 / 81"]
["Salamanca",8,8]
["Salamanca",22,"22 / 81"]
["Salamanca",21,"21 / 81"]
["Salamanca",30,"30 / 81"]
["Salamanca",15,"15 / 81"]
["Salamanca",{"$f":"ABS(MID(C194,1,2))","v":15},"15 / 81"]
["Salamanca",17,"17 / 81"]
["Salamanca",21,"21 / 81"]
["Salamanca",5,5]
["Salamanca",5,5]
["Salamanca",8,8]
["Salamanca",29,"29 / 81"]
["Salamanca",20,"20 / 81"]
["Salamanca",21,"21 / 81"]
["Salamanca",11,11]
["Salamanca",42,"42 / 81"]
["Salamanca",13,"13 / 81"]
["Salamanca",27,"27 / 81"]
["Salamanca",16,"16 / 81"]
["Salamanca",13,"13 / 81"]
["Salamanca",14,"14 / 81"]
["Salamanca",20,"20 / 81"]
["Salamanca",12,12]
["Salamanca",21,"21 / 81"]
["Salamanca",36,"36 / 81"]
["Salamanca",26,"26 / 81"]
["Salamanca",15,"15 / 81"]
["Salamanca",15,"15 / 81"]
["Salamanca",22,"22 / 81"]
["Salamanca",20,"20 / 81"]
["Salamanca",19,"19 / 81"]
["Salamanca",38,"38 / 81"]
["Salamanca",9,9]
["Salamanca",18,"18 / 81"]
["Salamanca",30,"30 / 81"]
["Salamanca",12,12]
["Salamanca",33,"33 / 81"]
["Rincón de Romos",12,12]
["Querétaro 1 - Zaragoza",40,"40 / 81"]
["Querétaro 1 - Zaragoza",37,"37 / 81"]
["Querétaro 1 - Zaragoza",43,"43 / 81"]
["Querétaro 1 - Zaragoza",33,"33 / 81"]
["Querétaro 1 - Zaragoza",59,"59 / 81"]
["Querétaro 1 - Zaragoza",39,"39 / 81"]
["Querétaro 1 - Zaragoza",38,"38 / 81"]
["León - Pino Suárez (Motolinía)",15,"15 / 81"]
["León - Pino Suárez (Motolinía)",18,"18 / 81"]
["León - Pino Suárez (Motolinía)",20,"20 / 81"]
["León - Pino Suárez (Motolinía)",27,"27 / 81"]
["León - Pino Suárez (Motolinía)",11,11]
["León - Pino Suárez (Motolinía)",16,"16 / 81"]
["León - Pino Suárez (Motolinía)",4,4]
["León - Pino Suárez (Motolinía)",15,"15 / 81"]
["León - Pino Suárez (Motolinía)",24,"24 / 81"]
["León - Pino Suárez (Motolinía)",5,5]
["León - Pino Suárez (Motolinía)",18,"18 / 81"]
["León - Pino Suárez (Motolinía)",47,"47 / 81"]
["León - Pino Suárez (Motolinía)",39,"39 / 81"]
["León - Pino Suárez (Motolinía)",12,12]
["León - Pino Suárez (Motolinía)",35,"35 / 81"]
["León - Pino Suárez (Motolinía)",10,10]
["León - Pino Suárez (Motolinía)",15,"15 / 81"]
["León - Pino Suárez (Motolinía)",24,"24 / 81"]
["León - Pino Suárez (Motolinía)",33,"33 / 81"]
["León - Pino Suárez (Motolinía)",16,"16 / 81"]
["León - Pino Suárez (Motolinía)",19,"19 / 81"]
["León - Pino Suárez (Motolinía)",4,4]
["León - Pino Suárez (Motolinía)",12,12]
["León - Pino Suárez (Motolinía)",8,8]
["León - Pino Suárez (Motolinía)",{"$f":"ABS(MID(C258,1,2))","v":24},"24 / 81"]
["León - Pino Suárez (Motolinía)",38,"38 / 81"]
["León - Pino Suárez (Motolinía)",29,"29 / 81"]
["León - Pino Suárez (Motolinía)",13,"13 / 81"]
["León - Pino Suárez (Motolinía)",32,"32 / 81"]
["León - Pino Suárez (Motolinía)",17,"17 / 81"]
["León - Pino Suárez (Motolinía)",39,"39 / 81"]
["León - Pino Suárez (Motolinía)",20,"20 / 81"]
["León - Pino Suárez (Motolinía)",11,11]
["León - Pino Suárez (Motolinía)",12,12]
["León - Pino Suárez (Motolinía)",20,"20 / 81"]
["León - Pino Suárez (Motolinía)",12,12]
["León - Pino Suárez (Motolinía)",31,"31 / 81"]
["León - Pino Suárez (Motolinía)",18,"18 / 81"]
["León - Pino Suárez (Motolinía)",20,"20 / 81"]
["León - Pino Suárez (Motolinía)",7,7]
["León - Pino Suárez (Motolinía)",21,"21 / 81"]
["León - Pino Suárez (Motolinía)",32,"32 / 81"]
["León - Pino Suárez (Motolinía)",36,"36 / 81"]
["León - Pino Suárez (Motolinía)",22,"22 / 81"]
["León - Pino Suárez (Motolinía)",25,"25 / 81"]
["León - Pino Suárez (Motolinía)",31,"31 / 81"]
["León - Pino Suárez (Motolinía)",7,7]
["León - Pino Suárez (Motolinía)",25,"25 / 81"]
["León - Pino Suárez (Motolinía)",33,"33 / 81"]
["León - Pino Suárez (Motolinía)",39,"39 / 81"]
["León - Pino Suárez (Motolinía)",8,8]
["León - Pino Suárez (Motolinía)",19,"19 / 81"]
["León - Pino Suárez (Motolinía)",7,7]
["León - Pino Suárez (Motolinía)",8,8]
["León - Pino Suárez (Motolinía)",15,"15 / 81"]
["León - Pino Suárez (Motolinía)",9,9]
["León - Pino Suárez (Motolinía)",33,"33 / 81"]
["León - Pino Suárez (Motolinía)",26,"26 / 81"]
["León - Pino Suárez (Motolinía)",10,10]
["León - Pino Suárez (Motolinía)",20,"20 / 81"]
["León - Pino Suárez (Motolinía)",35,"35 / 81"]
["León - Pino Suárez (Motolinía)",33,"33 / 81"]
["León - Pino Suárez (Motolinía)",22,"22 / 81"]
["León - Pino Suárez (Motolinía)",5,5]
["León - Pino Suárez (Motolinía)",2,2]
["León - Pino Suárez (Motolinía)",45,"45 / 81"]
["León - Pino Suárez (Motolinía)",12,12]
["León - Pino Suárez (Motolinía)",51,"51 / 81"]
["León - Pino Suárez (Motolinía)",5,5]
["León - Pino Suárez (Motolinía)",15,"15 / 81"]
["León - Pino Suárez (Motolinía)",13,"13 / 81"]
["León - Pino Suárez (Motolinía)",6,6]
["León - Pino Suárez (Motolinía)",10,10]
["León - Pino Suárez (Motolinía)",17,"17 / 81"]
["León - Pino Suárez (Motolinía)",1,1]
["León - Pino Suárez (Motolinía)",3,3]
["León - Pino Suárez (Motolinía)",18,"18 / 81"]
["León - Pino Suárez (Motolinía)",21,"21 / 81"]
["León - Pino Suárez (Motolinía)",16,"16 / 81"]
["León - Pino Suárez (Motolinía)",8,8]
["León - Pino Suárez (Motolinía)",23,"23 / 81"]
["León - Pino Suárez (Motolinía)",39,"39 / 81"]
["León - Pino Suárez (Motolinía)",6,6]
["León - Pino Suárez (Motolinía)",20,"20 / 81"]
["León - Madero 801",17,"17 / 81"]
["León - Madero 801",19,"19 / 81"]
["León - Madero 801",25,"25 / 81"]
["León - Madero 801",13,"13 / 81"]
["León - Madero 801",{"$f":"ABS(MID(C322,1,2))","v":9},9]
["León - Madero 801",33,"33 / 81"]
["León - Madero 801",32,"32 / 81"]
["León - Madero 801",8,8]
["León - Madero 801",25,"25 / 81"]
["León - Madero 801",11,11]
["León - Madero 801",24,"24 / 81"]
["León - Madero 801",26,"26 / 81"]
["León - Madero 801",19,"19 / 81"]
["León - Madero 801",15,"15 / 81"]
["León - Madero 801",18,"18 / 81"]
["León - Madero 801",16,"16 / 81"]
["León - Madero 801",26,"26 / 81"]
["León - Madero 801",33,"33 / 81"]
["León - Madero 801",26,"26 / 81"]
["León - Madero 801",26,"26 / 81"]
["León - Madero 801",16,"16 / 81"]
["León - Madero 801",12,12]
["León - Madero 801",22,"22 / 81"]
["León - Madero 801",12,12]
["León - Madero 801",3,3]
["León - Madero 801",46,"46 / 81"]
["León - Madero 801",20,"20 / 81"]
["León - Madero 801",31,"31 / 81"]
["León - Madero 801",21,"21 / 81"]
["León - Madero 801",26,"26 / 81"]
["León - Madero 801",12,12]
["León - Madero 801",17,"17 / 81"]
["León - Madero 801",26,"26 / 81"]
["León - Madero 801",49,"49 / 81"]
["León - Madero 801",10,10]
["León - Madero 801",31,"31 / 81"]
["León - Madero 801",23,"23 / 81"]
["León - Madero 801",27,"27 / 81"]
["León - Juárez 404",6,6]
["León - Juárez 404",21,"21 / 81"]
["León - Juárez 404",3,3]
["León - Juárez 404",30,"30 / 81"]
["León - Juárez 404",40,"40 / 81"]
["León - Juárez 404",26,"26 / 81"]
["León - Juárez 404",41,"41 / 81"]
["León - Juárez 404",21,"21 / 81"]
["León - Juárez 404",18,"18 / 81"]
["León - Juárez 404",16,"16 / 81"]
["León - Juárez 404",8,8]
["León - Juárez 404",28,"28 / 81"]
["León - Juárez 404",26,"26 / 81"]
["León - Juárez 404",9,9]
["León - Juárez 404",33,"33 / 81"]
["León - Juárez 404",1,1]
["León - Juárez 404",5,5]
["León - Juárez 404",14,"14 / 81"]
["León - Juárez 404",13,"13 / 81"]
["León - Juárez 404",42,"42 / 81"]
["León - Juárez 404",16,"16 / 81"]
["León - Insurgentes",9,9]
["León - Insurgentes",8,8]
["León - Insurgentes",17,"17 / 81"]
["León - Insurgentes",8,8]
["León - Insurgentes",9,9]
["León - Insurgentes",41,"41 / 81"]
["León - Insurgentes",17,"17 / 81"]
["León - Insurgentes",19,"19 / 81"]
["León - Insurgentes",8,8]
["León - Insurgentes",{"$f":"ABS(MID(C386,1,2))","v":25},"25 / 81"]
["León - Insurgentes",21,"21 / 81"]
["León - Insurgentes",12,12]
["León - Insurgentes",9,9]
["León - Insurgentes",33,"33 / 81"]
["León - Insurgentes",14,"14 / 81"]
["León - Insurgentes",19,"19 / 81"]
["León - Insurgentes",19,"19 / 81"]
["León - Insurgentes",5,5]
["León - Insurgentes",17,"17 / 81"]
["León - Insurgentes",13,"13 / 81"]
["León - Insurgentes",21,"21 / 81"]
["León - Insurgentes",22,"22 / 81"]
["León - Insurgentes",15,"15 / 81"]
["León - Insurgentes",21,"21 / 81"]
["León - Insurgentes",24,"24 / 81"]
["León - Insurgentes",12,12]
["León - Insurgentes",12,12]
["León - Insurgentes",7,7]
["León - Insurgentes",3,3]
["León - Insurgentes",8,8]
["León - Insurgentes",13,"13 / 81"]
["León - Insurgentes",3,3]
["León - Insurgentes",7,7]
["León - Insurgentes",41,"41 / 81"]
["León - Insurgentes",15,"15 / 81"]
["León - Insurgentes",30,"30 / 81"]
["León - Insurgentes",8,8]
["León - Insurgentes",17,"17 / 81"]
["León - Insurgentes",22,"22 / 81"]
["León - Insurgentes",10,10]
["León - Insurgentes",25,"25 / 81"]
["León - Insurgentes",6,6]
["León - Insurgentes",30,"30 / 81"]
["León - Insurgentes",6,6]
["León - Insurgentes",21,"21 / 81"]
["León - Insurgentes",7,7]
["León - Insurgentes",32,"32 / 81"]
["León - Insurgentes",2,2]
["León - Insurgentes",4,4]
["León - Insurgentes",7,7]
["León - Insurgentes",5,5]
["León - Insurgentes",9,9]
["León - Insurgentes",12,12]
["León - Insurgentes",19,"19 / 81"]
["León - Insurgentes",20,"20 / 81"]
["León - Insurgentes",4,4]
["León - Insurgentes",10,10]
["León - Insurgentes",16,"16 / 81"]
["León - Insurgentes",34,"34 / 81"]
["León - Insurgentes",31,"31 / 81"]
["León - Insurgentes",29,"29 / 81"]
["León - Insurgentes",28,"28 / 81"]
["León - Insurgentes",15,"15 / 81"]
["León - Insurgentes",40,"40 / 81"]
["León - Insurgentes",9,9]
["León - Insurgentes",10,10]
["León - Insurgentes",21,"21 / 81"]
["León - Insurgentes",21,"21 / 81"]
["León - Insurgentes",9,9]
["León - Insurgentes",18,"18 / 81"]
["León - Insurgentes",18,"18 / 81"]
["León - Insurgentes",19,"19 / 81"]
["León - Insurgentes",20,"20 / 81"]
["León - Insurgentes",{"$f":"ABS(MID(C450,1,2))","v":17},"17 / 81"]
["León - Insurgentes",11,11]
["León - Insurgentes",7,7]
["León - Insurgentes",7,7]
["León - Insurgentes",14,"14 / 81"]
["León - Insurgentes",12,12]
["León - Insurgentes",12,12]
["León - Insurgentes",5,5]
["León - Insurgentes",16,"16 / 81"]
["León - Insurgentes",16,"16 / 81"]
["León - Insurgentes",5,5]
["León - Insurgentes",5,5]
["León - Insurgentes",20,"20 / 81"]
["León - Insurgentes",7,7]
["León - Hermanos Aldama 1",10,10]
["León - Francisco Z. Mena",8,8]
["León - Francisco Z. Mena",19,"19 / 81"]
["León - Francisco Z. Mena",12,12]
["León - Francisco Z. Mena",17,"17 / 81"]
["León - Francisco Z. Mena",32,"32 / 81"]
["León - Francisco Z. Mena",28,"28 / 81"]
["León - Francisco Z. Mena",2,2]
["León - Francisco Z. Mena",39,"39 / 81"]
["León - Francisco Z. Mena",20,"20 / 81"]
["León - Francisco Z. Mena",22,"22 / 81"]
["León - Francisco Z. Mena",11,11]
["León - Francisco Z. Mena",6,6]
["León - Francisco Z. Mena",8,8]
["León - Francisco Z. Mena",26,"26 / 81"]
["León - Francisco Z. Mena",23,"23 / 81"]
["León - Francisco Z. Mena",49,"49 / 81"]
["León - Francisco Z. Mena",10,10]
["León - Francisco Z. Mena",29,"29 / 81"]
["León - Francisco Z. Mena",16,"16 / 81"]
["León - Francisco Z. Mena",22,"22 / 81"]
["León - Francisco Z. Mena",14,"14 / 81"]
["León - Francisco Z. Mena",11,11]
["León - Francisco Z. Mena",18,"18 / 81"]
["León - Francisco Z. Mena",21,"21 / 81"]
["León - Francisco Z. Mena",13,"13 / 81"]
["León - Francisco Z. Mena",27,"27 / 81"]
["León - Francisco Z. Mena",18,"18 / 81"]
["León - Francisco Z. Mena",23,"23 / 81"]
["León - Firenze",9,9]
["León - Firenze",33,"33 / 81"]
["León - Firenze",18,"18 / 81"]
["León - Firenze",7,7]
["León - Firenze",10,10]
["León - Firenze",20,"20 / 81"]
["León - Firenze",16,"16 / 81"]
["León - Firenze",20,"20 / 81"]
["León - Firenze",21,"21 / 81"]
["León - Firenze",16,"16 / 81"]
["León - Firenze",39,"39 / 81"]
["León - Firenze",35,"35 / 81"]
["León - Firenze",8,8]
["León - Firenze",33,"33 / 81"]
["León - Firenze",8,8]
["León - Firenze",13,"13 / 81"]
["León - Firenze",16,"16 / 81"]
["León - Firenze",13,"13 / 81"]
["León - Firenze",20,"20 / 81"]
["León - Firenze",38,"38 / 81"]
["León - Firenze",24,"24 / 81"]
["León - Firenze",{"$f":"ABS(MID(C514,1,2))","v":20},"20 / 81"]
["León - Firenze",13,"13 / 81"]
["León - Firenze",36,"36 / 81"]
["León - Firenze",9,9]
["León - Firenze",43,"43 / 81"]
["León - Firenze",7,7]
["León - Firenze",16,"16 / 81"]
["León - Firenze",13,"13 / 81"]
["León - Firenze",8,8]
["León - Firenze",21,"21 / 81"]
["León - Firenze",16,"16 / 81"]
["León - Firenze",12,12]
["León - Firenze",13,"13 / 81"]
["León - Firenze",13,"13 / 81"]
["León - Emiliano Zapata",12,12]
["León - Díaz Mirón",8,8]
["León - Díaz Mirón",20,"20 / 81"]
["León - Díaz Mirón",19,"19 / 81"]
["León - Díaz Mirón",12,12]
["León - Díaz Mirón",2,2]
["León - Díaz Mirón",1,1]
["León - Díaz Mirón",8,8]
["León - Díaz Mirón",24,"24 / 81"]
["León - Díaz Mirón",23,"23 / 81"]
["León - Díaz Mirón",17,"17 / 81"]
["León - Díaz Mirón",18,"18 / 81"]
["León - Díaz Mirón",10,10]
["León - Díaz Mirón",39,"39 / 81"]
["León - Díaz Mirón",13,"13 / 81"]
["León - Díaz Mirón",15,"15 / 81"]
["León - Díaz Mirón",36,"36 / 81"]
["León - Díaz Mirón",14,"14 / 81"]
["León - Díaz Mirón",20,"20 / 81"]
["León - Díaz Mirón",16,"16 / 81"]
["León - Díaz Mirón",12,12]
["León - Díaz Mirón",30,"30 / 81"]
["León - Díaz Mirón",10,10]
["León - Díaz Mirón",20,"20 / 81"]
["León - Díaz Mirón",11,11]
["León - Díaz Mirón",17,"17 / 81"]
["León - Díaz Mirón",33,"33 / 81"]
["León - Díaz Mirón",27,"27 / 81"]
["León - Díaz Mirón",37,"37 / 81"]
["León - Díaz Mirón",22,"22 / 81"]
["León - Díaz Mirón",18,"18 / 81"]
["León - Díaz Mirón",16,"16 / 81"]
["León - Díaz Mirón",25,"25 / 81"]
["León - Díaz Mirón",13,"13 / 81"]
["León - Díaz Mirón",27,"27 / 81"]
["León - Díaz Mirón",24,"24 / 81"]
["León - Díaz Mirón",24,"24 / 81"]
["León - Díaz Mirón",16,"16 / 81"]
["León - Díaz Mirón",10,10]
["León - Díaz Mirón",14,"14 / 81"]
["León - Díaz Mirón",33,"33 / 81"]
["León - Díaz Mirón",22,"22 / 81"]
["León - Díaz Mirón",30,"30 / 81"]
["León - Díaz Mirón",12,12]
["León - Díaz Mirón",17,"17 / 81"]
["León - Díaz Mirón",18,"18 / 81"]
["León - Díaz Mirón",21,"21 / 81"]
["León - Díaz Mirón",33,"33 / 81"]
["León - Díaz Mirón",7,7]
["León - Díaz Mirón",16,"16 / 81"]
["León - Díaz Mirón",{"$f":"ABS(MID(C578,1,2))","v":21},"21 / 81"]
["León - Díaz Mirón",2,2]
["León - Díaz Mirón",18,"18 / 81"]
["León - Díaz Mirón",21,"21 / 81"]
["León - Díaz Mirón",20,"20 / 81"]
["León - Díaz Mirón",17,"17 / 81"]
["León - Díaz Mirón",38,"38 / 81"]
["León - Díaz Mirón",6,6]
["León - Díaz Mirón",5,5]
["León - Díaz Mirón",16,"16 / 81"]
["León - Díaz Mirón",19,"19 / 81"]
["León - Díaz Mirón",13,"13 / 81"]
["León - Díaz Mirón",10,10]
["León - Díaz Mirón",42,"42 / 81"]
["León - Díaz Mirón",23,"23 / 81"]
["León - Díaz Mirón",22,"22 / 81"]
["León - Díaz Mirón",8,8]
["León - Díaz Mirón",42,"42 / 81"]
["León - Díaz Mirón",20,"20 / 81"]
["León - Díaz Mirón",7,7]
["León - Díaz Mirón",11,11]
["León - Díaz Mirón",19,"19 / 81"]
["León - Díaz Mirón",15,"15 / 81"]
["León - Díaz Mirón",18,"18 / 81"]
["León - Díaz Mirón",25,"25 / 81"]
["León - Díaz Mirón",18,"18 / 81"]
["León - Díaz Mirón",31,"31 / 81"]
["León - Díaz Mirón",11,11]
["León - Díaz Mirón",15,"15 / 81"]
["León - Díaz Mirón",8,8]
["León - Díaz Mirón",31,"31 / 81"]
["León - Díaz Mirón",7,7]
["León - Díaz Mirón",20,"20 / 81"]
["León - Díaz Mirón",36,"36 / 81"]
["León - Díaz Mirón",4,4]
["León - Díaz Mirón",16,"16 / 81"]
["León - Díaz Mirón",14,"14 / 81"]
["León - Díaz Mirón",8,8]
["León - Díaz Mirón",33,"33 / 81"]
["León - Díaz Mirón",56,"56 / 81"]
["León - Díaz Mirón",27,"27 / 81"]
["León - Díaz Mirón",10,10]
["León - Díaz Mirón",9,9]
["León - Díaz Mirón",32,"32 / 81"]
["León - Díaz Mirón",18,"18 / 81"]
["León - Díaz Mirón",23,"23 / 81"]
["León - Díaz Mirón",14,"14 / 81"]
["León - Díaz Mirón",8,8]
["León - Díaz Mirón",35,"35 / 81"]
["León - Díaz Mirón",13,"13 / 81"]
["León - Díaz Mirón",3,3]
["León - Díaz Mirón",33,"33 / 81"]
["León - Díaz Mirón",29,"29 / 81"]
["León - Díaz Mirón",36,"36 / 81"]
["León - Díaz Mirón",27,"27 / 81"]
["León - Díaz Mirón",17,"17 / 81"]
["León - Díaz Mirón",30,"30 / 81"]
["León - Díaz Mirón",35,"35 / 81"]
["León - Díaz Mirón",15,"15 / 81"]
["León - Díaz Mirón",24,"24 / 81"]
["León - Díaz Mirón",15,"15 / 81"]
["León - Díaz Mirón",25,"25 / 81"]
["León - Díaz Mirón",19,"19 / 81"]
["León - Díaz Mirón",28,"28 / 81"]
["León - Díaz Mirón",{"$f":"ABS(MID(C642,1,2))","v":19},"19 / 81"]
["León - Díaz Mirón",18,"18 / 81"]
["León - Díaz Mirón",10,10]
["León - Díaz Mirón",28,"28 / 81"]
["León - Díaz Mirón",17,"17 / 81"]
["León - Díaz Mirón",39,"39 / 81"]
["León - Díaz Mirón",22,"22 / 81"]
["León - Díaz Mirón",14,"14 / 81"]
["León - Díaz Mirón",5,5]
["León - Díaz Mirón",9,9]
["León - Díaz Mirón",16,"16 / 81"]
["León - Díaz Mirón",8,8]
["León - Díaz Mirón",6,6]
["León - Díaz Mirón",20,"20 / 81"]
["León - Díaz Mirón",13,"13 / 81"]
["León - Díaz Mirón",5,5]
["León - Díaz Mirón",7,7]
["León - Díaz Mirón",12,12]
["León - Díaz Mirón",28,"28 / 81"]
["León - Díaz Mirón",21,"21 / 81"]
["León - Díaz Mirón",11,11]
["León - Díaz Mirón",18,"18 / 81"]
["León - Díaz Mirón",19,"19 / 81"]
["León - Díaz Mirón",12,12]
["León - Díaz Mirón",12,12]
["León - Díaz Mirón",15,"15 / 81"]
["León - Díaz Mirón",25,"25 / 81"]
["León - Díaz Mirón",35,"35 / 81"]
["León - Díaz Mirón",20,"20 / 81"]
["León - Díaz Mirón",33,"33 / 81"]
["León - Díaz Mirón",31,"31 / 81"]
["León - Díaz Mirón",14,"14 / 81"]
["León - Díaz Mirón",21,"21 / 81"]
["León - Díaz Mirón",23,"23 / 81"]
["León - Díaz Mirón",26,"26 / 81"]
["León - Díaz Mirón",10,10]
["León - Díaz Mirón",10,10]
["León - Díaz Mirón",5,5]
["León - Díaz Mirón",18,"18 / 81"]
["León - Díaz Mirón",61,"61 / 81"]
["León - Díaz Mirón",22,"22 / 81"]
["León - Díaz Mirón",28,"28 / 81"]
["León - Díaz Mirón",11,11]
["León - Díaz Mirón",50,"50 / 81"]
["León - Díaz Mirón",19,"19 / 81"]
["León - Díaz Mirón",25,"25 / 81"]
["León - Díaz Mirón",5,5]
["León - Díaz Mirón",17,"17 / 81"]
["León - Díaz Mirón",23,"23 / 81"]
["León - Díaz Mirón",11,11]
["León - Díaz Mirón",13,"13 / 81"]
["León - Díaz Mirón",10,10]
["León - Díaz Mirón",30,"30 / 81"]
["León - Díaz Mirón",48,"48 / 81"]
["León - Díaz Mirón",12,12]
["León - Díaz Mirón",13,"13 / 81"]
["León - Díaz Mirón",23,"23 / 81"]
["León - Adolfo López Mateos 308",23,"23 / 81"]
["León - Adolfo López Mateos 308",29,"29 / 81"]
["León - 5 de febrero",3,3]
["León - 5 de febrero",10,10]
["Juventino Rosas",6,6]
["Juventino Rosas",17,"17 / 81"]
["Juventino Rosas",5,5]
["Juventino Rosas",{"$f":"ABS(MID(C706,1,2))","v":7},7]
["Juventino Rosas",14,"14 / 81"]
["Juventino Rosas",22,"22 / 81"]
["Juventino Rosas",10,10]
["Juventino Rosas",7,7]
["Juventino Rosas",12,12]
["Juventino Rosas",15,"15 / 81"]
["Juventino Rosas",12,12]
["Juventino Rosas",12,12]
["Juventino Rosas",6,6]
["Juventino Rosas",7,7]
["Juventino Rosas",23,"23 / 81"]
["Irapuato - Fiesta",27,"27 / 81"]
["Irapuato - Fiesta",29,"29 / 81"]
["Irapuato - Fiesta",15,"15 / 81"]
["Irapuato - Fiesta",39,"39 / 81"]
["Irapuato - Fiesta",11,11]
["Irapuato - Fiesta",16,"16 / 81"]
["Irapuato - Fiesta",35,"35 / 81"]
["Irapuato - Fiesta",15,"15 / 81"]
["Irapuato - Fiesta",14,"14 / 81"]
["Irapuato - Fiesta",14,"14 / 81"]
["Irapuato - Fiesta",26,"26 / 81"]
["Irapuato - Fiesta",7,7]
["Irapuato - Fiesta",5,5]
["Irapuato - Fiesta",16,"16 / 81"]
["Irapuato - Espigas",6,6]
["Guanajuato",11,11]
["Guanajuato",37,"37 / 81"]
["Guanajuato",34,"34 / 81"]
["Guanajuato",41,"41 / 81"]
["Guanajuato",15,"15 / 81"]
["Champs Elysees León",18,"18 / 81"]
["Champs Elysees León",13,"13 / 81"]
["Champs Elysees León",9,9]
["Champs Elysees León",67,"67 / 81"]
["Champs Elysees León",30,"30 / 81"]
["Champs Elysees León",30,"30 / 81"]
["Champs Elysees León",21,"21 / 81"]
["Champs Elysees León",27,"27 / 81"]
["Champs Elysees León",13,"13 / 81"]
["Champs Elysees León",10,10]
["Champs Elysees León",3,3]
["Champs Elysees León",16,"16 / 81"]
["Champs Elysees León",29,"29 / 81"]
["Champs Elysees León",11,11]
["Champs Elysees León",10,10]
["Champs Elysees León",14,"14 / 81"]
["Champs Elysees León",20,"20 / 81"]
["Champs Elysees León",4,4]
["Champs Elysees León",30,"30 / 81"]
["Champs Elysees León",3,3]
["Champs Elysees León",18,"18 / 81"]
["Champs Elysees León",17,"17 / 81"]
["Champs Elysees León",15,"15 / 81"]
["Champs Elysees León",3,3]
["Champs Elysees León",12,12]
["Champs Elysees León",4,4]
["Champs Elysees León",4,4]
["Champs Elysees León",4,4]
["Champs Elysees León",18,"18 / 81"]
["Celaya - Firenze",28,"28 / 81"]
["Celaya - Firenze",28,"28 / 81"]
["Celaya - Firenze",24,"24 / 81"]
["Celaya - Firenze",{"$f":"ABS(MID(C770,1,2))","v":35},"35 / 81"]
["Celaya - Firenze",13,"13 / 81"]
["Celaya - Firenze",21,"21 / 81"]
["Celaya - Firenze",17,"17 / 81"]
["Celaya - Firenze",16,"16 / 81"]
["Celaya - Firenze",47,"47 / 81"]
["Celaya - Firenze",10,10]
["Celaya - Firenze",30,"30 / 81"]
["Celaya - Firenze",33,"33 / 81"]
["Celaya - Firenze",15,"15 / 81"]
["Celaya - Firenze",63,"63 / 81"]
["Celaya - Firenze",14,"14 / 81"]
["Celaya - Firenze",17,"17 / 81"]
["Celaya - Firenze",26,"26 / 81"]
["Aguascalientes",30,"30 / 81"]
["Aguascalientes",33,"33 / 81"]
["Aguascalientes",35,"35 / 81"]
["Aguascalientes",41,"41 / 81"]
["Aguascalientes",36,"36 / 81"]
["Aguascalientes",21,"21 / 81"]
["Aguascalientes",17,"17 / 81"]
["Aguascalientes",20,"20 / 81"]
["Aguascalientes",27,"27 / 81"]
["Aguascalientes",14,"14 / 81"]
["Aguascalientes",17,"17 / 81"]
["Aguascalientes",32,"32 / 81"]
["Abasolo",8,8]
[null,{"$error":"#VALUE!"}]
[null,{"$error":"#VALUE!"}]
[null,{"$error":"#VALUE!"}]
[null,{"$error":"#VALUE!"}]
[null,{"$error":"#VALUE!"}]
[null,{"$error":"#VALUE!"}]
[null,{"$error":"#VALUE!"}]
[null,{"$error":"#VALUE!"}]
[null,{"$error":"#VALUE!"}]
[null,{"$error":"#VALUE!"}]
[null,{"$error":"#VALUE!"}]
[null,{"$error":"#VALUE!"}]
[null,{"$error":"#VALUE!"}]
[null,{"$error":"#VALUE!"}]
[null,{"$error":"#VALUE!"}]
[null,{"$error":"#VALUE!"}]
[null,{"$error":"#VALUE!"}]
[null,{"$error":"#VALUE!"}]
[null,{"$error":"#VALUE!"}]
[null,{"$error":"#VALUE!"}]
[null,{"$error":"#VALUE!"}]
[null,{"$error":"#VALUE!"}]
[null,{"$error":"#VALUE!"}]
[null,{"$error":"#VALUE!"}]
[null,{"$error":"#VALUE!"}]
[null,{"$error":"#VALUE!"}]
[null,{"$error":"#VALUE!"}]
[null,{"$error":"#VALUE!"}]
[null,{"$error":"#VALUE!"}]
[null,{"$error":"#VALUE!"}]
[null,{"$error":"#VALUE!"}]
[null,{"$error":"#VALUE!"}]
[null,{"$error":"#VALUE!"}]
[null,{"$error":"#VALUE!"}]
[null,{"$error":"#VALUE!"}]
[null,{"$error":"#VALUE!"}]
[null,{"$error":"#VALUE!"}]
[null,{"$f":"ABS(MID(C834,1,2))","v":{"$error":"#VALUE!"}}]
[null,{"$error":"#VALUE!"}]
[null,{"$error":"#VALUE!"}]
[null,{"$error":"#VALUE!"}]
[null,{"$error":"#VALUE!"}]
[null,{"$error":"#VALUE!"}]
[null,{"$error":"#VALUE!"}]
[null,{"$error":"#VALUE!"}]
[null,{"$error":"#VALUE!"}]
[null,{"$error":"#VALUE!"}]
[null,{"$error":"#VALUE!"}]
[null,{"$error":"#VALUE!"}]
[null,{"$error":"#VALUE!"}]
[null,{"$error":"#VALUE!"}]
[null,{"$error":"#VALUE!"}]
[null,{"$error":"#VALUE!"}]
[null,{"$error":"#VALUE!"}]
[null,{"$error":"#VALUE!"}]
[null,{"$error":"#VALUE!"}]
[null,{"$error":"#VALUE!"}]
[null,{"$error":"#VALUE!"}]
[null,{"$error":"#VALUE!"}]
[null,{"$error":"#VALUE!"}]
[null,{"$error":"#VALUE!"}]
[null,{"$error":"#VALUE!"}]
[null,{"$error":"#VALUE!"}]
[null,{"$error":"#VALUE!"}]
[null,{"$error":"#VALUE!"}]
[null,{"$error":"#VALUE!"}]
[null,{"$error":"#VALUE!"}]
[null,{"$error":"#VALUE!"}]
[null,{"$error":"#VALUE!"}]
[null,{"$error":"#VALUE!"}]
[null,{"$error":"#VALUE!"}]
[null,{"$error":"#VALUE!"}]
[null,{"$error":"#VALUE!"}]
[null,{"$error":"#VALUE!"}]
[null,{"$error":"#VALUE!"}]
[null,{"$error":"#VALUE!"}]
[null,{"$error":"#VALUE!"}]
[null,{"$error":"#VALUE!"}]
[null,{"$error":"#VALUE!"}]
[null,{"$error":"#VALUE!"}]
[null,{"$error":"#VALUE!"}]
[null,{"$error":"#VALUE!"}]
[null,{"$error":"#VALUE!"}]
[null,{"$error":"#VALUE!"}]
[null,{"$error":"#VALUE!"}]
[null,{"$error":"#VALUE!"}]
[null,{"$error":"#VALUE!"}]
[null,{"$error":"#VALUE!"}]
[null,{"$error":"#VALUE!"}]
[null,{"$error":"#VALUE!"}]
[null,{"$error":"#VALUE!"}]
[null,{"$error":"#VALUE!"}]
[null,{"$error":"#VALUE!"}]
[null,{"$error":"#VALUE!"}]
[null,{"$error":"#VALUE!"}]
[null,{"$error":"#VALUE!"}]
[null,{"$error":"#VALUE!"}]
[null,{"$error":"#VALUE!"}]
[null,{"$error":"#VALUE!"}]
[null,{"$error":"#VALUE!"}]
[null,{"$error":"#VALUE!"}]
[null,{"$f":"ABS(MID(C898,1,2))","v":{"$error":"#VALUE!"}}]
[null,{"$error":"#VALUE!"}]
[null,{"$error":"#VALUE!"}]
[null,{"$error":"#VALUE!"}]
[null,{"$error":"#VALUE!"}]
[null,{"$error":"#VALUE!"}]
[null,{"$error":"#VALUE!"}]
[null,{"$error":"#VALUE!"}]
[null,{"$error":"#VALUE!"}]
[null,{"$error":"#VALUE!"}]
[null,{"$error":"#VALUE!"}]
[null,{"$error":"#VALUE!"}]
[null,{"$error":"#VALUE!"}]
[null,{"$error":"#VALUE!"}]
[null,{"$error":"#VALUE!"}]
[null,{"$error":"#VALUE!"}]
[null,{"$error":"#VALUE!"}]
[null,{"$error":"#VALUE!"}]
[null,{"$error":"#VALUE!"}]
[null,{"$error":"#VALUE!"}]
[null,{"$error":"#VALUE!"}]
[null,{"$error":"#VALUE!"}]
[null,{"$error":"#VALUE!"}]
[null,{"$error":"#VALUE!"}]
[null,{"$error":"#VALUE!"}]
[null,{"$error":"#VALUE!"}]
[null,{"$error":"#VALUE!"}]
[null,{"$error":"#VALUE!"}]
[null,{"$error":"#VALUE!"}]
[null,{"$error":"#VALUE!"}]
[null,{"$error":"#VALUE!"}]
[null,{"$error":"#VALUE!"}]
[null,{"$error":"#VALUE!"}]
[null,{"$error":"#VALUE!"}]
[null,{"$error":"#VALUE!"}]
[null,{"$error":"#VALUE!"}]
[null,{"$error":"#VALUE!"}]
[null,{"$error":"#VALUE!"}]
[null,{"$error":"#VALUE!"}]
[null,{"$error":"#VALUE!"}]
[null,{"$error":"#VALUE!"}]
[null,{"$error":"#VALUE!"}]
[null,{"$error":"#VALUE!"}]
[null,{"$error":"#VALUE!"}]
[null,{"$error":"#VALUE!"}]
[null,{"$error":"#VALUE!"}]
[null,{"$error":"#VALUE!"}]
[null,{"$error":"#VALUE!"}]
[null,{"$error":"#VALUE!"}]
[null,{"$error":"#VALUE!"}]
[null,{"$error":"#VALUE!"}]
[null,{"$error":"#VALUE!"}]
[null,{"$error":"#VALUE!"}]
[null,{"$error":"#VALUE!"}]
[null,{"$error":"#VALUE!"}]
[null,{"$error":"#VALUE!"}]
[null,{"$error":"#VALUE!"}]
[null,{"$error":"#VALUE!"}]
[null,{"$error":"#VALUE!"}]
[null,{"$error":"#VALUE!"}]
[null,{"$error":"#VALUE!"}]
[null,{"$error":"#VALUE!"}]
[null,{"$error":"#VALUE!"}]
[null,{"$error":"#VALUE!"}]
[null,{"$f":"ABS(MID(C962,1,2))","v":{"$error":"#VALUE!"}}]
[null,{"$error":"#VALUE!"}]
[null,{"$error":"#VALUE!"}]
[null,{"$error":"#VALUE!"}]
[null,{"$error":"#VALUE!"}]
[null,{"$error":"#VALUE!"}]
[null,{"$error":"#VALUE!"}]
[null,{"$error":"#VALUE!"}]
[null,{"$error":"#VALUE!"}]
[null,{"$error":"#VALUE!"}]
[null,{"$error":"#VALUE!"}]
[null,{"$error":"#VALUE!"}]
[null,{"$error":"#VALUE!"}]
[null,{"$error":"#VALUE!"}]
[null,{"$error":"#VALUE!"}]
[null,{"$error":"#VALUE!"}]
[null,{"$error":"#VALUE!"}]
[null,{"$error":"#VALUE!"}]
[null,{"$error":"#VALUE!"}]
[null,{"$error":"#VALUE!"}]
[null,{"$error":"#VALUE!"}]
[null,{"$error":"#VALUE!"}]
[null,{"$error":"#VALUE!"}]
[null,{"$error":"#VALUE!"}]
[null,{"$error":"#VALUE!"}]
[null,{"$error":"#VALUE!"}]
[null,{"$error":"#VALUE!"}]
[null,{"$error":"#VALUE!"}]
[null,{"$error":"#VALUE!"}]
[null,{"$error":"#VALUE!"}]
[null,{"$error":"#VALUE!"}]
[null,{"$error":"#VALUE!"}]
[null,{"$error":"#VALUE!"}]
[null,{"$error":"#VALUE!"}]
[null,{"$error":"#VALUE!"}]
[null,{"$error":"#VALUE!"}]
[null,{"$error":"#VALUE!"}]
[null,{"$error":"#VALUE!"}]
[null,{"$error":"#VALUE!"}]
[null,{"$error":"#VALUE!"}]
[null,{"$error":"#VALUE!"}]
[null,{"$error":"#VALUE!"}]
[null,{"$error":"#VALUE!"}]
[null,{"$error":"#VALUE!"}]
[null,{"$error":"#VALUE!"}]
[null,{"$error":"#VALUE!"}]
[null,{"$error":"#VALUE!"}]
[null,{"$error":"#VALUE!"}]
[null,{"$error":"#VALUE!"}]
[null,{"$error":"#VALUE!"}]
[null,{"$error":"#VALUE!"}]
[null,{"$error":"#VALUE!"}]
[null,{"$error":"#VALUE!"}]
[null,{"$error":"#VALUE!"}]
[null,{"$error":"#VALUE!"}]
[null,{"$error":"#VALUE!"}]
[null,{"$error":"#VALUE!"}]
[null,{"$error":"#VALUE!"}]
[null,{"$error":"#VALUE!"}]
[null,{"$error":"#VALUE!"}]
[null,{"$error":"#VALUE!"}]
[null,{"$error":"#VALUE!"}]
[null,{"$error":"#VALUE!"}]
[null,{"$error":"#VALUE!"}]
[null,{"$f":"ABS(MID(C1026,1,2))","v":{"$error":"#VALUE!"}}]
[null,{"$error":"#VALUE!"}]
[null,{"$error":"#VALUE!"}]
[null,{"$error":"#VALUE!"}]
[null,{"$error":"#VALUE!"}]
[null,{"$error":"#VALUE!"}]
[null,{"$error":"#VALUE!"}]
[null,{"$error":"#VALUE!"}]
[null,{"$error":"#VALUE!"}]
[null,{"$error":"#VALUE!"}]
[null,{"$error":"#VALUE!"}]
[null,{"$error":"#VALUE!"}]
[null,{"$error":"#VALUE!"}]
[null,{"$error":"#VALUE!"}]
[null,{"$error":"#VALUE!"}]
[null,{"$error":"#VALUE!"}]
[null,{"$error":"#VALUE!"}]
[null,{"$error":"#VALUE!"}]
[null,{"$error":"#VALUE!"}]
[null,{"$error":"#VALUE!"}]
[null,{"$error":"#VALUE!"}]
[null,{"$error":"#VALUE!"}]
[null,{"$error":"#VALUE!"}]
[null,{"$error":"#VALUE!"}]
[null,{"$error":"#VALUE!"}]
[null,{"$error":"#VALUE!"}]
[null,{"$error":"#VALUE!"}]
[null,{"$error":"#VALUE!"}]
[null,{"$error":"#VALUE!"}]
[null,{"$error":"#VALUE!"}]
[null,{"$error":"#VALUE!"}]
[null,{"$error":"#VALUE!"}]
[null,{"$error":"#VALUE!"}]
[null,{"$error":"#VALUE!"}]
[null,{"$error":"#VALUE!"}]
[null,{"$error":"#VALUE!"}]
[null,{"$error":"#VALUE!"}]
[null,{"$error":"#VALUE!"}]
[null,{"$error":"#VALUE!"}]
[null,{"$error":"#VALUE!"}]
[null,{"$error":"#VALUE!"}]
[null,{"$error":"#VALUE!"}]
[null,{"$error":"#VALUE!"}]
[null,{"$error":"#VALUE!"}]
[null,{"$error":"#VALUE!"}]
[null,{"$error":"#VALUE!"}]
[null,{"$error":"#VALUE!"}]
[null,{"$error":"#VALUE!"}]
[null,{"$error":"#VALUE!"}]
[null,{"$error":"#VALUE!"}]
[null,{"$error":"#VALUE!"}]
[null,{"$error":"#VALUE!"}]
[null,{"$error":"#VALUE!"}]
[null,{"$error":"#VALUE!"}]
[null,{"$error":"#VALUE!"}]
[null,{"$error":"#VALUE!"}]
[null,{"$error":"#VALUE!"}]
[null,{"$error":"#VALUE!"}]
[null,{"$error":"#VALUE!"}]
[null,{"$error":"#VALUE!"}]
[null,{"$error":"#VALUE!"}]
[null,{"$error":"#VALUE!"}]
[null,{"$error":"#VALUE!"}]
[null,{"$error":"#VALUE!"}]
[null,{"$f":"ABS(MID(C1090,1,2))","v":{"$error":"#VALUE!"}}]
[null,{"$error":"#VALUE!"}]
[null,{"$error":"#VALUE!"}]
[null,{"$error":"#VALUE!"}]
[null,{"$error":"#VALUE!"}]
[null,{"$error":"#VALUE!"}]
[null,{"$error":"#VALUE!"}]
[null,{"$error":"#VALUE!"}]
[null,{"$error":"#VALUE!"}]
[null,{"$error":"#VALUE!"}]
[null,{"$error":"#VALUE!"}]
[null,{"$error":"#VALUE!"}]
[null,{"$error":"#VALUE!"}]
[null,{"$error":"#VALUE!"}]
[null,{"$error":"#VALUE!"}]
[null,{"$error":"#VALUE!"}]
[null,{"$error":"#VALUE!"}]
[null,{"$error":"#VALUE!"}]
[null,{"$error":"#VALUE!"}]
[null,{"$error":"#VALUE!"}]
[null,{"$error":"#VALUE!"}]
[null,{"$error":"#VALUE!"}]
[null,{"$error":"#VALUE!"}]
[null,{"$error":"#VALUE!"}]
[null,{"$error":"#VALUE!"}]
[null,{"$error":"#VALUE!"}]
[null,{"$error":"#VALUE!"}]
[null,{"$error":"#VALUE!"}]
[null,{"$error":"#VALUE!"}]
[null,{"$error":"#VALUE!"}]
[null,{"$error":"#VALUE!"}]
[null,{"$error":"#VALUE!"}]
[null,{"$error":"#VALUE!"}]
[null,{"$error":"#VALUE!"}]
[null,{"$error":"#VALUE!"}]
[null,{"$error":"#VALUE!"}]
[null,{"$error":"#VALUE!"}]
[null,{"$error":"#VALUE!"}]
[null,{"$error":"#VALUE!"}]
[null,{"$error":"#VALUE!"}]
[null,{"$error":"#VALUE!"}]
[null,{"$error":"#VALUE!"}]
[null,{"$error":"#VALUE!"}]
[null,{"$error":"#VALUE!"}]
[null,{"$error":"#VALUE!"}]
[null,{"$error":"#VALUE!"}]
[null,{"$error":"#VALUE!"}]
[null,{"$error":"#VALUE!"}]
[null,{"$error":"#VALUE!"}]
[null,{"$error":"#VALUE!"}]
[null,{"$error":"#VALUE!"}]
[null,{"$error":"#VALUE!"}]
[null,{"$error":"#VALUE!"}]
[null,{"$error":"#VALUE!"}]
[null,{"$error":"#VALUE!"}]
[null,{"$error":"#VALUE!"}]
[null,{"$error":"#VALUE!"}]
[null,{"$error":"#VALUE!"}]
[null,{"$error":"#VALUE!"}]
[null,{"$error":"#VALUE!"}]
[null,{"$error":"#VALUE!"}]
[null,{"$error":"#VALUE!"}]
[null,{"$error":"#VALUE!"}]
[null,{"$error":"#VALUE!"}]
[null,{"$f":"ABS(MID(C1154,1,2))","v":{"$error":"#VALUE!"}}]
[null,{"$error":"#VALUE!"}]
[null,{"$error":"#VALUE!"}]
[null,{"$error":"#VALUE!"}]
[null,{"$error":"#VALUE!"}]
[null,{"$error":"#VALUE!"}]
[null,{"$error":"#VALUE!"}]
[null,{"$error":"#VALUE!"}]
[null,{"$error":"#VALUE!"}]
[null,{"$error":"#VALUE!"}]
[null,{"$error":"#VALUE!"}]
[null,{"$error":"#VALUE!"}]
[null,{"$error":"#VALUE!"}]
[null,{"$error":"#VALUE!"}]
[null,{"$error":"#VALUE!"}]
[null,{"$error":"#VALUE!"}]
[null,{"$error":"#VALUE!"}]
[null,{"$error":"#VALUE!"}]
[null,{"$error":"#VALUE!"}]
[null,{"$error":"#VALUE!"}]
[null,{"$error":"#VALUE!"}]
[null,{"$error":"#VALUE!"}]
[null,{"$error":"#VALUE!"}]
[null,{"$error":"#VALUE!"}]
[null,{"$error":"#VALUE!"}]
[null,{"$error":"#VALUE!"}]
[null,{"$error":"#VALUE!"}]
[null,{"$error":"#VALUE!"}]
[null,{"$error":"#VALUE!"}]
[null,{"$error":"#VALUE!"}]
[null,{"$error":"#VALUE!"}]
[null,{"$error":"#VALUE!"}]
[null,{"$error":"#VALUE!"}]
[null,{"$error":"#VALUE!"}]
[null,{"$error":"#VALUE!"}]
[null,{"$error":"#VALUE!"}]
[null,{"$error":"#VALUE!"}]
[null,{"$error":"#VALUE!"}]
[null,{"$error":"#VALUE!"}]
[null,{"$error":"#VALUE!"}]
[null,{"$error":"#VALUE!"}]
[null,{"$error":"#VALUE!"}]
[null,{"$error":"#VALUE!"}]
[null,{"$error":"#VALUE!"}]
[null,{"$error":"#VALUE!"}]
[null,{"$error":"#VALUE!"}]
[null,{"$error":"#VALUE!"}]
[null,{"$error":"#VALUE!"}]
[null,{"$error":"#VALUE!"}]
[null,{"$error":"#VALUE!"}]
[null,{"$error":"#VALUE!"}]
[null,{"$error":"#VALUE!"}]
[null,{"$error":"#VALUE!"}]
[null,{"$error":"#VALUE!"}]
[null,{"$error":"#VALUE!"}]
[null,{"$error":"#VALUE!"}]
[null,{"$error":"#VALUE!"}]
[null,{"$error":"#VALUE!"}]
[null,{"$error":"#VALUE!"}]
[null,{"$error":"#VALUE!"}]
[null,{"$error":"#VALUE!"}]
[null,{"$error":"#VALUE!"}]
[null,{"$error":"#VALUE!"}]
[null,{"$error":"#VALUE!"}]
[null,{"$f":"ABS(MID(C1218,1,2))","v":{"$error":"#VALUE!"}}]
[null,{"$error":"#VALUE!"}]
[null,{"$error":"#VALUE!"}]
[null,{"$error":"#VALUE!"}]
[null,{"$error":"#VALUE!"}]
[null,{"$error":"#VALUE!"}]
[null,{"$error":"#VALUE!"}]
[null,{"$error":"#VALUE!"}]
[null,{"$error":"#VALUE!"}]
[null,{"$error":"#VALUE!"}]
[null,{"$error":"#VALUE!"}]
[null,{"$error":"#VALUE!"}]
[null,{"$error":"#VALUE!"}]
[null,{"$error":"#VALUE!"}]
[null,{"$error":"#VALUE!"}]
[null,{"$error":"#VALUE!"}]
[null,{"$error":"#VALUE!"}]
[null,{"$error":"#VALUE!"}]
[null,{"$error":"#VALUE!"}]
[null,{"$error":"#VALUE!"}]
[null,{"$error":"#VALUE!"}]
[null,{"$error":"#VALUE!"}]
[null,{"$error":"#VALUE!"}]
[null,{"$error":"#VALUE!"}]
[null,{"$error":"#VALUE!"}]
[null,{"$error":"#VALUE!"}]
[null,{"$error":"#VALUE!"}]
[null,{"$error":"#VALUE!"}]
[null,{"$error":"#VALUE!"}]
[null,{"$error":"#VALUE!"}]
[null,{"$error":"#VALUE!"}]
[null,{"$error":"#VALUE!"}]
[null,{"$error":"#VALUE!"}]
[null,{"$error":"#VALUE!"}]
[null,{"$error":"#VALUE!"}]
[null,{"$error":"#VALUE!"}]
[null,{"$error":"#VALUE!"}]
[null,{"$error":"#VALUE!"}]
[null,{"$error":"#VALUE!"}]
[null,{"$error":"#VALUE!"}]
[null,{"$error":"#VALUE!"}]
[null,{"$error":"#VALUE!"}]
[null,{"$error":"#VALUE!"}]
[null,{"$error":"#VALUE!"}]
[null,{"$error":"#VALUE!"}]
[null,{"$error":"#VALUE!"}]
[null,{"$error":"#VALUE!"}]
[null,{"$error":"#VALUE!"}]
[null,{"$error":"#VALUE!"}]
[null,{"$error":"#VALUE!"}]
[null,{"$error":"#VALUE!"}]
[null,{"$error":"#VALUE!"}]
[null,{"$error":"#VALUE!"}]
[null,{"$error":"#VALUE!"}]
[null,{"$error":"#VALUE!"}]
[null,{"$error":"#VALUE!"}]
[null,{"$error":"#VALUE!"}]
[null,{"$error":"#VALUE!"}]
[null,{"$error":"#VALUE!"}]
[null,{"$error":"#VALUE!"}]
[null,{"$error":"#VALUE!"}]
[null,{"$error":"#VALUE!"}]
[null,{"$error":"#VALUE!"}]
[null,{"$error":"#VALUE!"}]
[null,{"$f":"ABS(MID(C1282,1,2))","v":{"$error":"#VALUE!"}}]
[null,{"$error":"#VALUE!"}]
[null,{"$error":"#VALUE!"}]
[null,{"$error":"#VALUE!"}]
[null,{"$error":"#VALUE!"}]
[null,{"$error":"#VALUE!"}]
[null,{"$error":"#VALUE!"}]
[null,{"$error":"#VALUE!"}]
[null,{"$error":"#VALUE!"}]
[null,{"$error":"#VALUE!"}]
[null,{"$error":"#VALUE!"}]
[null,{"$error":"#VALUE!"}]
[null,{"$error":"#VALUE!"}]
[null,{"$error":"#VALUE!"}]
[null,{"$error":"#VALUE!"}]
[null,{"$error":"#VALUE!"}]
[null,{"$error":"#VALUE!"}]
[null,{"$error":"#VALUE!"}]
[null,{"$error":"#VALUE!"}]
[null,{"$error":"#VALUE!"}]
[null,{"$error":"#VALUE!"}]
[null,{"$error":"#VALUE!"}]
[null,{"$error":"#VALUE!"}]
[null,{"$error":"#VALUE!"}]
[null,{"$error":"#VALUE!"}]
[null,{"$error":"#VALUE!"}]
[null,{"$error":"#VALUE!"}]
[null,{"$error":"#VALUE!"}]
[null,{"$error":"#VALUE!"}]
[null,{"$error":"#VALUE!"}]
[null,{"$error":"#VALUE!"}]
[null,{"$error":"#VALUE!"}]
[null,{"$error":"#VALUE!"}]
[null,{"$error":"#VALUE!"}]
[null,{"$error":"#VALUE!"}]
[null,{"$error":"#VALUE!"}]
[null,{"$error":"#VALUE!"}]
[null,{"$error":"#VALUE!"}]
[null,{"$error":"#VALUE!"}]
[null,{"$error":"#VALUE!"}]
[null,{"$error":"#VALUE!"}]
[null,{"$error":"#VALUE!"}]
[null,{"$error":"#VALUE!"}]
[null,{"$error":"#VALUE!"}]
[null,{"$error":"#VALUE!"}]
[null,{"$error":"#VALUE!"}]
[null,{"$error":"#VALUE!"}]
[null,{"$error":"#VALUE!"}]
[null,{"$error":"#VALUE!"}]
[null,{"$error":"#VALUE!"}]
[null,{"$error":"#VALUE!"}]
[null,{"$error":"#VALUE!"}]
[null,{"$error":"#VALUE!"}]
[null,{"$error":"#VALUE!"}]
[null,{"$error":"#VALUE!"}]
[null,{"$error":"#VALUE!"}]
[null,{"$error":"#VALUE!"}]
[null,{"$error":"#VALUE!"}]
[null,{"$error":"#VALUE!"}]
[null,{"$error":"#VALUE!"}]
[null,{"$error":"#VALUE!"}]
[null,{"$error":"#VALUE!"}]
[null,{"$error":"#VALUE!"}]
[null,{"$error":"#VALUE!"}]
[null,{"$f":"ABS(MID(C1346,1,2))","v":{"$error":"#VALUE!"}}]
[null,{"$error":"#VALUE!"}]
[null,{"$error":"#VALUE!"}]
[null,{"$error":"#VALUE!"}]
[null,{"$error":"#VALUE!"}]
[null,{"$error":"#VALUE!"}]
[null,{"$error":"#VALUE!"}]
[null,{"$error":"#VALUE!"}]
[null,{"$error":"#VALUE!"}]
[null,{"$error":"#VALUE!"}]
[null,{"$error":"#VALUE!"}]
[null,{"$error":"#VALUE!"}]
[null,{"$error":"#VALUE!"}]
[null,{"$error":"#VALUE!"}]
[null,{"$error":"#VALUE!"}]
[null,{"$error":"#VALUE!"}]
[null,{"$error":"#VALUE!"}]
[null,{"$error":"#VALUE!"}]
[null,{"$error":"#VALUE!"}]
[null,{"$error":"#VALUE!"}]
[null,{"$error":"#VALUE!"}]
[null,{"$error":"#VALUE!"}]
[null,{"$error":"#VALUE!"}]
[null,{"$error":"#VALUE!"}]
[null,{"$error":"#VALUE!"}]
[null,{"$error":"#VALUE!"}]
[null,{"$error":"#VALUE!"}]
[null,{"$error":"#VALUE!"}]
[null,{"$error":"#VALUE!"}]
[null,{"$error":"#VALUE!"}]
[null,{"$error":"#VALUE!"}]
[null,{"$error":"#VALUE!"}]
[null,{"$error":"#VALUE!"}]
[null,{"$error":"#VALUE!"}]
[null,{"$error":"#VALUE!"}]
[null,{"$error":"#VALUE!"}]
[null,{"$error":"#VALUE!"}]
[null,{"$error":"#VALUE!"}]
[null,{"$error":"#VALUE!"}]
[null,{"$error":"#VALUE!"}]
[null,{"$error":"#VALUE!"}]
[null,{"$error":"#VALUE!"}]
[null,{"$error":"#VALUE!"}]
[null,{"$error":"#VALUE!"}]
[null,{"$error":"#VALUE!"}]
[null,{"$error":"#VALUE!"}]
[null,{"$error":"#VALUE!"}]
[null,{"$error":"#VALUE!"}]
[null,{"$error":"#VALUE!"}]
[null,{"$error":"#VALUE!"}]
[null,{"$error":"#VALUE!"}]
[null,{"$error":"#VALUE!"}]
[null,{"$error":"#VALUE!"}]
[null,{"$error":"#VALUE!"}]
[null,{"$error":"#VALUE!"}]
[null,{"$error":"#VALUE!"}]
[null,{"$error":"#VALUE!"}]
[null,{"$error":"#VALUE!"}]
[null,{"$error":"#VALUE!"}]
[null,{"$error":"#VALUE!"}]
[null,{"$error":"#VALUE!"}]
[null,{"$error":"#VALUE!"}]
[null,{"$error":"#VALUE!"}]
[null,{"$error":"#VALUE!"}]
[null,{"$f":"ABS(MID(C1410,1,2))","v":{"$error":"#VALUE!"}}]
[null,{"$error":"#VALUE!"}]
[null,{"$error":"#VALUE!"}]
[null,{"$error":"#VALUE!"}]
[null,{"$error":"#VALUE!"}]
[null,{"$error":"#VALUE!"}]
[null,{"$error":"#VALUE!"}]
[null,{"$error":"#VALUE!"}]
[null,{"$error":"#VALUE!"}]
[null,{"$error":"#VALUE!"}]
[null,{"$error":"#VALUE!"}]
[null,{"$error":"#VALUE!"}]
[null,{"$error":"#VALUE!"}]
[null,{"$error":"#VALUE!"}]
[null,{"$error":"#VALUE!"}]
[null,{"$error":"#VALUE!"}]
[null,{"$error":"#VALUE!"}]
[null,{"$error":"#VALUE!"}]
[null,{"$error":"#VALUE!"}]
[null,{"$error":"#VALUE!"}]
[null,{"$error":"#VALUE!"}]
[null,{"$error":"#VALUE!"}]
[null,{"$error":"#VALUE!"}]
[null,{"$error":"#VALUE!"}]
[null,{"$error":"#VALUE!"}]
[null,{"$error":"#VALUE!"}]
[null,{"$error":"#VALUE!"}]
[null,{"$error":"#VALUE!"}]
[null,{"$error":"#VALUE!"}]
[null,{"$error":"#VALUE!"}]
[null,{"$error":"#VALUE!"}]
[null,{"$error":"#VALUE!"}]
[null,{"$error":"#VALUE!"}]
[null,{"$error":"#VALUE!"}]
[null,{"$error":"#VALUE!"}]
[null,{"$error":"#VALUE!"}]
[null,{"$error":"#VALUE!"}]
[null,{"$error":"#VALUE!"}]
[null,{"$error":"#VALUE!"}]
[null,{"$error":"#VALUE!"}]
[null,{"$error":"#VALUE!"}]
[null,{"$error":"#VALUE!"}]
[null,{"$error":"#VALUE!"}]
[null,{"$error":"#VALUE!"}]
[null,{"$error":"#VALUE!"}]
[null,{"$error":"#VALUE!"}]
[null,{"$error":"#VALUE!"}]
[null,{"$error":"#VALUE!"}]
[null,{"$error":"#VALUE!"}]
[null,{"$error":"#VALUE!"}]
[null,{"$error":"#VALUE!"}]
[null,{"$error":"#VALUE!"}]
[null,{"$error":"#VALUE!"}]
[null,{"$error":"#VALUE!"}]
[null,{"$error":"#VALUE!"}]
[null,{"$error":"#VALUE!"}]
[null,{"$error":"#VALUE!"}]
[null,{"$error":"#VALUE!"}]
[null,{"$error":"#VALUE!"}]
[null,{"$error":"#VALUE!"}]
[null,{"$error":"#VALUE!"}]
[null,{"$error":"#VALUE!"}]
[null,{"$error":"#VALUE!"}]
[null,{"$error":"#VALUE!"}]
[null,{"$f":"ABS(MID(C1474,1,2))","v":{"$error":"#VALUE!"}}]
[null,{"$error":"#VALUE!"}]
[null,{"$error":"#VALUE!"}]
[null,{"$error":"#VALUE!"}]
[null,{"$error":"#VALUE!"}]
[null,{"$error":"#VALUE!"}]
[null,{"$error":"#VALUE!"}]
[null,{"$error":"#VALUE!"}]
[null,{"$error":"#VALUE!"}]
[null,{"$error":"#VALUE!"}]
[null,{"$error":"#VALUE!"}]
[null,{"$error":"#VALUE!"}]
[null,{"$error":"#VALUE!"}]
[null,{"$error":"#VALUE!"}]
[null,{"$error":"#VALUE!"}]
[null,{"$error":"#VALUE!"}]
[null,{"$error":"#VALUE!"}]
[null,{"$error":"#VALUE!"}]
[null,{"$error":"#VALUE!"}]
[null,{"$error":"#VALUE!"}]
[null,{"$error":"#VALUE!"}]
[null,{"$error":"#VALUE!"}]
[null,{"$error":"#VALUE!"}]
[null,{"$error":"#VALUE!"}]
[null,{"$error":"#VALUE!"}]
[null,{"$error":"#VALUE!"}]
[null,{"$error":"#VALUE!"}]
[null,{"$error":"#VALUE!"}]
[null,{"$error":"#VALUE!"}]

{"sheet":"Reporte general Planteles","index":8,"n_rows":51,"n_cols":4,"rows_kept":51,"cut":false,"hidden":true,"merged":[[5,1,6,4],[50,1,51,6],[49,1,49,6],[42,1,42,6],[41,1,41,6],[45,1,47,6],[44,1,44,6]]}
[]
[]
[]
[]
[]
[null,"Resultados promedio de tamizajes por plantel"]
[]
[null,"Planteles","Aplicaciones","Promedio de puntuación"]
[null,"Zacatecas",{"$f":"'Datos generales de planteles'!F3","v":39},{"$f":"'Datos generales de planteles'!G3","v":19.897435897435898}]
[null,"Silao 1",{"$f":"'Datos generales de planteles'!F4","v":17},{"$f":"'Datos generales de planteles'!G4","v":15.294117647058824}]
[null,"Salamanca",{"$f":"'Datos generales de planteles'!F5","v":47},{"$f":"'Datos generales de planteles'!G5","v":19.574468085106382}]
[null,"León - Madero 801",{"$f":"'Datos generales de planteles'!F6","v":38},{"$f":"'Datos generales de planteles'!G6","v":21.710526315789473}]
[null,"León - Firenze",{"$f":"'Datos generales de planteles'!F7","v":35},{"$f":"'Datos generales de planteles'!G7","v":18.771428571428572}]
[null,"Irapuato - Fiesta",{"$f":"'Datos generales de planteles'!F8","v":14},{"$f":"'Datos generales de planteles'!G8","v":19.214285714285715}]
[null,"Celaya - Firenze",{"$f":"'Datos generales de planteles'!F9","v":17},{"$f":"'Datos generales de planteles'!G9","v":25.705882352941178}]
[null,"Aguascalientes",{"$f":"'Datos generales de planteles'!F10","v":12},{"$f":"'Datos generales de planteles'!G10","v":26.916666666666668}]
[null,"Champs Elysees Leon",{"$f":"'Datos generales de planteles'!F11","v":29},{"$f":"'Datos generales de planteles'!G11","v":16.310344827586206}]
[null,"León - Pinosuárez (Motolinia)",{"$f":"'Datos generales de planteles'!F12","v":84},{"$f":"'Datos generales de planteles'!G12","v":19.547619047619047}]
[null,"León - Juárez 404",{"$f":"'Datos generales de planteles'!F13","v":21},{"$f":"'Datos generales de planteles'!G13","v":19.857142857142858}]
[null,"León - Francisco Z. Mena",{"$f":"'Datos generales de planteles'!F14","v":28},{"$f":"'Datos generales de planteles'!G14","v":19.428571428571427}]
[null,"León - Díaz Mirón",{"$f":"'Datos generales de planteles'!F15","v":170},{"$f":"'Datos generales de planteles'!G15","v":19.511764705882353}]
[null,"Saltillo 1",{"$f":"'Datos generales de planteles'!F16","v":121},{"$f":"'Datos generales de planteles'!G16","v":18.132231404958677}]
[null,"León - Insurgentes",{"$f":"'Datos generales de planteles'!F17","v":87},{"$f":"'Datos generales de planteles'!G17","v":15.459770114942529}]
[null,"Juventino Rosas",{"$f":"'Datos generales de planteles'!F18","v":15},{"$f":"'Datos generales de planteles'!G18","v":11.666666666666666}]
[null,"Total",{"$f":"'Datos generales de planteles'!F19","v":774}]
[]
[]
[]
[]
[]
[]
[]
[]
[]
[]
[]
[]
[]
[]
[]
[]
[null,"Promedio por puntuación"]
[null,"Es el promedio de respuestas de cada alumno al que se le aplicó el tamizaje."]
[]
[null,"Límite Promedio de puntuación"]
[null,"Es el limite de respuestas en las cuales los alumnos requieren una atención como acción mínima (Debajo de este promedio se consideran alumnos sin riesgo y por encima de esta se considera con riesgo probable)"]
[]
[]
[]
[null,"Límite Crítico de puntuación"]
[null,"Por encima de este limite se considera necesario una atención inmediata para los alumnos pues se encuentran en un riesgo muy alto"]